Workbook

Sheet 各種パラメータ(sht0)
A1: 21 | B1: 22 | C1: 23 | D1: 24 | E1: 25 | F1: 26 | G1: 27 | H1: 28 | I1: 29 | J1: 30 | K1: 31 | L1: 32 | M1: 33 | N1: 34 | O1: 35 | P1: 36 | Q1: 37 | R1: 38 | S1: 39 | T1: 40
B2: プリプレグ | L2: 環境条件
B3: 購入先 | L3: 名 | M3: 記号 | N3: 値 | O3: 単位 | P3: 備考
L4: 空気密度 | M4: ρ | O4: kg/m^3 | P4: https://pigeon-poppo.com/standard-atmosphere/
B5: 品番 | L5: 重力加速度 | M5: g | O5: m/s^2 | P5: https://unit.aist.go.jp/riem/lgl-apr/requirement/mass/approval/GravityAria_info2.pdf
B6: Carbon | L6: 粘性係数 | M6: μ | O6: N・s/m^2 | P6: https://pigeon-poppo.com/standard-atmosphere/
B7: Resin | L7: 動粘性係数 | M7: ν | O7: m^2/s | P7: https://pigeon-poppo.com/standard-atmosphere/
B8: FAW | D8: g/m^2 | E8: FAW：Fiber Areal Weight．単位面積あたりの繊維の重量（単位：g/㎡） | L8: 気温 | M8: T | O8: ℃
B9: Resin Content | D9: weiht % | O9: K
B10: Curing Condition | L10: 圧力 | M10: P | O10: hPa
O11: Pa
L12: 一般気体定数 | M12: R | O12: J/kg・K | P12: https://pigeon-poppo.com/standard-atmosphere/
L13: 比熱比 | M13: κ | O13: - | P13: https://pigeon-poppo.com/standard-atmosphere/
B14: Mechanical Peoperties | L14: 音速 | M14: a | O14: m/s | P14: https://pigeon-poppo.com/standard-atmosphere/
B15: 名 | C15: 記号 | D15: 値 | E15: 単位 | F15: 備考 | L15: カルマン定数 | M15: k | O15: - | P15: 接地境界層にて風速の対数分布則を適用
B16: 強度 | C16: FLt | E16: GPa | F16: 繊維方向・引張 | L16: 粗度 | M16: z0 | O16: - | P16: 接地境界層にて風速の対数分布則を適用
B17: ヤング率 | C17: ELt | E17: GPa
B18: ポアソン比 | C18: νLt | E18: -
B19: 強度 | C19: FTt | E19: GPa | F19: 直交方向・引張
B20: ヤング率 | C20: ETt | E20: GPa
B21: ポアソン比 | C21: νTt | E21: -
B22: 強度 | C22: FLc | E22: GPa | F22: 繊維方向・圧縮
B23: ヤング率 | C23: ELc | E23: GPa
B24: ポアソン比 | C24: νLc | E24: -
B25: 強度 | C25: FTc | E25: GPa | F25: 直交方向・圧縮
B26: ヤング率 | C26: ETc | E26: GPa
B27: ポアソン比 | C27: νLc | E27: -
B28: 強度 | C28: FLT | E28: GPa | F28: せん断
B29: ヤング率 | C29: GLT | E29: GPa
B30: 強度 | C30: νLt | E30: GPa | F30: 層間せん断
B31: 厚さ | C31: t | E31: mm/ply

Sheet 主翼(sht1)
B2: 主翼諸元 | L2: 主翼平面形 | AR2: 反復回数 | AZ2: ='各種パラメータ(sht0)'!L2 -> 環境条件 | BE2: 重量推算 | BJ2: 主翼二次構造 | BL2: コード長1mに対して
B3: 名 | C3: 記号 | D3: 値 | E3: 単位 | M3: 翼素番号 | N3: スパン | O3: コード長 [m] | P3: 取り付け角 [deg] | Q3: 上反角 [deg] | R3: 翼型1 | S3: 翼型2 | T3: Δy [m] | U3: Δ翼面積 [m^2] | V3: c(y)傾き [-] | W3: 切片 [m] | AA3: コード傾き | AB3: コード切片 | AC3: 取り付け角傾き | AD3: 取り付け角切片 | AE3: 翼型1傾き | AF3: 翼型1切片 | AG3: 翼型2傾き | AH3: 翼型2切片 | AK3: 翼素番号 | AL3: スパン | AP3: ='各種パラメータ(sht0)'!L3 -> 名 | AQ3: ='各種パラメータ(sht0)'!M3 -> 記号 | AR3: ='各種パラメータ(sht0)'!N3 -> 値 | AS3: ='各種パラメータ(sht0)'!O3 -> 単位 | AU3: 名 | AV3: 記号 | AW3: 値 | AX3: 単位 | AZ3: 名 | BA3: 記号 | BB3: 値 | BC3: 単位 | BE3: 名 | BF3: 記号 | BG3: 値 | BH3: 単位 | BJ3: 名 | BK3: 記号 | BL3: 値 | BM3: 単位
A4: 設計値 | B4: 翼面積 | C4: S | E4: m^2 | M4: n | N4: y | O4: c | P4: αs | Q4: Γd | R4: - | S4: - | T4: Δy | U4: ΔS | V4: a | W4: b | X4: ∫c(y)^2dy | Y4: ∫c(y)*(y^2) dy | AA4: - | AB4: - | AC4: - | AD4: - | AE4: - | AF4: - | AG4: - | AH4: - | AK4: n | AL4: y | AP4: =B33 -> 分割数 | AQ4: =C33 -> n | AS4: =E33 -> - | AU4: 上反 | AV4: - | AX4: - | AZ4: ='各種パラメータ(sht0)'!L4 -> 空気密度 | BA4: ='各種パラメータ(sht0)'!M4 -> ρ | BC4: ='各種パラメータ(sht0)'!O4 -> kg/m^3 | BE4: 0番 | BF4: 桁 | BH4: kg | BJ4: 翼型1 | BK4: 全周 | BM4: m
B5: 翼幅 | C5: b | E5: m | M5: - | N5: m | O5: m | P5: deg | Q5: deg | R5: - | S5: - | T5: m | U5: m^2 | V5: - | W5: m | X5: m^3 | Y5: m^4 | AA5: m/m | AB5: m | AC5: deg/m | AD5: deg | AE5: 1/m | AF5: - | AG5: 1/m | AH5: - | AK5: - | AL5: m | AP5: 地面効果 | AQ5: - | AS5: - | AU5: たわみ | AV5: - | AX5: - | AZ5: ='各種パラメータ(sht0)'!L5 -> 重力加速度 | BA5: ='各種パラメータ(sht0)'!M5 -> g | BC5: ='各種パラメータ(sht0)'!O5 -> m/s^2 | BF5: リブ | BH5: kg | BK5: プランク長 | BM5: m
B6: アスペクト比 | C6: AR | E6: - | L6: 矩形部 [0] | AJ6: 0番 | AP6: たわみ・上反角 | AQ6: - | AS6: - | AU6: ねじれ | AV6: - | AX6: - | AZ6: ='各種パラメータ(sht0)'!L6 -> 粘性係数 | BA6: ='各種パラメータ(sht0)'!M6 -> μ | BC6: ='各種パラメータ(sht0)'!O6 -> N・s/m^2 | BF6: プランク | BH6: kg | BK6: リブ材長 | BM6: m
B7: 平均空力翼弦長 | C7: cMAC | E7: m | F7: 白本p.44 銀本p.77 | L7: 第一段テーパー [1] | AJ7: 1番 | AP7: 翼面積 | AQ7: S | AS7: m^2 | AZ7: ='各種パラメータ(sht0)'!L7 -> 動粘性係数 | BA7: ='各種パラメータ(sht0)'!M7 -> ν | BC7: ='各種パラメータ(sht0)'!O7 -> m^2/s | BF7: リブ材 | BH7: kg | BK7: リブ面積 | BM7: m^2
B8: 片翼面積重心 | C8: y_ | E8: m | F8: 白本p.44． | L8: 第二段テーパー [2] | AJ8: 2番 | AP8: 翼幅 | AQ8: b | AS8: m | AZ8: ='各種パラメータ(sht0)'!L8 -> 気温 | BA8: ='各種パラメータ(sht0)'!M8 -> T | BC8: ='各種パラメータ(sht0)'!O8 -> ℃ | BF8: 後縁材 | BH8: kg | BJ8: 翼型2 | BK8: 全周 | BM8: m
A9: 変形考慮 | B9: 翼面積 | C9: S | E9: m^2 | L9: 第三段テーパー [3] | AJ9: 3番 | AP9: アスペクト比 | AQ9: AR | AS9: - | AU9: 名 | AV9: 記号 | AX9: 単位 | BC9: ='各種パラメータ(sht0)'!O9 -> K | BF9: 縦通材 | BH9: kg | BK9: プランク長 | BM9: m
B10: 翼幅 | C10: b | E10: m | L10: ウィングレット [4] | AJ10: ウィングレット [4] | AP10: 平均空力翼弦長 | AQ10: c_ | AS10: m | AU10: 曲げモーメントの制限 | AV10: - | AX10: - | AZ10: ='各種パラメータ(sht0)'!L10 -> 圧力 | BA10: ='各種パラメータ(sht0)'!M10 -> P | BC10: ='各種パラメータ(sht0)'!O10 -> hPa | BF10: 接着剤 | BH10: kg | BK10: リブ材長 | BM10: m
B11: アスペクト比 | C11: AR | E11: - | L11: 翼端 | AJ11: 翼端 | AP11: 片翼面積重心 | AQ11: y_ | AS11: m | AU11: 翼根から翼端までの翼の長さ | AV11: le | AX11: m | BC11: ='各種パラメータ(sht0)'!O11 -> Pa | BF11: ねじり止め | BH11: kg | BK11: リブ面積 | BM11: m^2
B12: 平均空力翼弦長 | C12: c_ | E12: m | L12: 翼端 | AJ12: - | AK12: - | AL12: - | AP12: 翼効率 | AQ12: e | AS12: - | AU12: パネルの半幅 | AV12: ds | AZ12: ='各種パラメータ(sht0)'!L12 -> 一般気体定数 | BA12: ='各種パラメータ(sht0)'!M12 -> R | BC12: ='各種パラメータ(sht0)'!O12 -> J/kg・K | BF12: その他 | BH12: kg | BJ12: リブ | BK12: 厚さ | BM12: m
B13: 片翼面積重心 | C13: y_ | E13: m | L13: 合計 | AP13: 主翼二次元揚力傾斜 | AQ13: Clα | AS13: 1/deg | AU13: 翼根曲げモーメントの制約 | AV13: β | AX13: - | AZ13: ='各種パラメータ(sht0)'!L13 -> 比熱比 | BA13: ='各種パラメータ(sht0)'!M13 -> κ | BC13: ='各種パラメータ(sht0)'!O13 -> - | BF13: 合計 | BH13: kg | BJ13: プランク | BK13: 厚さ | BM13: m
A14: LLT | B14: 空力中心 | C14: hac | E14: - | AC14: キャンバーライン | AP14: 主翼三次元揚力傾斜 | AQ14: aw | AS14: 1/deg | AU14: 翼効率 | AV14: e | AX14: - | AZ14: ='各種パラメータ(sht0)'!L14 -> 音速 | BA14: ='各種パラメータ(sht0)'!M14 -> a | BC14: ='各種パラメータ(sht0)'!O14 -> m/s | BE14: 1番 | BF14: 桁 | BH14: kg | BJ14: 縦通材 | BK14: 本数 | BM14: -
B15: 翼効率 | C15: e | E15: - | M15: ='主翼翼型1解析(sht10)'!G2 -> 1 | N15: ='主翼翼型1解析(sht10)'!H2 -> α | O15: ='主翼翼型1解析(sht10)'!I2 -> α^2 | P15: ='主翼翼型1解析(sht10)'!J2 -> α^3 | Q15: ='主翼翼型1解析(sht10)'!K2 -> α^4 | R15: ='主翼翼型1解析(sht10)'!L2 -> α^5 | S15: ='主翼翼型1解析(sht10)'!M2 -> α^6 | T15: ='主翼翼型1解析(sht10)'!N2 -> α^7 | U15: ='主翼翼型1解析(sht10)'!O2 -> α^8 | V15: ='主翼翼型1解析(sht10)'!P2 -> Re | W15: ='主翼翼型1解析(sht10)'!Q2 -> Re^2 | X15: ='主翼翼型1解析(sht10)'!R2 -> Re^3 | Y15: ='主翼翼型1解析(sht10)'!S2 -> Re^4 | Z15: ='主翼翼型1解析(sht10)'!T2 -> Re^5 | AA15: ='主翼翼型1解析(sht10)'!U2 -> Re^6 | AC15: ='水平翼型解析(sht12)'!AB2 -> - | AD15: ='水平翼型解析(sht12)'!AC2 -> 1 | AE15: ='水平翼型解析(sht12)'!AD2 -> x^1 | AF15: ='水平翼型解析(sht12)'!AE2 -> x^2 | AG15: ='水平翼型解析(sht12)'!AF2 -> x^3 | AH15: ='水平翼型解析(sht12)'!AG2 -> x^4 | AI15: ='水平翼型解析(sht12)'!AH2 -> x^5 | AJ15: ='水平翼型解析(sht12)'!AI2 -> x^6 | AK15: ='水平翼型解析(sht12)'!AJ2 -> x^7 | AL15: ='水平翼型解析(sht12)'!AK2 -> x^8 | AP15: 揚力係数 | AQ15: CL | AS15: - | AU15: 揚力 | AV15: Lift | AX15: N | AZ15: ='各種パラメータ(sht0)'!L15 -> カルマン定数 | BA15: ='各種パラメータ(sht0)'!M15 -> k | BC15: ='各種パラメータ(sht0)'!O15 -> - | BF15: リブ | BH15: kg | BK15: 断面積 | BM15: m^2
B16: 主翼二次元揚力傾斜 | C16: Clα | E16: 1/deg | L16: ='主翼翼型1解析(sht10)'!F3 -> Cl | AC16: zc | AP16: 有害抗力係数 | AQ16: CDp | AS16: - | AU16: 誘導抗力 | AV16: Di | AX16: N | AZ16: ='各種パラメータ(sht0)'!L16 -> 粗度 | BA16: ='各種パラメータ(sht0)'!M16 -> z0 | BC16: ='各種パラメータ(sht0)'!O16 -> - | BF16: プランク | BH16: kg | BJ16: リブ材 | BK16: 厚さ | BM16: m
B17: 主翼三次元揚力傾斜 | C17: aw | E17: 1/deg | L17: ='主翼翼型1解析(sht10)'!F4 -> Cd0 | AC17: zc | AP17: 誘導抗力係数 | AQ17: CDi | AS17: - | AU17: 翼根曲げモーメント | AV17: B | AX17: N*m | BF17: リブ材 | BH17: kg | BJ17: 後縁材 | BK17: 幅 | BM17: m
B18: 揚力係数 | C18: CL | E18: - | L18: ='主翼翼型1解析(sht10)'!F5 -> Cm | AP18: 抗力係数 | AQ18: CD | AS18: - | AZ18: 解析用 | BF18: 後縁材 | BH18: kg | BK18: 厚さ | BM18: m
B19: 抗力係数 | C19: CD | E19: - | AP19: - | AQ19: Cyβ | AS19: - | AZ19: 名 | BA19: 記号 | BB19: 値 | BC19: 単位 | BF19: 縦通材 | BH19: kg | BJ19: 接着剤① | BK19: リブ面積に比例するもの | BM19: kg
B20: ピッチングモーメント係数 | C20: Cm | E20: - | F20: 空力中心周り | AP20: - | AQ20: Clβ | AS20: 1/deg | AZ20: 全機迎角 | BA20: α | BC20: deg | BF20: 接着剤 | BH20: kg | BJ20: 接着剤② | BK20: コード長に比例するもの | BM20: kg
B21: 平均誘導迎え角 | C21: αi_ | E21: deg | AP21: - | AQ21: Clp | AS21: 1/rad | AZ21: 横滑り角 | BA21: β | BC21: deg | BF21: ねじり止め | BH21: kg | BJ21: 接着剤③ | BK21: スパンに比例するもの | BM21: kg
L22: ='主翼翼型2解析(sht11)'!F3 -> Cl | AP22: - | AQ22: Cnp | AS22: 1/rad | AZ22: 対気速度 | BA22: V | BC22: m/s | BF22: その他 | BH22: kg | BI22: 上反焼きの分 | BJ22: ウィングレット | BK22: 厚さ | BM22: m
L23: ='主翼翼型2解析(sht11)'!F4 -> Cd0 | AP23: - | AQ23: Clr | AS23: 1/rad | AZ23: 高度 | BA23: hE | BC23: m | BF23: 合計 | BH23: kg
L24: ='主翼翼型2解析(sht11)'!F5 -> Cm | AP24: - | AQ24: Cnr | AS24: 1/rad | AZ24: 角速度 | BA24: p | BC24: deg/s | BE24: 2番 | BF24: 桁 | BH24: kg | BJ24: 主翼の重心位置・慣性モーメント
AP25: 平均誘導迎え角 | AQ25: αi_ | AS25: deg | BA25: q | BC25: deg/s | BF25: リブ | BH25: kg | BJ25: 名 | BK25: 記号 | BL25: 値 | BM25: 単位
AP26: 揚力 | AQ26: Lift | AS26: N | BA26: r | BC26: deg/s | BF26: プランク | BH26: kg | BI26: プランクの厚さを変えたいならここを変更 | BJ26: 重量 | BK26: M | BM26: kg
AP27: 有害抗力 | AQ27: Dp | AS27: N | AZ27: 迎角変化率 | BA27: dα/dt | BC27: deg/s | BF27: リブ材 | BH27: kg | BJ27: 重心位置 | BK27: Xcg | BM27: m
AP28: 誘導抗力 | AQ28: Di | AS28: N | BF28: 後縁材 | BH28: kg | BK28: Ycg | BM28: m
AP29: 抗力 | AQ29: D | AS29: N | AZ29: 材料密度 | BF29: 縦通材 | BH29: kg | BK29: Zcg | BM29: m
B30: リブ間隔 | C30: Δy | E30: m | AP30: ローリングモーメント | AQ30: L | AS30: N*m | AZ30: 名 | BA30: 記号 | BB30: 値 | BC30: 単位 | BF30: 接着剤 | BH30: kg | BJ30: 慣性モーメント | BK30: Ixx | BM30: kg*m^2
B31: 桁位置 | C31: - | E31: - | AP31: ピッチングモーメント | AQ31: M | AS31: N*m | AZ31: CFRP | BA31: - | BC31: kg/m^3 | BF31: ねじり止め | BH31: kg | BK31: Iyy | BM31: kg*m^2
B32: 翼根コード長 | C32: c0 | E32: m | AP32: ヨーイングモーメント | AQ32: N | AS32: N*m | AZ32: 50倍発泡 | BA32: - | BC32: kg/m^3 | BF32: その他 | BH32: kg | BK32: Izz | BM32: kg*m^2
B33: 分割数 | C33: n | E33: - | F33: 片翼分のリブ枚数． | AZ33: ヒノキ | BA33: - | BC33: kg/m^3 | BF33: 合計 | BH33: kg | BK33: Ixy | BM33: kg・m^2
AZ34: エスレン | BA34: - | BC34: kg/m^3 | BE34: ウィングレット | BF34: 合計 | BH34: kg | BK34: Iyz | BM34: kg・m^2
BK35: Ixz | BM35: kg・m^2
A40: - | T40: - | AP40: - | AX40: -
C41: 設計値 | G41: 0G | H41: 投影面での距離 | M41: 楕円分布 | P41: テーパー翼 | AB41: たわみを考慮 | AC41: 1G | AN41: TR-797 | BB41: 重量推算 | CF41: 合計 | CG41: =SUM(CG45:CG129) -> 0 | CH41: =SUM(CH45:CH129) -> 0 | CI41: =SUM(CI45:CI129) -> 0 | CK41: 慣性モーメント
B42: 名 | C42: リブ番号 | D42: テーパー | E42: リブ位置 | F42: 翼素位置 | G42: 高さ | H42: 翼素間隔 | I42: 取り付け角 | J42: 上反角 | K42: 翼型1配合率 | L42: 翼型2配合率 | M42: コード長 | N42: 前縁位置 | O42: 後縁位置 | P42: コード長 | Q42: 前縁位置 | R42: 後縁位置 | T42: 有効迎角 | U42: レイノルズ数 | V42: 揚力係数 | W42: 抗力係数 | X42: ピッチングモーメント係数 | Y42: 揚力傾斜 | Z42: 抗力傾斜 | AA42: ピッチングモーメント(桁位置まわり) | AB42: リブ位置 | AC42: 高さ | AD42: 翼素間隔 | AE42: 取り付け角 | AF42: 上反角 | AG42: ='たわみ・ねじり(sht2)'!Y42 -> たわみ | AH42: ='たわみ・ねじり(sht2)'!Z42 -> たわみ角 | AI42: ='たわみ・ねじり(sht2)'!AA42 -> ねじれ角 | AJ42: 楕円循環 | AK42: 循環 | AL42: 吹きおろし | AM42: 誘導迎角 | AN42: 最適循環 | AO42: 吹きおろし | AZ42: 名 | BA42: スパー番号 | BB42: 面積 | BG42: 体積 | BL42: 0番重量 | BR42: 1番重量 | BX42: 2番重量 | CD42: Winglet | CG42: 一次構造 | CH42: 二次構造 | CI42: 合計 | CK42: 主翼重心からの距離の2乗
B43: 記号 | C43: n | D43: - | E43: - | F43: yn | G43: zn | H43: Δy | I43: - | J43: Γ | K43: - | L43: - | M43: cn | N43: - | O43: - | P43: cn | Q43: - | R43: - | T43: α | U43: Re | V43: Cl | W43: Cdo | X43: Cm | Y43: Clα | Z43: Cd0α | AA43: Cm_cg | AB43: yn | AC43: zn | AD43: Δy | AE43: - | AF43: Γd | AG43: ='たわみ・ねじり(sht2)'!Y43 -> w | AH43: ='たわみ・ねじり(sht2)'!Z43 -> θ | AI43: ='たわみ・ねじり(sht2)'!AA43 -> Φ | AJ43: Γc_opt | AK43: Γc | AL43: wi | AM43: αi | AN43: Γ_TR797 | AO43: wi | AZ43: 記号 | BA43: - | BB43: リブ | BC43: プランク | BD43: 縦通材 | BE43: リブ材 | BF43: 後縁材 | BG43: リブ | BH43: プランク | BI43: 縦通材 | BJ43: リブ材 | BK43: 後縁材 | BL43: リブ | BM43: プランク | BN43: 縦通材 | BO43: リブ材 | BP43: 後縁材 | BQ43: 接着剤 | BR43: リブ | BS43: プランク | BT43: 縦通材 | BU43: リブ材 | BV43: 後縁材 | BW43: 接着剤 | BX43: リブ | BY43: プランク | BZ43: 縦通材 | CA43: リブ材 | CB43: 後縁材 | CC43: 接着剤 | CD43: 断面積 | CE43: 体積 | CF43: 重量 | CG43: - | CH43: - | CI43: - | CK43: y^2+z^2 | CL43: z^2+x^2 | CM43: x^2+y^2
B44: 単位 | C44: - | D44: - | E44: m | F44: m | G44: m | H44: m | I44: deg | J44: deg | K44: - | L44: - | M44: m | N44: m | O44: m | P44: m | Q44: m | R44: m | T44: deg | U44: - | V44: - | W44: - | X44: - | Y44: 1/deg | Z44: 1/deg | AA44: - | AB44: m | AC44: m | AD44: m | AE44: deg | AF44: deg | AG44: ='たわみ・ねじり(sht2)'!Y44 -> m | AH44: deg | AI44: ='たわみ・ねじり(sht2)'!AA44 -> deg | AJ44: m^2/s | AK44: m^2/s | AL44: m/s | AM44: deg | AN44: m^2/s | AO44: m/s | AZ44: 単位 | BA44: - | BB44: m^2 | BC44: m^2 | BD44: m^2 | BE44: m^2 | BF44: m^2 | BG44: m^3 | BH44: m^3 | BI44: m^3 | BJ44: m^3 | BK44: m^3 | BL44: kg | BM44: kg | BN44: kg | BO44: kg | BP44: kg | BQ44: kg | BR44: kg | BS44: kg | BT44: kg | BU44: kg | BV44: kg | BW44: kg | BX44: kg | BY44: kg | BZ44: kg | CA44: kg | CB44: kg | CC44: kg | CD44: m^2 | CE44: m^3 | CF44: kg | CG44: kg | CH44: kg | CI44: kg | CK44: m^2 | CL44: m^2 | CM44: m^2
B45: 値

Sheet たわみ・ねじり(sht2)
A1: 1 | B1: 2 | C1: 3 | D1: 4 | E1: 5 | F1: 6 | G1: 7 | H1: 8 | I1: 9 | J1: 10 | K1: 11 | L1: 12 | M1: 13 | N1: 14 | O1: 15 | P1: 16 | Q1: 17 | R1: 18 | S1: 19 | T1: 20 | U1: 21 | V1: 22 | W1: 23 | X1: 24 | Y1: 25 | Z1: 26 | AA1: 27 | AB1: 28 | AC1: 29 | AD1: 30 | AE1: 31 | AF1: 32 | AG1: 33 | AH1: 34 | AI1: 35 | AJ1: 36 | AK1: 37 | AL1: 38 | AM1: 39 | AN1: 40 | AO1: 41 | AP1: 42 | AQ1: 43 | AR1: 44 | AS1: 45 | AT1: 46 | AU1: 47 | AV1: 48 | AW1: 49 | AX1: 50 | AY1: 51 | AZ1: 52 | BA1: 53 | BB1: 54 | BC1: 55 | BD1: 56 | BE1: 57 | BF1: 58 | BG1: 59 | BH1: 60 | BI1: 61 | BJ1: 62 | BK1: 63 | BL1: 64 | BM1: 65 | BN1: 66 | BO1: 67 | BP1: 68 | BQ1: 69 | BR1: 70 | BS1: 71 | BT1: 72 | BU1: 73 | BV1: 74 | BW1: 75 | BX1: 76 | BY1: 77 | BZ1: 78 | CA1: 79 | CB1: 80 | CC1: 81 | CD1: 82 | CE1: 83 | CF1: 84 | CG1: 85 | CH1: 86 | CI1: 87 | CJ1: 88 | CK1: 89 | CL1: 90 | CM1: 91 | CN1: 92 | CO1: 93 | CP1: 94 | CQ1: 95 | CR1: 96 | CS1: 97 | CT1: 98 | CU1: 99 | CV1: 100
B2: 最大値 | L2: ='各種パラメータ(sht0)'!L2 -> 環境条件
B3: 名 | C3: 記号 | D3: 値 | E3: 単位 | F3: 備考 | L3: ='各種パラメータ(sht0)'!L3 -> 名 | M3: ='各種パラメータ(sht0)'!M3 -> 記号 | N3: ='各種パラメータ(sht0)'!N3 -> 値 | O3: ='各種パラメータ(sht0)'!O3 -> 単位
B4: 曲げモーメント | C4: Mmax | E4: N*m | L4: ='各種パラメータ(sht0)'!L4 -> 空気密度 | M4: ='各種パラメータ(sht0)'!M4 -> ρ | O4: ='各種パラメータ(sht0)'!O4 -> kg/m^3
B5: トルク | C5: Tmax | E5: N*m | L5: ='各種パラメータ(sht0)'!L5 -> 重力加速度 | M5: ='各種パラメータ(sht0)'!M5 -> g | O5: ='各種パラメータ(sht0)'!O5 -> m/s^2
B6: たわみ | C6: wmax | E6: m | L6: ='各種パラメータ(sht0)'!L6 -> 粘性係数 | M6: ='各種パラメータ(sht0)'!M6 -> μ | O6: ='各種パラメータ(sht0)'!O6 -> N・s/m^2
B7: ねじれ角 | C7: Φmax | E7: deg | L7: ='各種パラメータ(sht0)'!L7 -> 動粘性係数 | M7: ='各種パラメータ(sht0)'!M7 -> ν | O7: ='各種パラメータ(sht0)'!O7 -> m^2/s
L8: ='各種パラメータ(sht0)'!L8 -> 気温 | M8: ='各種パラメータ(sht0)'!M8 -> T | O8: ='各種パラメータ(sht0)'!O8 -> ℃
L9: ='各種パラメータ(sht0)'!L9 -> 0 | M9: ='各種パラメータ(sht0)'!M9 -> 0 | O9: ='各種パラメータ(sht0)'!O9 -> K
L10: ='各種パラメータ(sht0)'!L10 -> 圧力 | M10: ='各種パラメータ(sht0)'!M10 -> P | O10: ='各種パラメータ(sht0)'!O10 -> hPa
L11: ='各種パラメータ(sht0)'!L11 -> 0 | M11: ='各種パラメータ(sht0)'!M11 -> 0 | O11: ='各種パラメータ(sht0)'!O11 -> Pa
L12: ='各種パラメータ(sht0)'!L12 -> 一般気体定数 | M12: ='各種パラメータ(sht0)'!M12 -> R | O12: ='各種パラメータ(sht0)'!O12 -> J/kg・K
L13: ='各種パラメータ(sht0)'!L13 -> 比熱比 | M13: ='各種パラメータ(sht0)'!M13 -> κ | O13: ='各種パラメータ(sht0)'!O13 -> -
L14: ='各種パラメータ(sht0)'!L14 -> 音速 | M14: ='各種パラメータ(sht0)'!M14 -> a | O14: ='各種パラメータ(sht0)'!O14 -> m/s
L15: ='各種パラメータ(sht0)'!L15 -> カルマン定数 | M15: ='各種パラメータ(sht0)'!M15 -> k | O15: ='各種パラメータ(sht0)'!O15 -> -
L16: ='各種パラメータ(sht0)'!L16 -> 粗度 | M16: ='各種パラメータ(sht0)'!M16 -> z0 | O16: ='各種パラメータ(sht0)'!O16 -> -
L18: ='主翼(sht1)'!AZ18 -> 解析用
L19: ='主翼(sht1)'!AZ19 -> 名 | M19: ='主翼(sht1)'!BA19 -> 記号 | N19: ='主翼(sht1)'!BB19 -> 値 | O19: ='主翼(sht1)'!BC19 -> 単位
L20: ='主翼(sht1)'!AZ20 -> 全機迎角 | M20: ='主翼(sht1)'!BA20 -> α | O20: ='主翼(sht1)'!BC20 -> deg
L21: ='主翼(sht1)'!AZ22 -> 対気速度 | M21: ='主翼(sht1)'!BA22 -> V | O21: ='主翼(sht1)'!BC22 -> m/s
L23: ='主翼(sht1)'!B14 -> 空力中心 | M23: ='主翼(sht1)'!C14 -> hac | O23: ='主翼(sht1)'!E14 -> -
L24: ='主翼(sht1)'!B30 -> リブ間隔 | M24: ='主翼(sht1)'!C30 -> Δy | O24: ='主翼(sht1)'!E30 -> m
L25: ='主翼(sht1)'!B31 -> 桁位置 | M25: ='主翼(sht1)'!C31 -> - | O25: ='主翼(sht1)'!E31 -> -
M27: 厚さ | N27: 破断合応力
M28: t | N28: Nx
M29: m | N29: N/m
B30: リブ間隔 | C30: Δy | E30: m | L30: 0番
B31: 桁位置 | C31: - | E31: - | L31: 1番
B32: 翼根コード長 | C32: c0 | E32: m | L32: 2番
B33: 分割数 | C33: n | E33: - | F33: 片翼分のリブ枚数． | L33: 3番
A34: 翼型1 | L34: ウィングレット [4]
A35: 翼型2 | L35: 翼端
A40: -
AA41: 強度計算
B42: ='主翼(sht1)'!B42 -> 名 | C42: ='主翼(sht1)'!C42 -> リブ番号 | D42: ='主翼(sht1)'!BA42 -> スパー番号 | E42: ='主翼(sht1)'!E42 -> リブ位置 | F42: ='主翼(sht1)'!G42 -> 高さ | G42: ='主翼(sht1)'!H42 -> 翼素間隔 | H42: ='主翼(sht1)'!M42 -> コード長 | I42: 翼素面積 | J42: ='主翼(sht1)'!V42 -> 揚力係数 | K42: ='主翼(sht1)'!X42 -> ピッチングモーメント係数 | L42: ='スパー寸法(sht20)'!Q42 -> 曲げ剛性 | M42: ='スパー寸法(sht20)'!S42 -> ねじれ剛性 | N42: 翼重量 | O42: 翼素揚力 | P42: 翼荷重 | Q42: 翼素トルク | R42: せん断力 | S42: 曲げモーメント | T42: トルク | U42: T曲げモーメント | V42: 翼素たわみ | W42: 翼素たわみ角 | X42: 翼素ねじれ角 | Y42: たわみ | Z42: たわみ角 | AA42: ねじれ角 | AB42: 断面二次モーメント | AC42: 長半軸 | AD42: 最大曲げ応力 | AE42: 厚さ | AF42: 合応力 | AG42: 破断合応力 | AH42: 破断荷重倍数
B43: ='主翼(sht1)'!B43 -> 記号 | C43: ='主翼(sht1)'!C43 -> n | D43: ='主翼(sht1)'!BA43 -> - | E43: ='主翼(sht1)'!E43 -> - | F43: ='主翼(sht1)'!G43 -> zn | G43: ='主翼(sht1)'!H43 -> Δy | H43: ='主翼(sht1)'!M43 -> cn | I43: ΔS | J43: ='主翼(sht1)'!V43 -> Cl | K43: ='主翼(sht1)'!X43 -> Cm | L43: ='スパー寸法(sht20)'!Q43 -> EIx | M43: ='スパー寸法(sht20)'!S43 -> GJ | N43: ΔW | O43: ΔL | P43: ΔL-ΔW | Q43: ΔT | R43: F | S43: M | T43: T | U43: M_T | V43: δ | W43: dθ | X43: dΦ | Y43: w | Z43: θ | AA43: Φ | AB43: Ix | AC43: bm | AD43: σmax | AE43: t | AF43: Nx | AG43: Nx_max | AH43: n_max
B44: ='主翼(sht1)'!B44 -> 単位 | C44: ='主翼(sht1)'!C44 -> - | D44: ='主翼(sht1)'!BA44 -> - | E44: ='主翼(sht1)'!E44 -> m | F44: ='主翼(sht1)'!G44 -> m | G44: ='主翼(sht1)'!H44 -> m | H44: ='主翼(sht1)'!M44 -> m | I44: m^2 | J44: ='主翼(sht1)'!V44 -> - | K44: ='主翼(sht1)'!X44 -> - | L44: ='スパー寸法(sht20)'!Q44 -> N*m^2 | M44: ='スパー寸法(sht20)'!S44 -> N*m^2 | N44: N | O44: N | P44: N | Q44: N*m | R44: N | S44: N*m | T44: N*m | U44: N*m | V44: m | W44: rad | X44: rad | Y44: m | Z44: rad | AA44: deg | AB44: m^4 | AC44: m | AD44: N/m^2 | AE44: m | AF44: N/m | AG44: N/m | AH44: G
B45: ='主翼(sht1)'!B45 -> 値

Sheet 水平尾翼(sht3)
A1: - | K1: - | AO1: - | AY1: - | BI1: -
B2: 水平尾翼諸元 | L2: 水平尾翼平面形 | AZ2: ='各種パラメータ(sht0)'!L2 -> 環境条件 | BE2: 重量推算 | BJ2: 水平尾翼二次構造 | BL2: コード長1mに対して
B3: 名 | C3: 記号 | D3: 値 | E3: 単位 | M3: 翼素番号 | N3: スパン | O3: コード長 [m] | P3: 取り付け角 [deg] | Q3: 上反角 [deg] | R3: 翼型1 | S3: 翼型2 | T3: Δy [m] | U3: Δ翼面積 [m^2] | V3: c(y)傾き [-] | W3: 切片 [m] | AA3: コード傾き | AB3: コード切片 | AC3: 取り付け角傾き | AD3: 取り付け角切片 | AE3: 翼型1傾き | AF3: 翼型1切片 | AG3: 翼型2傾き | AH3: 翼型2切片 | AP3: ='各種パラメータ(sht0)'!L3 -> 名 | AQ3: ='各種パラメータ(sht0)'!M3 -> 記号 | AR3: ='各種パラメータ(sht0)'!N3 -> 値 | AS3: ='各種パラメータ(sht0)'!O3 -> 単位 | AZ3: 名 | BA3: 記号 | BB3: 値 | BC3: 単位 | BE3: 名 | BF3: 記号 | BG3: 値 | BH3: 単位 | BJ3: 名 | BK3: 記号 | BL3: 値 | BM3: 単位
B4: 翼面積 | C4: S | E4: m^2 | F4: 設計値 | M4: n | N4: y | O4: c | P4: αs | Q4: Γd | R4: - | S4: - | T4: Δy | U4: ΔS | V4: a | W4: b | X4: ∫c(y)^2dy | Y4: ∫c(y)*(y^2) dy | AA4: - | AB4: - | AC4: - | AD4: - | AE4: - | AF4: - | AG4: - | AH4: - | AP4: =B33 -> 分割数 | AQ4: =C33 -> n | AS4: =E33 -> - | AT4: スパン方向．片翼 | AZ4: ='各種パラメータ(sht0)'!L4 -> 空気密度 | BA4: ='各種パラメータ(sht0)'!M4 -> ρ | BC4: ='各種パラメータ(sht0)'!O4 -> kg/m^3 | BE4: 水平尾翼 | BF4: 桁 | BH4: kg | BJ4: 翼型 | BK4: 全周 | BM4: m
B5: 翼幅 | C5: b | E5: m | M5: - | N5: m | O5: m | P5: deg | Q5: deg | R5: - | S5: - | T5: m | U5: m^2 | V5: - | W5: m | X5: m^3 | Y5: m^4 | AA5: - | AB5: m | AC5: deg/m | AD5: deg | AE5: 1/m | AF5: - | AG5: 1/m | AH5: - | AQ5: m | AS5: - | AT5: コード方向 | AZ5: ='各種パラメータ(sht0)'!L5 -> 重力加速度 | BA5: ='各種パラメータ(sht0)'!M5 -> g | BC5: ='各種パラメータ(sht0)'!O5 -> m/s^2 | BF5: リブ | BH5: kg | BK5: プランク長 | BM5: m
B6: アスペクト比 | C6: AR | E6: - | L6: 矩形部 [0] | AZ6: ='各種パラメータ(sht0)'!L6 -> 粘性係数 | BA6: ='各種パラメータ(sht0)'!M6 -> μ | BC6: ='各種パラメータ(sht0)'!O6 -> N・s/m^2 | BF6: プランク | BH6: kg | BK6: リブ材長 | BM6: m
B7: 平均空力翼弦長 | C7: cMAC | E7: m | F7: 白本p.44 銀本p.77 | L7: 第一段テーパー [1] | AP7: 翼面積 | AQ7: S | AS7: m^2 | AZ7: ='各種パラメータ(sht0)'!L7 -> 動粘性係数 | BA7: ='各種パラメータ(sht0)'!M7 -> ν | BC7: ='各種パラメータ(sht0)'!O7 -> m^2/s | BF7: リブ材 | BH7: kg | BK7: リブ面積 | BM7: m^2
B8: 片翼面積重心 | C8: y_ | E8: m | F8: 白本p.44． | L8: 翼端 | AP8: 翼幅 | AQ8: b | AS8: m | AZ8: ='各種パラメータ(sht0)'!L8 -> 気温 | BA8: ='各種パラメータ(sht0)'!M8 -> T | BC8: ='各種パラメータ(sht0)'!O8 -> ℃ | BF8: 後縁材 | BH8: kg | BJ8: リブ | BK8: 厚さ | BM8: m
B9: 翼面積 | C9: S | E9: m^2 | F9: 変形考慮 | L9: 翼端 | AP9: アスペクト比 | AQ9: AR | AS9: - | BC9: ='各種パラメータ(sht0)'!O9 -> K | BF9: 縦通材 | BH9: kg | BJ9: プランク | BK9: 厚さ | BM9: m
B10: 翼幅 | C10: b | E10: m | L10: 翼端 | AP10: 平均空力翼弦長 | AQ10: c_ | AS10: m | AZ10: ='各種パラメータ(sht0)'!L10 -> 圧力 | BA10: ='各種パラメータ(sht0)'!M10 -> P | BC10: ='各種パラメータ(sht0)'!O10 -> hPa | BF10: 接着剤 | BH10: kg | BJ10: 縦通材 | BK10: 本数 | BM10: -
B11: アスペクト比 | C11: AR | E11: - | L11: 翼端 | AP11: 片翼面積重心 | AQ11: y_ | AS11: m | BC11: ='各種パラメータ(sht0)'!O11 -> Pa | BF11: ねじり止め | BH11: kg | BK11: 断面積 | BM11: m^2
B12: 平均空力翼弦長 | C12: c_ | E12: m | L12: 翼端 | AP12: 翼効率 | AQ12: e | AS12: - | AZ12: ='各種パラメータ(sht0)'!L12 -> 一般気体定数 | BA12: ='各種パラメータ(sht0)'!M12 -> R | BC12: ='各種パラメータ(sht0)'!O12 -> J/kg・K | BF12: その他 | BH12: kg | BJ12: リブ材 | BK12: 厚さ | BM12: m
B13: 片翼面積重心 | C13: y_ | E13: m | L13: 合計 | AP13: 水平尾翼二次元揚力傾斜 | AQ13: Clα | AS13: 1/deg | AZ13: ='各種パラメータ(sht0)'!L13 -> 比熱比 | BA13: ='各種パラメータ(sht0)'!M13 -> κ | BC13: ='各種パラメータ(sht0)'!O13 -> - | BF13: 合計 | BH13: kg | BJ13: 後縁材 | BK13: 幅 | BM13: m
B14: 空力中心 | C14: hac | E14: - | AC14: キャンバーライン | AP14: 水平尾翼三次元揚力傾斜 | AQ14: at | AS14: 1/deg | AZ14: ='各種パラメータ(sht0)'!L14 -> 音速 | BA14: ='各種パラメータ(sht0)'!M14 -> a | BC14: ='各種パラメータ(sht0)'!O14 -> m/s | BK14: 厚さ | BM14: m
B15: 翼効率 | C15: e | E15: - | M15: ='主翼翼型1解析(sht10)'!G2 -> 1 | N15: ='主翼翼型1解析(sht10)'!H2 -> α | O15: ='主翼翼型1解析(sht10)'!I2 -> α^2 | P15: ='主翼翼型1解析(sht10)'!J2 -> α^3 | Q15: ='主翼翼型1解析(sht10)'!K2 -> α^4 | R15: ='主翼翼型1解析(sht10)'!L2 -> α^5 | S15: ='主翼翼型1解析(sht10)'!M2 -> α^6 | T15: ='主翼翼型1解析(sht10)'!N2 -> α^7 | U15: ='主翼翼型1解析(sht10)'!O2 -> α^8 | V15: ='主翼翼型1解析(sht10)'!P2 -> Re | W15: ='主翼翼型1解析(sht10)'!Q2 -> Re^2 | X15: ='主翼翼型1解析(sht10)'!R2 -> Re^3 | Y15: ='主翼翼型1解析(sht10)'!S2 -> Re^4 | Z15: ='主翼翼型1解析(sht10)'!T2 -> Re^5 | AA15: ='主翼翼型1解析(sht10)'!U2 -> Re^6 | AC15: ='水平翼型解析(sht12)'!AB2 -> - | AD15: ='水平翼型解析(sht12)'!AC2 -> 1 | AE15: ='水平翼型解析(sht12)'!AD2 -> x^1 | AF15: ='水平翼型解析(sht12)'!AE2 -> x^2 | AG15: ='水平翼型解析(sht12)'!AF2 -> x^3 | AH15: ='水平翼型解析(sht12)'!AG2 -> x^4 | AI15: ='水平翼型解析(sht12)'!AH2 -> x^5 | AJ15: ='水平翼型解析(sht12)'!AI2 -> x^6 | AK15: ='水平翼型解析(sht12)'!AJ2 -> x^7 | AL15: ='水平翼型解析(sht12)'!AK2 -> x^8 | AP15: 揚力係数 | AQ15: CL | AS15: - | AZ15: ='各種パラメータ(sht0)'!L15 -> カルマン定数 | BA15: ='各種パラメータ(sht0)'!M15 -> k | BC15: ='各種パラメータ(sht0)'!O15 -> - | BJ15: 接着剤① | BK15: リブ面積に比例するもの | BM15: kg
B16: 主翼二次元揚力傾斜 | C16: Clα | E16: 1/deg | L16: ='主翼翼型1解析(sht10)'!F3 -> Cl | AP16: 有害抗力係数 | AQ16: CDp | AS16: - | AZ16: ='各種パラメータ(sht0)'!L16 -> 粗度 | BA16: ='各種パラメータ(sht0)'!M16 -> z0 | BC16: ='各種パラメータ(sht0)'!O16 -> - | BJ16: 接着剤② | BK16: コード長に比例するもの | BM16: kg
B17: 主翼三次元揚力傾斜 | C17: aw | E17: 1/deg | L17: ='主翼翼型1解析(sht10)'!F4 -> Cd0 | AP17: 誘導抗力係数 | AQ17: Cdi | AS17: - | BJ17: 接着剤③ | BK17: スパンに比例するもの | BM17: kg
B18: 揚力係数 | C18: CL | E18: - | L18: ='主翼翼型1解析(sht10)'!F5 -> Cm | AP18: 抗力係数 | AQ18: CD | AS18: - | AZ18: 解析用 | BE18: 水平尾翼桁
B19: 抗力係数 | C19: CD | E19: - | L19: ='主翼翼型1解析(sht10)'!F6 -> 0 | AP19: ピッチングモーメント係数 | AQ19: Cm0 | AS19: - | AZ19: 名 | BA19: 記号 | BB19: 値 | BC19: 単位 | BE19: 名 | BF19: 記号 | BG19: 値 | BH19: 単位
B20: ピッチングモーメント係数 | C20: Cm | E20: - | L20: ='主翼翼型1解析(sht10)'!F7 -> 0 | AZ20: 全機迎角 | BA20: α | BC20: deg | BE20: 内径 | BF20: - | BH20: m
B21: 平均誘導迎え角 | C21: αi_ | E21: deg | L21: ='主翼翼型1解析(sht10)'!F8 -> 0 | AZ21: 横滑り角 | BA21: β | BC21: deg | BE21: 厚さ | BF21: - | BH21: m
B22: 尾翼形式 | C22: - | E22: - | AZ22: 対気速度 | BA22: V | BC22: m/s | BE22: 断面積 | BF22: - | BH22: m^2
AZ23: 高度 | BA23: hE | BC23: m | BE23: 体積 | BF23: - | BH23: m^3
AZ24: 角速度 | BA24: p | BC24: deg/s | BE24: 重量 | BF24: - | BH24: kg | BJ24: 水平尾翼の重心位置・慣性モーメント
BA25: q | BC25: deg/s | BE25: 誤差 | BF25: - | BH25: kg | BJ25: 名 | BK25: 記号 | BL25: 値 | BM25: 単位
AP26: 揚力 | AQ26: Lift | AS26: N | AU26: =AR26/BB5 ->  | AV26: kg | BA26: r | BC26: deg/s | BE26: 測定値 | BF26: - | BH26: kg | BJ26: 重量 | BK26: M | BM26: kg
AP27: 有害抗力 | AQ27: Dp | AS27: N | AZ27: 迎角変化率 | BA27: dα/dt | BC27: deg/s | BE27: 重なりしろ係数 | BF27: - | BH27: - | BJ27: 重心位置 | BK27: Xcg | BM27: m
AP28: 誘導抗力 | AQ28: Di | AS28: N | AZ28: 吹きおろし各 | BA28: ε | BC28: deg | BK28: Ycg | BM28: m
AP29: 抗力 | AQ29: D | AS29: N | AZ29: 取り付け角 | BA29: i | BC29: deg | BK29: Zcg | BM29: m
B30: リブ間隔 | C30: Δy | E30: m | AP30: ローリングモーメント | AQ30: L | AS30: N*m | AZ30: 水平尾翼迎角 | BA30: αt | BC30: deg | BJ30: 慣性モーメント | BK30: Ixx | BM30: kg*m^2
B31: 桁位置 | C31: - | E31: - | AP31: ピッチングモーメント | AQ31: M | AS31: N*m | BK31: Iyy | BM31: kg*m^2
B32: 翼根コード長 | C32: c0 | E32: m | AP32: ヨーイングモーメント | AQ32: N | AS32: N*m | AZ32: 材料密度 | BK32: Izz | BM32: kg*m^2
B33: 分割数 | C33: n | E33: - | F33: 片翼分のリブ枚数． | AZ33: 名 | BA33: 記号 | BB33: 値 | BC33: 単位 | BK33: Ixy | BM33: kg・m^2
AZ34: CFRP | BA34: - | BC34: kg/m^3 | BK34: Iyz | BM34: kg・m^2
AZ35: 50倍発泡 | BA35: - | BC35: kg/m^3 | BK35: Ixz | BM35: kg・m^2
AZ36: ヒノキ | BA36: - | BC36: kg/m^3
AZ37: エスレン | BA37: - | BC37: kg/m^3
A40: - | T40: - | AS40: -
C41: 設計値 | G41: 0G | H41: 投影面での距離 | M41: 楕円分布 | P41: テーパー翼 | AB41: たわみを考慮 | AC41: 1G | AZ41: 重量推算 | BP41: =SUM(BP45:BP57) -> 0 | BQ41: =SUM(BQ45:BQ57) -> 0 | BR41: =SUM(BR45:BR57) -> 0 | BT41: 慣性モーメント
B42: 名 | C42: リブ番号 | D42: テーパー | E42: リブ位置 | F42: 翼素位置 | G42: 高さ | H42: 翼素間隔 | I42: 取り付け角 | J42: 上反角 | K42: 翼型1配合率 | L42: 翼型2配合率 | M42: コード長 | N42: 前縁位置 | O42: 後縁位置 | P42: コード長 | Q42: 前縁位置 | R42: 後縁位置 | T42: 有効迎角 | U42: レイノルズ数 | V42: 揚力係数 | W42: 抗力係数 | X42: ピッチングモーメント係数 | AA42: ピッチングモーメント係数(桁位置まわり) | AB42: リブ位置 | AC42: 高さ | AD42: 翼素間隔 | AJ42: 楕円循環 | AK42: 循環 | AL42: 吹きおろし | AM42: 誘導迎角 | AZ42: 面積 | BE42: 体積 | BJ42: 水平尾翼 | BP42: 一次構造 | BQ42: 二次構造 | BR42: 合計 | BT42: 主翼重心からの距離の2乗
B43: 記号 | C43: n | D43: - | E43: - | F43: yn | G43: zn | H43: Δy | I43: - | J43: Γ | K43: - | L43: - | M43: cn | N43: - | O43: - | P43: cn | Q43: - | R43: - | T43: α | U43: Re | V43: Cl | W43: Cdo | X43: Cm | AA43: Cm_cg | AB43: yn | AC43: zn | AD43: Δy | AJ43: Γc_opt | AK43: Γc | AL43: wi | AM43: αi | AZ43: リブ | BA43: プランク | BB43: 縦通材 | BC43: リブ材 | BD43: 後縁材 | BE43: リブ | BF43: プランク | BG43: 縦通材 | BH43: リブ材 | BI43: 後縁材 | BJ43: リブ | BK43: プランク | BL43: 縦通材 | BM43: リブ材 | BN43: 後縁材 | BO43: 接着剤 | BP43: - | BQ43: - | BR43: - | BT43: y^2+z^2 | BU43: z^2+x^2 | BV43: x^2+y^2
B44: 単位 | C44: - | D44: - | E44: m | F44: m | G44: m | H44: m | I44: deg | J44: deg | K44: - | L44: - | M44: m | N44: m | O44: m | P44: m | Q44: m | R44: m | T44: deg | U44: - | V44: - | W44: - | X44: - | AA44: - | AB44: m | AC44: m | AD44: m | AJ44: m^1/s | AK44: m^3/s | AL44: m/s | AM44: deg | AZ44: m^2 | BA44: m^2 | BB44: m^2 | BC44: m^2 | BD44: m^2 | BE44: m^3 | BF44: m^3 | BG44: m^3 | BH44: m^3 | BI44: m^3 | BJ44: kg | BK44: kg | BL44: kg | BM44: kg | BN44: kg | BO44: kg | BP44: kg | BQ44: kg | BR44: kg | BT44: m^2 | BU44: m^2 | BV44: m^2
B45: 値

Sheet 垂直尾翼(sht4)
A1: - | K1: - | AO1: - | AY1: - | BI1: -
B2: 垂直尾翼 | L2: 水平尾翼平面形 | AZ2: ='各種パラメータ(sht0)'!L2 -> 環境条件 | BE2: 重量推算 | BJ2: 水平尾翼二次構造 | BL2: コード長1mに対して
B3: 名 | C3: 記号 | D3: 値 | E3: 単位 | M3: 翼素番号 | N3: スパン | O3: コード長 [m] | P3: 取り付け角 [deg] | Q3: 上反角 [deg] | R3: 翼型1 | S3: 舵面サイズ | T3: Δy [m] | U3: Δ翼面積 [m^2] | V3: c(y)傾き [-] | W3: 切片 [m] | AA3: コード傾き | AB3: コード切片 | AC3: 取り付け角傾き | AD3: 取り付け角切片 | AE3: 翼型1傾き | AF3: 翼型1切片 | AG3: 翼型2傾き | AH3: 翼型2切片 | AP3: ='各種パラメータ(sht0)'!L3 -> 名 | AQ3: ='各種パラメータ(sht0)'!M3 -> 記号 | AR3: ='各種パラメータ(sht0)'!N3 -> 値 | AS3: ='各種パラメータ(sht0)'!O3 -> 単位 | AZ3: 名 | BA3: 記号 | BB3: 値 | BC3: 単位 | BE3: 名 | BF3: 記号 | BG3: 値 | BH3: 単位 | BJ3: 名 | BK3: 記号 | BL3: 値 | BM3: 単位
B4: 翼面積 | C4: S | E4: m^2 | F4: 設計値 | M4: n | N4: y | O4: c | P4: αs | Q4: Γd | R4: - | S4: cf/c | T4: Δy | U4: ΔS | V4: a | W4: b | X4: ∫c(y)^2dy | Y4: ∫c(y)*(y^2) dy | AA4: - | AB4: - | AC4: - | AD4: - | AE4: - | AF4: - | AG4: - | AH4: - | AP4: =B33 -> 分割数 | AQ4: =C33 -> n | AS4: =E33 -> - | AT4: スパン方向．片翼 | AZ4: ='各種パラメータ(sht0)'!L4 -> 空気密度 | BA4: ='各種パラメータ(sht0)'!M4 -> ρ | BC4: ='各種パラメータ(sht0)'!O4 -> kg/m^3 | BE4: 垂直尾翼 | BF4: 桁 | BH4: kg | BJ4: 翼型 | BK4: 全周 | BM4: m
B5: 翼幅 | C5: b | E5: m | M5: - | N5: m | O5: m | P5: deg | Q5: deg | R5: - | S5: - | T5: m | U5: m^2 | V5: - | W5: m | X5: m^3 | Y5: m^4 | AA5: - | AB5: m | AC5: deg/m | AD5: deg | AE5: 1/m | AF5: - | AG5: 1/m | AH5: - | AQ5: m | AS5: - | AT5: コード方向 | AZ5: ='各種パラメータ(sht0)'!L5 -> 重力加速度 | BA5: ='各種パラメータ(sht0)'!M5 -> g | BC5: ='各種パラメータ(sht0)'!O5 -> m/s^2 | BF5: リブ | BH5: kg | BK5: プランク長 | BM5: m
B6: アスペクト比 | C6: AR | E6: - | L6: 下端 | AZ6: ='各種パラメータ(sht0)'!L6 -> 粘性係数 | BA6: ='各種パラメータ(sht0)'!M6 -> μ | BC6: ='各種パラメータ(sht0)'!O6 -> N・s/m^2 | BF6: プランク | BH6: kg | BK6: リブ材長 | BM6: m
B7: 平均空力翼弦長 | C7: cMAC | E7: m | F7: 白本p.44 銀本p.77 | L7: 中心 | AP7: 翼面積 | AQ7: S | AS7: m^2 | AZ7: ='各種パラメータ(sht0)'!L7 -> 動粘性係数 | BA7: ='各種パラメータ(sht0)'!M7 -> ν | BC7: ='各種パラメータ(sht0)'!O7 -> m^2/s | BF7: リブ材 | BH7: kg | BK7: リブ面積 | BM7: m^2
B8: 片翼面積重心 | C8: y_ | E8: m | F8: 白本p.44． | L8: 上端 | AP8: 翼幅 | AQ8: b | AS8: m | AZ8: ='各種パラメータ(sht0)'!L8 -> 気温 | BA8: ='各種パラメータ(sht0)'!M8 -> T | BC8: ='各種パラメータ(sht0)'!O8 -> ℃ | BF8: 後縁材 | BH8: kg | BJ8: リブ | BK8: 厚さ | BM8: m
B9: 翼面積 | C9: S | E9: m^2 | F9: 変形考慮 | L9: 翼端 | AP9: アスペクト比 | AQ9: AR | AS9: - | BC9: ='各種パラメータ(sht0)'!O9 -> K | BF9: 縦通材 | BH9: kg | BJ9: プランク | BK9: 厚さ | BM9: m
B10: 翼幅 | C10: b | E10: m | L10: 翼端 | AP10: 平均空力翼弦長 | AQ10: c_ | AS10: m | AZ10: ='各種パラメータ(sht0)'!L10 -> 圧力 | BA10: ='各種パラメータ(sht0)'!M10 -> P | BC10: ='各種パラメータ(sht0)'!O10 -> hPa | BF10: 接着剤 | BH10: kg | BJ10: 縦通材 | BK10: 本数 | BM10: -
B11: アスペクト比 | C11: AR | E11: - | L11: 翼端 | AP11: 片翼面積重心 | AQ11: y_ | AS11: m | BC11: ='各種パラメータ(sht0)'!O11 -> Pa | BF11: ねじり止め | BH11: kg | BK11: 断面積 | BM11: m^2
B12: 平均空力翼弦長 | C12: c_ | E12: m | L12: 翼端 | AP12: 翼効率 | AQ12: e | AS12: - | AZ12: ='各種パラメータ(sht0)'!L12 -> 一般気体定数 | BA12: ='各種パラメータ(sht0)'!M12 -> R | BC12: ='各種パラメータ(sht0)'!O12 -> J/kg・K | BF12: その他 | BH12: kg | BJ12: リブ材 | BK12: 厚さ | BM12: m
B13: 片翼面積重心 | C13: y_ | E13: m | L13: 合計 | AP13: 主翼二次元揚力傾斜 | AQ13: Clα | AS13: 1/deg | AZ13: ='各種パラメータ(sht0)'!L13 -> 比熱比 | BA13: ='各種パラメータ(sht0)'!M13 -> κ | BC13: ='各種パラメータ(sht0)'!O13 -> - | BF13: 合計 | BH13: kg | BJ13: 後縁材 | BK13: 幅 | BM13: m
B14: 空力中心 | C14: hac | E14: - | AC14: キャンバーライン | AP14: 主翼三次元揚力傾斜 | AQ14: aw | AS14: 1/deg | AZ14: ='各種パラメータ(sht0)'!L14 -> 音速 | BA14: ='各種パラメータ(sht0)'!M14 -> a | BC14: ='各種パラメータ(sht0)'!O14 -> m/s | BK14: 厚さ | BM14: m
B15: 翼効率 | C15: e | E15: - | M15: ='主翼翼型1解析(sht10)'!G2 -> 1 | N15: ='主翼翼型1解析(sht10)'!H2 -> α | O15: ='主翼翼型1解析(sht10)'!I2 -> α^2 | P15: ='主翼翼型1解析(sht10)'!J2 -> α^3 | Q15: ='主翼翼型1解析(sht10)'!K2 -> α^4 | R15: ='主翼翼型1解析(sht10)'!L2 -> α^5 | S15: ='主翼翼型1解析(sht10)'!M2 -> α^6 | T15: ='主翼翼型1解析(sht10)'!N2 -> α^7 | U15: ='主翼翼型1解析(sht10)'!O2 -> α^8 | V15: ='主翼翼型1解析(sht10)'!P2 -> Re | W15: ='主翼翼型1解析(sht10)'!Q2 -> Re^2 | X15: ='主翼翼型1解析(sht10)'!R2 -> Re^3 | Y15: ='主翼翼型1解析(sht10)'!S2 -> Re^4 | Z15: ='主翼翼型1解析(sht10)'!T2 -> Re^5 | AA15: ='主翼翼型1解析(sht10)'!U2 -> Re^6 | AC15: ='水平翼型解析(sht12)'!AB2 -> - | AD15: ='水平翼型解析(sht12)'!AC2 -> 1 | AE15: ='水平翼型解析(sht12)'!AD2 -> x^1 | AF15: ='水平翼型解析(sht12)'!AE2 -> x^2 | AG15: ='水平翼型解析(sht12)'!AF2 -> x^3 | AH15: ='水平翼型解析(sht12)'!AG2 -> x^4 | AI15: ='水平翼型解析(sht12)'!AH2 -> x^5 | AJ15: ='水平翼型解析(sht12)'!AI2 -> x^6 | AK15: ='水平翼型解析(sht12)'!AJ2 -> x^7 | AL15: ='水平翼型解析(sht12)'!AK2 -> x^8 | AP15: 揚力係数 | AQ15: CL | AS15: - | AZ15: ='各種パラメータ(sht0)'!L15 -> カルマン定数 | BA15: ='各種パラメータ(sht0)'!M15 -> k | BC15: ='各種パラメータ(sht0)'!O15 -> - | BJ15: 接着剤① | BK15: リブ面積に比例するもの | BM15: kg
B16: 主翼二次元揚力傾斜 | C16: Clα | E16: 1/deg | L16: ='主翼翼型1解析(sht10)'!F3 -> Cl | AC16: zc | AP16: 有害抗力係数 | AQ16: CDp | AS16: - | AZ16: ='各種パラメータ(sht0)'!L16 -> 粗度 | BA16: ='各種パラメータ(sht0)'!M16 -> z0 | BC16: ='各種パラメータ(sht0)'!O16 -> - | BJ16: 接着剤② | BK16: コード長に比例するもの | BM16: kg
B17: 主翼三次元揚力傾斜 | C17: aw | E17: 1/deg | L17: ='主翼翼型1解析(sht10)'!F4 -> Cd0 | AP17: 誘導抗力係数 | AQ17: Cdi | AS17: - | BJ17: 接着剤③ | BK17: スパンに比例するもの | BM17: kg
B18: 揚力係数 | C18: CL | E18: - | L18: ='主翼翼型1解析(sht10)'!F5 -> Cm | AP18: 抗力係数 | AQ18: CD | AS18: - | AZ18: 解析用 | BE18: 水平尾翼桁
B19: 抗力係数 | C19: CD | E19: - | AP19: ピッチングモーメント係数 | AQ19: Cm0 | AS19: - | AZ19: 名 | BA19: 記号 | BB19: 値 | BC19: 単位 | BE19: 名 | BF19: 記号 | BG19: 値 | BH19: 単位
B20: ピッチングモーメント係数 | C20: Cm | E20: - | AQ20: Clβ | AS20: 1/deg | AZ20: 全機迎角 | BA20: α | BC20: deg | BE20: 内径 | BF20: - | BH20: m
B21: 平均誘導迎え角 | C21: αi_ | E21: deg | AZ21: 横滑り角 | BA21: β | BC21: deg | BE21: 厚さ | BF21: - | BH21: m
B22: 翼型 | C22: NACA00 | E22: - | AZ22: 対気速度 | BA22: V | BC22: m/s | BE22: 断面積 | BF22: - | BH22: m^2
B23: 厚さ | C23: t | E23: mm | AQ23: Clr | AS23: 1/rad | AZ23: 高度 | BA23: hE | BC23: m | BE23: 体積 | BF23: - | BH23: m^3
B24: 舵面積 | C24: Sf | E24: m^2 | AQ24: Cnr | AS24: 1/rad | AZ24: 角速度 | BA24: p | BC24: deg/s | BE24: 重量 | BF24: - | BH24: kg | BJ24: 水平尾翼の重心位置・慣性モーメント
B25: 舵面積比 | C25: Sf/S | E25: - | BA25: q | BC25: deg/s | BE25: 誤差 | BF25: - | BH25: kg | BJ25: 名 | BK25: 記号 | BL25: 値 | BM25: 単位
AP26: 揚力 | AQ26: Lift | AS26: N | BA26: r | BC26: deg/s | BE26: 測定値 | BF26: - | BH26: kg | BJ26: 重量 | BK26: M | BM26: kg
AP27: 有害抗力 | AQ27: Dp | AS27: N | AZ27: 迎角変化率 | BA27: dα/dt | BC27: deg/s | BE27: 重なりしろ係数 | BF27: - | BH27: - | BJ27: 重心位置 | BK27: Xcg | BM27: m
AP28: 誘導抗力 | AQ28: Di | AS28: N | AZ28: 吹きおろし各 | BA28: ε | BC28: deg | BK28: Ycg | BM28: m
AP29: 抗力 | AQ29: D | AS29: N | AZ29: 取り付け角 | BA29: i | BC29: deg | BK29: Zcg | BM29: m
B30: リブ間隔 | C30: Δy | E30: m | AP30: ローリングモーメント | AQ30: L | AS30: N*m | AZ30: 水平尾翼迎角 | BA30: αt | BC30: deg | BJ30: 慣性モーメント | BK30: Ixx | BM30: kg*m^2
B31: 桁位置 | C31: - | E31: - | AP31: ピッチングモーメント | AQ31: M | AS31: N*m | BK31: Iyy | BM31: kg*m^2
B32: 翼根コード長 | C32: c0 | E32: m | AP32: ヨーイングモーメント | AQ32: N | AS32: N*m | AZ32: 材料密度 | BK32: Izz | BM32: kg*m^2
B33: 分割数 | C33: n | E33: - | AZ33: 名 | BA33: 記号 | BB33: 値 | BC33: 単位 | BK33: Ixy | BM33: kg・m^2
AZ34: CFRP | BA34: - | BC34: kg/m^3 | BK34: Iyz | BM34: kg・m^2
AZ35: 50倍発泡 | BA35: - | BC35: kg/m^3 | BK35: Ixz | BM35: kg・m^2
AZ36: ヒノキ | BA36: - | BC36: kg/m^3
AZ37: エスレン | BA37: - | BC37: kg/m^3
A40: - | T40: -
C41: 設計値 | G41: 0G | H41: 投影面での距離 | M41: 楕円分布 | P41: テーパー翼 | AB41: たわみを考慮 | AC41: 1G | AZ41: 重量推算 | BP41: =SUM(BP45:BP136) -> 0 | BQ41: =SUM(BQ45:BQ136) -> 0 | BR41: =SUM(BR45:BR136) -> 0 | BT41: 慣性モーメント
B42: 名 | C42: リブ番号 | D42: テーパー | E42: リブ位置 | F42: 翼素位置 | G42: 高さ | H42: 翼素間隔 | I42: 取り付け角 | J42: 上反角 | K42: 翼型1配合率 | L42: 原点 | M42: コード長 | N42: 前縁位置 | O42: 後縁位置 | P42: コード長 | Q42: 前縁位置 | R42: 後縁位置 | T42: 有効迎角 | U42: レイノルズ数 | V42: 揚力係数 | W42: 抗力係数 | X42: ピッチングモーメント係数 | AA42: ピッチングモーメント係数(桁位置まわり) | AB42: リブ位置 | AC42: 高さ | AD42: 翼素間隔 | AJ42: 楕円循環 | AK42: 循環 | AL42: 吹きおろし | AM42: 誘導迎角 | AZ42: 面積 | BE42: 体積 | BJ42: 水平尾翼 | BP42: 一次構造 | BQ42: 二次構造 | BR42: 合計 | BT42: 主翼重心からの距離の2乗
B43: 記号 | C43: n | D43: - | E43: - | F43: yn | G43: zn | H43: Δy | I43: - | J43: Γ | K43: - | L43: - | M43: cn | N43: - | O43: - | P43: cn | Q43: - | R43: - | T43: α | U43: Re | V43: Cl | W43: Cdo | X43: Cm | AA43: Cm_cg | AB43: zn | AC43: yn | AD43: Δy | AJ43: Γc_opt | AK43: Γc | AL43: wi | AM43: αi | AZ43: リブ | BA43: プランク | BB43: 縦通材 | BC43: リブ材 | BD43: 後縁材 | BE43: リブ | BF43: プランク | BG43: 縦通材 | BH43: リブ材 | BI43: 後縁材 | BJ43: リブ | BK43: プランク | BL43: 縦通材 | BM43: リブ材 | BN43: 後縁材 | BO43: 接着剤 | BP43: - | BQ43: - | BR43: - | BT43: y^2+z^2 | BU43: z^2+x^2 | BV43: x^2+y^2
B44: 単位 | C44: - | D44: - | E44: m | F44: m | G44: m | H44: m | I44: deg | J44: deg | K44: - | L44: m | M44: m | N44: m | O44: m | P44: m | Q44: m | R44: m | T44: deg | U44: - | V44: - | W44: - | X44: - | AA44: - | AB44: m | AC44: m | AD44: m | AJ44: m^1/s | AK44: m^3/s | AL44: m/s | AM44: deg | AZ44: m^2 | BA44: m^2 | BB44: m^2 | BC44: m^2 | BD44: m^2 | BE44: m^3 | BF44: m^3 | BG44: m^3 | BH44: m^3 | BI44: m^3 | BJ44: kg | BK44: kg | BL44: kg | BM44: kg | BN44: kg | BO44: kg | BP44: kg | BQ44: kg | BR44: kg | BT44: m^2 | BU44: m^2 | BV44: m^2
B45: 値

Sheet 全機計算(sht8)
A1: _ | B1: 2 | C1: 3 | D1: 4 | E1: 5 | F1: 6 | G1: 7 | H1: 8 | I1: 9 | J1: 10 | K1: 11 | L1: 12 | M1: 13 | N1: 14 | O1: 15 | P1: 16 | Q1: 17 | R1: 18 | S1: 19 | T1: 20 | U1: 21 | V1: 22 | W1: 23 | X1: 24 | Y1: 25 | Z1: 26 | AA1: 27 | AB1: 28 | AC1: 29 | AD1: 30 | AE1: 31 | AF1: 32 | AG1: 33 | AH1: 34 | AI1: 35 | AJ1: 36 | AK1: 37 | AL1: 38 | AM1: 39 | AN1: 40 | AO1: 41 | AP1: 42 | AQ1: 43 | AR1: 44 | AS1: 45 | AT1: 46 | AU1: 47 | AV1: 48 | AW1: 49 | AX1: 50 | AY1: 51 | AZ1: 52 | BA1: 53 | BB1: 54 | BC1: 55 | BD1: 56 | BE1: 57 | BF1: 58 | BG1: 59 | BH1: 60
B2: 速度 | G2: 重量 | L2: 尾翼配置 | Q2: 迎角 | V2: 環境条件
B3: 名 | C3: 記号 | D3: 値 | E3: 単位 | G3: 名 | H3: 記号 | I3: 値 | J3: 単位 | L3: 名 | M3: 記号 | N3: 値 | O3: 単位 | Q3: 名 | R3: 記号 | S3: 値 | T3: 単位 | V3: 名 | W3: 記号 | X3: 値 | Y3: 単位
B4: 巡航速度 | C4: V | E4: m/s | G4: 機体重量 | H4: - | J4: kg | L4: 全機cg-水平ac間距離 | M4: lt | O4: m | P4: 青本p.76 | Q4: 失速角 | R4: α_stall | T4: deg | V4: 空気密度 | W4: ρ | Y4: kg/m^3
B5: 設計運動速度 | C5: Va | E5: m/s | G5: パイロット重量 | H5: - | J5: kg | L5: 全機ac-水平ac間距離 | M5: lt' | O5: m | P5: 青本p.80 | Q5: ゼロ揚力角 | R5: α_0 | T5: deg | V5: 重力加速度 | W5: g | Y5: m/s^2
B6: 失速速度 | C6: Vs | E6: m/s | G6: 全備重量（質量） | H6: m | J6: kg | L6: 全機cg－垂直ac間距離 | M6: lf | O6: m | V6: 粘性係数 | W6: μ | Y6: N・s/m^2
B7: 最大速度 | C7: Vd | E7: m/s | G7: 全備重量（重量） | H7: W | J7: N | L7: 垂直尾翼下端位置 | M7: zf | O7: m | V7: 動粘性係数 | W7: ν | Y7: m^2/s
B8: 抗力最小速度 | C8: V_Dmin | E8: m/s | G8: 翼面荷重 | H8: W/S | J8: kg/m^2 | L8: 垂直尾翼面積重心 | M8: y_ | O8: m | V8: 気温 | W8: T | Y8: ℃
L9: 取り付け角 | M9: i | O9: deg | Y9: K
V10: 圧力 | W10: P | Y10: hPa
B11: 空気力 | G11: 慣性モーメント | L11: 容積比 | Q11: 主翼 | Y11: Pa
B12: 名 | C12: 記号 | D12: 値 | E12: 単位 | G12: 名 | H12: 記号 | I12: 値 | J12: 単位 | L12: 名 | M12: 記号 | N12: 値 | O12: 単位 | Q12: 名 | R12: 記号 | S12: 値 | T12: 単位 | V12: 一般気体定数 | W12: R | Y12: J/kg・K
B13: 揚力係数 | C13: CL | E13: - | G13: 慣性モーメント | H13: Ixx | J13: kg・m^2 | L13: 水平尾翼容積比 | M13: VH or VH* | O13: - | P13: 青本p.80． | Q13: ='主翼(sht1)'!B10 -> 翼幅 | R13: ='主翼(sht1)'!C10 -> b | T13: ='主翼(sht1)'!E10 -> m | V13: 比熱比 | W13: κ | Y13: -
B14: 最大揚力係数 | C14: CL_max | E14: - | H14: Iyy | J14: kg・m^2 | M14: VH' or VH*' | O14: - | P14: 青本p.80． | Q14: ='主翼(sht1)'!B11 -> アスペクト比 | R14: ='主翼(sht1)'!C11 -> AR | T14: ='主翼(sht1)'!E11 -> - | V14: 音速 | W14: a | Y14: m/s
B15: 主翼 | C15: CL_wing | E15: ='主翼(sht1)'!E18 -> - | H15: Izz | J15: kg・m^2 | L15: 垂直尾翼容積比 | M15: VF or VF* | O15: - | P15: 白本p.91 | Q15: ='主翼(sht1)'!B12 -> 平均空力翼弦長 | R15: ='主翼(sht1)'!C12 -> c_ | T15: ='主翼(sht1)'!E12 -> m | V15: カルマン定数 | W15: k | Y15: -
B16: 水平尾翼 | C16: CL_tail | E16: ='水平尾翼(sht3)'!E18 -> - | H16: Ixy | J16: kg・m^2 | L16: - | M16: ∂ε/∂α | O16: - | P16: 青本p.77．白本p.41 | Q16: ='主翼(sht1)'!B13 -> 片翼面積重心 | R16: ='主翼(sht1)'!C13 -> y_ | T16: ='主翼(sht1)'!E13 -> m | V16: 粗度 | W16: z0 | Y16: -
B17: 垂直尾翼 | C17: CL_fin | E17: ='垂直尾翼(sht4)'!E18 -> - | H17: Iyz | J17: kg・m^2 | L17: 水平尾翼効率 | M17: η | O17: - | Q17: ='主翼(sht1)'!B14 -> 空力中心 | R17: ='主翼(sht1)'!C14 -> hac | T17: ='主翼(sht1)'!E14 -> - | V17: 動圧 | W17: Q | Y17: N/m^2
B18: 揚力傾斜 | C18: CL_alpha | E18: 1/deg | H18: Ixz | J18: kg・m^2 | L18: サイドウォッシュ | M18: ∂σ/∂β | O18: - | Q18: ='主翼(sht1)'!B15 -> 翼効率 | R18: ='主翼(sht1)'!C15 -> e | T18: ='主翼(sht1)'!E15 -> - | AZ18: 解析用
B19: 主翼 | C19: aw | E19: ='主翼(sht1)'!E17 -> 1/deg | G19: 運動解析用 | H19: Ix~ | J19: kg*m^4 | L19: 尾翼形式 | M19: - | O19: - | Q19: ='主翼(sht1)'!B20 -> ピッチングモーメント係数 | R19: ='主翼(sht1)'!C20 -> Cm | T19: ='主翼(sht1)'!E20 -> - | AZ19: 名 | BA19: 記号 | BB19: 値 | BC19: 単位
B20: 水平尾翼 | C20: at | E20: ='水平尾翼(sht3)'!E17 -> 1/deg | H20: Iz~ | J20: kg*m^4 | Q20: ='主翼(sht1)'!B21 -> 平均誘導迎え角 | R20: ='主翼(sht1)'!C21 -> αi_ | T20: ='主翼(sht1)'!E21 -> deg | AZ20: 全機迎角 | BA20: α | BB20: =X23 -> 0 | BC20: deg
B21: 垂直尾翼 | C21: af | E21: ='垂直尾翼(sht4)'!E17 -> 1/deg | H21: Ixz/Ix | J21: - | L21: 有害抗力 | Q21: 空力微係数 | R21: Clβ | T21: 1/deg | V21: 解析用 | AZ21: 横滑り角 | BA21: β | BB21: =X24 -> 0 | BC21: deg
B22: 抗力係数 | C22: CD | E22: - | H22: Ixz/Iz | J22: - | L22: 名 | M22: 記号 | N22: 値 | O22: 単位 | Q22: - | R22: Clp | T22: 1/rad | V22: 名 | W22: 記号 | X22: 値 | Y22: 単位 | AA22: 名 | AB22: 値 | AZ22: 対気速度 | BA22: V | BB22: 0 | BC22: m/s
B23: 主翼 | C23: CD_wing | E23: ='主翼(sht1)'!E19 -> - | L23: 抗力係数 | M23: CDp | O23: - | Q23: - | R23: Cnp | T23: 1/rad | V23: 全機迎角 | W23: α | Y23: deg | AA23: 地面効果 | AZ23: 高度 | BA23: hE | BB23: 0 | BC23: m
B24: 水平尾翼 | C24: CD_tail | E24: ='水平尾翼(sht3)'!E19 -> - | L24: 主翼 | M24: CDp_wing | O24: - | Q24: - | R24: Clr | T24: 1/rad | V24: 横滑り角 | W24: β | Y24: deg | AA24: たわみ・上反角 | AZ24: 角速度 | BA24: p | BB24: 0 | BC24: deg/s
B25: 垂直尾翼 | C25: CD_fin | E25: ='垂直尾翼(sht4)'!E19 -> - | G25: 重心位置 | L25: 水平尾翼 | M25: CD_tail | O25: - | Q25: - | R25: Cnr | T25: 1/rad | V25: 対気速度 | W25: V | Y25: m/s | AA25: 上反 | BA25: q | BB25: 0 | BC25: deg/s
B26: カウル | C26: CD_cowl | E26: - | G26: 名 | H26: 記号 | I26: 値 | J26: 単位 | L26: 垂直尾翼 | M26: CD_fin | O26: - | V26: 高度 | W26: hE | Y26: m | AA26: たわみ | BA26: r | BB26: 0 | BC26: deg/s
B27: 胴体 | C27: CD_body | E27: - | G27: 重心位置 | H27: Xcg | J27: m | V27: 角速度 | W27: p | Y27: deg/s | AA27: ねじれ | AZ27: 迎角変化率 | BA27: dα/dt | BB27: 0 | BC27: deg/s
B28: 干渉抗力 | C28: CD_Interference | E28: - | H28: Ycg | J28: m | L28: 面積 | Q28: 垂直尾翼 | W28: q | Y28: deg/s
B29: 揚抗比 | C29: L/D | E29: - | H29: Zcg | J29: m | L29: 名 | M29: 記号 | N29: 値 | O29: 単位 | Q29: 名 | R29: 記号 | S29: 値 | T29: 単位 | W29: r | Y29: deg/s
B30: ピッチングモーメント係数 | C30: Cm | E30: - | F30: 青本p.80 | G30: 重心位置 | H30: hcg | J30: - | L30: 主翼 | M30: S | O30: ='主翼(sht1)'!E9 -> m^2 | R30: Clβ | T30: 1/deg | V30: 迎角変化率 | W30: dα/dt | Y30: deg/s
B31: 揚力 | C31: L | E31: N | G31: 全機空力中心位置 | H31: hn | J31: - | L31: 水平尾翼 | M31: St | O31: ='水平尾翼(sht3)'!E9 -> m^2 | R31: Clr | T31: 1/rad
E32: kgf | L32: 垂直尾翼 | M32: Sf | O32: ='垂直尾翼(sht4)'!E9 -> m^2 | R32: Cnr | T32: 1/rad | V32: プラットホーム
B33: 抗力 | C33: D | E33: N | G33: カウル | L33: カウル | M33: Sc | O33: m^2 | Q33: 垂直尾翼下端位置 | R33: zf | T33: m | V33: 名 | W33: 記号 | X33: 値 | Y33: 単位
E34: kgf | G34: 名 | H34: 記号 | I34: 値 | J34: 単位 | L34: 胴体 | M34: Sb | O34: m^2 | V34: 高度 | W34: hE_platform | Y34: m
B35: 余剰揚力 | C35: ΔL | E35: kgf | G35: 抗力係数 | H35: CD0_cowl | J35: - | L35: エレベータ | M35: Sδe | O35: m^2 | V35: 傾斜 | W35: γ_platform | Y35: deg
B36: ローリングモーメント | C36: L | E36: N*m | L36: ラダー | M36: Sδr | O36: m^2
B37: ピッチングモーメント | C37: M | E37: N*m | L37: 係数 | M37: τe | O37: -
B38: ヨーイングモーメント | C38: N | E38: N*m | M38: τt | O38: -
A40: - | U40: - | AE40: -
B41: 縦の有次元安定微係数 | D41: 青本p.38 | H41: 無次元空力係数 | N41: その他 | P41: 青本p.36．青本p.96 | V41: つり合い飛行 | AF41: 安定性判別
B42: 名 | C42: 記号 | D42: 値 | E42: 単位 | H42: 名 | I42: 記号 | J42: 値 | K42: 単位 | N42: 名 | O42: 記号 | P42: 値 | Q42: 単位 | V42: 名 | W42: 記号 | X42: 値 | Y42: 単位 | AA42: Magic Number | AF42: 静安定
C43: Xu | E43: 1/s | I43: Cx | K43: - | L43: 白本p.77．青本p.29 | O43: ーg cosθ0 (180/π) | Q43: m/(s^2*deg) | V43: 速度 | W43: V | Y43: m/s | AA43: CLα補正 | AF43: 名 | AG43: 記号 | AH43: 値 | AI43: 単位
C44: Xα | E44: m/(s^2*deg) | I44: Cy | K44: - | O44: ーg*sinθ0/V | Q44: 1/s | V44: 機体重量 | W44: m | Y44: kg | AA44: CDα補正 | AG44: Cmα | AI44: 1/deg | AJ44: 縦の静安定．負なら安定
C45: Zu | E45: deg/m | I45: Cz | K45: - | L45: 白本p.77．青本p.29 | O45: g*cosθ0/V | Q45: 1/s | V45: 全機空力中心位置 | W45: hn | Y45: - | AA45: Cmα補正 | AG45: Clβ | AI45: 1/deg | AJ45: 上反角効果．負なら安定
C46: Zα | E46: 1/s | I46: Cl | K46: - | O46: α0 | Q46: - | V46: 迎角 | W46: α0 | Y46: deg | AG46: Cnβ | AI46: 1/deg | AJ46: 方向性安定．
C47: Zδe | E47: 1/s | I47: Cm | K47: - | L47: 青本p.81．(2.9－34) | O47: tanθ0 | Q47: - | V47: 横滑り角 | W47: β0 | Y47: deg
C48: Mu | E48: deg/(m*s) | I48: Cn | K48: - | V48: 経路角 | W48: γ0 | Y48: deg | AF48: 動安定 | AG48: 時定数：最終地の約63%になる時間．大きければ緩やかな，小さければ素早い応答となる．
C49: Mα | E49: 1/s^2 | I49: CL | K49: - | L49: 白本p.84．(4.31) | V49: 速度 | W49: u0 | Y49: m/s | AF49: 名 | AG49: 記号 | AH49: 値 | AI49: 単位
C50: Mδe | E50: 1/s^2 | I50: CD | K50: - | W50: v0 | Y50: m/s | AF50: 短周期モード | AG50: ωsp | AI50: rad/s | AJ50: 青本p.41．固有角振動数
C51: Mq | E51: 1/s | W51: w0 | Y51: m/s | AG51: ζsp | AI51: - | AJ51: 青本p.41．減衰比
C52: M(d/dt(α)) | E52: 1/s | H52: 静安定微係数 | N52: 重心移動に関する微係数 | V52: 姿勢角 | W52: Φ0 | Y52: deg | AG52: ωdsp | AI52: rad/s | AJ52: 青本p.42．減衰固有角振動数
C53: Mu' | E53: deg/(m*s) | H53: 名 | I53: 記号 | J53: 値 | K53: 単位 | N53: 名 | O53: 記号 | P53: 値 | Q53: 単位 | W53: θ0 | Y53: deg | AG53: Tsp | AI53: s
C54: Mα' | E54: 1/s^2 | I54: CLα | K54: 1/deg | L54: 青本p.77 | O54: Cmδh | Q54: - | W54: ψ0 | X54: 0 | Y54: deg | AF54: フゴイドモード | AG54: ωp | AI54: rad/s | AJ54: 青本p.41．固有角振動数
C55: Mδe' | E55: 1/s^2 | I55: CLδe | K55: 1/deg | N55: Cmαの変化 | O55: d/dh(Cmα) | Q55: 1/deg | AG55: ζp | AI55: - | AJ55: 青本p.41．減衰比
C56: Mq' | E56: 1/s | I56: CLδr | K56: 1/deg | N56: Cmqの変化 | O56: d/dh(Cmq) | Q56: 1/rad | AG56: ωdp | AI56: rad/s | AJ56: 青本p.42．減衰固有角振動数
C57: Mθ' | E57: 1/s^2 | I57: CDα | K57: 1/deg | L57: 白本p.80．(4.20) | N57: Cmd/dt(α)の変化 | O57: d/dh(Cm(d/dt(α)) | Q57: 1/rad | AG57: Tp | AI57: s
I58: CD|δe| | K58: 1/deg | O58: d/dh(Mα) | Q58: 1/s^2 | AF58: ダッチロールモード | AG58: ωnd | AI58: rad/s | AJ58: 比減衰固有振動数．青本p.104
I59: Cmα | K59: 1/deg | L59: 白本p.85．青本p.81 | O59: d/dh(Mq) | Q59: 1/s | AG59: ζnd | AJ59: 減衰率．青本p.104
I60: Cmδe | K60: 1/deg | L60: 白本p.86．(4.43) | O60: d/dh(Md/dt(α)) | Q60: 1/s | AG60: ωnd | AI60: rad/s | AJ60: 減衰固有振動数
B61: 横・方向の有次元安定微係数 | D61: 青本p.94 | I61: Cyβ | K61: 1/deg | L61: 白本p.91 | O61: Mδh | Q61: deg/s^2 | AG61: T | AI61: s
B62: 名 | C62: 記号 | D62: 値 | E62: 単位 | I62: Cyδr | K62: 1/deg | L62: 白本p.91 | AF62: スパイラルモード | AG62: 1/Ts | AJ62: 青本p.104．正なら安定
C63: Yβ | E63: 1/s | I63: Clβ | K63: 1/deg | L63: 白本p.92 | AG63: 応答が2倍になる時間 | AI63: s | AJ63: 通常の航空機なら20秒以上で可．鳥コン機では…
C64: Yδr | E64: 1/s | I64: Clδr | K64: 1/deg | AF64: ロールモード | AG64: 1/TR | AJ64: 青本p.104．
C65: Lβ' | E65: 1/s^2 | I65: Cnβ | K65: 1/deg | L65: 白本p.91
C66: Lδr' | E66: 1/s^2 | I66: Cnδr | K66: 1/deg | L66: 白本p.91
C67: Lp' | E67: 1/s
C68: Lr' | E68: 1/s | H68: 動安定微係数 | N68: 空力中心に関する微係数
C69: Nβ' | E69: 1/s^2 | H69: 名 | I69: 記号 | J69: 値 | K69: 単位 | N69: 名 | O69: 記号 | P69: 値 | Q69: 単位
C70: Nδr' | E70: 1/s^2 | I70: Clp | K70: 1/rad | N70: 全機空力中心位置 | O70: hn | Q70: -
C71: Np' | E71: 1/s | I71: Clr | K71: 1/rad | N71: 全機空力中心位置の変化 | O71: d/dh(hn)
C72: Nr' | E72: 1/s | I72: Cmq | K72: 1/rad
I73: Cm(d/dt(α)) | K73: 1/rad
I74: Cnp | K74: 1/rad
I75: Cnr | K75: 1/rad
A80: - | U80: - | AE80: -

Sheet 主翼翼型1解析(sht10)
A1: 1 | B1: 2 | C1: 3 | D1: 4 | E1: 5 | F1: 6 | G1: 7 | H1: 8 | I1: 9 | J1: 10 | K1: 11 | L1: 12 | M1: 13 | N1: 14 | O1: 15 | P1: 16 | Q1: 17 | R1: 18 | S1: 19 | T1: 20 | U1: 21 | V1: 22 | W1: 23 | X1: 24 | Y1: 25 | Z1: 26 | AA1: 27 | AB1: 28 | AC1: 29 | AD1: 30 | AE1: 31 | AF1: 32 | AG1: 33 | AH1: 34 | AI1: 35 | AJ1: 36 | AK1: 37 | AL1: 38 | AM1: 39 | AN1: 40 | AO1: 41
A2: マクロボタン | G2: 1 | H2: α | I2: α^2 | J2: α^3 | K2: α^4 | L2: α^5 | M2: α^6 | N2: α^7 | O2: α^8 | P2: Re | Q2: Re^2 | R2: Re^3 | S2: Re^4 | T2: Re^5 | U2: Re^6 | W2: 解析範囲 | X2: 最小 | Y2: 最大 | Z2: Δ | AB2: - | AC2: 1 | AD2: x^1 | AE2: x^2 | AF2: x^3 | AG2: x^4 | AH2: x^5 | AI2: x^6 | AJ2: x^7 | AK2: x^8
F3: Cl | G3: 0.461602577 | H3: 0.1216100828 | I3: 0.001147090483 | J3: -0.000596829693 | K3: -4.26074065e-05 | L3: 6.657286273e-06 | M3: 1.109054913e-07 | N3: -3.130957376e-08 | O3: 8.339144144e-10 | P3: 0 | Q3: 0 | R3: 0 | S3: 0 | T3: 0 | U3: 0 | W3: α | X3: =MIN(A12:A12578) -> -10 | Y3: =MAX(A12:A12578) -> 20 | Z3: =ABS(A12-A13) -> 0.2 | AB3: zc | AC3: -0.0002516632048 | AD3: 0.5572654947 | AE3: -2.983152365 | AF3: 11.05164307 | AG3: -27.08923633 | AH3: 41.95520776 | AI3: -40.07035224 | AJ3: 21.51429599 | AK3: -4.935554892
F4: Cd0 | G4: 0.07323181442 | H4: -0.0001126272554 | I4: 7.141757169e-05 | J4: 1.395305816e-06 | K4: 3.907409381e-07 | L4: -7.612564876e-08 | M4: 1.885884153e-09 | N4: 4.290529493e-10 | O4: -1.674026122e-11 | P4: -7.695322182e-07 | Q4: 3.907709391e-12 | R4: -1.017446677e-17 | S4: 1.409548339e-23 | T4: -9.890191699e-30 | U4: 2.762858836e-36 | W4: Re | X4: 100000 | Y4: 1000000 | Z4: 20000
F5: Cm | G5: -0.05438528382 | H5: -0.001622392456 | I5: -0.0003462282195 | J5: 0.0001240041781 | K5: 1.059559619e-05 | L5: -1.529003526e-06 | M5: -3.129422745e-08 | N5: 6.97565247e-09 | O5: -1.74872409e-10 | P5: -4.558514196e-07 | Q5: 2.081149659e-12 | R5: -5.022139099e-18 | S5: 6.607232239e-24 | T5: -4.47541095e-30 | U5: 1.220264313e-36 | W5: 翼型名 | X5: NACA4415
P7: 多変数の最小二乗法
P8: https://mathtrain.jp/leastsquarematrix | W8: 1 | X8: Re^1 | Y8: Re^2 | Z8: Re^3 | AA8: Re^4 | AB8: Re^5 | AC8: Re^6
W9: 1 | X9: 500000 | Y9: =X9*$X9 -> 250000000000 | Z9: =Y9*$X9 -> 1.25e+17 | AA9: =Z9*$X9 -> 6.25e+22 | AB9: =AA9*$X9 -> 3.125e+28 | AC9: =AB9*$X9 -> 1.5625e+34
A10: ↓XFLR５の解析結果（csv_foil.f90によって生成） | AE10: ↓翼型データを張り付け | AH10: キャンバーライン | AJ10: 近似キャンバーライン
A11: α | B11: Cl | C11: Cd | D11: Cm | E11: Re | G11: α | H11: Cl | I11: Cd0 | J11: Cm | K11: 近似Cl | L11: 近似Cd | M11: 近似Cm | N11: L/D | AE11: x | AF11: z | AH11: zc | AJ11: 近似zc | AM11: 名 | AN11: 記号 | AO11: 値 | AP11: 単位
A12: -9.8 | B12: -0.3257 | C12: 0.11769 | D12: -0.0337 | E12: 100000 | F12: =IF(E12=400000,"0","") ->  | G12: -10 | H12: -0.6365 | I12: 0.01913 | J12: -0.1007 | K12: =$G$3+$H$3*(G12^1)+$I$3*(G12^2)+$J$3*(G12^3)+$K$3*(G12^4)+$L$3*(G12^5)+$M$3*(G12^6)+$N$3*(G12^7)+$O$3*(G12^8) -> -0.6273695313 | L12: =$G$4+$H$4*(G12^1)+$I$4*(G12^2)+$J$4*(G12^3)+$K$4*(G12^4)+$L$4*(G12^5)+$M$4*(G12^6)+$N$4*(G12^7)+$O$4*(G12^8)+SUMPRODUCT($P$4:$U$4,$X$9:$AC$9) -> 0.02296762421 | M12: =$G$5+$H$5*(G12^1)+$I$5*(G12^2)+$J$5*(G12^3)+$K$5*(G12^4)+$L$5*(G12^5)+$M$5*(G12^6)+$N$5*(G12^7)+$O$5*(G12^8)+SUMPRODUCT($X$9:$AC$9,$P$5:$U$5) -> -0.09971366764 | N12: =H12/I12 -> -33.2723471 | AE12: 1 | AF12: 0 | AH12: 0 | AJ12: =$AC$3*(AE12^0)+$AD$3*(AE12^1)+$AE$3*(AE12^2)+$AF$3*(AE12^3)+$AG$3*(AE12^4)+$AH$3*(AE12^5)+$AI$3*(AE12^6)+$AJ$3*(AE12^7)+$AK$3*(AE12^8) -> -0.0001351837934 | AM12: 翼型1 | AN12: 全周 | AO12: 2.064297149 | AP12: m
A13: -9.6 | B13: -0.3249 | C13: 0.11614 | D13: -0.0321 | E13: 100000 | F13: =IF(E13=400000,"0","") ->  | G13: -9.8 | H13: -0.6104 | I13: 0.01843 | J13: -0.1019 | K13: =$G$3+$H$3*(G13^1)+$I$3*(G13^2)+$J$3*(G13^3)+$K$3*(G13^4)+$L$3*(G13^5)+$M$3*(G13^6)+$N$3*(G13^7)+$O$3*(G13^8) -> -0.6120438909 | L13: =$G$4+$H$4*(G13^1)+$I$4*(G13^2)+$J$4*(G13^3)+$K$4*(G13^4)+$L$4*(G13^5)+$M$4*(G13^6)+$N$4*(G13^7)+$O$4*(G13^8)+SUMPRODUCT($P$4:$U$4,$X$9:$AC$9) -> 0.02230994161 | M13: =$G$5+$H$5*(G13^1)+$I$5*(G13^2)+$J$5*(G13^3)+$K$5*(G13^4)+$L$5*(G13^5)+$M$5*(G13^6)+$N$5*(G13^7)+$O$5*(G13^8)+SUMPRODUCT($X$9:$AC$9,$P$5:$U$5) -> -0.09890942302 | N13: =H13/I13 -> -33.11991319 | AE13: 0.99662 | AF13: 0.00124 | AH13: 0.0004500558659 | AJ13: =$AC$3*(AE13^0)+$AD$3*(AE13^1)+$AE$3*(AE13^2)+$AF$3*(AE13^3)+$AG$3*(AE13^4)+$AH$3*(AE13^5)+$AI$3*(AE13^6)+$AJ$3*(AE13^7)+$AK$3*(AE13^8) -> 0.0003401788243 | AN13: プランク長 | AO13: 0.6539292015 | AP13: m
A14: -9.4 | B14: -0.3422 | C14: 0.11433 | D14: -0.0317 | E14: 100000 | G14: -9.6 | H14: -0.5828 | I14: 0.0178 | J14: -0.1033 | K14: -0.594558275 | L14: 0.0216524655 | M14: -0.09853847274 | N14: -32.74157303 | AE14: 0.99127 | AF14: 0.00317 | AH14: 0.001164727113 | AJ14: 0.001081741771 | AN14: リブ材長 | AO14: 1.410367948 | AP14: m
A15: -9.2 | B15: -0.3722 | C15: 0.11225 | D15: -0.0321 | E15: 100000 | G15: -9.4 | H15: -0.566 | I15: 0.01725 | J15: -0.1025 | K15: -0.5753171426 | L15: 0.02099969737 | M15: -0.0985120094 | N15: -32.8115942 | AE15: 0.9856 | AF15: 0.00518 | AH15: 0.001919486755 | AJ15: 0.001855177473 | AN15: リブ面積 | AO15: 0.1031996486 | AP15: m^2
A16: -9 | B16: -0.3511 | C16: 0.11058 | D16: -0.0289 | E16: 100000 | G16: -9.2 | H16: -0.5387 | I16: 0.01668 | J16: -0.1037 | K16: -0.5546766703 | L16: 0.02035550125 | M16: -0.09875195606 | N16: -32.29616307 | AE16: 0.97959 | AF16: 0.00726 | AH16: 0.002716398437 | AJ16: 0.002663448222 | AN16: 翼厚 | AO16: 14.81127119 | AP16: %
A17: -8.8 | B17: -0.3574 | C17: 0.10904 | D17: -0.0275 | E17: 100000 | G17: -9 | H17: -0.5108 | I17: 0.01606 | J17: -0.1052 | K17: -0.5329485567 | L17: 0.01972315875 | M17: -0.09919012612 | N17: -31.80572852 | AE17: 0.97325 | AF17: 0.00939 | AH17: 0.003551238938 | AJ17: 0.003505845128 | AM17: プランク | AN17: 上面 | AO17: 0.65 | AP17: -
A18: -8.6 | B18: -0.3817 | C18: 0.10713 | D18: -0.0272 | E18: 100000 | G18: -8.8 | H18: -0.4914 | I18: 0.01559 | J18: -0.1048 | K18: -0.510403632 | L18: 0.01910542101 | M18: -0.09976742568 | N18: -31.52020526 | AE18: 0.96658 | AF18: 0.01156 | AH18: 0.004427075209 | AJ18: 0.004383438385 | AN18: 下面 | AO18: 0.3 | AP18: -
A19: -8.4 | B19: -0.4113 | C19: 0.105 | D19: -0.0271 | E19: 100000 | G19: -8.6 | H19: -0.4642 | I19: 0.01506 | J19: -0.106 | K19: -0.4872752781 | L19: 0.0185045576 | M19: -0.1004330972 | N19: -30.82337317 | AE19: 0.95958 | AF19: 0.01377 | AH19: 0.0053364361 | AJ19: 0.005297660118 | AM19: 桁位置 | AN19: - | AO19: 0.35 | AP19: -
A20: -8.2 | B20: -0.392 | C20: 0.1035 | D20: -0.024 | E20: 100000 | G20: -8.4 | H20: -0.4359 | I20: 0.01455 | J20: -0.1074 | K20: -0.4637626656 | L20: 0.01792240258 | M20: -0.1011440031 | N20: -29.95876289 | AE20: 0.95225 | AF20: 0.01601 | AH20: 0.006272991239 | AJ20: 0.006250245762
A21: -8 | B21: -0.4 | C21: 0.10196 | D21: -0.0225 | E21: 100000 | G21: -8.2 | H21: -0.4156 | I21: 0.01415 | J21: -0.1071 | K21: -0.4400338137 | L21: 0.01736039764 | M21: -0.1018639482 | N21: -29.37102473 | AE21: 0.94462 | AF21: 0.01829 | AH21: 0.007238712753 | AJ21: 0.00723927382
A22: -7.8 | B22: -0.4201 | C22: 0.10011 | D22: -0.0215 | E22: 100000 | G22: -8 | H22: -0.3892 | I22: 0.01371 | J22: -0.1081 | K22: -0.4162284784 | L22: 0.01681963269 | M22: -0.1025630393 | N22: -28.38803793 | AE22: 0.93668 | AF22: 0.0206 | AH22: 0.008221982857 | AJ22: 0.008268140683
A23: -7.6 | B23: -0.448 | C23: 0.09599 | D23: -0.026 | E23: 100000 | G23: -7.8 | H23: -0.3631 | I23: 0.01331 | J23: -0.1089 | K23: -0.3924608748 | L23: 0.0163008837 | M23: -0.1032170814 | N23: -27.28024042 | AE23: 0.92848 | AF23: 0.02295 | AH23: 0.009225883002 | AJ23: 0.009332459
A24: -7.4 | B24: -0.4632 | C24: 0.09012 | D24: -0.0333 | E24: 100000 | G24: -7.6 | H24: -0.3417 | I24: 0.01296 | J24: -0.1088 | K24: -0.3688222389 | L24: 0.01580464818 | M24: -0.1038070089 | N24: -26.36574074 | AE24: 0.92005 | AF24: 0.02532 | AH24: 0.01023883047 | AJ24: 0.01043026596
A25: -7.2 | B25: -0.4473 | C25: 0.08589 | D25: -0.0358 | E25: 100000 | G25: -7.4 | H25: -0.3132 | I25: 0.01259 | J25: -0.1101 | K25: -0.3453832352 | L25: 0.0153311781 | M25: -0.1043183507 | N25: -24.87688642 | AE25: 0.91141 | AF25: 0.02771 | AH25: 0.01125647368 | AJ25: 0.01156060395
A26: -7 | B26: -0.6192 | C26: 0.03938 | D26: -0.0499 | E26: 100000 | G26: -7.2 | H26: -0.2938 | I26: 0.01233 | J26: -0.1094 | K26: -0.3221962141 | L26: 0.01488051065 | M26: -0.1047407278 | N26: -23.82806164 | AE26: 0.9026 | AF26: 0.03011 | AH26: 0.01227021739 | AJ26: 0.0127194963
A27: -6.8 | B27: -0.5953 | C27: 0.03764 | D27: -0.0513 | E27: 100000 | G27: -7 | H27: -0.2684 | I27: 0.01205 | J27: -0.1101 | K27: -0.2992973263 | L27: 0.01445249674 | M27: -0.1050673824 | N27: -22.27385892 | AE27: 0.89367 | AF27: 0.03251 | AH27: 0.01327596824 | AJ27: 0.01390113017
A28: -6.6 | B28: -0.571 | C28: 0.0362 | D28: -0.0525 | E28: 100000 | G28: -6.8 | H28: -0.2461 | I28: 0.01184 | J28: -0.11 | K28: -0.2767084972 | L28: 0.01404682729 | M28: -0.1052947385 | N28: -20.78547297 | AE28: 0.88464 | AF28: 0.0349 | AH28: 0.01427204918 | AJ28: 0.01510312188
A29: -6.4 | B29: -0.5471 | C29: 0.03509 | D29: -0.0534 | E29: 100000 | G29: -6.6 | H29: -0.2238 | I29: 0.01164 | J29: -0.11 | K29: -0.254439269 | L29: 0.01366305764 | M29: -0.1054219902 | N29: -19.22680412 | AE29: 0.87551 | AF29: 0.03728 | AH29: 0.01526211303 | AJ29: 0.01632529779
A30: -6.2 | B30: -0.5224 | C30: 0.03426 | D30: -0.0543 | E30: 100000 | G30: -6.4 | H30: -0.1993 | I30: 0.01143 | J30: -0.1104 | K30: -0.2324885128 | L30: 0.01330062991 | M30: -0.1054507194 | N30: -17.43657043 | AE30: 0.86632 | AF30: 0.03963 | AH30: 0.01622890293 | AJ30: 0.01756169889
A31: -6 | B31: -0.497 | C31: 0.03359 | D31: -0.0553 | E31: 100000 | G31: -6.2 | H31: -0.1787 | I31: 0.01127 | J31: -0.1099 | K31: -0.2108460188 | L31: 0.01295889355 | M31: -0.1053845406 | N31: -15.85625555 | AE31: 0.85707 | AF31: 0.04196 | AH31: 0.01718449749 | AJ31: 0.01881133296
A32: -5.8 | B32: -0.4702 | C32: 0.03301 | D32: -0.0564 | E32: 100000 | G32: -6 | H32: -0.156 | I32: 0.01111 | J32: -0.11 | K32: -0.189493966 | L32: 0.0126371241 | M32: -0.1052287713 | N32: -14.04140414 | AE32: 0.84776 | AF32: 0.04426 | AH32: 0.01812145854 | AJ32: 0.02007290455
A33: -5.6 | B33: -0.4405 | C33: 0.03251 | D33: -0.0581 | E33: 100000 | G33: -5.8 | H33: -0.1331 | I33: 0.01095 | J33: -0.11 | K33: -0.1684082798 | L33: 0.0123345403 | M33: -0.1049901278 | N33: -12.15525114 | AE33: 0.83839 | AF33: 0.04654 | AH33: 0.01904420218 | AJ33: 0.02134485262
A34: -5.4 | B34: -0.4169 | C34: 0.03201 | D34: -0.0586 | E34: 100000 | G34: -5.6 | H34: -0.1132 | I34: 0.0108 | J34: -0.1094 | K34: -0.1475598794 | L34: 0.01205031959 | M34: -0.1046764452 | N34: -10.48148148 | AE34: 0.829 | AF34: 0.04879 | AH34: 0.01995088933 | AJ34: 0.02261995709
A35: -5.2 | B35: -0.3925 | C35: 0.03154 | D35: -0.0592 | E35: 100000 | G35: -5.4 | H35: -0.0919 | I35: 0.01065 | J35: -0.1091 | K35: -0.1269158211 | L35: 0.01178361201 | M35: -0.1042964203 | N35: -8.629107981 | AE35: 0.81957 | AF35: 0.05102 | AH35: 0.02084244828 | AJ35: 0.02389897594
A36: -5 | B36: -0.366 | C36: 0.03106 | D36: -0.0602 | E36: 100000 | G36: -5.2 | H36: -0.069 | I36: 0.0105 | J36: -0.1092 | K36: -0.1064403414 | L36: 0.01153355283 | M36: -0.1038593765 | N36: -6.571428571 | AE36: 0.8101 | AF36: 0.05322 | AH36: 0.02171621807 | AJ36: 0.02517982171
A37: -4.8 | B37: -0.3366 | C37: 0.03056 | D37: -0.0616 | E37: 100000 | G37: -5 | H37: -0.0492 | I37: 0.0104 | J37: -0.1085 | K37: -0.08609580524 | L37: 0.0112992736 | M37: -0.10337505 | N37: -4.730769231 | AE37: 0.80063 | AF37: 0.05539 | AH37: 0.02257624754 | AJ37: 0.02645493686
A38: -4.6 | B38: -0.3138 | C38: 0.03022 | D38: -0.0618 | E38: 100000 | G38: -4.8 | H38: -0.029 | I38: 0.01027 | J38: -0.108 | K38: -0.06584356289 | L38: 0.01107991209 | M38: -0.1028533962 | N38: -2.82375852 | AE38: 0.79113 | AF38: 0.05752 | AH38: 0.02341137255 | AJ38: 0.02772617908
A39: -4.4 | B39: -0.2892 | C39: 0.02989 | D39: -0.0624 | E39: 100000 | G39: -4.6 | H39: -0.0084 | I39: 0.01014 | J39: -0.1075 | K39: -0.04564471985 | L39: 0.01087462092 | M39: -0.1023044151 | N39: -0.8284023669 | AE39: 0.78162 | AF39: 0.05964 | AH39: 0.02423725 | AJ39: 0.02898867105
A40: -4.2 | B40: -0.256 | C40: 0.02948 | D40: -0.0644 | E40: 100000 | G40: -4.4 | H40: 0.0127 | I40: 0.01002 | J40: -0.1071 | K40: -0.02546082457 | L40: 0.01068257504 | M40: -0.1017379952 | N40: 1.26746507 | AE40: 0.77211 | AF40: 0.06172 | AH40: 0.02503953477 | AJ40: 0.03023895123
A41: -4 | B41: -0.2341 | C41: 0.02917 | D41: -0.0644 | E41: 100000 | G41: -4.2 | H41: 0.0328 | I41: 0.00992 | J41: -0.1066 | K41: -0.005254477684 | L41: 0.01050297819 | M41: -0.1011637751 | N41: 3.306451613 | AE41: 0.76259 | AF41: 0.06376 | AH41: 0.02582105289 | AJ41: 0.03147624933
A42: -3.8 | B42: -0.2106 | C42: 0.02884 | D42: -0.0646 | E42: 100000 | G42: -4 | H42: 0.0524 | I42: 0.00983 | J42: -0.1059 | K42: 0.01501013316 | L42: 0.01033506834 | M42: -0.1005910211 | N42: 5.330620549 | AE42: 0.75306 | AF42: 0.06577 | AH42: 0.02657870098 | AJ42: 0.03269852249
A43: -3.6 | B43: -0.1758 | C43: 0.02833 | D43: -0.0668 | E43: 100000 | G43: -3.8 | H43: 0.0721 | I43: 0.00973 | J43: -0.1052 | K43: 0.03536676884 | L43: 0.01017812209 | M43: -0.1000285209 | N43: 7.410071942 | AE43: 0.74353 | AF43: 0.06776 | AH43: 0.02732610784 | AJ43: 0.03390254915
A44: -3.4 | B44: -0.1547 | C44: 0.02804 | D44: -0.0665 | E44: 100000 | G44: -3.6 | H44: 0.092 | I44: 0.00964 | J44: -0.1046 | K44: 0.05584674085 | L44: 0.01003145837 | M44: -0.09948449226 | N44: 9.543568465 | AE44: 0.73403 | AF44: 0.0697 | AH44: 0.02804494118 | AJ44: 0.03508281876
A45: -3.2 | B45: -0.1321 | C45: 0.02775 | D45: -0.0666 | E45: 100000 | G45: -3.4 | H45: 0.1119 | I45: 0.00955 | J45: -0.104 | K45: 0.07647857611 | L45: 0.009894441179 | M45: -0.09896650549 | N45: 11.71727749 | AE45: 0.72451 | AF45: 0.0716 | AH45: 0.02874230088 | AJ45: 0.03624387008
A46: -3 | B46: -0.0969 | C46: 0.02719 | D46: -0.0687 | E46: 100000 | G46: -3.2 | H46: 0.1318 | I46: 0.00947 | J46: -0.1034 | K46: 0.0972877408 | L46: 0.00976648164 | M46: -0.09848141912 | N46: 13.91763464 | AE46: 0.71499 | AF46: 0.07347 | AH46: 0.02941713373 | AJ46: 0.03738159857
A47: -2.8 | B47: -0.0762 | C47: 0.02694 | D47: -0.0684 | E47: 100000 | G47: -3 | H47: 0.151 | I47: 0.00939 | J47: -0.1026 | K47: 0.1182964197 | L47: 0.009647039347 | M47: -0.09803532837 | N47: 16.08093717 | AE47: 0.70547 | AF47: 0.0753 | AH47: 0.03006663717 | AJ47: 0.03849451794
A48: -2.6 | B48: -0.0533 | C48: 0.02665 | D48: -0.0684 | E48: 100000 | G48: -2.8 | H48: 0.17 | I48: 0.00931 | J48: -0.1018 | K48: 0.1395233474 | L48: 0.009535623087 | M48: -0.09763352504 | N48: 18.25993555 | AE48: 0.69596 | AF48: 0.07709 | AH48: 0.03069530452 | AJ48: 0.03958012732
A49: -2.4 | B49: -0.0185 | C49: 0.02606 | D49: -0.0703 | E49: 100000 | G49: -2.6 | H49: 0.1891 | I49: 0.00924 | J49: -0.101 | K49: 0.1609836878 | L49: 0.009431790972 | M49: -0.09728046853 | N49: 20.46536797 | AE49: 0.68644 | AF49: 0.07885 | AH49: 0.03130588496 | AJ49: 0.04063944938
A50: -2.2 | B50: 0.0019 | C50: 0.02579 | D50: -0.0699 | E50: 100000 | G50: -2.4 | H50: 0.2083 | I50: 0.00918 | J50: -0.1003 | K50: 0.1826889594 | L50: 0.009335150058 | M50: -0.09697976694 | N50: 22.69063181 | AE50: 0.67692 | AF50: 0.08057 | AH50: 0.03189441986 | AJ50: 0.04167017696
A51: -1.8 | B51: 0.0584 | C51: 0.02483 | D51: -0.0715 | E51: 100000 | G51: -2.2 | H51: 0.2273 | I51: 0.00912 | J51: -0.0994 | K51: 0.2046470011 | L51: 0.009245355489 | M51: -0.09673416785 | N51: 24.92324561 | AE51: 0.6674 | AF51: 0.08225 | AH51: 0.03246085054 | AJ51: 0.0426712651
A52: -1.4 | B52: 0.1148 | C52: 0.02371 | D52: -0.0729 | E52: 100000 | G52: -2 | H52: 0.2462 | I52: 0.00907 | J52: -0.0986 | K52: 0.2268619783 | L52: 0.009162109226 | M52: -0.09654555773 | N52: 27.14443219 | AE52: 0.6579 | AF52: 0.0839 | AH52: 0.03300840551 | AJ52: 0.043639765
A53: -1.2 | B53: 0.134 | C53: 0.02339 | D53: -0.0721 | E53: 100000 | G53: -1.8 | H53: 0.2651 | I53: 0.00902 | J53: -0.0978 | K53: 0.2493344233 | L53: 0.009085158394 | M53: -0.09641496972 | N53: 29.3902439 | AE53: 0.64841 | AF53: 0.08549 | AH53: 0.03352191552 | AJ53: 0.04457600143
A54: -1 | B54: 0.1712 | C54: 0.02246 | D54: -0.0741 | E54: 100000 | G54: -1.6 | H54: 0.2837 | I54: 0.00897 | J54: -0.0969 | K54: 0.272061309 | L54: 0.009014293325 | M54: -0.09634259867 | N54: 31.62764771 | AE54: 0.63891 | AF54: 0.08705 | AH54: 0.03401768555 | AJ54: 0.04548119907
A55: -0.6 | B55: 0.3561 | C55: 0.02058 | D55: -0.0975 | E55: 100000 | G55: -1.4 | H55: 0.3023 | I55: 0.00892 | J55: -0.096 | K55: 0.2950361514 | L55: 0.008949345308 | M55: -0.09632782321 | N55: 33.89013453 | AE55: 0.62942 | AF55: 0.08858 | AH55: 0.03449942064 | AJ55: 0.04635278962
A56: -0.4 | B56: 0.4555 | C56: 0.02008 | D56: -0.1115 | E56: 100000 | G56: -1.2 | H56: 0.3208 | I56: 0.00887 | J56: -0.0952 | K56: 0.3182491404 | L56: 0.008890184115 | M56: -0.09636923394 | N56: 36.16685457 | AE56: 0.61991 | AF56: 0.09007 | AH56: 0.03495776968 | AJ56: 0.0471928906
A57: -0.2 | B57: 0.4966 | C57: 0.01991 | D57: -0.1154 | E57: 100000 | G57: -1 | H57: 0.339 | I57: 0.00882 | J57: -0.0942 | K57: 0.3416872927 | L57: 0.008836715334 | M57: -0.0964646673 | N57: 38.43537415 | AE57: 0.6104 | AF57: 0.09152 | AH57: 0.03540088921 | AJ57: 0.04799911556
A58: 0 | B58: 0.5118 | C58: 0.01982 | D58: -0.1142 | E58: 100000 | G58: -0.8 | H58: 0.3568 | I58: 0.00875 | J58: -0.0932 | K58: 0.3653346278 | L58: 0.008788877554 | M58: -0.09661124446 | N58: 40.77714286 | AE58: 0.60089 | AF58: 0.09293 | AH58: 0.03581967961 | AJ58: 0.04877101565
A59: 0.2 | B59: 0.5298 | C59: 0.01974 | D59: -0.1134 | E59: 100000 | G59: -0.6 | H59: 0.374 | I59: 0.00865 | J59: -0.0921 | K59: 0.3891723616 | L59: 0.008746639435 | M59: -0.09680541468 | N59: 43.23699422 | AE59: 0.59138 | AF59: 0.0943 | AH59: 0.03622267476 | AJ59: 0.04950820167
A60: 0.4 | B60: 0.563 | C60: 0.01938 | D60: -0.1152 | E60: 100000 | G60: -0.4 | H60: 0.3903 | I60: 0.00853 | J60: -0.0908 | K60: 0.413179117 | L60: 0.00870999671 | M60: -0.09704300255 | N60: 45.75615475 | AE60: 0.58188 | AF60: 0.09563 | AH60: 0.03660613703 | AJ60: 0.0502096181
A61: 0.6 | B61: 0.5776 | C61: 0.01944 | D61: -0.1137 | E61: 100000 | G61: -0.2 | H61: 0.4054 | I61: 0.00836 | J61: -0.0892 | K61: 0.4373311484 | L61: 0.008678969148 | M61: -0.09731925875 | N61: 48.49282297 | AE61: 0.57237 | AF61: 0.09691 | AH61: 0.03696466537 | AJ61: 0.05087645364
A62: 0.8 | B62: 0.593 | C62: 0.01952 | D62: -0.1124 | E62: 100000 | G62: 0 | H62: 0.4198 | I62: 0.00821 | J62: -0.0875 | K62: 0.461602577 | L62: 0.008653597506 | M62: -0.09762891351 | N62: 51.13276492 | AE62: 0.56287 | AF62: 0.09816 | AH62: 0.03731150485 | AJ62: 0.05150706019
A63: 1 | B63: 0.6094 | C63: 0.01959 | D63: -0.1112 | E63: 100000 | G63: 0.2 | H63: 0.4343 | I63: 0.00809 | J63: -0.0857 | K63: 0.4859656365 | L63: 0.008633940522 | M63: -0.09796623264 | N63: 53.68355995 | AE63: 0.55336 | AF63: 0.09937 | AH63: 0.03763652237 | AJ63: 0.05210255605
A64: 1.2 | B64: 0.6279 | C64: 0.01964 | D64: -0.1103 | E64: 100000 | G64: 0.4 | H64: 0.4488 | I64: 0.00798 | J64: -0.0839 | K64: 0.5103909253 | L64: 0.008620071947 | M64: -0.09832507527 | N64: 56.2406015 | AE64: 0.54386 | AF64: 0.10053 | AH64: 0.03793900097 | AJ64: 0.05266151181
A65: 1.4 | B65: 0.6513 | C65: 0.0196 | D65: -0.1103 | E65: 100000 | G65: 0.6 | H65: 0.4637 | I65: 0.00787 | J65: -0.082 | K65: 0.534847664 | L65: 0.008612077685 | M65: -0.09869895322 | N65: 58.91994917 | AE65: 0.53437 | AF65: 0.10166 | AH65: 0.03823285156 | AJ65: 0.05318389194
A66: 1.6 | B66: 0.6756 | C66: 0.01954 | D66: -0.1104 | E66: 100000 | G66: 0.8 | H66: 0.4836 | I66: 0.00776 | J66: -0.0813 | K66: 0.5593039564 | L66: 0.008610053029 | M66: -0.09908109124 | N66: 62.31958763 | AE66: 0.52488 | AF66: 0.10274 | AH66: 0.03850252441 | AJ66: 0.05367017899
A67: 1.8 | B67: 0.6908 | C67: 0.01971 | D67: -0.109 | E67: 100000 | G67: 1 | H67: 0.5424 | I67: 0.00784 | J67: -0.089 | K67: 0.5837270508 | L67: 0.008614100042 | M67: -0.09946448791 | N67: 69.18367347 | AE67: 0.51541 | AF67: 0.10378 | AH67: 0.03875195695 | AJ67: 0.05411935852
A68: 2 | B68: 0.7071 | C68: 0.01987 | D68: -0.1078 | E68: 100000 | G68: 1.2 | H68: 0.6044 | I68: 0.00804 | J68: -0.0976 | K68: 0.6080836022 | L68: 0.008624325104 | M68: -0.0998419767 | N68: 75.17412935 | AE68: 0.50597 | AF68: 0.10477 | AH68: 0.03898443137 | AJ68: 0.05453115653
A69: 2.2 | B69: 0.7255 | C69: 0.01999 | D69: -0.1069 | E69: 100000 | G69: 1.4 | H69: 0.6408 | I69: 0.00822 | J69: -0.1005 | K69: 0.6323399307 | L69: 0.008640836633 | M69: -0.1002062868 | N69: 77.95620438 | AE69: 0.49654 | AF69: 0.10572 | AH69: 0.03920052063 | AJ69: 0.05490660473
A70: 2.4 | B70: 0.7488 | C70: 0.02001 | D70: -0.1068 | E70: 100000 | G70: 1.8 | H70: 0.702 | I70: 0.00856 | J70: -0.1039 | K70: 0.680417054 | L70: 0.008693150765 | M70: -0.1008661268 | N70: 82.00934579 | AE70: 0.48713 | AF70: 0.10663 | AH70: 0.03939674235 | AJ70: 0.05524542112
A71: 2.6 | B71: 0.7709 | C71: 0.02006 | D71: -0.1066 | E71: 100000 | G71: 2 | H71: 0.7358 | I71: 0.00872 | J71: -0.1064 | K71: 0.7041710853 | L71: 0.008729162893 | M71: -0.1011471312 | N71: 84.38073394 | AE71: 0.47775 | AF71: 0.10748 | AH71: 0.03956710267 | AJ71: 0.05554748838
A72: 2.8 | B72: 0.7855 | C72: 0.0203 | D72: -0.105 | E72: 100000 | G72: 2.2 | H72: 0.7721 | I72: 0.00886 | J72: -0.1095 | K72: 0.7276918447 | L72: 0.008771877569 | M72: -0.1013860201 | N72: 87.14446953 | AE72: 0.46838 | AF72: 0.10828 | AH72: 0.03971635644 | AJ72: 0.0558136473
A73: 3 | B73: 0.8018 | C73: 0.02051 | D73: -0.1038 | E73: 100000 | G73: 2.6 | H73: 0.829 | I73: 0.00906 | J73: -0.1123 | K73: 0.7739080208 | L73: 0.008877776699 | M73: -0.1017100423 | N73: 91.50110375 | AE73: 0.45905 | AF73: 0.10903 | AH73: 0.03983863771 | AJ73: 0.05604330935
A74: 3.2 | B74: 0.8208 | C74: 0.02066 | D74: -0.103 | E74: 100000 | G74: 2.8 | H74: 0.8437 | I74: 0.00915 | J74: -0.1107 | K74: 0.7965435954 | L74: 0.008941124791 | M74: -0.1017821132 | N74: 92.20765027 | AE74: 0.44974 | AF74: 0.10974 | AH74: 0.03994814103 | AJ74: 0.05623729628
A75: 3.4 | B75: 0.8457 | C75: 0.02068 | D75: -0.1032 | E75: 100000 | G75: 3 | H75: 0.8584 | I75: 0.00925 | J75: -0.1092 | K75: 0.8188266059 | L75: 0.009011501941 | M75: -0.1017860417 | N75: 92.8 | AE75: 0.44047 | AF75: 0.11039 | AH75: 0.04003136185 | AJ75: 0.05639552863
A76: 3.6 | B76: 0.8632 | C76: 0.02088 | D76: -0.1022 | E76: 100000 | G76: 3.2 | H76: 0.8733 | I76: 0.00933 | J76: -0.1077 | K76: 0.8407309111 | L76: 0.009088971339 | M76: -0.1017161536 | N76: 93.60128617 | AE76: 0.43122 | AF76: 0.11098 | AH76: 0.04008519685 | AJ76: 0.05651869226
A77: 3.8 | B77: 0.8779 | C77: 0.02114 | D77: -0.1007 | E77: 100000 | F77: =IF(E77=400000,"0","") ->  | G77: 3.4 | H77: 0.8882 | I77: 0.00943 | J77: -0.1061 | K77: =$G$3+$H$3*(G77^1)+$I$3*(G77^2)+$J$3*(G77^3)+$K$3*(G77^4)+$L$3*(G77^5)+$M$3*(G77^6)+$N$3*(G77^7)+$O$3*(G77^8) -> 0.8622321861 | L77: =$G$4+$H$4*(G77^1)+$I$4*(G77^2)+$J$4*(G77^3)+$K$4*(G77^4)+$L$4*(G77^5)+$M$4*(G77^6)+$N$4*(G77^7)+$O$4*(G77^8)+SUMPRODUCT($P$4:$U$4,$X$9:$AC$9) -> 0.009173589079 | M77: =$G$5+$H$5*(G77^1)+$I$5*(G77^2)+$J$5*(G77^3)+$K$5*(G77^4)+$L$5*(G77^5)+$M$5*(G77^6)+$N$5*(G77^7)+$O$5*(G77^8)+SUMPRODUCT($X$9:$AC$9,$P$5:$U$5) -> -0.1015671953 | N77: =H77/I77 -> 94.18875928 | AE77: 0.42201 | AF77: 0.11152 | AH77: 0.04011486207 | AJ77: =$AC$3*(AE77^0)+$AD$3*(AE77^1)+$AE$3*(AE77^2)+$AF$3*(AE77^3)+$AG$3*(AE77^4)+$AH$3*(AE77^5)+$AI$3*(AE77^6)+$AJ$3*(AE77^7)+$AK$3*(AE77^8) -> 0.05660687139
A78: 4 | B78: 0.8945 | C78: 0.02138 | D78: -0.0995 | E78: 100000 | G78: 3.6 | H78: 0.9028 | I78: 0.00953 | J78: -0.1045 | K78: 0.8833080676 | L78: 0.009265404844 | M78: -0.1013343718 | N78: 94.73242392 | AE78: 0.41285 | AF78: 0.112 | AH78: 0.04011882411 | AJ78: 0.0566604934
A79: 4.2 | B79: 0.9142 | C79: 0.02154 | D79: -0.0988 | E79: 100000 | G79: 3.8 | H79: 0.917 | I79: 0.00965 | J79: -0.1028 | K79: 0.9039382833 | L79: 0.009364462886 | M79: -0.1010133814 | N79: 95.02590674 | AE79: 0.4037 | AF79: 0.11242 | AH79: 0.04009686819 | AJ79: 0.05668015115
A80: 4.4 | B80: 0.9405 | C80: 0.02156 | D80: -0.0993 | E80: 100000 | G80: 4 | H80: 0.9314 | I80: 0.00976 | J80: -0.1012 | K80: 0.9241047647 | L80: 0.009470803315 | M80: -0.1006004469 | N80: 95.43032787 | AE80: 0.3946 | AF80: 0.11279 | AH80: 0.04004868159 | AJ80: 0.0566661188
A81: 4.6 | B81: 0.9537 | C81: 0.02187 | D81: -0.0975 | E81: 100000 | G81: 4.2 | H81: 0.9461 | I81: 0.00986 | J81: -0.0996 | K81: 0.9437917422 | L81: 0.009584463704 | M81: -0.1000923433 | N81: 95.95334686 | AE81: 0.38555 | AF81: 0.1131 | AH81: 0.03997831673 | AJ81: 0.05661897621
A82: 4.8 | B82: 0.9684 | C82: 0.02216 | D82: -0.096 | E82: 100000 | G82: 4.4 | H82: 0.9609 | I82: 0.00998 | J82: -0.0981 | K82: 0.9629858224 | L82: 0.009705480977 | M82: -0.09948642055 | N82: 96.28256513 | AE82: 0.37653 | AF82: 0.11333 | AH82: 0.03986422311 | AJ82: 0.05653908386
A83: 5 | B83: 0.985 | C83: 0.0224 | D83: -0.0948 | E83: 100000 | G83: 4.6 | H83: 0.9755 | I83: 0.01011 | J83: -0.0965 | K83: 0.9816760484 | L83: 0.009833893608 | M83: -0.09878062414 | N83: 96.48862512 | AE83: 0.36755 | AF83: 0.1135 | AH83: 0.03972512961 | AJ83: 0.05642693216
A84: 5.2 | B84: 1.0045 | C84: 0.02258 | D84: -0.0941 | E84: 100000 | G84: 4.8 | H84: 0.9905 | I84: 0.01022 | J84: -0.095 | K84: 0.9998539401 | L84: 0.009969744096 | M84: -0.09797351002 | N84: 96.91780822 | AE84: 0.35861 | AF84: 0.11361 | AH84: 0.03955364407 | AJ84: 0.05628296512
A85: 5.4 | B85: 1.0272 | C85: 0.02267 | D85: -0.0939 | E85: 100000 | G85: 5 | H85: 1.0051 | I85: 0.01035 | J85: -0.0934 | K85: 1.017513517 | L85: 0.01011308172 | M85: -0.0970642564 | N85: 97.11111111 | AE85: 0.34969 | AF85: 0.11365 | AH85: 0.03935027363 | AJ85: 0.05610717899
A86: 5.6 | B86: 1.0457 | C86: 0.02284 | D86: -0.093 | E86: 100000 | G86: 5.2 | H86: 1.0192 | I86: 0.01049 | J86: -0.0917 | K86: 1.034651305 | L86: 0.01026396556 | M86: -0.09605267103 | N86: 97.15919924 | AE86: 0.34082 | AF86: 0.11363 | AH86: 0.0391171194 | AJ86: 0.055900514
A87: 5.8 | B87: 1.0605 | C87: 0.02307 | D87: -0.0915 | E87: 100000 | G87: 5.4 | H87: 1.0339 | I87: 0.01061 | J87: -0.0901 | K87: 1.051266316 | L87: 0.01042246778 | M87: -0.09493919446 | N87: 97.44580584 | AE87: 0.33199 | AF87: 0.11353 | AH87: 0.03884469062 | AJ87: 0.05566316328
A88: 6 | B88: 1.076 | C88: 0.02329 | D88: -0.0901 | E88: 100000 | G88: 5.6 | H88: 1.0478 | I88: 0.01074 | J88: -0.0884 | K88: 1.067360022 | L88: 0.01058867713 | M88: -0.09372489909 | N88: 97.56052142 | AE88: 0.3232 | AF88: 0.11337 | AH88: 0.03854635406 | AJ88: 0.05539546038
A89: 6.2 | B89: 1.0918 | C89: 0.02351 | D89: -0.0887 | E89: 100000 | G89: 6 | H89: 1.0731 | I89: 0.011 | J89: -0.0844 | K89: 1.098001362 | L89: 0.01094467779 | M89: -0.09100126615 | N89: 97.55454545 | AE89: 0.31445 | AF89: 0.11313 | AH89: 0.03821050856 | AJ89: 0.05509769132
A90: 6.4 | B90: 1.1081 | C90: 0.02373 | D90: -0.0875 | E90: 100000 | G90: 6.2 | H90: 1.0858 | I90: 0.01114 | J90: -0.0825 | K90: 1.112563673 | L90: 0.01113476417 | M90: -0.08949716622 | N90: 97.46858169 | AE90: 0.30573 | AF90: 0.11283 | AH90: 0.03784112903 | AJ90: 0.05476969048
A91: 6.6 | B91: 1.1249 | C91: 0.02393 | D91: -0.0863 | E91: 100000 | G91: 6.4 | H91: 1.0981 | I91: 0.0113 | J91: -0.0805 | K91: 1.126633842 | L91: 0.01133315625 | M91: -0.08790269219 | N91: 97.17699115 | AE91: 0.29707 | AF91: 0.11245 | AH91: 0.0374416129 | AJ91: 0.05441280017
A92: 6.8 | B92: 1.1425 | C92: 0.02414 | D92: -0.0853 | E92: 100000 | G92: 6.6 | H92: 1.1111 | I92: 0.01145 | J92: -0.0786 | K92: 1.140224503 | L92: 0.01154008552 | M92: -0.08622191763 | N92: 97.03930131 | AE92: 0.28845 | AF92: 0.112 | AH92: 0.03700389899 | AJ92: 0.05402638392
A93: 7 | B93: 1.1606 | C93: 0.02432 | D93: -0.0843 | E93: 100000 | G93: 6.8 | H93: 1.1243 | I93: 0.0116 | J93: -0.0768 | K93: 1.153350177 | L93: 0.01175582513 | M93: -0.08445945675 | N93: 96.92241379 | AE93: 0.27987 | AF93: 0.11148 | AH93: 0.03653753036 | AJ93: 0.05361042839
A94: 7.2 | B94: 1.1792 | C94: 0.0245 | D94: -0.0835 | E94: 100000 | G94: 7 | H94: 1.1374 | I94: 0.01178 | J94: -0.075 | K94: 1.166027123 | L94: 0.0119806945 | M94: -0.0826204356 | N94: 96.55348048 | AE94: 0.27132 | AF94: 0.11087 | AH94: 0.03603375635 | AJ94: 0.05316427217
A95: 7.4 | B95: 1.1975 | C95: 0.02468 | D95: -0.0826 | E95: 100000 | G95: 7.2 | H95: 1.1504 | I95: 0.01197 | J95: -0.0733 | K95: 1.178273167 | L95: 0.01221506401 | M95: -0.08071045971 | N95: 96.106934 | AE95: 0.26282 | AF95: 0.1102 | AH95: 0.035505818 | AJ95: 0.05268871463
A96: 7.6 | B96: 1.2109 | C96: 0.02495 | D96: -0.0809 | E96: 100000 | G96: 7.4 | H96: 1.1632 | I96: 0.01218 | J96: -0.0715 | K96: 1.190107524 | L96: 0.01245935967 | M96: -0.07873557831 | N96: 95.50082102 | AE96: 0.25437 | AF96: 0.10945 | AH96: 0.03494498458 | AJ96: 0.05218348699
A97: 7.8 | B97: 1.2247 | C97: 0.02522 | D97: -0.0793 | E97: 100000 | G97: 7.6 | H97: 1.1766 | I97: 0.01238 | J97: -0.0698 | K97: 1.201550602 | L97: 0.01271406793 | M97: -0.07670224531 | N97: 95.04038772 | AE97: 0.24597 | AF97: 0.10863 | AH97: 0.03436310238 | AJ97: 0.05164816962
A98: 8 | B98: 1.2385 | C98: 0.02547 | D98: -0.0776 | E98: 100000 | G98: 7.8 | H98: 1.1899 | I98: 0.01259 | J98: -0.0682 | K98: 1.212623798 | L98: 0.01297974024 | M98: -0.0746172772 | N98: 94.51151708 | AE98: 0.23762 | AF98: 0.10772 | AH98: 0.03374403826 | AJ98: 0.05108217592
A99: 8.2 | B99: 1.2523 | C99: 0.02573 | D99: -0.076 | E99: 100000 | G99: 8 | H99: 1.2029 | I99: 0.01283 | J99: -0.0665 | K99: 1.223349283 | L99: 0.01325699774 | M99: -0.07248780815 | N99: 93.75681995 | AE99: 0.22932 | AF99: 0.10674 | AH99: 0.03310163532 | AJ99: 0.05048473546
A100: 8.4 | B100: 1.266 | C100: 0.02599 | D100: -0.0744 | E100: 100000 | G100: 8.2 | H100: 1.2156 | I100: 0.01308 | J100: -0.0649 | K100: 1.233749773 | L100: 0.01354653572 | M100: -0.0703212424 | N100: 92.93577982 | AE100: 0.22107 | AF100: 0.10569 | AH100: 0.03243817125 | AJ100: 0.04985487679
A101: 8.6 | B101: 1.2796 | C101: 0.02624 | D101: -0.0728 | E101: 100000 | G101: 8.4 | H101: 1.228 | I101: 0.01336 | J101: -0.0631 | K101: 1.243848297 | L101: 0.01384912795 | M101: -0.06812520438 | N101: 91.91616766 | AE101: 0.2129 | AF101: 0.10456 | AH101: 0.03175243863 | AJ101: 0.04919390744
A102: 8.8 | B102: 1.2932 | C102: 0.02649 | D102: -0.0711 | E102: 100000 | G102: 8.6 | H102: 1.2402 | I102: 0.01366 | J102: -0.0614 | K102: 1.25366796 | L102: 0.01416563087 | M102: -0.06590748663 | N102: 90.79062958 | AE102: 0.20479 | AF102: 0.10336 | AH102: 0.0310477381 | AJ102: 0.04849907876
A103: 9 | B103: 1.3066 | C103: 0.02674 | D103: -0.0695 | E103: 100000 | G103: 8.8 | H103: 1.2516 | I103: 0.014 | J103: -0.0596 | K103: 1.26323169 | L103: 0.0144969875 | M103: -0.06367599594 | N103: 89.4 | AE103: 0.19677 | AF103: 0.10209 | AH103: 0.03032431319 | AJ103: 0.04777168871
A104: 9.2 | B104: 1.3169 | C104: 0.02704 | D104: -0.0673 | E104: 100000 | G104: 9 | H104: 1.263 | I104: 0.01435 | J104: -0.0579 | K104: 1.272561994 | L104: 0.01484423108 | M104: -0.06143869793 | N104: 88.01393728 | AE104: 0.18883 | AF104: 0.10075 | AH104: 0.02958435268 | AJ104: 0.04700949058
A105: 9.4 | B105: 1.3249 | C105: 0.02739 | D105: -0.0648 | E105: 100000 | G105: 9.2 | H105: 1.2734 | I105: 0.01476 | J105: -0.056 | K105: 1.281680702 | L105: 0.01520848842 | M105: -0.05920356041 | N105: 86.27371274 | AE105: 0.18099 | AF105: 0.09933 | AH105: 0.02882286121 | AJ105: 0.04621294012
A106: 9.6 | B106: 1.3325 | C106: 0.02776 | D106: -0.0623 | E106: 100000 | G106: 9.4 | H106: 1.2829 | I106: 0.01522 | J106: -0.0541 | K106: 1.290608719 | L106: 0.01559098286 | M106: -0.05697849589 | N106: 84.29040736 | AE106: 0.17325 | AF106: 0.09785 | AH106: 0.02804763936 | AJ106: 0.04538054568
A107: 9.8 | B107: 1.3403 | C107: 0.02812 | D107: -0.0598 | E107: 100000 | G107: 9.6 | H107: 1.2927 | I107: 0.01569 | J107: -0.0522 | K107: 1.299365772 | L107: 0.01599303679 | M107: -0.05477130353 | N107: 82.39005736 | AE107: 0.16563 | AF107: 0.09629 | AH107: 0.02725680442 | AJ107: 0.04451297841
A108: 10 | B108: 1.3477 | C108: 0.02849 | D108: -0.0572 | E108: 100000 | G108: 10 | H108: 1.3117 | I108: 0.01671 | J108: -0.0486 | K108: 1.316438517 | L108: 0.01686161997 | M108: -0.0504408162 | N108: 78.49790545 | AE108: 0.15813 | AF108: 0.09466 | AH108: 0.02644710024 | AJ108: 0.04360880819
A109: 10.2 | B109: 1.3548 | C109: 0.02887 | D109: -0.0546 | E109: 100000 | G109: 10.2 | H109: 1.321 | I109: 0.01727 | J109: -0.0468 | K109: 1.324785572 | L109: 0.01733130537 | M109: -0.04833203061 | N109: 76.4910249 | AE109: 0.15075 | AF109: 0.09298 | AH109: 0.02563438424 | AJ109: 0.04266649388
A110: 10.4 | B110: 1.3622 | C110: 0.02927 | D110: -0.0522 | E110: 100000 | G110: 10.4 | H110: 1.3299 | I110: 0.01786 | J110: -0.045 | K110: 1.333023925 | L110: 0.0178268639 | M110: -0.04627002233 | N110: 74.462486 | AE110: 0.14353 | AF110: 0.09124 | AH110: 0.02481864504 | AJ110: 0.04168996964
A111: 10.6 | B111: 1.3705 | C111: 0.02969 | D111: -0.0499 | E111: 100000 | G111: 10.6 | H111: 1.3383 | I111: 0.01849 | J111: -0.0433 | K111: 1.341163836 | L111: 0.01835013317 | M111: -0.04426116169 | N111: 72.37966468 | AE111: 0.13645 | AF111: 0.08944 | AH111: 0.02399592885 | AJ111: 0.04067557274
A112: 10.8 | B112: 1.3751 | C112: 0.03022 | D112: -0.0472 | E112: 100000 | G112: 10.8 | H112: 1.3469 | I112: 0.01913 | J112: -0.0416 | K112: 1.349213022 | L112: 0.01890305339 | M112: -0.04231136842 | N112: 70.40773654 | AE112: 0.12955 | AF112: 0.08759 | AH112: 0.02316923868 | AJ112: 0.03962838232
A113: 11 | B113: 1.3774 | C113: 0.03083 | D113: -0.0442 | E113: 100000 | G113: 11 | H113: 1.3555 | I113: 0.0198 | J113: -0.04 | K113: 1.357176473 | L113: 0.01948766547 | M113: -0.04042606125 | N113: 68.45959596 | AE113: 0.12283 | AF113: 0.08571 | AH113: 0.02235319484 | AJ113: 0.03854837814
A114: 11.2 | B114: 1.3802 | C114: 0.03146 | D114: -0.0414 | E114: 100000 | G114: 11.2 | H114: 1.3638 | I114: 0.0205 | J114: -0.0384 | K114: 1.365056294 | L114: 0.02010610823 | M114: -0.03861011062 | N114: 66.52682927 | AE114: 0.11632 | AF114: 0.0838 | AH114: 0.02154649701 | AJ114: 0.03744098086
A115: 11.4 | B115: 1.3831 | C115: 0.03212 | D115: -0.0387 | E115: 100000 | G115: 11.4 | H115: 1.3717 | I115: 0.02125 | J115: -0.0368 | K115: 1.372851553 | L115: 0.02076061467 | M115: -0.03686779469 | N115: 64.55058824 | AE115: 0.11002 | AF115: 0.08187 | AH115: 0.0207583622 | AJ115: 0.03630749204
A116: 11.6 | B116: 1.3863 | C116: 0.03283 | D116: -0.0362 | E116: 100000 | G116: 11.6 | H116: 1.3798 | I116: 0.022 | J116: -0.0353 | K116: 1.380558171 | L116: 0.02145350732 | M116: -0.03520275945 | N116: 62.71818182 | AE116: 0.10396 | AF116: 0.07991 | AH116: 0.01998235537 | AJ116: 0.03515540831
A117: 11.8 | B117: 1.3896 | C117: 0.03358 | D117: -0.0338 | E117: 100000 | G117: 11.8 | H117: 1.3882 | I117: 0.02276 | J117: -0.0339 | K117: 1.388168824 | L117: 0.02218719237 | M117: -0.03361798333 | N117: 60.99297012 | AE117: 0.09813 | AF117: 0.07794 | AH117: 0.01921779232 | AJ117: 0.0339856287
A118: 12 | B118: 1.3931 | C118: 0.03438 | D118: -0.0316 | E118: 100000 | G118: 12 | H118: 1.396 | I118: 0.02357 | J118: -0.0325 | K118: 1.395672888 | L118: 0.02296415277 | M118: -0.03211574696 | N118: 59.22783199 | AE118: 0.09253 | AF118: 0.07596 | AH118: 0.01847085635 | AJ118: 0.0328012162
A119: 12.2 | B119: 1.3967 | C119: 0.03524 | D119: -0.0295 | E119: 100000 | G119: 12.2 | H119: 1.4031 | I119: 0.02446 | J119: -0.0311 | K119: 1.403056404 | L119: 0.02378694012 | M119: -0.03069760859 | N119: 57.3630417 | AE119: 0.08719 | AF119: 0.07397 | AH119: 0.01774388889 | AJ119: 0.03161250169
A120: 12.4 | B120: 1.4004 | C120: 0.03615 | D120: -0.0274 | E120: 100000 | G120: 12.4 | H120: 1.41 | I120: 0.02538 | J120: -0.0298 | K120: 1.410302087 | L120: 0.02465816515 | M120: -0.02936438589 | N120: 55.55555556 | AE120: 0.08208 | AF120: 0.07196 | AH120: 0.01702493814 | AJ120: 0.03041722019
A121: 12.6 | B121: 1.4043 | C121: 0.03709 | D121: -0.0255 | E121: 100000 | G121: 12.6 | H121: 1.4177 | I121: 0.02627 | J121: -0.0286 | K121: 1.417389373 | L121: 0.025580487 | M121: -0.02811614463 | N121: 53.96650171 | AE121: 0.07721 | AF121: 0.06995 | AH121: 0.01631916849 | AJ121: 0.02922219917
A122: 12.8 | B122: 1.4084 | C122: 0.03807 | D122: -0.0237 | E122: 100000 | G122: 12.8 | H122: 1.4241 | I122: 0.02727 | J122: -0.0273 | K122: 1.424294507 | L122: 0.02655660094 | M122: -0.02695219493 | N122: 52.22222222 | AE122: 0.07256 | AF122: 0.06795 | AH122: 0.01563836806 | AJ122: 0.02802722252
A123: 13 | B123: 1.4129 | C123: 0.03907 | D123: -0.0221 | E123: 100000 | G123: 13 | H123: 1.4303 | I123: 0.02832 | J123: -0.0261 | K123: 1.430990673 | L123: 0.02758922464 | M123: -0.02587109583 | N123: 50.5049435 | AE123: 0.06815 | AF123: 0.06595 | AH123: 0.01497352941 | AJ123: 0.0268424709
A124: 13.2 | B124: 1.4184 | C124: 0.04005 | D124: -0.0205 | E124: 100000 | G124: 13.2 | H124: 1.4373 | I124: 0.02933 | J124: -0.025 | K124: 1.43744818 | L124: 0.02868108278 | M124: -0.02487066867 | N124: 49.00443232 | AE124: 0.06395 | AF124: 0.06396 | AH124: 0.0143246875 | AJ124: 0.02566505688
A125: 13.4 | B125: 1.4226 | C125: 0.04112 | D125: -0.019 | E125: 100000 | G125: 13.4 | H125: 1.4422 | I125: 0.03052 | J125: -0.0239 | K125: 1.443634692 | L125: 0.02983489002 | M125: -0.02394802017 | N125: 47.2542595 | AE125: 0.05997 | AF125: 0.06199 | AH125: 0.01370505495 | AJ125: 0.0245028759
A126: 13.6 | B126: 1.4203 | C126: 0.04252 | D126: -0.017 | E126: 100000 | G126: 13.6 | H126: 1.4487 | I126: 0.03164 | J126: -0.0229 | K126: 1.449515522 | L126: 0.03105333225 | M126: -0.02309957577 | N126: 45.78697851 | AE126: 0.05619 | AF126: 0.06004 | AH126: 0.01311141399 | AJ126: 0.02335523154
A127: 13.8 | B127: 1.4205 | C127: 0.04388 | D127: -0.0153 | E127: 100000 | G127: 13.8 | H127: 1.4542 | I127: 0.03285 | J127: -0.0219 | K127: 1.455053978 | L127: 0.03233904586 | M127: -0.02232112408 | N127: 44.26788432 | AE127: 0.05261 | AF127: 0.05811 | AH127: 0.01253552147 | AJ127: 0.02222710844
A128: 14 | B128: 1.4224 | C128: 0.04519 | D128: -0.0139 | E128: 100000 | G128: 14 | H128: 1.458 | I128: 0.03423 | J128: -0.021 | K128: 1.460211774 | L128: 0.03369459521 | M128: -0.0216078731 | N128: 42.5942156 | AE128: 0.04922 | AF128: 0.05621 | AH128: 0.01198292208 | AJ128: 0.02112031839
A129: 14.2 | B129: 1.4258 | C129: 0.04645 | D129: -0.0126 | E129: 100000 | G129: 14.2 | H129: 1.4639 | I129: 0.03548 | J129: -0.0202 | K129: 1.464949514 | L129: 0.03512244799 | M129: -0.02095451906 | N129: 41.25986471 | AE129: 0.04601 | AF129: 0.05433 | AH129: 0.01144786689 | AJ129: 0.02003633485
A130: 14.4 | B130: 1.4308 | C130: 0.04764 | D130: -0.0115 | E130: 100000 | G130: 14.4 | H130: 1.4681 | I130: 0.03689 | J130: -0.0193 | K130: 1.469227235 | L130: 0.03662494849 | M130: -0.02035532857 | N130: 39.79669287 | AE130: 0.04297 | AF130: 0.05249 | AH130: 0.01093900722 | AJ130: 0.01897627067
A131: 14.6 | B131: 1.4254 | C131: 0.04947 | D131: -0.0099 | E131: 100000 | G131: 14.6 | H131: 1.471 | I131: 0.03846 | J131: -0.0185 | K131: 1.473005035 | L131: 0.03820428867 | M131: -0.01980423499 | N131: 38.2475299 | AE131: 0.0401 | AF131: 0.05069 | AH131: 0.01045738636 | AJ131: 0.01794451011
A132: 14.8 | B132: 1.423 | C132: 0.05123 | D132: -0.0086 | E132: 100000 | G132: 14.8 | H132: 1.4738 | I132: 0.04007 | J132: -0.0178 | K132: 1.476243775 | L132: 0.03986247689 | M132: -0.01929494978 | N132: 36.78063389 | AE132: 0.03738 | AF132: 0.04892 | AH132: 0.0099936 | AJ132: 0.01693795996
A133: 15 | B133: 1.4235 | C133: 0.05284 | D133: -0.0075 | E133: 100000 | G133: 15 | H133: 1.4765 | I133: 0.04173 | J133: -0.0171 | K133: 1.478905865 | L133: 0.04160130431 | M133: -0.01882108963 | N133: 35.38221903 | AE133: 0.03481 | AF133: 0.0472 | AH133: 0.00955623431 | AJ133: 0.01596041864
A134: 15.2 | B134: 1.4264 | C134: 0.05431 | D134: -0.0066 | E134: 100000 | G134: 15.2 | H134: 1.4781 | I134: 0.04353 | J134: -0.0165 | K134: 1.480956136 | L134: 0.04342230868 | M134: -0.01837632036 | N134: 33.95589249 | AE134: 0.03238 | AF134: 0.04551 | AH134: 0.009133942731 | AJ134: 0.01501172915
A135: 15.4 | B135: 1.4281 | C135: 0.05589 | D135: -0.0057 | E135: 100000 | G135: 15.4 | H135: 1.4784 | I135: 0.04549 | J135: -0.016 | K135: 1.482362803 | L135: 0.04532673568 | M135: -0.01795451834 | N135: 32.49945043 | AE135: 0.03007 | AF135: 0.04385 | AH135: 0.008721751152 | AJ135: 0.01408727175
A136: 15.6 | B136: 1.4192 | C136: 0.05836 | D136: -0.0046 | E136: 100000 | G136: 15.6 | H136: 1.4777 | I136: 0.04761 | J136: -0.0155 | K136: 1.483098527 | L136: 0.04731549743 | M136: -0.01754995037 | N136: 31.03759714 | AE136: 0.0279 | AF136: 0.04223 | AH136: 0.008333713592 | AJ136: 0.01319822073
A137: 15.8 | B137: 1.4186 | C137: 0.06026 | D137: -0.0039 | E137: 100000 | G137: 15.8 | H137: 1.4762 | I137: 0.04984 | J137: -0.015 | K137: 1.483141572 | L137: 0.04938912828 | M137: -0.01715747294 | N137: 29.6187801 | AE137: 0.02584 | AF137: 0.04064 | AH137: 0.007953737374 | AJ137: 0.01233528366
A138: 16 | B138: 1.4232 | C138: 0.06177 | D138: -0.0032 | E138: 100000 | G138: 16 | H138: 1.4738 | I138: 0.05222 | J138: -0.0147 | K138: 1.482477072 | L138: 0.05154773767 | M138: -0.01677275182 | N138: 28.2229031 | AE138: 0.0239 | AF138: 0.03908 | AH138: 0.007580292553 | AJ138: 0.01150533289
A139: 16.2 | B139: 1.4186 | C139: 0.06409 | D139: -0.0026 | E139: 100000 | G139: 16.2 | H139: 1.4702 | I139: 0.05477 | J139: -0.0144 | K139: 1.481098406 | L139: 0.05379095994 | M139: -0.01639250289 | N139: 26.84316232 | AE139: 0.02206 | AF139: 0.03755 | AH139: 0.007223333333 | AJ139: 0.01070232424
A140: 16.4 | B140: 1.4142 | C140: 0.06651 | D140: -0.0021 | E140: 100000 | G140: 16.4 | H140: 1.4675 | I140: 0.05728 | J140: -0.0142 | K140: 1.479008682 | L140: 0.05611790113 | M140: -0.01601475514 | N140: 25.61976257 | AE140: 0.02032 | AF140: 0.03604 | AH140: 0.006877645349 | AJ140: 0.00992847027
A141: 16.6 | B141: 1.422 | C141: 0.06786 | D141: -0.0016 | E141: 100000 | F141: =IF(E141=400000,"0","") ->  | G141: 16.6 | H141: 1.4641 | I141: 0.0599 | J141: -0.0141 | K141: =$G$3+$H$3*(G141^1)+$I$3*(G141^2)+$J$3*(G141^3)+$K$3*(G141^4)+$L$3*(G141^5)+$M$3*(G141^6)+$N$3*(G141^7)+$O$3*(G141^8) -> 1.476222347 | L141: =$G$4+$H$4*(G141^1)+$I$4*(G141^2)+$J$4*(G141^3)+$K$4*(G141^4)+$L$4*(G141^5)+$M$4*(G141^6)+$N$4*(G141^7)+$O$4*(G141^8)+SUMPRODUCT($P$4:$U$4,$X$9:$AC$9) -> 0.05852708243 | M141: =$G$5+$H$5*(G141^1)+$I$5*(G141^2)+$J$5*(G141^3)+$K$5*(G141^4)+$L$5*(G141^5)+$M$5*(G141^6)+$N$5*(G141^7)+$O$5*(G141^8)+SUMPRODUCT($X$9:$AC$9,$P$5:$U$5) -> -0.01563913697 | N141: =H141/I141 -> 24.44240401 | AE141: 0.01867 | AF141: 0.03457 | AH141: 0.006555 | AJ141: =$AC$3*(AE141^0)+$AD$3*(AE141^1)+$AE$3*(AE141^2)+$AF$3*(AE141^3)+$AG$3*(AE141^4)+$AH$3*(AE141^5)+$AI$3*(AE141^6)+$AJ$3*(AE141^7)+$AK$3*(AE141^8) -> 0.009181373261
A142: 16.8 | B142: 1.4117 | C142: 0.07091 | D142: -0.0013 | E142: 100000 | G142: 16.8 | H142: 1.4592 | I142: 0.06274 | J142: -0.0141 | K142: 1.472766921 | L142: 0.06101638035 | M142: -0.01526718664 | N142: 23.2578897 | AE142: 0.01712 | AF142: 0.03311 | AH142: 0.00622977707 | AJ142: 0.008467565102
A143: 17 | B143: 1.4156 | C143: 0.0727 | D143: -0.0009 | E143: 100000 | G143: 17 | H143: 1.4562 | I143: 0.06541 | J143: -0.0141 | K143: 1.468684851 | L143: 0.06358296346 | M143: -0.01490268794 | N143: 22.26265097 | AE143: 0.01565 | AF143: 0.03167 | AH143: 0.005916166667 | AJ143: 0.00777967581
A144: 17.2 | B144: 1.4101 | C144: 0.07541 | D144: -0.0008 | E144: 100000 | G144: 17.2 | H144: 1.4507 | I144: 0.0684 | J144: -0.0143 | K144: 1.464035509 | L144: 0.06622322547 | M144: -0.01455203215 | N144: 21.20906433 | AE144: 0.01427 | AF144: 0.03026 | AH144: 0.00562306338 | AJ144: 0.007124062958
A145: 17.4 | B145: 1.4124 | C145: 0.07744 | D145: -0.0006 | E145: 100000 | G145: 17.4 | H145: 1.447 | I145: 0.07123 | J145: -0.0145 | K145: 1.458897325 | L145: 0.06893271475 | M145: -0.01422460738 | N145: 20.31447424 | AE145: 0.01296 | AF145: 0.02886 | AH145: 0.005324014599 | AJ145: 0.006492750517
A146: 17.6 | B146: 1.4021 | C146: 0.08078 | D146: -0.0008 | E146: 100000 | G146: 17.6 | H146: 1.4422 | I146: 0.07422 | J146: -0.0147 | K146: 1.453370063 | L146: 0.07170605994 | M146: -0.01393321618 | N146: 19.4314201 | AE146: 0.01173 | AF146: 0.02748 | AH146: 0.005037230769 | AJ146: 0.00589193379
A147: 17.8 | B147: 1.4123 | C147: 0.08199 | D147: -0.0005 | E147: 100000 | G147: 17.8 | H147: 1.4355 | I147: 0.07749 | J147: -0.0151 | K147: 1.447577248 | L147: 0.07453689172 | M147: -0.01369452279 | N147: 18.52497096 | AE147: 0.01057 | AF147: 0.02611 | AH147: 0.004754758065 | AJ147: 0.005318059255
A148: 18 | B148: 1.3938 | C148: 0.08638 | D148: -0.0012 | E148: 100000 | G148: 18 | H148: 1.4326 | I148: 0.0803 | J148: -0.0155 | K148: 1.441668752 | L148: 0.07741776045 | M148: -0.01352953088 | N148: 17.84059776 | AE148: 0.00949 | AF148: 0.02475 | AH148: 0.004470847458 | AJ148: 0.004777352335
A149: 18.2 | B149: 1.3972 | C149: 0.08834 | D149: -0.0013 | E149: 100000 | G149: 18.2 | H149: 1.4273 | I149: 0.08344 | J149: -0.016 | K149: 1.435823532 | L149: 0.08034004971 | M149: -0.0134640931 | N149: 17.1057047 | AE149: 0.00849 | AF149: 0.02339 | AH149: 0.004176283186 | AJ149: 0.004271119181
A150: 18.4 | B150: 1.3936 | C150: 0.0912 | D150: -0.0017 | E150: 100000 | G150: 18.4 | H150: 1.4204 | I150: 0.08683 | J150: -0.0166 | K150: 1.430252545 | L150: 0.08329388555 | M150: -0.0135294535 | N150: 16.35840147 | AE150: 0.00755 | AF150: 0.02205 | AH150: 0.003894619048 | AJ150: 0.003790313422
A151: 18.6 | B151: 1.3699 | C151: 0.09659 | D151: -0.0034 | E151: 100000 | G151: 18.6 | H151: 1.4179 | I151: 0.08968 | J151: -0.0172 | K151: 1.425201823 | L151: 0.08626804122 | M151: -0.01376282397 | N151: 15.81066012 | AE151: 0.00667 | AF151: 0.02072 | AH151: 0.0036216 | AJ151: 0.003335806886
A152: 18.8 | B152: 1.3494 | C152: 0.10182 | D152: -0.0052 | E152: 100000 | G152: 18.8 | H152: 1.4138 | I152: 0.09274 | J152: -0.0178 | K152: 1.420955738 | L152: 0.08924983752 | M152: -0.01420799592 | N152: 15.24477033 | AE152: 0.00586 | AF152: 0.0194 | AH152: 0.003340537634 | AJ152: 0.002913664602
A153: 19 | B153: 1.3786 | C153: 0.10043 | D153: -0.0038 | E153: 100000 | G153: 19 | H153: 1.408 | I153: 0.09604 | J153: -0.0186 | K153: 1.41784044 | L153: 0.0922250383 | M153: -0.01491598842 | N153: 14.6605581 | AE153: 0.00511 | AF153: 0.01809 | AH153: 0.003068602151 | AJ153: 0.002519523427
A154: 19.2 | B154: 1.3471 | C154: 0.10721 | D154: -0.0067 | E154: 100000 | G154: 19.2 | H154: 1.4041 | I154: 0.09914 | J154: -0.0194 | K154: 1.416227494 | L154: 0.09517774125 | M154: -0.01594573398 | N154: 14.16280008 | AE154: 0.00441 | AF154: 0.0168 | AH154: 0.002818588235 | AJ154: 0.002148798661
A155: 19.4 | B155: 1.3108 | C155: 0.11521 | D155: -0.0108 | E155: 100000 | G155: 19.4 | H155: 1.4016 | I155: 0.10203 | J155: -0.0201 | K155: 1.416537701 | L155: 0.09809026372 | M155: -0.01736480321 | N155: 13.73713614 | AE155: 0.00378 | AF155: 0.01551 | AH155: 0.002561602564 | AJ155: 0.001812767293
A156: 19.6 | B156: 1.2646 | C156: 0.12548 | D156: -0.0167 | E156: 100000 | G156: 19.6 | H156: 1.3986 | I156: 0.10501 | J156: -0.021 | K156: 1.419245134 | L156: 0.1009430235 | M156: -0.01925016962 | N156: 13.31873155 | AE156: 0.00319 | AF156: 0.01424 | AH156: 0.002322714286 | AJ156: 0.001496012831
A157: -9.2 | B157: -0.6036 | C157: 0.07017 | D157: -0.0519 | E157: 120000 | G157: 19.8 | H157: 1.395 | I157: 0.10805 | J157: -0.0219 | K157: 1.424881373 | L157: 0.1037144141 | M157: -0.02168901588 | N157: 12.9106895 | AE157: 0.00266 | AF157: 0.01298 | AH157: 0.002082642857 | AJ157: 0.001209762072
A158: -9 | B158: -0.61 | C158: 0.0694 | D158: -0.0497 | E158: 120000 | G158: 20 | H158: 1.3922 | I158: 0.11099 | J158: -0.0229 | K158: 1.434039955 | L158: 0.1063806754 | M158: -0.02477958275 | N158: 12.54347238 | AE158: 0.00217 | AF158: 0.01173 | AH158: 0.001868809524 | AJ158: 0.0009436678829
A159: -8.8 | B159: -0.5958 | C159: 0.07146 | D159: -0.0465 | E159: 120000 | AE159: 0.00175 | AF159: 0.01049 | AH159: 0.001645 | AJ159: 0.0007144744833
A160: -8.6 | B160: -0.7383 | C160: 0.04733 | D160: -0.0497 | E160: 120000 | AE160: 0.00136 | AF160: 0.00927 | AH160: 0.001451666667 | AJ160: 0.0005007279368
A161: -8.4 | B161: -0.7156 | C161: 0.04534 | D161: -0.0518 | E161: 120000 | AE161: 0.00102 | AF161: 0.00806 | AH161: 0.001265857143 | AJ161: 0.0003136556268
A162: -8.2 | B162: -0.7002 | C162: 0.04208 | D162: -0.0534 | E162: 120000 | AE162: 0.00073 | AF162: 0.00687 | AH162: 0.001130714286
A163: -8 | B163: -0.6838 | C163: 0.03917 | D163: -0.0545 | E163: 120000 | AE163: 0.00049 | AF163: 0.00569 | AH163: 0.001014074074
A164: -7.8 | B164: -0.6614 | C164: 0.03757 | D164: -0.0556 | E164: 120000 | AE164: 0.00029 | AF164: 0.00453 | AH164: 0.000936
A165: -7.6 | B165: -0.6378 | C165: 0.03615 | D165: -0.0568 | E165: 120000 | AE165: 0.00014 | AF165: 0.00338 | AH165: 0.000865
A166: -7.4 | B166: -0.6145 | C166: 0.03445 | D166: -0.058 | E166: 120000 | AE166: 4e-05 | AF166: 0.00225 | AH166: 0.00086
A167: -7.2 | B167: -0.5914 | C167: 0.03346 | D167: -0.0587 | E167: 120000 | AE167: 0 | AF167: 0.00113 | AH167: 0.00113
A168: -7 | B168: -0.5666 | C168: 0.03277 | D168: -0.0596 | E168: 120000 | AE168: 1e-05 | AF168: 3e-05 | AH168: -0.00031
A169: -6.8 | B169: -0.5408 | C169: 0.03196 | D169: -0.0607 | E169: 120000 | AE169: 7e-05 | AF169: -0.00109 | AH169: -0.00031
A170: -6.6 | B170: -0.5135 | C170: 0.03119 | D170: -0.062 | E170: 120000 | AE170: 0.00021 | AF170: -0.00221 | AH170: -0.00048
A171: -6.4 | B171: -0.4905 | C171: 0.03054 | D171: -0.0624 | E171: 120000 | AE171: 0.00041 | AF171: -0.00333 | AH171: 0
A172: -6.2 | B172: -0.4653 | C172: 0.02995 | D172: -0.0632 | E172: 120000 | AE172: 0.00068 | AF172: -0.00445
A173: -6 | B173: -0.4365 | C173: 0.02928 | D173: -0.0646 | E173: 120000 | AE173: 0.00103 | AF173: -0.00556
A174: -5.8 | B174: -0.4139 | C174: 0.02882 | D174: -0.0648 | E174: 120000 | AE174: 0.00148 | AF174: -0.00666
A175: -5.6 | B175: -0.3882 | C175: 0.02841 | D175: -0.0656 | E175: 120000 | AE175: 0.00202 | AF175: -0.00774
A176: -5.4 | B176: -0.3586 | C176: 0.02798 | D176: -0.0671 | E176: 120000 | AE176: 0.00265 | AF176: -0.0088
A177: -5.2 | B177: -0.3361 | C177: 0.0276 | D177: -0.0672 | E177: 120000 | AE177: 0.00335 | AF177: -0.00983
A178: -5 | B178: -0.3078 | C178: 0.02719 | D178: -0.0683 | E178: 120000 | AE178: 0.00413 | AF178: -0.01084
A179: -4.8 | B179: -0.2816 | C179: 0.0268 | D179: -0.0691 | E179: 120000 | AE179: 0.00498 | AF179: -0.01182
A180: -4.6 | B180: -0.2585 | C180: 0.02647 | D180: -0.0693 | E180: 120000 | AE180: 0.00591 | AF180: -0.01277
A181: -4.4 | B181: -0.2259 | C181: 0.02601 | D181: -0.0711 | E181: 120000 | AE181: 0.00691 | AF181: -0.0137
A182: -4.2 | B182: -0.2044 | C182: 0.02571 | D182: -0.0709 | E182: 120000 | AE182: 0.00796 | AF182: -0.01462
A183: -4 | B183: -0.1686 | C183: 0.02516 | D183: -0.0732 | E183: 120000 | AE183: 0.00909 | AF183: -0.01551
A184: -3.8 | B184: -0.1482 | C184: 0.02486 | D184: -0.0728 | E184: 120000 | AE184: 0.01027 | AF184: -0.01639
A185: -3.6 | B185: -0.1248 | C185: 0.02453 | D185: -0.0729 | E185: 120000 | AE185: 0.01151 | AF185: -0.01726
A186: -3.4 | B186: -0.0915 | C186: 0.024 | D186: -0.0747 | E186: 120000 | AE186: 0.01281 | AF186: -0.01812
A187: -3.2 | B187: -0.0693 | C187: 0.0237 | D187: -0.0746 | E187: 120000 | AE187: 0.01418 | AF187: -0.01896
A188: -3 | B188: -0.0341 | C188: 0.02311 | D188: -0.0766 | E188: 120000 | AE188: 0.0156 | AF188: -0.01981
A189: -2.8 | B189: -0.0124 | C189: 0.02279 | D189: -0.0763 | E189: 120000 | AE189: 0.0171 | AF189: -0.02064
A190: -2.6 | B190: 0.0243 | C190: 0.02214 | D190: -0.0786 | E190: 120000 | AE190: 0.01867 | AF190: -0.02146
A191: -2.4 | B191: 0.0459 | C191: 0.02184 | D191: -0.0783 | E191: 120000 | AE191: 0.02031 | AF191: -0.02228
A192: -2.2 | B192: 0.0835 | C192: 0.02117 | D192: -0.0808 | E192: 120000 | AE192: 0.02203 | AF192: -0.02309
A193: -2 | B193: 0.105 | C193: 0.02083 | D193: -0.0805 | E193: 120000 | AE193: 0.02383 | AF193: -0.02389
A194: -1.8 | B194: 0.1413 | C194: 0.02013 | D194: -0.0827 | E194: 120000 | AE194: 0.02571 | AF194: -0.02468
A195: -1.6 | B195: 0.1613 | C195: 0.01979 | D195: -0.082 | E195: 120000 | AE195: 0.02769 | AF195: -0.02548
A196: -1.4 | B196: 0.1962 | C196: 0.01901 | D196: -0.0839 | E196: 120000 | AE196: 0.02975 | AF196: -0.02629
A197: -1.2 | B197: 0.2136 | C197: 0.01865 | D197: -0.0826 | E197: 120000 | AE197: 0.03192 | AF197: -0.02708
A198: -1 | B198: 0.2331 | C198: 0.01816 | D198: -0.0816 | E198: 120000 | AE198: 0.03419 | AF198: -0.02788
A199: -0.8 | B199: 0.2681 | C199: 0.01737 | D199: -0.0829 | E199: 120000 | AE199: 0.03658 | AF199: -0.02868
A200: -0.4 | B200: 0.4375 | C200: 0.01673 | D200: -0.105 | E200: 120000 | AE200: 0.03908 | AF200: -0.02947
A201: -0.2 | B201: 0.5069 | C201: 0.01651 | D201: -0.1136 | E201: 120000 | AE201: 0.04172 | AF201: -0.03026
... 2726 more rows

Sheet 主翼翼型2解析(sht11)
A1: 1 | B1: 2 | C1: 3 | D1: 4 | E1: 5 | F1: 6 | G1: 7 | H1: 8 | I1: 9 | J1: 10 | K1: 11 | L1: 12 | M1: 13 | N1: 14 | O1: 15 | P1: 16 | Q1: 17 | R1: 18 | S1: 19 | T1: 20 | U1: 21 | V1: 22 | W1: 23 | X1: 24 | Y1: 25 | Z1: 26 | AA1: 27 | AB1: 28 | AC1: 29 | AD1: 30 | AE1: 31 | AF1: 32 | AG1: 33 | AH1: 34 | AI1: 35 | AJ1: 36 | AK1: 37 | AL1: 38 | AM1: 39 | AN1: 40 | AO1: 41
A2: マクロボタン | G2: 1 | H2: α | I2: α^2 | J2: α^3 | K2: α^4 | L2: α^5 | M2: α^6 | N2: α^7 | O2: α^8 | P2: Re | Q2: Re^2 | R2: Re^3 | S2: Re^4 | T2: Re^5 | U2: Re^6 | W2: 解析範囲 | X2: 最小 | Y2: 最大 | Z2: Δ | AB2: - | AC2: 1 | AD2: x^1 | AE2: x^2 | AF2: x^3 | AG2: x^4 | AH2: x^5 | AI2: x^6 | AJ2: x^7 | AK2: x^8
F3: Cl | G3: 0.4784993935 | H3: 0.1142725314 | I3: 9.064071858e-05 | J3: -0.0001606603061 | K3: -2.209083164e-05 | L3: 1.015934434e-06 | M3: 1.075492885e-07 | N3: -8.242304044e-09 | O3: 1.526548987e-10 | P3: 0 | Q3: 0 | R3: 0 | S3: 0 | T3: 0 | U3: 0 | W3: α | X3: =MIN(A12:A12578) -> -10 | Y3: =MAX(A12:A12578) -> 20 | Z3: =ABS(A12-A13) -> 0.2 | AB3: zc | AC3: 0.001500084446 | AD3: 0.1810695628 | AE3: -0.3049288862 | AF3: 1.205265728 | AG3: -6.132702042 | AH3: 14.75041996 | AI3: -18.07666497 | AJ3: 11.08856949 | AK3: -2.713866232
F4: Cd0 | G4: 0.05996401139 | H4: -0.0001798087024 | I4: 5.886163605e-05 | J4: -1.769355926e-06 | K4: 2.357709219e-06 | L4: -1.279137466e-07 | M4: -9.190750654e-09 | N4: 1.136092358e-09 | O4: -2.810023866e-11 | P4: -4.644015186e-07 | Q4: 1.853494474e-12 | R4: -3.953769629e-18 | S4: 4.567638832e-24 | T4: -2.709290705e-30 | U4: 6.478189328e-37 | W4: Re | X4: =MIN(E12:E12578) -> 100000 | Y4: 1000000 | Z4: 20000
F5: Cm | G5: -0.07355467938 | H5: 0.0001291392745 | I5: -8.265528631e-05 | J5: 2.310961044e-05 | K5: 6.38403491e-06 | L5: -3.633232713e-07 | M5: -2.937431248e-08 | N5: 2.286822014e-09 | O5: -3.963809162e-11 | P5: -2.382393858e-07 | Q5: 9.382226401e-13 | R5: -2.21267889e-18 | S5: 2.970927622e-24 | T5: -2.070144669e-30 | U5: 5.786155184e-37 | W5: 翼型名 | X5: NACA4412
F6: Clα | G6: =H3 -> 0.1142725314 | H6: =2*I3 -> 0.0001812814372 | I6: =3*J3 -> -0.0004819809182 | J6: =4*K3 -> -8.836332658e-05 | K6: =5*L3 -> 5.079672171e-06 | L6: =6*M3 -> 6.452957311e-07 | M6: =7*N3 -> -5.769612831e-08 | N6: =8*O3 -> 1.22123919e-09
F7: Cd0α | G7: =H4 -> -0.0001798087024 | H7: =2*I4 -> 0.0001177232721 | I7: =3*J4 -> -5.308067777e-06 | J7: =4*K4 -> 9.430836875e-06 | K7: =5*L4 -> -6.395687332e-07 | L7: =6*M4 -> -5.514450392e-08 | M7: =7*N4 -> 7.952646503e-09 | N7: =8*O4 -> -2.248019093e-10 | P7: 多変数の最小二乗法
F8: Cmα | G8: =H5 -> 0.0001291392745 | H8: =2*I5 -> -0.0001653105726 | I8: =3*J5 -> 6.932883132e-05 | J8: =4*K5 -> 2.553613964e-05 | K8: =5*L5 -> -1.816616357e-06 | L8: =6*M5 -> -1.762458749e-07 | M8: =7*N5 -> 1.60077541e-08 | N8: =8*O5 -> -3.17104733e-10 | P8: https://mathtrain.jp/leastsquarematrix | W8: 1 | X8: Re^1 | Y8: Re^2 | Z8: Re^3 | AA8: Re^4 | AB8: Re^5 | AC8: Re^6
W9: 1 | X9: 200000 | Y9: =X9*$X9 -> 40000000000 | Z9: =Y9*$X9 -> 8000000000000000 | AA9: =Z9*$X9 -> 1.6e+21 | AB9: =AA9*$X9 -> 3.2e+26 | AC9: =AB9*$X9 -> 6.4e+31
A10: ↓XFLR５の解析結果（csv_foil.f90によって生成） | AE10: ↓翼型データを張り付け | AH10: キャンバーライン | AJ10: 近似キャンバーライン
A11: α | B11: Cl | C11: Cd | D11: Cm | E11: Re | G11: α | H11: Cl | I11: Cd0 | J11: Cm | K11: 近似Cl | L11: 近似Cd | M11: 近似Cm | N11: L/D | AE11: x | AF11: z | AH11: zc | AJ11: 近似zc | AM11: 名 | AN11: 記号 | AO11: 値 | AP11: 単位
A12: -9.8 | B12: -0.3406 | C12: 0.10951 | D12: -0.0381 | E12: 100000 | F12: =IF(E12=400000,"0","") ->  | G12: -10 | H12: -0.3541 | I12: 0.10422 | J12: -0.0413 | K12: =$G$3+$H$3*(G12^1)+$I$3*(G12^2)+$J$3*(G12^3)+$K$3*(G12^4)+$L$3*(G12^5)+$M$3*(G12^6)+$N$3*(G12^7)+$O$3*(G12^8) -> -0.6117654832 | L12: =$G$4+$H$4*(G12^1)+$I$4*(G12^2)+$J$4*(G12^3)+$K$4*(G12^4)+$L$4*(G12^5)+$M$4*(G12^6)+$N$4*(G12^7)+$O$4*(G12^8)+SUMPRODUCT($P$4:$U$4,$X$9:$AC$9) -> 0.03853641444 | M12: =$G$5+$H$5*(G12^1)+$I$5*(G12^2)+$J$5*(G12^3)+$K$5*(G12^4)+$L$5*(G12^5)+$M$5*(G12^6)+$N$5*(G12^7)+$O$5*(G12^8)+SUMPRODUCT($X$9:$AC$9,$P$5:$U$5) -> -0.08594721012 | N12: =H12/I12 -> -3.397620418 | AE12: 1 | AF12: 0 | AH12: -0.0013 | AJ12: =$AC$3*(AE12^0)+$AD$3*(AE12^1)+$AE$3*(AE12^2)+$AF$3*(AE12^3)+$AG$3*(AE12^4)+$AH$3*(AE12^5)+$AI$3*(AE12^6)+$AJ$3*(AE12^7)+$AK$3*(AE12^8) -> -0.001337299892 | AM12: 翼型2 | AN12: 全周 | AO12: 2.046896979 | AP12: m
A13: -9.6 | B13: -0.3577 | C13: 0.108 | D13: -0.0394 | E13: 100000 | F13: =IF(E13=400000,"0","") ->  | G13: -9.8 | H13: -0.3556 | I13: 0.1022 | J13: -0.041 | K13: -0.5972327301 | L13: 0.03807075962 | M13: -0.08572127936 | N13: =H13/I13 -> -3.479452055 | AE13: 0.99673 | AF13: 0.00091 | AH13: -0.0008498088235 | AJ13: =$AC$3*(AE13^0)+$AD$3*(AE13^1)+$AE$3*(AE13^2)+$AF$3*(AE13^3)+$AG$3*(AE13^4)+$AH$3*(AE13^5)+$AI$3*(AE13^6)+$AJ$3*(AE13^7)+$AK$3*(AE13^8) -> -0.0008736227187 | AN13: プランク長 | AO13: 0.5374833169 | AP13: m
A14: -9.4 | B14: -0.3505 | C14: 0.10534 | D14: -0.0382 | E14: 100000 | G14: -9.6 | H14: -0.3875 | I14: 0.09877 | J14: -0.0437 | K14: -0.5813517465 | L14: 0.03748877277 | M14: -0.08573988568 | N14: -3.923256049 | AE14: 0.99139 | AF14: 0.00238 | AH14: -0.0001244043321 | AJ14: -0.0001277072788 | AN14: リブ材長 | AO14: 1.509413662 | AP14: m
A15: -9.2 | B15: -0.346 | C15: 0.10339 | D15: -0.037 | E15: 100000 | G15: -8.4 | H15: -0.4422 | I15: 0.08897 | J15: -0.0337 | K15: -0.4663537262 | L15: 0.03259854954 | M15: -0.08893206557 | N15: -4.970214679 | AE15: 0.98554 | AF15: 0.00398 | AH15: 0.0006658910891 | AJ15: 0.0006744206734 | AN15: リブ面積 | AO15: 0.0825999565 | AP15: m^2
A16: -9 | B16: -0.362 | C16: 0.10194 | D16: -0.0372 | E16: 100000 | G16: -8.2 | H16: -0.4779 | I16: 0.08679 | J16: -0.0332 | K16: -0.4450368754 | L16: 0.03168531063 | M16: -0.0897131041 | N16: -5.506394746 | AE16: 0.97918 | AF16: 0.0057 | AH16: 0.001507336874 | AJ16: 0.001530007746 | AN16: 翼厚 | AO16: 11.98437813 | AP16: %
A17: -8.4 | B17: -0.3735 | C17: 0.09657 | D17: -0.0332 | E17: 100000 | G17: -7.8 | H17: -0.5209 | I17: 0.04335 | J17: -0.0711 | K17: -0.4013815564 | L17: 0.02986913748 | M17: -0.09130454482 | N17: -12.01614764 | AE17: 0.97237 | AF17: 0.00753 | AH17: 0.002402840909 | AJ17: 0.002428619797 | AM17: プランク | AN17: 上面 | AO17: 0.6 | AP17: -
A18: -8.2 | B18: -0.4045 | C18: 0.09585 | D18: -0.0317 | E18: 100000 | G18: -7.6 | H18: -0.5053 | I18: 0.03716 | J18: -0.0748 | K18: -0.3791746582 | L18: 0.02898060286 | M18: -0.09208723057 | N18: -13.59795479 | AE18: 0.96516 | AF18: 0.00944 | AH18: 0.003334133065 | AJ18: 0.003361876147 | AN18: 下面 | AO18: 0.25 | AP18: -
A19: -8 | B19: -0.4373 | C19: 0.09509 | D19: -0.03 | E19: 100000 | G19: -7.4 | H19: -0.4845 | I19: 0.03222 | J19: -0.0778 | K19: -0.3567885229 | L19: 0.02811289494 | M19: -0.0928463713 | N19: -15.03724395 | AE19: 0.95763 | AF19: 0.01142 | AH19: 0.004291621622 | AJ19: 0.00431824142 | AM19: 桁位置 | AN19: - | AO19: ='主翼(sht1)'!D31 -> 0 | AP19: -
A20: -7.8 | B20: -0.4006 | C20: 0.09212 | D20: -0.0274 | E20: 100000 | G20: -7.2 | H20: -0.4555 | I20: 0.03221 | J20: -0.0793 | K20: -0.3342688116 | L20: 0.02727064476 | M20: -0.09357325754 | N20: -14.14157094 | AE20: 0.94985 | AF20: 0.01344 | AH20: 0.005271484472 | AJ20: 0.005288235361
A21: -7.6 | B21: -0.4197 | C21: 0.09117 | D21: -0.0249 | E21: 100000 | G21: -7 | H21: -0.4281 | I21: 0.02994 | J21: -0.0816 | K21: -0.3116543595 | L21: 0.02645761965 | M21: -0.09426091151 | N21: -14.29859719 | AE21: 0.94191 | AF21: 0.01548 | AH21: 0.006251263603 | AJ21: 0.006260566362
A22: -7.4 | B22: -0.4521 | C22: 0.08966 | D22: -0.0256 | E22: 100000 | G22: -6.8 | H22: -0.4033 | I22: 0.02765 | J22: -0.0831 | K22: -0.2889777998 | L22: 0.02567680614 | M22: -0.0949039202 | N22: -14.58589512 | AE22: 0.93383 | AF22: 0.01752 | AH22: 0.007227880048 | AJ22: 0.007232976505
A23: -5.6 | B23: -0.4372 | C23: 0.04945 | D23: -0.0505 | E23: 100000 | G23: -6.6 | H23: -0.3733 | I23: 0.02573 | J23: -0.0853 | K23: -0.2662661537 | L23: 0.02493048794 | M23: -0.09549827776 | N23: -14.508356 | AE23: 0.92565 | AF23: 0.01956 | AH23: 0.008197839578 | AJ23: 0.008200887825
A24: -5.4 | B24: -0.4087 | C24: 0.05186 | D24: -0.0509 | E24: 100000 | G24: -6.4 | H24: -0.3479 | I24: 0.02495 | J24: -0.0863 | K24: -0.2435413866 | L24: 0.02422031913 | M24: -0.09604123683 | N24: -13.94388778 | AE24: 0.91742 | AF24: 0.0216 | AH24: 0.009165121951 | AJ24: 0.009158727712
A25: -5.2 | B25: -0.3808 | C25: 0.05211 | D25: -0.053 | E25: 100000 | G25: -6.2 | H25: -0.3167 | I25: 0.02384 | J25: -0.0883 | K25: -0.2208209327 | L25: 0.02354739278 | M25: -0.09653116874 | N25: -13.28439597 | AE25: 0.90913 | AF25: 0.02361 | AH25: 0.01011724218 | AJ25: 0.01010795162
A26: -5 | B26: -0.3539 | C26: 0.05154 | D26: -0.0547 | E26: 100000 | G26: -6 | H26: -0.2905 | I26: 0.02279 | J26: -0.0893 | K26: -0.1981181878 | L26: 0.02291230514 | M26: -0.09696743207 | N26: -12.74681878 | AE26: 0.90081 | AF26: 0.0256 | AH26: 0.0110566129 | AJ26: 0.01104531205
A27: -4.6 | B27: -0.2724 | C27: 0.03029 | D27: -0.0702 | E27: 100000 | G27: -5.8 | H27: -0.2598 | I27: 0.02186 | J27: -0.0912 | K27: -0.1754429732 | L27: 0.02231521555 | M27: -0.09735024937 | N27: -11.88472095 | AE27: 0.89246 | AF27: 0.02758 | AH27: 0.0119890367 | AJ27: 0.01197093542
A28: -4.4 | B28: -0.2396 | C28: 0.0292 | D28: -0.0726 | E28: 100000 | G28: -5.6 | H28: -0.2318 | I28: 0.02118 | J28: -0.0924 | K28: -0.152801969 | L28: 0.02175590234 | M28: -0.09768059185 | N28: -10.94428706 | AE28: 0.8841 | AF28: 0.02954 | AH28: 0.01290931585 | AJ28: 0.01288265891
A29: -4.2 | B29: -0.2055 | C29: 0.0282 | D29: -0.0751 | E29: 100000 | G29: -5.4 | H29: -0.2018 | I29: 0.02039 | J29: -0.0939 | K29: -0.1301991211 | L29: 0.02123381469 | M29: -0.09796007162 | N29: -9.897008337 | AE29: 0.87571 | AF29: 0.03146 | AH29: 0.01380515873 | AJ29: 0.01378261138
A30: -4 | B30: -0.1721 | C30: 0.0273 | D30: -0.0774 | E30: 100000 | G30: -5.2 | H30: -0.1687 | I30: 0.01968 | J30: -0.0962 | K30: -0.1076360199 | L30: 0.02074812079 | M30: -0.09819084131 | N30: -8.572154472 | AE30: 0.8673 | AF30: 0.03336 | AH30: 0.01468847285 | AJ30: 0.01466955334
A31: -3.8 | B31: -0.1409 | C31: 0.02658 | D31: -0.0793 | E31: 100000 | G31: -5 | H31: -0.1431 | I31: 0.0191 | J31: -0.0967 | K31: -0.08511225354 | L31: 0.0202977524 | M31: -0.09837550078 | N31: -7.492146597 | AE31: 0.8589 | AF31: 0.03524 | AH31: 0.01556198305 | AJ31: 0.01554019298
A32: -3.6 | B32: -0.1091 | C32: 0.02596 | D32: -0.0813 | E32: 100000 | G32: -4.8 | H32: -0.1102 | I32: 0.01844 | J32: -0.0989 | K32: -0.06262573607 | L32: 0.0198814459 | M32: -0.09851701069 | N32: -5.976138829 | AE32: 0.85047 | AF32: 0.03709 | AH32: 0.01641887443 | AJ32: 0.01639846863
A33: -3.4 | B33: -0.0729 | C33: 0.02537 | D33: -0.0841 | E33: 100000 | G33: -4.6 | H33: -0.083 | I33: 0.01786 | J33: -0.0999 | K33: -0.04017301138 | L33: 0.01949778005 | M33: -0.09861861255 | N33: -4.647256439 | AE33: 0.84205 | AF33: 0.03892 | AH33: 0.01726126697 | AJ33: 0.01724006382
A34: -3.2 | B34: -0.0434 | C34: 0.0249 | D34: -0.0856 | E34: 100000 | G34: -4.4 | H34: -0.0512 | I34: 0.01727 | J34: -0.1017 | K34: -0.017749534 | L34: 0.01914521061 | M34: -0.0986837552 | N34: -2.964678633 | AE34: 0.83362 | AF34: 0.04071 | AH34: 0.01807997738 | AJ34: 0.01806676625
A35: -3 | B35: -0.0137 | C35: 0.02449 | D35: -0.0872 | E35: 100000 | G35: -4 | H35: 0.0055 | I35: 0.01627 | J35: -0.104 | K35: 0.02703177753 | L35: 0.0185267555 | M35: -0.09871909574 | N35: 0.3380454825 | AE35: 0.82517 | AF35: 0.04248 | AH35: 0.01888776077 | AJ35: 0.01887924937
A36: -2.8 | B36: 0.0164 | C36: 0.02415 | D36: -0.0888 | E36: 100000 | G36: -3.8 | H36: 0.0333 | I36: 0.01583 | J36: -0.1049 | K36: 0.04940192838 | L36: 0.01825743626 | M36: -0.09869664935 | N36: 2.103600758 | AE36: 0.81673 | AF36: 0.04423 | AH36: 0.0196814229 | AJ36: 0.01967437817
A37: -2.6 | B37: 0.048 | C37: 0.02378 | D37: -0.0906 | E37: 100000 | G37: -3.6 | H37: 0.0603 | I37: 0.01539 | J37: -0.1058 | K37: 0.07176705147 | L37: 0.0180123956 | M37: -0.09865234844 | N37: 3.918128655 | AE37: 0.80827 | AF37: 0.04594 | AH37: 0.02045457955 | AJ37: 0.02045473669
A38: -2.4 | B38: 0.082 | C38: 0.02331 | D38: -0.0928 | E38: 100000 | G38: -3.4 | H38: 0.0855 | I38: 0.01503 | J38: -0.1062 | K38: 0.0941336748 | L38: 0.01778989245 | M38: -0.09858977907 | N38: 5.688622754 | AE38: 0.7998 | AF38: 0.04764 | AH38: 0.02121783105 | AJ38: 0.0212191171
A39: -2.2 | B39: 0.1103 | C39: 0.02288 | D39: -0.094 | E39: 100000 | G39: -3.2 | H39: 0.1133 | I39: 0.0146 | J39: -0.1071 | K39: 0.1165081673 | L39: 0.0175882118 | M39: -0.09851241236 | N39: 7.760273973 | AE39: 0.79133 | AF39: 0.0493 | AH39: 0.02195597603 | AJ39: 0.02196641314
A40: -2 | B40: 0.1391 | C40: 0.02242 | D40: -0.0952 | E40: 100000 | G40: -2.8 | H40: 0.1612 | I40: 0.01396 | J40: -0.1074 | K40: 0.1613045966 | L40: 0.01724068404 | M40: -0.09832638507 | N40: 11.54727794 | AE40: 0.78284 | AF40: 0.05094 | AH40: 0.02267866972 | AJ40: 0.02269818233
A41: -1.8 | B41: 0.1693 | C41: 0.02189 | D41: -0.0966 | E41: 100000 | G41: -2.6 | H41: 0.1872 | I41: 0.01361 | J41: -0.1079 | K41: 0.1837372663 | L41: 0.01709167384 | M41: -0.09822378994 | N41: 13.75459221 | AE41: 0.77435 | AF41: 0.05256 | AH41: 0.02339599197 | AJ41: 0.02341252484
A42: -1.6 | B42: 0.2042 | C42: 0.02119 | D42: -0.0988 | E42: 100000 | G42: -2.4 | H42: 0.2097 | I42: 0.01331 | J42: -0.1078 | K42: 0.2061990623 | L42: 0.01695718266 | M42: -0.09811847769 | N42: 15.75507137 | AE42: 0.76587 | AF42: 0.05415 | AH42: 0.02408530857 | AJ42: 0.02410854966
A43: -1.4 | B43: 0.2306 | C43: 0.02056 | D43: -0.0994 | E43: 100000 | G43: -2.2 | H43: 0.2323 | I43: 0.01301 | J43: -0.1077 | K43: 0.2286937216 | L43: 0.0168358308 | M43: -0.09801289031 | N43: 17.85549577 | AE43: 0.75738 | AF43: 0.05571 | AH43: 0.02475901593 | AJ43: 0.02478785368
A44: -1.2 | B44: 0.2532 | C44: 0.01967 | D44: -0.0986 | E44: 100000 | G44: -2 | H44: 0.2552 | I44: 0.0127 | J44: -0.1076 | K44: 0.2512241901 | L44: 0.01672633369 | M44: -0.09790920125 | N44: 20.09448819 | AE44: 0.74887 | AF44: 0.05724 | AH44: 0.025417625 | AJ44: 0.02545113551
A45: -1 | B45: 0.3001 | C45: 0.01878 | D45: -0.1013 | E45: 100000 | G45: -1.8 | H45: 0.2779 | I45: 0.01239 | J45: -0.1075 | K45: 0.2737925658 | L45: 0.01662750743 | M45: -0.097809303 | N45: 22.42937853 | AE45: 0.74036 | AF45: 0.05876 | AH45: 0.02606318182 | AJ45: 0.02609680193
A46: -0.8 | B46: 0.3283 | C46: 0.01869 | D46: -0.1023 | E46: 100000 | G46: -1.6 | H46: 0.3004 | I46: 0.01206 | J46: -0.1073 | K46: 0.296400053 | L46: 0.01653827298 | M46: -0.09771479787 | N46: 24.90878939 | AE46: 0.73188 | AF46: 0.06024 | AH46: 0.02668754545 | AJ46: 0.0267227322
A47: -0.6 | B47: 0.356 | C47: 0.01859 | D47: -0.103 | E47: 100000 | G47: -1.4 | H47: 0.322 | I47: 0.01168 | J47: -0.107 | K47: 0.3190469281 | L47: 0.01645765896 | M47: -0.09762699179 | N47: 27.56849315 | AE47: 0.72337 | AF47: 0.0617 | AH47: 0.02729760251 | AJ47: 0.02733345078
A48: -0.4 | B48: 0.3835 | C48: 0.01847 | D48: -0.1037 | E48: 100000 | G48: -1 | H48: 0.3585 | I48: 0.01066 | J48: -0.1047 | K48: 0.3644551723 | L48: 0.01631895409 | M48: -0.09747520127 | N48: 33.630394 | AE48: 0.71486 | AF48: 0.06314 | AH48: 0.02789624429 | AJ48: 0.02792683901
A49: -0.2 | B49: 0.4109 | C49: 0.01834 | D49: -0.1043 | E49: 100000 | G49: -0.8 | H49: 0.374 | I49: 0.01024 | J49: -0.102 | K49: 0.3872122851 | L49: 0.01625946843 | M49: -0.09741232991 | N49: 36.5234375 | AE49: 0.70634 | AF49: 0.06456 | AH49: 0.02847773714 | AJ49: 0.02850371824
A50: 0 | B50: 0.4385 | C50: 0.01819 | D50: -0.105 | E50: 100000 | G50: -0.6 | H50: 0.4225 | I50: 0.01001 | J50: -0.1066 | K50: 0.4100002712 | L50: 0.01620581176 | M50: -0.09735838971 | N50: 42.20779221 | AE50: 0.6978 | AF50: 0.06595 | AH50: 0.02904118016 | AJ50: 0.02906485441
A51: 0.2 | B51: 0.469 | C51: 0.01794 | D51: -0.106 | E51: 100000 | G51: -0.4 | H51: 0.4533 | I51: 0.00998 | J51: -0.1083 | K51: 0.4328145902 | L51: 0.01615755534 | M51: -0.0973132053 | N51: 45.42084168 | AE51: 0.68924 | AF51: 0.06733 | AH51: 0.02959634396 | AJ51: 0.02961032886
A52: 0.4 | B52: 0.4936 | C52: 0.01786 | D52: -0.1061 | E52: 100000 | G52: -0.2 | H52: 0.4738 | I52: 0.01 | J52: -0.1078 | K52: 0.4556497624 | L52: 0.0161143733 | M52: -0.09727632137 | N52: 47.38 | AE52: 0.6807 | AF52: 0.06868 | AH52: 0.03013244041 | AJ52: 0.03013781022
A53: 0.6 | B53: 0.5181 | C53: 0.01779 | D53: -0.1061 | E53: 100000 | G53: 0 | H53: 0.4946 | I53: 0.01003 | J53: -0.1073 | K53: 0.4784993935 | L53: 0.01607603913 | M53: -0.09724701276 | N53: 49.31206381 | AE53: 0.67215 | AF53: 0.06999 | AH53: 0.03064671964 | AJ53: 0.03064941038
A54: 0.8 | B54: 0.5422 | C54: 0.01773 | D54: -0.1061 | E54: 100000 | G54: 0.2 | H54: 0.5157 | I54: 0.01008 | J54: -0.1069 | K54: 0.5013562051 | L54: 0.01604242143 | M54: -0.09722429614 | N54: 51.16071429 | AE54: 0.66359 | AF54: 0.0713 | AH54: 0.03115819728 | AJ54: 0.0311453085
A55: 1 | B55: 0.5662 | C55: 0.01769 | D55: -0.1061 | E55: 100000 | G55: 0.4 | H55: 0.5369 | I55: 0.01013 | J55: -0.1065 | K55: 0.5242120716 | L55: 0.01601347928 | M55: -0.09720694328 | N55: 53.00098717 | AE55: 0.65505 | AF55: 0.07257 | AH55: 0.03164539116 | AJ55: 0.0316240337
A56: 1.2 | B56: 0.5898 | C56: 0.01766 | D56: -0.106 | E56: 100000 | G56: 0.6 | H56: 0.5573 | I56: 0.01021 | J56: -0.106 | K56: 0.5470580611 | L56: 0.01598925713 | M56: -0.09719349561 | N56: 54.58374143 | AE56: 0.64651 | AF56: 0.07381 | AH56: 0.03211531179 | AJ56: 0.03208699863
A57: 1.4 | B57: 0.6133 | C57: 0.01765 | D57: -0.1058 | E57: 100000 | G57: 0.8 | H57: 0.5781 | I57: 0.01029 | J57: -0.1055 | K57: 0.5698844815 | L57: 0.01596987933 | M57: -0.09718227998 | N57: 56.18075802 | AE57: 0.63796 | AF57: 0.07503 | AH57: 0.03257280045 | AJ57: 0.03253494557
A58: 1.6 | B58: 0.6364 | C58: 0.01767 | D58: -0.1057 | E58: 100000 | G58: 1 | H58: 0.5991 | I58: 0.01038 | J58: -0.1051 | K58: 0.5926809298 | L58: 0.01595554442 | M58: -0.09717142557 | N58: 57.71676301 | AE58: 0.62944 | AF58: 0.07622 | AH58: 0.03301324263 | AJ58: 0.03296604737
A59: 1.8 | B59: 0.6594 | C59: 0.0177 | D59: -0.1055 | E59: 100000 | G59: 1.2 | H59: 0.6202 | I59: 0.01048 | J59: -0.1048 | K59: 0.6154363454 | L59: 0.01594651916 | M59: -0.09715888165 | N59: 59.17938931 | AE59: 0.6209 | AF59: 0.07737 | AH59: 0.03343153846 | AJ59: 0.03338305781
A60: 2 | B60: 0.6821 | C60: 0.01776 | D60: -0.1053 | E60: 100000 | G60: 1.4 | H60: 0.6415 | I60: 0.01059 | J60: -0.1044 | K60: 0.6381390662 | L60: 0.01594313242 | M60: -0.09714243615 | N60: 60.57601511 | AE60: 0.61236 | AF60: 0.07851 | AH60: 0.03384038462 | AJ60: 0.03378512217
A61: 2.2 | B61: 0.7046 | C61: 0.01783 | D61: -0.105 | E61: 100000 | G61: 1.6 | H61: 0.6621 | I61: 0.01071 | J61: -0.104 | K61: 0.6607768873 | L61: 0.01594576901 | M61: -0.09711973493 | N61: 61.82072829 | AE61: 0.60384 | AF61: 0.07961 | AH61: 0.03422659887 | AJ61: 0.03417149929
A62: 2.4 | B62: 0.7269 | C62: 0.01792 | D62: -0.1048 | E62: 100000 | G62: 1.8 | H62: 0.6829 | I62: 0.01083 | J62: -0.1036 | K62: 0.6833371212 | L62: 0.01595486341 | M62: -0.09708830159 | N62: 63.05632502 | AE62: 0.5953 | AF62: 0.08067 | AH62: 0.0345925 | AJ62: 0.03454412069
A63: 2.6 | B63: 0.7491 | C63: 0.01803 | D63: -0.1045 | E63: 100000 | G63: 2 | H63: 0.7038 | I63: 0.01096 | J63: -0.1033 | K63: 0.7058066604 | L63: 0.01597089354 | M63: -0.09704555765 | N63: 64.21532847 | AE63: 0.58677 | AF63: 0.08172 | AH63: 0.03495214286 | AJ63: 0.03490173445
A64: 2.8 | B64: 0.771 | C64: 0.01816 | D64: -0.1042 | E64: 100000 | G64: 2.2 | H64: 0.7248 | I64: 0.0111 | J64: -0.1029 | K64: 0.7281720409 | L64: 0.01599437466 | M64: -0.0969888431 | N64: 65.2972973 | AE64: 0.57823 | AF64: 0.08272 | AH64: 0.03528261364 | AJ64: 0.03524522367
A65: 3 | B65: 0.7927 | C65: 0.0183 | D65: -0.1039 | E65: 100000 | G65: 2.4 | H65: 0.7458 | I65: 0.01124 | J65: -0.1026 | K65: 0.7504195062 | L65: 0.01602585329 | M65: -0.09691543711 | N65: 66.35231317 | AE65: 0.56969 | AF65: 0.08371 | AH65: 0.03560767389 | AJ65: 0.03557416344
A66: 3.2 | B66: 0.8144 | C66: 0.01846 | D66: -0.1036 | E66: 100000 | G66: 2.6 | H66: 0.7668 | I66: 0.01139 | J66: -0.1022 | K66: 0.7725350721 | L66: 0.01606590134 | M66: -0.09682257883 | N66: 67.32221247 | AE66: 0.56115 | AF66: 0.08465 | AH66: 0.03590643836 | AJ66: 0.03588851194
A67: 3.4 | B67: 0.8358 | C67: 0.01863 | D67: -0.1032 | E67: 100000 | G67: 2.8 | H67: 0.7878 | I67: 0.01154 | J67: -0.1019 | K67: 0.7945045917 | L67: 0.0161151105 | M67: -0.09670748816 | N67: 68.26689775 | AE67: 0.55261 | AF67: 0.08558 | AH67: 0.03619665336 | AJ67: 0.03618817999
A68: 3.6 | B68: 0.8572 | C68: 0.01882 | D68: -0.1028 | E68: 100000 | G68: 3 | H68: 0.8087 | I68: 0.01169 | J68: -0.1016 | K68: 0.8163138195 | L68: 0.01617408675 | M68: -0.09656738642 | N68: 69.17878529 | AE68: 0.54406 | AF68: 0.08646 | AH68: 0.03646554608 | AJ68: 0.03647335373
A69: 3.8 | B69: 0.8785 | C69: 0.01901 | D69: -0.1025 | E69: 100000 | G69: 3.2 | H69: 0.8297 | I69: 0.01185 | J69: -0.1013 | K69: 0.8379484756 | L69: 0.0162434453 | M69: -0.09639951677 | N69: 70.01687764 | AE69: 0.53551 | AF69: 0.08733 | AH69: 0.03672584852 | AJ69: 0.03674348306
A70: 4 | B70: 0.8996 | C70: 0.0192 | D70: -0.1021 | E70: 100000 | G70: 3.4 | H70: 0.8505 | I70: 0.01202 | J70: -0.1009 | K70: 0.8593943082 | L70: 0.01632380572 | M70: -0.09620116437 | N70: 70.75707155 | AE70: 0.52696 | AF70: 0.08815 | AH70: 0.03696542189 | AJ70: 0.03699832466
A71: 4.2 | B71: 0.9207 | C71: 0.01941 | D71: -0.1017 | E71: 100000 | G71: 3.6 | H71: 0.8714 | I71: 0.01219 | J71: -0.1006 | K71: 0.8806371559 | L71: 0.01641578748 | M71: -0.09596967609 | N71: 71.48482363 | AE71: 0.51841 | AF71: 0.08896 | AH71: 0.0371996697 | AJ71: 0.03723758161
A72: 4.4 | B72: 0.9417 | C72: 0.01962 | D72: -0.1013 | E72: 100000 | G72: 3.8 | H72: 0.8922 | I72: 0.01236 | J72: -0.1003 | K72: 0.9016630072 | L72: 0.01652000591 | M72: -0.09570247977 | N72: 72.18446602 | AE72: 0.50986 | AF72: 0.08973 | AH72: 0.03740940409 | AJ72: 0.03746090309
A73: 4.6 | B73: 0.9625 | C73: 0.01985 | D73: -0.1009 | E73: 100000 | G73: 4 | H73: 0.9129 | I73: 0.01255 | J73: -0.0999 | K73: 0.9224580591 | L73: 0.01663706844 | M73: -0.09539710288 | N73: 72.74103586 | AE73: 0.50132 | AF73: 0.09048 | AH73: 0.03761476731 | AJ73: 0.03766765211
A74: 4.8 | B74: 0.9833 | C74: 0.02009 | D74: -0.1004 | E74: 100000 | G74: 4.2 | H74: 0.9336 | I74: 0.01273 | J74: -0.0996 | K74: 0.9430087736 | L74: 0.01676757141 | M74: -0.09505119062 | N74: 73.33857031 | AE74: 0.49277 | AF74: 0.09119 | AH74: 0.03780030578 | AJ74: 0.03785785554
A75: 5 | B75: 1.0041 | C75: 0.02032 | D75: -0.1 | E75: 100000 | G75: 4.4 | H75: 0.9543 | I75: 0.01292 | J75: -0.0992 | K75: 0.9633019314 | L75: 0.01691209718 | M75: -0.09466252321 | N75: 73.8622291 | AE75: 0.48423 | AF75: 0.09188 | AH75: 0.03797587302 | AJ75: 0.03803055997
A76: 5.2 | B76: 1.0245 | C76: 0.02058 | D76: -0.0995 | E76: 100000 | G76: 4.6 | H76: 0.9748 | I76: 0.01312 | J76: -0.0989 | K76: =$G$3+$H$3*(G76^1)+$I$3*(G76^2)+$J$3*(G76^3)+$K$3*(G76^4)+$L$3*(G76^5)+$M$3*(G76^6)+$N$3*(G76^7)+$O$3*(G76^8) -> 0.9833246833 | L76: =$G$4+$H$4*(G76^1)+$I$4*(G76^2)+$J$4*(G76^3)+$K$4*(G76^4)+$L$4*(G76^5)+$M$4*(G76^6)+$N$4*(G76^7)+$O$4*(G76^8)+SUMPRODUCT($P$4:$U$4,$X$9:$AC$9) -> 0.01707121184 | M76: =$G$5+$H$5*(G76^1)+$I$5*(G76^2)+$J$5*(G76^3)+$K$5*(G76^4)+$L$5*(G76^5)+$M$5*(G76^6)+$N$5*(G76^7)+$O$5*(G76^8)+SUMPRODUCT($X$9:$AC$9,$P$5:$U$5) -> -0.0942290325 | N76: 74.29878049 | AE76: 0.47572 | AF76: 0.09253 | AH76: 0.03813639456 | AJ76: 0.03818492733
A77: 5.4 | B77: 1.0442 | C77: 0.02085 | D77: -0.0989 | E77: 100000 | F77: =IF(E77=400000,"0","") ->  | G77: 4.8 | H77: 0.9953 | I77: 0.01331 | J77: -0.0985 | K77: 1.003064599 | L77: 0.01724546331 | M77: -0.09374881764 | N77: =H77/I77 -> 74.77836213 | AE77: 0.46721 | AF77: 0.09314 | AH77: 0.03827688282 | AJ77: =$AC$3*(AE77^0)+$AD$3*(AE77^1)+$AE$3*(AE77^2)+$AF$3*(AE77^3)+$AG$3*(AE77^4)+$AH$3*(AE77^5)+$AI$3*(AE77^6)+$AJ$3*(AE77^7)+$AK$3*(AE77^8) -> 0.03832099491
A78: 5.6 | B78: 1.0638 | C78: 0.02112 | D78: -0.0983 | E78: 100000 | G78: 5 | H78: 1.0155 | I78: 0.0135 | J78: -0.0981 | K78: 1.022509714 | L78: 0.01743537991 | M78: -0.09322015993 | N78: 75.22222222 | AE78: 0.45871 | AF78: 0.09372 | AH78: 0.03839796233 | AJ78: 0.03843799155
A79: 5.8 | B79: 1.0829 | C79: 0.02135 | D79: -0.0975 | E79: 100000 | G79: 5.2 | H79: 1.0352 | I79: 0.01368 | J79: -0.0975 | K79: 1.041648569 | L79: 0.01764146952 | M79: -0.0926415367 | N79: 75.67251462 | AE79: 0.45023 | AF79: 0.09427 | AH79: 0.03850730286 | AJ79: 0.03853519784
A80: 6 | B80: 1.1032 | C80: 0.02145 | D80: -0.0968 | E80: 100000 | G80: 5.4 | H80: 1.0545 | I80: 0.01386 | J80: -0.0969 | K80: 1.060470254 | L80: 0.01786421915 | M80: -0.0920116341 | N80: 76.08225108 | AE80: 0.44177 | AF80: 0.09478 | AH80: 0.0385942 | AJ80: 0.03861203646
A81: 6.2 | B81: 1.125 | C81: 0.02149 | D81: -0.0963 | E81: 100000 | G81: 5.6 | H81: 1.0738 | I81: 0.01404 | J81: -0.0963 | K81: 1.078964441 | L81: 0.01810409501 | M81: -0.09132935899 | N81: 76.48148148 | AE81: 0.43332 | AF81: 0.09524 | AH81: 0.03865505721 | AJ81: 0.0386679595
A82: 6.4 | B82: 1.1419 | C82: 0.02174 | D82: -0.0952 | E82: 100000 | G82: 5.8 | H82: 1.093 | I82: 0.01424 | J82: -0.0957 | K82: 1.097121417 | L82: 0.01836154318 | M82: -0.09059384956 | N82: 76.75561798 | AE82: 0.42489 | AF82: 0.09567 | AH82: 0.0387039931 | AJ82: 0.03870224062
A83: 6.6 | B83: 1.1614 | C83: 0.02191 | D83: -0.0944 | E83: 100000 | G83: 6 | H83: 1.1114 | I83: 0.01441 | J83: -0.0949 | K83: 1.114932113 | L83: 0.01863699066 | M83: -0.08980448497 | N83: 77.12699514 | AE83: 0.41648 | AF83: 0.09605 | AH83: 0.03871902199 | AJ83: 0.03871424186
A84: 6.8 | B84: 1.1812 | C84: 0.02199 | D84: -0.0936 | E84: 100000 | G84: 6.2 | H84: 1.1292 | I84: 0.01458 | J84: -0.094 | K84: 1.132388131 | L84: 0.01893084699 | M84: -0.08896089365 | N84: 77.44855967 | AE84: 0.40808 | AF84: 0.09639 | AH84: 0.03871516821 | AJ84: 0.03870328894
A85: 7 | B85: 1.198 | C85: 0.02212 | D85: -0.0924 | E85: 100000 | G85: 6.4 | H85: 1.1468 | I85: 0.01475 | J85: -0.0931 | K85: 1.149481763 | L85: 0.01924350628 | M85: -0.0880629606 | N85: 77.74915254 | AE85: 0.3997 | AF85: 0.09669 | AH85: 0.03868891405 | AJ85: 0.0386687002
A86: 7.2 | B86: 1.2151 | C86: 0.02221 | D86: -0.0911 | E86: 100000 | G86: 6.8 | H86: 1.1823 | I86: 0.01515 | J86: -0.0914 | K86: 1.182554584 | L86: 0.01992674899 | M86: -0.08610492625 | N86: 78.03960396 | AE86: 0.39134 | AF86: 0.09694 | AH86: 0.03863440835 | AJ86: 0.03860982295
A87: 7.4 | B87: 1.2332 | C87: 0.02227 | D87: -0.0901 | E87: 100000 | G87: 7 | H87: 1.1998 | I87: 0.01537 | J87: -0.0905 | K87: 1.198521946 | L87: 0.02029806879 | M87: -0.08504592482 | N87: 78.0611581 | AE87: 0.383 | AF87: 0.09715 | AH87: 0.03855491289 | AJ87: 0.03852601132
A88: 7.6 | B88: 1.2477 | C88: 0.02246 | D88: -0.0885 | E88: 100000 | G88: 7.2 | H88: 1.2168 | I88: 0.01559 | J88: -0.0895 | K88: 1.214103281 | L88: 0.02068967161 | M88: -0.08393478698 | N88: 78.05003207 | AE88: 0.37469 | AF88: 0.09729 | AH88: 0.03843704861 | AJ88: 0.03841677898
A89: 7.8 | B89: 1.263 | C89: 0.02262 | D89: -0.0871 | E89: 100000 | G89: 7.4 | H89: 1.2333 | I89: 0.01583 | J89: -0.0885 | K89: 1.229294513 | L89: 0.02110192148 | M89: -0.08277274434 | N89: 77.90903348 | AE89: 0.36637 | AF89: 0.0974 | AH89: 0.03830458478 | AJ89: 0.03828088878
A90: 8 | B90: 1.2782 | C90: 0.02277 | D90: -0.0856 | E90: 100000 | G90: 7.6 | H90: 1.2494 | I90: 0.01609 | J90: -0.0874 | K90: 1.244092303 | L90: 0.02153518872 | M90: -0.0815613017 | N90: 77.65071473 | AE90: 0.35809 | AF90: 0.09746 | AH90: 0.0381446617 | AJ90: 0.03811851563
A91: 8.2 | B91: 1.2915 | C91: 0.02295 | D91: -0.0839 | E91: 100000 | G91: 7.8 | H91: 1.2647 | I91: 0.01637 | J91: -0.0862 | K91: 1.258494039 | L91: 0.02198985483 | M91: -0.08030223525 | N91: 77.25717776 | AE91: 0.34984 | AF91: 0.09746 | AH91: 0.03795096571 | AJ91: 0.03792904729
A92: 8.4 | B92: 1.3033 | C92: 0.02318 | D92: -0.082 | E92: 100000 | G92: 8 | H92: 1.2792 | I92: 0.01669 | J92: -0.0849 | K92: 1.272497827 | L92: 0.02246631774 | M92: -0.07899758954 | N92: 76.64469742 | AE92: 0.3416 | AF92: 0.0974 | AH92: 0.03772791429 | AJ92: 0.037711494
A93: 8.6 | B93: 1.3133 | C93: 0.02345 | D93: -0.0798 | E93: 100000 | G93: 8.2 | H93: 1.2928 | I93: 0.01704 | J93: -0.0834 | K93: 1.286102477 | L93: 0.02296499732 | M93: -0.07764967311 | N93: 75.8685446 | AE93: 0.33337 | AF93: 0.09729 | AH93: 0.03748015411 | AJ93: 0.03746525862
A94: 8.8 | B94: 1.3216 | C94: 0.02378 | D94: -0.0773 | E94: 100000 | G94: 8.4 | H94: 1.3048 | I94: 0.01747 | J94: -0.0817 | K94: 1.299307484 | L94: 0.02348634113 | M94: -0.07626105285 | N94: 74.68803663 | AE94: 0.32516 | AF94: 0.09713 | AH94: 0.03720810934 | AJ94: 0.03719013566
A95: 9 | B95: 1.3279 | C95: 0.0242 | D95: -0.0746 | E95: 100000 | G95: 8.6 | H95: 1.3151 | I95: 0.01799 | J95: -0.0797 | K95: 1.312113005 | L95: 0.02403083032 | M95: -0.07483454711 | N95: 73.10172318 | AE95: 0.31699 | AF95: 0.09691 | AH95: 0.03690693092 | AJ95: 0.03688650071
A96: 9.2 | B96: 1.3311 | C96: 0.02476 | D96: -0.0715 | E96: 100000 | G96: 8.8 | H96: 1.3232 | I96: 0.01862 | J96: -0.0775 | K96: 1.324519838 | L96: 0.02459898569 | M96: -0.07337321745 | N96: 71.06337272 | AE96: 0.30882 | AF96: 0.09664 | AH96: 0.03657764407 | AJ96: 0.03655251484
A97: 9.4 | B97: 1.3299 | C97: 0.02554 | D97: -0.0678 | E97: 100000 | G97: 9 | H97: 1.3268 | I97: 0.0194 | J97: -0.0745 | K97: 1.336529386 | L97: 0.02519137389 | M97: -0.07188035934 | N97: 68.39175258 | AE97: 0.30069 | AF97: 0.09629 | AH97: 0.03620972881 | AJ97: 0.03618951738
A98: 9.6 | B98: 1.3248 | C98: 0.02661 | D98: -0.0637 | E98: 100000 | G98: 9.2 | H98: 1.3281 | I98: 0.02038 | J98: -0.0714 | K98: 1.348143632 | L98: 0.02580861357 | M98: -0.07035949145 | N98: 65.16683023 | AE98: 0.29255 | AF98: 0.0959 | AH98: 0.03582219595 | AJ98: 0.03579497928
A99: 9.8 | B99: 1.3187 | C99: 0.02801 | D99: -0.0599 | E99: 100000 | G99: 9.4 | H99: 1.3279 | I99: 0.02156 | J99: -0.0682 | K99: 1.359365099 | L99: 0.02645138163 | M99: -0.06881434394 | N99: 61.59090909 | AE99: 0.28447 | AF99: 0.09544 | AH99: 0.0354009301 | AJ99: 0.03537217417
A100: 10 | B100: 1.3128 | C100: 0.02961 | D100: -0.0564 | E100: 100000 | G100: 9.6 | H100: 1.327 | I100: 0.02286 | J100: -0.0652 | K100: 1.370196811 | L100: 0.02712041933 | M100: -0.06724884547 | N100: 58.04899388 | AE100: 0.27638 | AF100: 0.09491 | AH100: 0.03494423251 | AJ100: 0.03491738263
A101: 10.2 | B101: 1.309 | C101: 0.03128 | D101: -0.0534 | E101: 100000 | G101: 9.8 | H101: 1.3266 | I101: 0.0242 | J101: -0.0623 | K101: 1.380642256 | L101: 0.02781653829 | M101: -0.06566710921 | N101: 54.81818182 | AE101: 0.2683 | AF101: 0.09433 | AH101: 0.03446228766 | AJ101: 0.0344314456
A102: 10.4 | B102: 1.3075 | C102: 0.03292 | D102: -0.0508 | E102: 100000 | G102: 10 | H102: 1.3267 | I102: 0.02557 | J102: -0.0597 | K102: 1.390705338 | L102: 0.02854062636 | M102: -0.06407341773 | N102: 51.88502151 | AE102: 0.26026 | AF102: 0.09368 | AH102: 0.03394062997 | AJ102: 0.03391624357
A103: 10.6 | B103: 1.3084 | C103: 0.03451 | D103: -0.0486 | E103: 100000 | G103: 10.2 | H103: 1.3282 | I103: 0.0269 | J103: -0.0574 | K103: 1.400390332 | L103: 0.02929365319 | M103: -0.06247220689 | N103: 49.37546468 | AE103: 0.25224 | AF103: 0.09296 | AH103: 0.03338219248 | AJ103: 0.03337069815
A104: 10.8 | B104: 1.3124 | C104: 0.036 | D104: -0.0468 | E104: 100000 | G104: 10.4 | H104: 1.3303 | I104: 0.02823 | J104: -0.0553 | K104: 1.409701837 | L104: 0.03007667549 | M104: -0.06086804877 | N104: 47.12362735 | AE104: 0.24422 | AF104: 0.09219 | AH104: 0.03279717466 | AJ104: 0.03279348314
A105: 11 | B105: 1.3187 | C105: 0.03742 | D105: -0.0452 | E105: 100000 | G105: 10.6 | H105: 1.3323 | I105: 0.02962 | J105: -0.0533 | K105: 1.418644722 | L105: 0.03089084189 | M105: -0.05926563372 | N105: 44.97974342 | AE105: 0.23624 | AF105: 0.09135 | AH105: 0.03217323394 | AJ105: 0.03218769741
A106: 11.2 | B106: 1.3276 | C106: 0.03876 | D106: -0.0438 | E106: 100000 | G106: 10.8 | H106: 1.3371 | I106: 0.03085 | J106: -0.0516 | K106: 1.427224077 | L106: 0.03173739743 | M106: -0.05766975149 | N106: 43.34197731 | AE106: 0.22828 | AF106: 0.09044 | AH106: 0.0315189931 | AJ106: 0.03155222678
A107: 11.4 | B107: 1.3387 | C107: 0.04006 | D107: -0.0426 | E107: 100000 | G107: 11 | H107: 1.3408 | I107: 0.03221 | J107: -0.05 | K107: 1.435445158 | L107: 0.0326176874 | M107: -0.05608527165 | N107: 41.62682397 | AE107: 0.22033 | AF107: 0.08946 | AH107: 0.03083720486 | AJ107: 0.03088656457
A108: 11.6 | B108: 1.3522 | C108: 0.04132 | D108: -0.0417 | E108: 100000 | G108: 11.2 | H108: 1.3448 | I108: 0.03357 | J108: -0.0485 | K108: 1.443313334 | L108: 0.03353316063 | M108: -0.05451712328 | N108: 40.059577 | AE108: 0.21241 | AF108: 0.08842 | AH108: 0.03012933644 | AJ108: 0.03019279745
A109: 11.8 | B109: 1.3697 | C109: 0.04252 | D109: -0.0412 | E109: 100000 | G109: 11.4 | H109: 1.3498 | I109: 0.0349 | J109: -0.0471 | K109: 1.45083403 | L109: 0.03448537208 | M109: -0.05297027395 | N109: 38.67621777 | AE109: 0.20452 | AF109: 0.08731 | AH109: 0.02939981956 | AJ109: 0.02947151101
A110: 12 | B110: 1.3815 | C110: 0.04385 | D110: -0.0402 | E110: 100000 | G110: 11.6 | H110: 1.3545 | I110: 0.03628 | J110: -0.0459 | K110: 1.458012669 | L110: 0.03547598461 | M110: -0.05144970819 | N110: 37.33461963 | AE110: 0.19667 | AF110: 0.08614 | AH110: 0.02865304094 | AJ110: 0.02872431301
A111: 12.2 | B111: 1.396 | C111: 0.04523 | D111: -0.0394 | E111: 100000 | G111: 11.8 | H111: 1.3596 | I111: 0.03767 | J111: -0.0446 | K111: 1.464854622 | L111: 0.03650676998 | M111: -0.04996040549 | N111: 36.09238121 | AE111: 0.18887 | AF111: 0.0849 | AH111: 0.02788788484 | AJ111: 0.02795300446
A112: 12.4 | B112: 1.4177 | C112: 0.04649 | D112: -0.0394 | E112: 100000 | G112: 12 | H112: 1.3652 | I112: 0.03902 | J112: -0.0435 | K112: 1.471365147 | L112: 0.03757960876 | M112: -0.04850731779 | N112: 34.98718606 | AE112: 0.18111 | AF112: 0.08359 | AH112: 0.02710782172 | AJ112: 0.0271574801
A113: 12.6 | B113: 1.4236 | C113: 0.04808 | D113: -0.038 | E113: 100000 | G113: 12.2 | H113: 1.3701 | I113: 0.04046 | J113: -0.0423 | K113: 1.477549338 | L113: 0.03869648927 | M113: -0.04709534678 | N113: 33.86307464 | AE113: 0.17339 | AF113: 0.08222 | AH113: 0.02631290533 | AJ113: 0.02633859664
A114: 12.8 | B114: 1.4427 | C114: 0.04953 | D114: -0.0378 | E114: 100000 | G114: 12.4 | H114: 1.3762 | I114: 0.04183 | J114: -0.0413 | K114: 1.483412066 | L114: 0.03985950539 | M114: -0.04572932085 | N114: 32.89983266 | AE114: 0.16574 | AF114: 0.08077 | AH114: 0.02549077473 | AJ114: 0.0255005698
A115: 13 | B115: 1.4474 | C115: 0.05122 | D115: -0.0363 | E115: 100000 | G115: 12.6 | H115: 1.382 | I115: 0.04321 | J115: -0.0404 | K115: 1.488957931 | L115: 0.04107085302 | M115: -0.04441397199 | N115: 31.98333719 | AE115: 0.15814 | AF115: 0.07925 | AH115: 0.02465 | AJ115: 0.02464229983
A116: 13.2 | B116: 1.4651 | C116: 0.05279 | D116: -0.0361 | E116: 100000 | G116: 12.8 | H116: 1.3881 | I116: 0.04464 | J116: -0.0393 | K116: 1.494191207 | L116: 0.04233282535 | M116: -0.04315391265 | N116: 31.09543011 | AE116: 0.1506 | AF116: 0.07765 | AH116: 0.02378513889 | AJ116: 0.02376595105
A117: 13.4 | B117: 1.4637 | C117: 0.05476 | D117: -0.0342 | E117: 100000 | G117: 13 | H117: 1.3939 | I117: 0.04607 | J117: -0.0384 | K117: 1.4991158 | L117: 0.04364780649 | M117: -0.04195361261 | N117: 30.25613197 | AE117: 0.14311 | AF117: 0.07598 | AH117: 0.02289648103 | AJ117: 0.02287138457
A118: 13.6 | B118: 1.4881 | C118: 0.05629 | D118: -0.0346 | E118: 100000 | G118: 13.2 | H118: 1.4018 | I118: 0.04733 | J118: -0.0375 | K118: 1.503735194 | L118: 0.04501826369 | M118: -0.0408173761 | N118: 29.6175787 | AE118: 0.1357 | AF118: 0.07424 | AH118: 0.02199317618 | AJ118: 0.02196327808
A119: 13.8 | B119: 1.4779 | C119: 0.0586 | D119: -0.0322 | E119: 100000 | G119: 13.4 | H119: 1.4066 | I119: 0.04892 | J119: -0.0367 | K119: 1.508052415 | L119: 0.0464467378 | M119: -0.03974931919 | N119: 28.75306623 | AE119: 0.12834 | AF119: 0.07241 | AH119: 0.02106535309 | AJ119: 0.02103901594
A120: 14 | B120: 1.4751 | C120: 0.06084 | D120: -0.0306 | E120: 100000 | G120: 13.6 | H120: 1.4119 | I120: 0.05044 | J120: -0.0359 | K120: 1.512069986 | L120: 0.04793583198 | M120: -0.03875334755 | N120: 27.99167328 | AE120: 0.12106 | AF120: 0.07051 | AH120: 0.02012453342 | AJ120: 0.02010338075
A121: 14.2 | B121: 1.4962 | C121: 0.06246 | D121: -0.0307 | E121: 100000 | G121: 13.8 | H121: 1.4216 | I121: 0.0516 | J121: -0.035 | K121: 1.515789901 | L121: 0.04948819849 | M121: -0.0378331348 | N121: 27.5503876 | AE121: 0.11387 | AF121: 0.06854 | AH121: 0.01917515464 | AJ121: 0.01915879256
A122: 14.4 | B122: 1.4806 | C122: 0.0652 | D122: -0.0286 | E122: 100000 | G122: 14 | H122: 1.4234 | I122: 0.0535 | J122: -0.0343 | K122: 1.519213584 | L122: 0.05110652346 | M122: -0.0369921015 | N122: 26.60560748 | AE122: 0.10678 | AF122: 0.06653 | AH122: 0.01823593131 | AJ122: 0.01820771344
A123: 14.6 | B123: 1.4677 | C123: 0.06807 | D123: -0.027 | E123: 100000 | G123: 14.2 | H123: 1.4287 | I123: 0.05505 | J123: -0.0336 | K123: 1.522341875 | L123: 0.05279350953 | M123: -0.03623339486 | N123: 25.95277021 | AE123: 0.09985 | AF123: 0.06446 | AH123: 0.01729350068 | AJ123: 0.01725954084
A124: 14.8 | B124: 1.4595 | C124: 0.07084 | D124: -0.0259 | E124: 100000 | G124: 14.4 | H124: 1.4381 | I124: 0.0563 | J124: -0.0328 | K124: 1.525175002 | L124: 0.05455185616 | M124: -0.03555986944 | N124: 25.54351687 | AE124: 0.09307 | AF124: 0.06235 | AH124: 0.01635841772 | AJ124: 0.01631435179
A125: 15 | B125: 1.4815 | C125: 0.07229 | D125: -0.0258 | E125: 100000 | G125: 14.6 | H125: 1.4387 | I125: 0.05838 | J125: -0.0322 | K125: 1.527712574 | L125: 0.05638423763 | M125: -0.03497406887 | N125: 24.6437136 | AE125: 0.0865 | AF125: 0.06021 | AH125: 0.01543581259 | AJ125: 0.01538203138
A126: 15.2 | B126: 1.462 | C126: 0.07575 | D126: -0.0246 | E126: 100000 | G126: 14.8 | H126: 1.4436 | I126: 0.06003 | J126: -0.0317 | K126: 1.529953573 | L126: 0.05829327845 | M126: -0.03447820879 | N126: 24.04797601 | AE126: 0.08018 | AF126: 0.05805 | AH126: 0.01452531587 | AJ126: 0.0144700212
A127: 15.4 | B127: 1.4427 | C127: 0.07948 | D127: -0.0239 | E127: 100000 | G127: 15 | H127: 1.4518 | I127: 0.06142 | J127: -0.0309 | K127: 1.531896357 | L127: 0.06028152608 | M127: -0.03407416105 | N127: 23.63725171 | AE127: 0.0741 | AF127: 0.05586 | AH127: 0.01362675123 | AJ127: 0.01357861709
A128: 15.6 | B128: 1.4232 | C128: 0.08349 | D128: -0.0238 | E128: 100000 | G128: 15.2 | H128: 1.4502 | I128: 0.06381 | J128: -0.0306 | K128: 1.533538668 | L128: 0.06235142094 | M128: -0.0337634395 | N128: 22.72684532 | AE128: 0.0683 | AF128: 0.05365 | AH128: 0.01274166084 | AJ128: 0.012715397
A129: 15.8 | B129: 1.403 | C129: 0.0878 | D129: -0.0241 | E129: 100000 | G129: 15.4 | H129: 1.4537 | I129: 0.06566 | J129: -0.0302 | K129: 1.534877653 | L129: 0.06450526337 | M129: -0.03354718734 | N129: 22.13981115 | AE129: 0.06278 | AF129: 0.05144 | AH129: 0.01187888889 | AJ129: 0.01188208801
A130: 16 | B130: 1.3821 | C130: 0.09245 | D130: -0.025 | E130: 100000 | G130: 15.6 | H130: 1.4629 | I130: 0.06697 | J130: -0.0295 | K130: 1.535909889 | L130: 0.06674517761 | M130: -0.03342616631 | N130: 21.8441093 | AE130: 0.05755 | AF130: 0.04924 | AH130: 0.01105366599 | AJ130: 0.01108184917
A131: 16.2 | B131: 1.3601 | C131: 0.09748 | D131: -0.0266 | E131: 100000 | G131: 15.8 | H131: 1.4572 | I131: 0.06994 | J131: -0.0295 | K131: 1.536631424 | L131: 0.06907307243 | M131: -0.03340074784 | N131: 20.83500143 | AE131: 0.05265 | AF131: 0.04707 | AH131: 0.01027629386 | AJ131: 0.01032250253
A132: 16.4 | B132: 1.3366 | C132: 0.10305 | D132: -0.0289 | E132: 100000 | G132: 16 | H132: 1.4579 | I132: 0.07218 | J132: -0.0293 | K132: 1.537037825 | L132: 0.07149059851 | M132: -0.03347090628 | N132: 20.19811582 | AE132: 0.04807 | AF132: 0.04497 | AH132: 0.009559428571 | AJ132: 0.009604192479
A133: 16.6 | B133: 1.3123 | C133: 0.10917 | D133: -0.0319 | E133: 100000 | G133: 16.2 | H133: 1.467 | I133: 0.07343 | J133: -0.0288 | K133: 1.537124237 | L133: 0.07399910219 | M133: -0.03363621446 | N133: 19.97821054 | AE133: 0.04382 | AF133: 0.04291 | AH133: 0.008882976804 | AJ133: 0.008930091555
A134: 16.8 | B134: 1.2881 | C134: 0.1158 | D134: -0.0357 | E134: 100000 | G134: 16.4 | H134: 1.4631 | I134: 0.07635 | J134: -0.0289 | K134: 1.536885458 | L134: 0.07659957558 | M134: -0.03389584174 | N134: 19.16306483 | AE134: 0.03989 | AF134: 0.04093 | AH134: 0.00825801676 | AJ134: 0.008300136139
A135: 17 | B135: 1.2644 | C135: 0.12287 | D135: -0.0401 | E135: 100000 | G135: 16.6 | H135: 1.4558 | I135: 0.07971 | J135: -0.0293 | K135: 1.53631602 | L135: 0.07929260282 | M135: -0.03424855463 | N135: 18.26370593 | AE135: 0.03628 | AF135: 0.03903 | AH135: 0.007687824773 | AJ135: 0.007715746297
A136: 17.2 | B136: 1.2422 | C136: 0.13026 | D136: -0.045 | E136: 100000 | G136: 16.8 | H136: 1.4552 | I136: 0.08224 | J136: -0.0295 | K136: 1.535410293 | L136: 0.08207830232 | M136: -0.03469272033 | N136: 17.69455253 | AE136: 0.03296 | AF136: 0.03719 | AH136: 0.007150359477 | AJ136: 0.007173343883
A137: -9.6 | B137: -0.3478 | C137: 0.10545 | D137: -0.0392 | E137: 120000 | G137: 17 | H137: 1.4638 | I137: 0.08351 | J137: -0.0292 | K137: 1.534162593 | L137: 0.08495626487 | M137: -0.03522631319 | N137: 17.52843971 | AE137: 0.0299 | AF137: 0.03543 | AH137: 0.006662099237 | AJ137: 0.006669110969
A138: -9.4 | B138: -0.3772 | C138: 0.10378 | D138: -0.0412 | E138: 120000 | G138: 17.2 | H138: 1.4588 | I138: 0.08672 | J138: -0.0297 | K138: 1.532567314 | L138: 0.08792548741 | M138: -0.03584692444 | N138: 16.82195572 | AE138: 0.02711 | AF138: 0.03374 | AH138: 0.006200576132 | AJ138: 0.00620568288
A139: -9.2 | B139: -0.3584 | C139: 0.10116 | D139: -0.0386 | E139: 120000 | G139: 17.4 | H139: 1.4466 | I139: 0.091 | J139: -0.031 | K139: 1.53061907 | L139: 0.09098430225 | M139: -0.03655177531 | N139: 15.8967033 | AE139: 0.02453 | AF139: 0.03211 | AH139: 0.005776681416 | AJ139: 0.005773935388
A140: -9 | B140: -0.3558 | C140: 0.09945 | D140: -0.0372 | E140: 120000 | G140: 17.6 | H140: 1.4377 | I140: 0.09493 | J140: -0.0322 | K140: =$G$3+$H$3*(G140^1)+$I$3*(G140^2)+$J$3*(G140^3)+$K$3*(G140^4)+$L$3*(G140^5)+$M$3*(G140^6)+$N$3*(G140^7)+$O$3*(G140^8) -> 1.528312859 | L140: =$G$4+$H$4*(G140^1)+$I$4*(G140^2)+$J$4*(G140^3)+$K$4*(G140^4)+$L$4*(G140^5)+$M$4*(G140^6)+$N$4*(G140^7)+$O$4*(G140^8)+SUMPRODUCT($P$4:$U$4,$X$9:$AC$9) -> 0.09413030168 | M140: =$G$5+$H$5*(G140^1)+$I$5*(G140^2)+$J$5*(G140^3)+$K$5*(G140^4)+$L$5*(G140^5)+$M$5*(G140^6)+$N$5*(G140^7)+$O$5*(G140^8)+SUMPRODUCT($X$9:$AC$9,$P$5:$U$5) -> -0.03733773369 | N140: 15.14484357 | AE140: 0.02218 | AF140: 0.03055 | AH140: 0.00537602381 | AJ140: 0.00537794095
A141: -8.8 | B141: -0.3705 | C141: 0.09786 | D141: -0.0368 | E141: 120000 | F141: =IF(E141=400000,"0","") ->  | G141: 17.8 | H141: 1.4333 | I141: 0.09822 | J141: -0.0333 | K141: 1.525644235 | L141: 0.09736025768 | M141: -0.03820133466 | N141: =H141/I141 -> 14.59275097 | AE141: 0.02001 | AF141: 0.02904 | AH141: 0.005010769231 | AJ141: =$AC$3*(AE141^0)+$AD$3*(AE141^1)+$AE$3*(AE141^2)+$AF$3*(AE141^3)+$AG$3*(AE141^4)+$AH$3*(AE141^5)+$AI$3*(AE141^6)+$AJ$3*(AE141^7)+$AK$3*(AE141^8) -> 0.005009912414
A142: -8.6 | B142: -0.4039 | C142: 0.09671 | D142: -0.0363 | E142: 120000 | G142: 18 | H142: 1.4404 | I142: 0.09968 | J142: -0.0334 | K142: 1.522609512 | L142: 0.1006700367 | M142: -0.03913880498 | N142: 14.45024077 | AE142: 0.01803 | AF142: 0.02756 | AH142: 0.004667983425 | AJ142: 0.004672085821
A143: -8 | B143: -0.4034 | C143: 0.09164 | D143: -0.0298 | E143: 120000 | G143: 18.2 | H143: 1.4418 | I143: 0.1021 | J143: -0.0339 | K143: 1.519205973 | L143: 0.1040545091 | M143: -0.0401460918 | N143: 14.12144956 | AE143: 0.01622 | AF143: 0.0261 | AH143: 0.004346160714 | AJ143: 0.00436154448
A144: -7.8 | B144: -0.4294 | C144: 0.09073 | D144: -0.0273 | E144: 120000 | G144: 18.4 | H144: 1.4251 | I144: 0.10752 | J144: -0.0366 | K144: 1.515432112 | L144: 0.1075074532 | M144: -0.0412188958 | N144: 13.25427827 | AE144: 0.01454 | AF144: 0.02468 | AH144: 0.004054240506 | AJ144: 0.004071810597
A145: -7.6 | B145: -0.4678 | C145: 0.08846 | D145: -0.0297 | E145: 120000 | G145: 18.6 | H145: 1.4091 | I145: 0.11305 | J145: -0.0396 | K145: 1.511287886 | L145: 0.1110214542 | M145: -0.04235270898 | N145: 12.46439628 | AE145: 0.013 | AF145: 0.0233 | AH145: 0.003787328767 | AJ145: 0.003804933983
A146: -7 | B146: -0.4681 | C146: 0.08351 | D146: -0.0233 | E146: 120000 | G146: 18.8 | H146: 1.3933 | I146: 0.11874 | J146: -0.0429 | K146: 1.506774997 | L146: 0.1145877963 | M146: -0.04354285735 | N146: 11.73404076 | AE146: 0.01159 | AF146: 0.02195 | AH146: 0.003545588235 | AJ146: 0.003559488976
A147: -6.6 | B147: -0.4822 | C147: 0.07846 | D147: -0.0244 | E147: 120000 | G147: 19 | H147: 1.3772 | I147: 0.12469 | J147: -0.0466 | K147: 1.501897191 | L147: 0.1181963501 | M147: -0.04478454865 | N147: 11.04499158 | AE147: 0.01027 | AF147: 0.02063 | AH147: 0.003328228346 | AJ147: 0.003328746114
A148: -6.4 | B148: -0.4676 | C148: 0.07323 | D148: -0.0332 | E148: 120000 | G148: 19.2 | H148: 1.3601 | I148: 0.13109 | J148: -0.0509 | K148: 1.496660582 | L148: 0.1218354531 | M148: -0.04607292545 | N148: 10.37531467 | AE148: 0.00906 | AF148: 0.01934 | AH148: 0.003123305085 | AJ148: 0.003116400923
A149: -6.2 | B149: -0.4433 | C149: 0.0687 | D149: -0.0408 | E149: 120000 | G149: 19.4 | H149: 1.3409 | I149: 0.13818 | J149: -0.0559 | K149: 1.491074007 | L149: 0.125491784 | M149: -0.04740312379 | N149: 9.704009263 | AE149: 0.00795 | AF149: 0.01808 | AH149: 0.002931136364 | AJ149: 0.002920896766
A150: -5.8 | B150: -0.3981 | C150: 0.03683 | D150: -0.066 | E150: 120000 | G150: 19.6 | H150: 1.3185 | I150: 0.14636 | J150: -0.062 | K150: 1.485149394 | L150: 0.1291502304 | M150: -0.04877033764 | N150: 9.00860891 | AE150: 0.00691 | AF150: 0.01686 | AH150: 0.002764174757 | AJ150: 0.002737099263
A151: -5.6 | B151: -0.3672 | C151: 0.03395 | D151: -0.069 | E151: 120000 | G151: 19.8 | H151: 1.2924 | I151: 0.15586 | J151: -0.0694 | K151: 1.478902168 | L151: 0.1327937498 | M151: -0.05016988941 | N151: 8.292056974 | AE151: 0.00597 | AF151: 0.01565 | AH151: 0.002593404255 | AJ151: 0.002570450568
A152: -5.4 | B152: -0.3368 | C152: 0.03158 | D152: -0.0715 | E152: 120000 | G152: 20 | H152: 1.2638 | I152: 0.16664 | J152: -0.078 | K152: 1.472351681 | L152: 0.136403224 | M152: -0.0515973067 | N152: 7.584013442 | AE152: 0.00511 | AF152: 0.01447 | AH152: 0.0024375 | AJ152: 0.00241754427
A153: -5.2 | B153: -0.3056 | C153: 0.02949 | D153: -0.0739 | E153: 120000 | AE153: 0.00431 | AF153: 0.01332 | AH153: 0.002298291139 | AJ153: 0.002274924275
A154: -5 | B154: -0.273 | C154: 0.02828 | D154: -0.0763 | E154: 120000 | AE154: 0.00359 | AF154: 0.01218 | AH154: 0.002161666667 | AJ154: 0.002146248978
A155: -4.8 | B155: -0.2432 | C155: 0.02727 | D155: -0.078 | E155: 120000 | AE155: 0.00293 | AF155: 0.01107 | AH155: 0.002047384615 | AJ155: 0.002028030349
A156: -4.6 | B156: -0.2104 | C156: 0.02619 | D156: -0.0802 | E156: 120000 | AE156: 0.00234 | AF156: 0.00997 | AH156: 0.001933076923 | AJ156: 0.001922132814
A157: -4.4 | B157: -0.1788 | C157: 0.02538 | D157: -0.0821 | E157: 120000 | AE157: 0.00182 | AF157: 0.00889 | AH157: 0.001829912281 | AJ157: 0.001828628203
A158: -4.2 | B158: -0.1494 | C158: 0.02468 | D158: -0.0837 | E158: 120000 | AE158: 0.00136 | AF158: 0.00782 | AH158: 0.00174 | AJ158: 0.001745778066
A159: -4 | B159: -0.1141 | C159: 0.02395 | D159: -0.0863 | E159: 120000 | AE159: 0.00097 | AF159: 0.00677 | AH159: 0.001655731707 | AJ159: 0.001675436109
A160: -3.8 | B160: -0.0859 | C160: 0.02335 | D160: -0.0875 | E160: 120000 | AE160: 0.00065 | AF160: 0.00573 | AH160: 0.001567424242 | AJ160: 0.001617651159
A161: -3.6 | B161: -0.056 | C161: 0.02281 | D161: -0.0889 | E161: 120000 | AE161: 0.00038 | AF161: 0.00471 | AH161: 0.001521875 | AJ161: 0.001568846914
A162: -3.4 | B162: -0.0212 | C162: 0.02224 | D162: -0.0914 | E162: 120000 | AE162: 0.00019 | AF162: 0.00371 | AH162: 0.001471875 | AJ162: 0.001534476663
A163: -3.2 | B163: 0.0065 | C163: 0.02181 | D163: -0.0925 | E163: 120000 | AE163: 7e-05 | AF163: 0.00273 | AH163: 0.00140625 | AJ163: 0.001512757822
A164: -3 | B164: 0.0358 | C164: 0.02142 | D164: -0.0939 | E164: 120000 | AE164: 0 | AF164: 0.00176 | AH164: 0.00176
A165: -2.8 | B165: 0.0714 | C165: 0.02098 | D165: -0.0964 | E165: 120000 | AE165: 1e-05 | AF165: 0.00081 | AH165: 0.001772837838 | AJ165: 0.001501895111
A166: -2.6 | B166: 0.099 | C166: 0.02062 | D166: -0.0974 | E166: 120000 | AE166: 9e-05 | AF166: -0.00016 | AH166: 0.001467428571 | AJ166: 0.001516378238
A167: -2.4 | B167: 0.1286 | C167: 0.02019 | D167: -0.0987 | E167: 120000 | AE167: 0.00025 | AF167: -0.00113 | AH167: 0.00120609375 | AJ167: 0.001545332797
A168: -2.2 | B168: 0.1639 | C168: 0.01959 | D168: -0.1011 | E168: 120000 | AE168: 0.00049 | AF168: -0.00212 | AH168: 0.0009973255814 | AJ168: 0.00158873546
A169: -2 | B169: 0.1905 | C169: 0.01912 | D169: -0.1018 | E169: 120000 | AE169: 0.00082 | AF169: -0.0031 | AH169: 0.0007243835616 | AJ169: 0.001648357115
A170: -1.8 | B170: 0.2181 | C170: 0.0186 | D170: -0.1026 | E170: 120000 | AE170: 0.00123 | AF170: -0.00408 | AH170: 0.0005122321429 | AJ170: 0.00172234091
A171: -1.6 | B171: 0.2491 | C171: 0.01789 | D171: -0.104 | E171: 120000 | AE171: 0.00172 | AF171: -0.00506 | AH171: 0.0003591071429 | AJ171: 0.001810628072
A172: -1.4 | B172: 0.2723 | C172: 0.01724 | D172: -0.1039 | E172: 120000 | AE172: 0.00229 | AF172: -0.00603 | AH172: 0.0003255 | AJ172: 0.001913148973
A173: -1.2 | B173: 0.2908 | C173: 0.01643 | D173: -0.1022 | E173: 120000 | AE173: 0.00294 | AF173: -0.00699 | AH173: 0.0002356
A174: -1 | B174: 0.3445 | C174: 0.0156 | D174: -0.1064 | E174: 120000 | AE174: 0.00366 | AF174: -0.00795 | AH174: -0.0002375
A175: -0.8 | B175: 0.37 | C175: 0.01547 | D175: -0.1067 | E175: 120000 | AE175: 0.00445 | AF175: -0.00889 | AH175: 0
A176: -0.6 | B176: 0.3951 | C176: 0.01533 | D176: -0.1069 | E176: 120000 | AE176: 0.00533 | AF176: -0.00983
A177: -0.4 | B177: 0.42 | C177: 0.01521 | D177: -0.1071 | E177: 120000 | AE177: 0.00627 | AF177: -0.01076
A178: -0.2 | B178: 0.4444 | C178: 0.01509 | D178: -0.1072 | E178: 120000 | AE178: 0.0073 | AF178: -0.01168
A179: 0 | B179: 0.4686 | C179: 0.01499 | D179: -0.1072 | E179: 120000 | AE179: 0.0084 | AF179: -0.01259
A180: 0.2 | B180: 0.4924 | C180: 0.01491 | D180: -0.1071 | E180: 120000 | AE180: 0.00958 | AF180: -0.01349
A181: 0.4 | B181: 0.5158 | C181: 0.01485 | D181: -0.107 | E181: 120000 | AE181: 0.01085 | AF181: -0.01438
A182: 0.6 | B182: 0.539 | C182: 0.01481 | D182: -0.1068 | E182: 120000 | AE182: 0.01221 | AF182: -0.01526
A183: 0.8 | B183: 0.562 | C183: 0.01478 | D183: -0.1066 | E183: 120000 | AE183: 0.01367 | AF183: -0.01612
A184: 1 | B184: 0.5848 | C184: 0.01478 | D184: -0.1064 | E184: 120000 | AE184: 0.01525 | AF184: -0.01694
A185: 1.2 | B185: 0.6075 | C185: 0.0148 | D185: -0.1062 | E185: 120000 | AE185: 0.01693 | AF185: -0.01775
A186: 1.4 | B186: 0.63 | C186: 0.01483 | D186: -0.106 | E186: 120000 | AE186: 0.01874 | AF186: -0.01853
A187: 1.6 | B187: 0.6523 | C187: 0.01488 | D187: -0.1057 | E187: 120000 | AE187: 0.02069 | AF187: -0.01928
A188: 1.8 | B188: 0.6745 | C188: 0.01496 | D188: -0.1055 | E188: 120000 | AE188: 0.02279 | AF188: -0.02001
A189: 2 | B189: 0.6967 | C189: 0.01505 | D189: -0.1052 | E189: 120000 | AE189: 0.02505 | AF189: -0.02072
A190: 2.2 | B190: 0.7178 | C190: 0.01518 | D190: -0.1048 | E190: 120000 | AE190: 0.02748 | AF190: -0.02145
A191: 2.4 | B191: 0.7388 | C191: 0.01533 | D191: -0.1044 | E191: 120000 | AE191: 0.0301 | AF191: -0.02216
A192: 2.6 | B192: 0.76 | C192: 0.01548 | D192: -0.104 | E192: 120000 | AE192: 0.03292 | AF192: -0.02288
A193: 2.8 | B193: 0.7812 | C193: 0.01564 | D193: -0.1037 | E193: 120000 | AE193: 0.03598 | AF193: -0.02359
A194: 3 | B194: 0.8024 | C194: 0.0158 | D194: -0.1033 | E194: 120000 | AE194: 0.03929 | AF194: -0.0243
A195: 3.2 | B195: 0.8235 | C195: 0.01598 | D195: -0.103 | E195: 120000 | AE195: 0.04287 | AF195: -0.02498
A196: 3.4 | B196: 0.8447 | C196: 0.01616 | D196: -0.1026 | E196: 120000 | AE196: 0.04675 | AF196: -0.02565
A197: 3.6 | B197: 0.8657 | C197: 0.01635 | D197: -0.1022 | E197: 120000 | AE197: 0.05095 | AF197: -0.02629
A198: 3.8 | B198: 0.8866 | C198: 0.01654 | D198: -0.1019 | E198: 120000 | AE198: 0.05551 | AF198: -0.0269
A199: 4 | B199: 0.9075 | C199: 0.01674 | D199: -0.1015 | E199: 120000 | AE199: 0.06042 | AF199: -0.02746
A200: 4.2 | B200: 0.9283 | C200: 0.01695 | D200: -0.1011 | E200: 120000 | AE200: 0.06573 | AF200: -0.02796
... 2725 more rows

Sheet 水平翼型解析(sht12)
A1: 1 | B1: 2 | C1: 3 | D1: 4 | E1: 5 | F1: 6 | G1: 7 | H1: 8 | I1: 9 | J1: 10 | K1: 11 | L1: 12 | M1: 13 | N1: 14 | O1: 15 | P1: 16 | Q1: 17 | R1: 18 | S1: 19 | T1: 20 | U1: 21 | V1: 22 | W1: 23 | X1: 24 | Y1: 25 | Z1: 26 | AA1: 27 | AB1: 28 | AC1: 29 | AD1: 30 | AE1: 31 | AF1: 32 | AG1: 33 | AH1: 34 | AI1: 35 | AJ1: 36 | AK1: 37
A2: マクロボタン | G2: 1 | H2: α | I2: α^2 | J2: α^3 | K2: α^4 | L2: α^5 | M2: α^6 | N2: α^7 | O2: α^8 | P2: Re | Q2: Re^2 | R2: Re^3 | S2: Re^4 | T2: Re^5 | U2: Re^6 | W2: 解析範囲 | X2: 最小 | Y2: 最大 | Z2: Δ | AB2: - | AC2: 1 | AD2: x^1 | AE2: x^2 | AF2: x^3 | AG2: x^4 | AH2: x^5 | AI2: x^6 | AJ2: x^7 | AK2: x^8
F3: Cl | G3: -0.0002111024061 | H3: 0.1238877227 | I3: 7.722405125e-05 | J3: -0.0002216939742 | K3: -2.875453763e-06 | L3: 3.878876425e-07 | M3: 3.217755149e-08 | N3: -9.589867125e-10 | O3: -9.577790999e-11 | P3: 0 | Q3: 0 | R3: 0 | S3: 0 | T3: 0 | U3: 0 | W3: α | X3: =MIN(A12:A12578) -> -15 | Y3: =MAX(A12:A12578) -> 15 | Z3: =ABS(A12-A13) -> 0.2 | AB3: zc | AC3: -0.001138444445 | AD3: -0.006920736757 | AE3: 0.1034094605 | AF3: -0.6747181763 | AG3: 2.309770905 | AH3: -4.462591546 | AI3: 4.89628504 | AJ3: -2.845211381 | AK3: 0.6798744436
F4: Cd0 | G4: 0.05713191706 | H4: -6.91259795e-05 | I4: 0.0001338114398 | J4: 4.886435545e-06 | K4: -7.114846144e-08 | L4: -6.480138844e-08 | M4: 1.626336226e-09 | N4: 2.033491435e-10 | O4: 4.736484817e-14 | P4: -3.649495884e-07 | Q4: 1.091828249e-12 | R4: -1.712688649e-18 | S4: 1.383614866e-24 | T4: -4.989608291e-31 | U4: 4.484066045e-38 | W4: Re | X4: =MIN(E12:E12578) -> 100000 | Y4: 1000000 | Z4: 20000
F5: Cm | G5: -0.00871255143 | H5: -0.001499502759 | I5: 6.61997076e-06 | J5: 2.096975838e-05 | K5: -2.528703024e-07 | L5: 8.154654911e-08 | M5: 3.169573936e-09 | N5: -4.759723105e-10 | O5: -9.788743124e-12 | P5: 1.78453875e-07 | Q5: -1.19110303e-12 | R5: 3.633570906e-18 | S5: -5.596889845e-24 | T5: 4.236615507e-30 | U5: -1.252352792e-36 | W5: 翼型名 | X5: NACA0012
F6: Clα | G6: =H3 -> 0.1238877227 | H6: =2*I3 -> 0.0001544481025 | I6: =3*J3 -> -0.0006650819226 | J6: =4*K3 -> -1.150181505e-05 | K6: =5*L3 -> 1.939438212e-06 | L6: =6*M3 -> 1.930653089e-07 | M6: =7*N3 -> -6.712906987e-09 | N6: =8*O3 -> -7.662232799e-10
F7: Cd0α | G7: =H4 -> -6.91259795e-05 | H7: =2*I4 -> 0.0002676228797 | I7: =3*J4 -> 1.465930663e-05 | J7: =4*K4 -> -2.845938458e-07 | K7: =5*L4 -> -3.240069422e-07 | L7: =6*M4 -> 9.758017356e-09 | M7: =7*N4 -> 1.423444005e-09 | N7: =8*O4 -> 3.789187853e-13 | P7: 多変数の最小二乗法
F8: Cmα | G8: =H5 -> -0.001499502759 | H8: =2*I5 -> 1.323994152e-05 | I8: =3*J5 -> 6.290927515e-05 | J8: =4*K5 -> -1.01148121e-06 | K8: =5*L5 -> 4.077327456e-07 | L8: =6*M5 -> 1.901744362e-08 | M8: =7*N5 -> -3.331806174e-09 | N8: =8*O5 -> -7.830994499e-11 | P8: https://mathtrain.jp/leastsquarematrix | W8: 1 | X8: Re^1 | Y8: Re^2 | Z8: Re^3 | AA8: Re^4 | AB8: Re^5 | AC8: Re^6
W9: 1 | X9: 480000 | Y9: =X9*$X9 -> 230400000000 | Z9: =Y9*$X9 -> 1.10592e+17 | AA9: =Z9*$X9 -> 5.308416e+22 | AB9: =AA9*$X9 -> 2.54803968e+28 | AC9: =AB9*$X9 -> 1.223059046e+34
A10: ↓XFLR５の解析結果（csv_foil.f90によって生成） | AE10: ↓翼型データを張り付け | AH10: キャンバーライン | AJ10: 近似キャンバーライン
A11: α | B11: Cl | C11: Cd | D11: Cm | E11: Re | G11: α | H11: Cl | I11: Cd0 | J11: Cm | K11: 近似Cl | L11: 近似Cd | M11: 近似Cm | AE11: x | AF11: z | AH11: zc | AJ11: 近似zc | AM11: 名 | AN11: 記号 | AO11: 値 | AP11: 単位
A12: -12 | B12: -0.8737 | C12: 0.07826 | D12: -0.0307 | E12: 100000 | F12: =IF(E12=400000,"0","") ->  | G12: -15 | H12: -1.2415 | I12: 0.04701 | J12: -0.0342 | K12: =$G$3+$H$3*(G12^1)+$I$3*(G12^2)+$J$3*(G12^3)+$K$3*(G12^4)+$L$3*(G12^5)+$M$3*(G12^6)+$N$3*(G12^7)+$O$3*(G12^8) -> -1.248150409 | L12: =$G$4+$H$4*(G12^1)+$I$4*(G12^2)+$J$4*(G12^3)+$K$4*(G12^4)+$L$4*(G12^5)+$M$4*(G12^6)+$N$4*(G12^7)+$O$4*(G12^8)+SUMPRODUCT($P$4:$U$4,$X$9:$AC$9) -> 0.04954809734 | M12: =$G$5+$H$5*(G12^1)+$I$5*(G12^2)+$J$5*(G12^3)+$K$5*(G12^4)+$L$5*(G12^5)+$M$5*(G12^6)+$N$5*(G12^7)+$O$5*(G12^8)+SUMPRODUCT($X$9:$AC$9,$P$5:$U$5) -> -0.02929010967 | AE12: 1 | AF12: 0 | AH12: -0.00126 | AJ12: =$AC$3*(AE12^0)+$AD$3*(AE12^1)+$AE$3*(AE12^2)+$AF$3*(AE12^3)+$AG$3*(AE12^4)+$AH$3*(AE12^5)+$AI$3*(AE12^6)+$AJ$3*(AE12^7)+$AK$3*(AE12^8) -> -0.001240435026 | AM12: 翼型2 | AN12: 全周 | AO12: 2.04146976 | AP12: m
A13: -11.8 | B13: -0.8869 | C13: 0.0739 | D13: -0.0321 | E13: 100000 | F13: =IF(E13=400000,"0","") ->  | G13: -14.8 | H13: -1.2415 | I13: 0.04475 | J13: -0.0346 | K13: -1.244697305 | L13: 0.04805180207 | M13: -0.02967986337 | AE13: 0.99688 | AF13: 0.00044 | AH13: -0.00126 | AJ13: =$AC$3*(AE13^0)+$AD$3*(AE13^1)+$AE$3*(AE13^2)+$AF$3*(AE13^3)+$AG$3*(AE13^4)+$AH$3*(AE13^5)+$AI$3*(AE13^6)+$AJ$3*(AE13^7)+$AK$3*(AE13^8) -> -0.001246562789 | AN13: プランク長 | AO13: 0.8329866307 | AP13: m
A14: -11.6 | B14: -0.9042 | C14: 0.06972 | D14: -0.033 | E14: 100000 | G14: -14.6 | H14: -1.2414 | I14: 0.04259 | J14: -0.0348 | K14: -1.241017357 | L14: 0.04656155873 | M14: -0.02986170548 | AE14: 0.99175 | AF14: 0.00115 | AH14: -0.00126 | AJ14: -0.001254970738 | AN14: リブ材長 | AO14: 1.208483129 | AP14: m
A15: -11.4 | B15: -0.9236 | C15: 0.06592 | D15: -0.0328 | E15: 100000 | G15: -14.4 | H15: -1.2415 | I15: 0.04049 | J15: -0.0348 | K15: -1.237069447 | L15: 0.04508199003 | M15: -0.02985440367 | AE15: 0.98608 | AF15: 0.00193 | AH15: -0.00126 | AJ15: -0.001262123377 | AN15: リブ面積 | AO15: 0.0822075462 | AP15: m^2
A16: -11.2 | B16: -0.9435 | C16: 0.06251 | D16: -0.0313 | E16: 100000 | G16: -14.2 | H16: -1.2417 | I16: 0.03848 | J16: -0.0345 | K16: -1.232817389 | L16: 0.04361725237 | M16: -0.02967577954 | AE16: 0.97983 | AF16: 0.00279 | AH16: -0.00126 | AJ16: -0.001267776035 | AN16: 翼厚 | AO16: 11.81
A17: -11 | B17: -0.9608 | C17: 0.05908 | D17: -0.0295 | E17: 100000 | G17: -14 | H17: -1.2414 | I17: 0.03664 | J17: -0.034 | K17: -1.228229566 | L17: 0.04217106209 | M17: -0.02934273251 | AE17: 0.97303 | AF17: 0.00372 | AH17: -0.00126 | AJ17: -0.001271706183 | AM17: プランク | AN17: 上面 | AO17: 0.4 | AP17: -
A18: -10.8 | B18: -0.9743 | C18: 0.05565 | D18: -0.0276 | E18: 100000 | G18: -13.8 | H18: -1.2351 | I18: 0.03527 | J18: -0.0333 | K18: -1.223278569 | L18: 0.04074672086 | M18: -0.02887126411 | AE18: 0.96575 | AF18: 0.00471 | AH18: -0.00126 | AJ18: -0.001273837507 | AN18: 下面 | AO18: 0.4 | AP18: -
A19: -10.6 | B19: -0.984 | C19: 0.05234 | D19: -0.0256 | E19: 100000 | G19: -13.6 | H19: -1.229 | I19: 0.03404 | J19: -0.0326 | K19: -1.217940866 | L19: 0.03934714023 | M19: -0.02827650245 | AE19: 0.95807 | AF19: 0.00573 | AH19: -0.00126 | AJ19: -0.001274270643 | AM19: 桁位置 | AN19: - | AO19: ='水平尾翼(sht3)'!D31 -> 0
A20: -10.4 | B20: -0.9905 | C20: 0.04917 | D20: -0.0234 | E20: 100000 | G20: -13.4 | H20: -1.2232 | I20: 0.03286 | J20: -0.0318 | K20: -1.212196489 | L20: 0.03797486531 | M20: -0.0275727268 | AE20: 0.95008 | AF20: 0.00679 | AH20: -0.00126 | AJ20: -0.00127324951
A21: -10.2 | B21: -0.9945 | C21: 0.04614 | D21: -0.0211 | E21: 100000 | G21: -13.2 | H21: -1.2175 | I21: 0.0317 | J21: -0.0308 | K21: -1.206028731 | L21: 0.03663209775 | M21: -0.02677339243 | AE21: 0.94189 | AF21: 0.00787 | AH21: -0.00126 | AJ21: -0.001271116962
A22: -10 | B22: -0.9898 | C22: 0.04359 | D22: -0.0194 | E22: 100000 | G22: -13 | H22: -1.2117 | I22: 0.03058 | J22: -0.0296 | K22: -1.199423868 | L22: 0.03532071772 | M22: -0.02589115545 | AE22: 0.93356 | AF22: 0.00895 | AH22: -0.00126 | AJ22: -0.001268239048
A23: -9.8 | B23: -0.9736 | C23: 0.04206 | D23: -0.019 | E23: 100000 | G23: -12.8 | H23: -1.206 | I23: 0.02953 | J23: -0.0282 | K23: -1.192370894 | L23: 0.0340423053 | M23: -0.02493789779 | AE23: 0.92514 | AF23: 0.01004 | AH23: -0.00126 | AJ23: -0.001264959688
A24: -9.6 | B24: -0.9654 | C24: 0.04001 | D24: -0.0175 | E24: 100000 | G24: -12.6 | H24: -1.1986 | I24: 0.02846 | J24: -0.0269 | K24: -1.184861274 | L24: 0.03279816095 | M24: -0.02392475213 | AE24: 0.91667 | AF24: 0.01112 | AH24: -0.00126 | AJ24: -0.001261576488
A25: -9.4 | B25: -0.9599 | C25: 0.0378 | D25: -0.0154 | E25: 100000 | G25: -12.4 | H25: -1.1901 | I25: 0.02761 | J25: -0.0255 | K25: -1.176888711 | L25: 0.03158932527 | M25: -0.02286212691 | AE25: 0.90811 | AF25: 0.0122 | AH25: -0.00126 | AJ25: -0.001258303348
A26: -9.2 | B26: -0.942 | C26: 0.03634 | D26: -0.015 | E26: 100000 | G26: -12.2 | H26: -1.1814 | I26: 0.02683 | J26: -0.024 | K26: -1.168448927 | L26: 0.03041659801 | M26: -0.02175973124 | AE26: 0.89948 | AF26: 0.01328 | AH26: -0.00126 | AJ26: -0.00125532921
A27: -9 | B27: -0.9291 | C27: 0.03474 | D27: -0.0138 | E27: 100000 | G27: -12 | H27: -1.1727 | I27: 0.02607 | J27: -0.0224 | K27: -1.159539458 | L27: 0.02928055629 | M27: -0.02062659973 | AE27: 0.8908 | AF27: 0.01435 | AH27: -0.001265 | AJ27: -0.001252794785
A28: -8.8 | B28: -0.9148 | C28: 0.03317 | D28: -0.0127 | E28: 100000 | G28: -11.8 | H28: -1.163 | I28: 0.02535 | J28: -0.0208 | K28: -1.150159468 | L28: 0.02818157216 | M28: -0.01947111727 | AE28: 0.88208 | AF28: 0.01542 | AH28: -0.00126 | AJ28: -0.001250792155
A29: -8.6 | B29: -0.8985 | C29: 0.0319 | D29: -0.0118 | E29: 100000 | G29: -11.6 | H29: -1.1525 | I29: 0.02449 | J29: -0.0195 | K29: -1.140309568 | L29: 0.02711982939 | M29: -0.0183010436 | AE29: 0.87335 | AF29: 0.01648 | AH29: -0.00126 | AJ29: -0.00124937556
A30: -8.4 | B30: -0.8823 | C30: 0.03057 | D30: -0.011 | E30: 100000 | G30: -11.4 | H30: -1.1402 | I30: 0.0238 | J30: -0.0184 | K30: -1.129991654 | L30: 0.02609533958 | M30: -0.01712353775 | AE30: 0.86459 | AF30: 0.01753 | AH30: -0.00126 | AJ30: -0.001248555345
A31: -8.2 | B31: -0.8664 | C31: 0.02937 | D31: -0.0099 | E31: 100000 | G31: -11.2 | H31: -1.1268 | I31: 0.02318 | J31: -0.0173 | K31: -1.119208754 | L31: 0.02510795757 | M31: -0.01594518232 | AE31: 0.85584 | AF31: 0.01857 | AH31: -0.00126 | AJ31: -0.001248319618
A32: -8 | B32: -0.8482 | C32: 0.02825 | D32: -0.0094 | E32: 100000 | G32: -11 | H32: -1.1127 | I32: 0.02259 | J32: -0.0163 | K32: -1.107964886 | L32: 0.02415739617 | M32: -0.0147720074 | AE32: 0.8471 | AF32: 0.0196 | AH32: -0.00126 | AJ32: -0.001248627221
A33: -7.8 | B33: -0.8311 | C33: 0.02716 | D33: -0.0085 | E33: 100000 | G33: -10.8 | H33: -1.1 | I33: 0.02184 | J33: -0.0151 | K33: -1.096264932 | L33: 0.02324324026 | M33: -0.0136095144 | AE33: 0.83836 | AF33: 0.02062 | AH33: -0.00126 | AJ33: -0.001249422094
A34: -7.6 | B34: -0.8141 | C34: 0.02614 | D34: -0.0076 | E34: 100000 | G34: -10.6 | H34: -1.0857 | I34: 0.02126 | J34: -0.0141 | K34: -1.084114514 | L34: 0.02236496019 | M34: -0.0124626995 | AE34: 0.82962 | AF34: 0.02164 | AH34: -0.00126 | AJ34: -0.001250636935
A35: -7.4 | B35: -0.797 | C35: 0.02519 | D35: -0.0068 | E35: 100000 | G35: -10.4 | H35: -1.0705 | I35: 0.02072 | J35: -0.0132 | K35: -1.071519889 | L35: 0.02152192454 | M35: -0.0113360768 | AE35: 0.82086 | AF35: 0.02264 | AH35: -0.00126 | AJ35: -0.001252200485
A36: -7.2 | B36: -0.78 | C36: 0.02428 | D36: -0.0059 | E36: 100000 | G36: -10.2 | H36: -1.0559 | I36: 0.02011 | J36: -0.0121 | K36: -1.058487848 | L36: 0.02071341232 | M36: -0.01023370116 | AE36: 0.81209 | AF36: 0.02363 | AH36: -0.00126 | AJ36: -0.001254032518
A37: -7 | B37: -0.7633 | C37: 0.02342 | D37: -0.0049 | E37: 100000 | G37: -10 | H37: -1.0409 | I37: 0.01956 | J37: -0.0112 | K37: -1.045025625 | L37: 0.01993862446 | M37: -0.009159190701 | AE37: 0.80331 | AF37: 0.02461 | AH37: -0.00126 | AJ37: -0.001256052001
A38: -6.8 | B38: -0.7471 | C38: 0.02259 | D38: -0.0039 | E38: 100000 | G38: -9.8 | H38: -1.0247 | I38: 0.01911 | J38: -0.0103 | K38: -1.031140816 | L38: 0.01919669482 | M38: -0.008115748888 | AE38: 0.79455 | AF38: 0.02558 | AH38: -0.00126 | AJ38: -0.001258171179
A39: -6.6 | B39: -0.7313 | C39: 0.02179 | D39: -0.0028 | E39: 100000 | G39: -9.6 | H39: -1.0097 | I39: 0.01853 | J39: -0.0093 | K39: -1.016841307 | L39: 0.01848670046 | M39: -0.007106186242 | AE39: 0.78578 | AF39: 0.02653 | AH39: -0.00126 | AJ39: -0.001260319893
A40: -6.4 | B40: -0.716 | C40: 0.02102 | D40: -0.0016 | E40: 100000 | G40: -9.4 | H40: -0.994 | I40: 0.01804 | J40: -0.0083 | K40: -1.002135206 | L40: 0.01780767146 | M40: -0.006132941631 | AE40: 0.777 | AF40: 0.02748 | AH40: -0.00126 | AJ40: -0.001262425963
A41: -6.2 | B41: -0.701 | C41: 0.02028 | D41: -0.0004 | E41: 100000 | G41: -9.2 | H41: -0.9772 | I41: 0.01764 | J41: -0.0074 | K41: -0.9870307856 | L41: 0.01715860017 | M41: -0.005198103117 | AE41: 0.7682 | AF41: 0.02842 | AH41: -0.00126 | AJ41: -0.001264425505
A42: -6 | B42: -0.6863 | C42: 0.01957 | D42: 0.0009 | E42: 100000 | G42: -9 | H42: -0.9626 | I42: 0.01707 | J42: -0.0063 | K42: -0.9715364322 | L42: 0.01653844979 | M42: -0.004303428355 | AE42: 0.7594 | AF42: 0.02936 | AH42: -0.00126 | AJ42: -0.001266255148
A43: -5.8 | B43: -0.672 | C43: 0.0189 | D43: 0.0023 | E43: 100000 | G43: -8.8 | H43: -0.9461 | I43: 0.01668 | J43: -0.0053 | K43: -0.9556606008 | L43: 0.01594616258 | M43: -0.003450364516 | AE43: 0.75059 | AF43: 0.03028 | AH43: -0.00126 | AJ43: -0.00126786667
A44: -5.6 | B44: -0.6577 | C44: 0.01827 | D44: 0.0036 | E44: 100000 | G44: -8.6 | H44: -0.9307 | I44: 0.01621 | J44: -0.0042 | K44: -0.9394117761 | L44: 0.01538066744 | M44: -0.002640067714 | AE44: 0.74178 | AF44: 0.03119 | AH44: -0.00126 | AJ44: -0.001269216965
A45: -5.4 | B45: -0.6434 | C45: 0.0177 | D45: 0.005 | E45: 100000 | G45: -8.4 | H45: -0.9143 | I45: 0.01586 | J45: -0.0032 | K45: -0.9227984399 | L45: 0.01484088698 | M45: -0.001873421939 | AE45: 0.73299 | AF45: 0.0321 | AH45: -0.00126 | AJ45: -0.001270272513
A46: -5.2 | B46: -0.629 | C46: 0.0172 | D46: 0.0064 | E46: 100000 | G46: -8.2 | H46: -0.899 | I46: 0.01541 | J46: -0.002 | K46: -0.9058290434 | L46: 0.01432574416 | M46: -0.001151057467 | AE46: 0.72421 | AF46: 0.03299 | AH46: -0.00126 | AJ46: -0.001271014213
A47: -5 | B47: -0.6143 | C47: 0.01675 | D47: 0.0078 | E47: 100000 | G47: -8 | H47: -0.8825 | I47: 0.01508 | J47: -0.001 | K47: -0.8885119847 | L47: 0.01383416838 | M47: -0.0004733687349 | AE47: 0.71548 | AF47: 0.03386 | AH47: -0.00126 | AJ47: -0.001271429504
A48: -4.8 | B48: -0.5994 | C48: 0.01635 | D48: 0.0092 | E48: 100000 | G48: -7.8 | H48: -0.867 | I48: 0.01466 | J48: 0.0002 | K48: -0.8708555908 | L48: 0.01336510114 | M48: 0.000159468326 | AE48: 0.70676 | AF48: 0.03472 | AH48: -0.00126 | AJ48: -0.001271520074
A49: -4.6 | B49: -0.5842 | C49: 0.01601 | D49: 0.0106 | E49: 100000 | G49: -7.6 | H49: -0.8504 | I49: 0.01436 | J49: 0.0012 | K49: -0.8528681038 | L49: 0.01291750119 | M49: 0.0007474795102 | AE49: 0.69806 | AF49: 0.03558 | AH49: -0.00126 | AJ49: -0.001271292213
A50: -4.4 | B50: -0.5687 | C50: 0.01571 | D50: 0.0119 | E50: 100000 | G50: -7.4 | H50: -0.8347 | I50: 0.01398 | J50: 0.0024 | K50: -0.8345576718 | L50: 0.01249034931 | M50: 0.001290876128 | AE50: 0.68934 | AF50: 0.03641 | AH50: -0.00126 | AJ50: -0.001270757264
A51: -4.2 | B51: -0.553 | C51: 0.01543 | D51: 0.0133 | E51: 100000 | G51: -7.2 | H51: -0.8187 | I51: 0.01363 | J51: 0.0035 | K51: -0.815932342 | L51: 0.0120826526 | M51: 0.001790039368 | AE51: 0.68062 | AF51: 0.03724 | AH51: -0.00126 | AJ51: -0.001269934798
A52: -4 | B52: -0.537 | C52: 0.01519 | D52: 0.0146 | E52: 100000 | G52: -7 | H52: -0.8024 | I52: 0.01333 | J52: 0.0046 | K52: -0.7970000589 | L52: 0.01169344834 | M52: 0.002245505241 | AE52: 0.67192 | AF52: 0.03806 | AH52: -0.00126 | AJ52: -0.001268853233
A53: -3.8 | B53: -0.5208 | C53: 0.01498 | D53: 0.016 | E53: 100000 | G53: -6.8 | H53: -0.786 | I53: 0.01304 | J53: 0.0056 | K53: -0.7777686637 | L53: 0.0113218075 | M53: 0.002657950123 | AE53: 0.66324 | AF53: 0.03887 | AH53: -0.00126 | AJ53: -0.001267545104
A54: -3.6 | B54: -0.5045 | C54: 0.01479 | D54: 0.0173 | E54: 100000 | G54: -6.6 | H54: -0.7697 | I54: 0.01273 | J54: 0.0067 | K54: -0.7582458978 | L54: 0.01096683783 | M54: 0.003028176878 | AE54: 0.65455 | AF54: 0.03965 | AH54: -0.00126 | AJ54: -0.001266041486
A55: -3.4 | B55: -0.488 | C55: 0.01463 | D55: 0.0187 | E55: 100000 | G55: -6.4 | H55: -0.7535 | I55: 0.01242 | J55: 0.0078 | K55: -0.7384394078 | L55: 0.0106276865 | M55: 0.003357101603 | AE55: 0.64588 | AF55: 0.04044 | AH55: -0.00126 | AJ55: -0.001264386524
A56: -3.2 | B56: -0.4715 | C56: 0.0145 | D56: 0.0201 | E56: 100000 | G56: -6.2 | H56: -0.7373 | I56: 0.01212 | J56: 0.0089 | K56: -0.7183567533 | L56: 0.01030354254 | M56: 0.00364574096 | AE56: 0.6372 | AF56: 0.0412 | AH56: -0.00126 | AJ56: -0.001262616052
A57: -3 | B57: -0.455 | C57: 0.0144 | D57: 0.0215 | E57: 100000 | G57: -6 | H57: -0.7208 | I57: 0.01183 | J57: 0.0099 | K57: -0.6980054162 | L57: 0.0099936387 | M57: 0.00389520013 | AE57: 0.6285 | AF57: 0.04197 | AH57: -0.00126 | AJ57: -0.001260770659
A58: -2.8 | B58: -0.4385 | C58: 0.01433 | D58: 0.023 | E58: 100000 | G58: -5.8 | H58: -0.7041 | I58: 0.01156 | J58: 0.0109 | K58: -0.6773928114 | L58: 0.009697253182 | M58: 0.004106661373 | AE58: 0.61976 | AF58: 0.04272 | AH58: -0.00126 | AJ58: -0.001258889893
A59: -2.6 | B59: -0.4222 | C59: 0.0143 | D59: 0.0245 | E59: 100000 | G59: -5.6 | H59: -0.6873 | I59: 0.0113 | J59: 0.0118 | K59: -0.6565262993 | L59: 0.009413710896 | M59: 0.004281373198 | AE59: 0.61099 | AF59: 0.04346 | AH59: -0.00126 | AJ59: -0.001257020524
A60: -2.4 | B60: -0.406 | C60: 0.01431 | D60: 0.0261 | E60: 100000 | G60: -5.4 | H60: -0.6704 | I60: 0.01103 | J60: 0.0127 | K60: -0.6354131993 | L60: 0.009142384467 | M60: 0.004420640151 | AE60: 0.60223 | AF60: 0.04419 | AH60: -0.00126 | AJ60: -0.001255215222
A61: -2.2 | B61: -0.39 | C61: 0.01436 | D61: 0.0278 | E61: 100000 | G61: -5.2 | H61: -0.6533 | I61: 0.01078 | J61: 0.0135 | K61: -0.6140608038 | L61: 0.00888269492 | M61: 0.004525813208 | AE61: 0.59345 | AF61: 0.04491 | AH61: -0.00126 | AJ61: -0.001253510363
A62: -2 | B62: -0.3742 | C62: 0.01445 | D62: 0.0296 | E62: 100000 | G62: -5 | H62: -0.633 | I62: 0.01051 | J62: 0.0137 | K62: -0.5924763936 | L62: 0.008634112079 | M62: 0.004598280784 | AE62: 0.58468 | AF62: 0.04562 | AH62: -0.00126 | AJ62: -0.001251951747
A63: -1.8 | B63: -0.3582 | C63: 0.0146 | D63: 0.0314 | E63: 100000 | G63: -4.8 | H63: -0.603 | I63: 0.01022 | J63: 0.0118 | K63: -0.5706672529 | L63: 0.008396154681 | M63: 0.004639460343 | AE63: 0.57592 | AF63: 0.0463 | AH63: -0.00126 | AJ63: -0.001250575225
A64: -1.6 | B64: -0.3413 | C64: 0.0148 | D64: 0.033 | E64: 100000 | G64: -4.4 | H64: -0.5434 | I64: 0.00966 | J64: 0.0082 | K64: -0.5264040289 | L64: 0.007950434633 | M64: 0.004633724408 | AE64: 0.56716 | AF64: 0.04698 | AH64: -0.00126 | AJ64: -0.001249411186
A65: -1.4 | B65: -0.3212 | C65: 0.01505 | D65: 0.0339 | E65: 100000 | G65: -4.2 | H65: -0.5138 | I65: 0.00939 | J65: 0.0065 | K65: -0.5039646732 | L65: 0.007741951495 | M65: 0.004589722009 | AE65: 0.55842 | AF65: 0.04764 | AH65: -0.00126 | AJ65: -0.001248489094
A66: -1.2 | B66: -0.295 | C66: 0.01536 | D66: 0.0336 | E66: 100000 | G66: -4 | H66: -0.4837 | I66: 0.00914 | J66: 0.0047 | K66: -0.4813300728 | L66: 0.007542651325 | M66: 0.004520245179 | AE66: 0.54975 | AF66: 0.04829 | AH66: -0.00126 | AJ66: -0.001247832628
A67: -1 | B67: -0.2607 | C67: 0.01572 | D67: 0.0315 | E67: 100000 | G67: -3.8 | H67: -0.454 | I67: 0.00889 | J67: 0.003 | K67: -0.4585077637 | L67: 0.007352290437 | M67: 0.004426751714 | AE67: 0.54112 | AF67: 0.0489 | AH67: -0.00126 | AJ67: -0.001247451067
A68: -0.8 | B68: -0.2152 | C68: 0.01612 | D68: 0.027 | E68: 100000 | G68: -3.4 | H68: -0.3941 | I68: 0.00843 | J68: -0.0005 | K68: -0.4123306507 | L68: 0.006997632956 | M68: 0.004173497621 | AE68: 0.5325 | AF68: 0.04952 | AH68: -0.00126 | AJ68: -0.001247351511
A69: -0.6 | B69: -0.1624 | C69: 0.01646 | D69: 0.0209 | E69: 100000 | G69: -3.2 | H69: -0.3642 | I69: 0.0082 | J69: -0.0021 | K69: -0.388991447 | L69: 0.006833065647 | M69: 0.004016591757 | AE69: 0.52386 | AF69: 0.05011 | AH69: -0.00126 | AJ69: -0.001247539181
A70: -0.4 | B70: -0.1059 | C70: 0.01671 | D70: 0.0138 | E70: 100000 | G70: -3 | H70: -0.3343 | I70: 0.00799 | J70: -0.0038 | K70: -0.3654957589 | L70: 0.006676892759 | M70: 0.003841371799 | AE70: 0.51518 | AF70: 0.05069 | AH70: -0.00126 | AJ70: -0.001248016735
A71: -0.2 | B71: -0.0508 | C71: 0.01686 | D71: 0.0067 | E71: 100000 | G71: -2.8 | H71: -0.3065 | I71: 0.00778 | J71: -0.0049 | K71: -0.3418517236 | L71: 0.006529077013 | M71: 0.003649213725 | AE71: 0.50656 | AF71: 0.05126 | AH71: -0.00126 | AJ71: -0.001248771022
A72: 0 | B72: 0 | C72: 0.01694 | D72: 0 | E72: 100000 | G72: -2.6 | H72: -0.2805 | I72: 0.00759 | J72: -0.0056 | K72: -0.3180676309 | L72: 0.006389616769 | M72: 0.003441468486 | AE72: 0.49797 | AF72: 0.0518 | AH72: -0.00126 | AJ72: -0.001249787963
A73: 0.2 | B73: 0.0508 | C73: 0.01686 | D73: -0.0067 | E73: 100000 | G73: -2.4 | H73: -0.2552 | I73: 0.0074 | J73: -0.006 | K73: -0.294151932 | L73: 0.006258543823 | M73: 0.003219460302 | AE73: 0.4894 | AF73: 0.05234 | AH73: -0.00126 | AJ73: -0.001251048695
A74: 0.4 | B74: 0.1059 | C74: 0.01671 | D74: -0.0138 | E74: 100000 | G74: -2.2 | H74: -0.2314 | I74: 0.00723 | J74: -0.0062 | K74: -0.2701132451 | L74: 0.006135921109 | M74: 0.002984485432 | AE74: 0.4808 | AF74: 0.05285 | AH74: -0.00126 | AJ74: -0.001252537924
A75: 0.6 | B75: 0.1624 | C75: 0.01646 | D75: -0.0209 | E75: 100000 | G75: -2 | H75: -0.2088 | I75: 0.00707 | J75: -0.006 | K75: -0.2459603619 | L75: 0.006021840296 | M75: 0.002737811411 | AE75: 0.47219 | AF75: 0.05335 | AH75: -0.00126 | AJ75: -0.001254225609
A76: 0.8 | B76: 0.2151 | C76: 0.01612 | D76: -0.027 | E76: 100000 | G76: -1.8 | H76: -0.1869 | I76: 0.00692 | J76: -0.0057 | K76: =$G$3+$H$3*(G76^1)+$I$3*(G76^2)+$J$3*(G76^3)+$K$3*(G76^4)+$L$3*(G76^5)+$M$3*(G76^6)+$N$3*(G76^7)+$O$3*(G76^8) -> -0.2217022503 | L76: =$G$4+$H$4*(G76^1)+$I$4*(G76^2)+$J$4*(G76^3)+$K$4*(G76^4)+$L$4*(G76^5)+$M$4*(G76^6)+$N$4*(G76^7)+$O$4*(G76^8)+SUMPRODUCT($P$4:$U$4,$X$9:$AC$9) -> 0.005916419309 | M76: =$G$5+$H$5*(G76^1)+$I$5*(G76^2)+$J$5*(G76^3)+$K$5*(G76^4)+$L$5*(G76^5)+$M$5*(G76^6)+$N$5*(G76^7)+$O$5*(G76^8)+SUMPRODUCT($X$9:$AC$9,$P$5:$U$5) -> 0.002480676717 | AE76: 0.46355 | AF76: 0.05383 | AH76: -0.00126 | AJ76: -0.001256084059
A77: 1 | B77: 0.2607 | C77: 0.01572 | D77: -0.0315 | E77: 100000 | F77: =IF(E77=400000,"0","") ->  | G77: -1.6 | H77: -0.1656 | I77: 0.00679 | J77: -0.0052 | K77: -0.1973480571 | L77: 0.005819799779 | M77: 0.002214290874 | AE77: 0.45488 | AF77: 0.05429 | AH77: -0.00126 | AJ77: =$AC$3*(AE77^0)+$AD$3*(AE77^1)+$AE$3*(AE77^2)+$AF$3*(AE77^3)+$AG$3*(AE77^4)+$AH$3*(AE77^5)+$AI$3*(AE77^6)+$AJ$3*(AE77^7)+$AK$3*(AE77^8) -> -0.001258077555
A78: 1.2 | B78: 0.295 | C78: 0.01536 | D78: -0.0336 | E78: 100000 | G78: -1.4 | H78: -0.1446 | I78: 0.00666 | J78: -0.0046 | K78: -0.1729071083 | L78: 0.005732144434 | M78: 0.001939834943 | AE78: 0.44622 | AF78: 0.05474 | AH78: -0.00126 | AJ78: -0.00126015627
A79: 1.4 | B79: 0.3212 | C79: 0.01505 | D79: -0.0339 | E79: 100000 | G79: -1.2 | H79: -0.124 | I79: 0.00655 | J79: -0.004 | K79: -0.1483889085 | L79: 0.005653634453 | M79: 0.001658462408 | AE79: 0.43756 | AF79: 0.05517 | AH79: -0.00126 | AJ79: -0.001262278475
A80: 1.6 | B80: 0.3412 | C80: 0.01479 | D80: -0.0329 | E80: 100000 | G80: -1 | H80: -0.1032 | I80: 0.00647 | J80: -0.0033 | K80: -0.1238031374 | L80: 0.005584466784 | M80: 0.00137130041 | AE80: 0.42891 | AF80: 0.05557 | AH80: -0.00126 | AJ80: -0.001264395626
A81: 1.8 | B81: 0.3582 | C81: 0.0146 | D81: -0.0314 | E81: 100000 | G81: -0.8 | H81: -0.0826 | I81: 0.00639 | J81: -0.0027 | K81: -0.09915964614 | L81: 0.005524851449 | M81: 0.001079451324 | AE81: 0.42026 | AF81: 0.05596 | AH81: -0.00126 | AJ81: -0.00126646285
A82: 2 | B82: 0.3741 | C82: 0.01445 | D82: -0.0296 | E82: 100000 | G82: -0.6 | H82: -0.062 | I82: 0.00633 | J82: -0.002 | K82: -0.07446845078 | L82: 0.005475008848 | M82: 0.0007839946448 | AE82: 0.41162 | AF82: 0.05632 | AH82: -0.00126 | AJ82: -0.001268430137
A83: 2.2 | B83: 0.3899 | C83: 0.01436 | D83: -0.0278 | E83: 100000 | G83: -0.4 | H83: -0.0413 | I83: 0.00629 | J83: -0.0013 | K83: -0.04973972468 | L83: 0.005435167063 | M83: 0.0004859891593 | AE83: 0.40298 | AF83: 0.05666 | AH83: -0.00126 | AJ83: -0.001270252662
A84: 2.4 | B84: 0.4059 | C84: 0.01431 | D84: -0.0261 | E84: 100000 | G84: -0.2 | H84: -0.0207 | I84: 0.00626 | J84: -0.0007 | K84: -0.02498378916 | L84: 0.005405559193 | M84: 0.0001864753817 | AE84: 0.39435 | AF84: 0.05697 | AH84: -0.00126 | AJ84: -0.001271882716
A85: 2.6 | B85: 0.4222 | C85: 0.0143 | D85: -0.0245 | E85: 100000 | G85: 0 | H85: 0 | I85: 0.00625 | J85: 0 | K85: -0.0002111024061 | L85: 0.005386420724 | M85: -0.0001135217804 | AE85: 0.38571 | AF85: 0.05727 | AH85: -0.00126 | AJ85: -0.001273280422
A86: 2.8 | B86: 0.4385 | C86: 0.01433 | D86: -0.0229 | E86: 100000 | G86: 0.2 | H86: 0.0207 | I86: 0.00626 | J86: 0.0007 | K86: 0.02456775307 | L86: 0.005377986943 | M86: -0.0004129901537 | AE86: 0.3771 | AF86: 0.05754 | AH86: -0.00126 | AJ86: -0.001274399895
A87: 3 | B87: 0.455 | C87: 0.0144 | D87: -0.0214 | E87: 100000 | G87: 0.4 | H87: 0.0413 | I87: 0.00629 | J87: 0.0013 | K87: 0.04934208461 | L87: 0.005380490416 | M87: -0.0007109272505 | AE87: 0.36848 | AF87: 0.05779 | AH87: -0.00126 | AJ87: -0.001275211192
A88: 3.2 | B88: 0.4715 | C88: 0.0145 | D88: -0.02 | E88: 100000 | G88: 0.6 | H88: 0.062 | I88: 0.00633 | J88: 0.002 | K88: 0.07410110496 | L88: 0.005394158546 | M88: -0.001006337075 | AE88: 0.35985 | AF88: 0.058 | AH88: -0.00126 | AJ88: -0.001275682124
A89: 3.4 | B89: 0.488 | C89: 0.01463 | D89: -0.0186 | E89: 100000 | G89: 0.8 | H89: 0.0826 | I89: 0.00639 | J89: 0.0027 | K89: 0.09883394938 | L89: 0.005419211209 | M89: -0.001298226815 | AE89: 0.35122 | AF89: 0.05819 | AH89: -0.00126 | AJ89: -0.001275786362
A90: 3.6 | B90: 0.5044 | C90: 0.01479 | D90: -0.0172 | E90: 100000 | G90: 1 | H90: 0.1032 | I90: 0.00647 | J90: 0.0033 | K90: 0.1235296939 | L90: 0.0054558585 | M90: -0.00158560345 | AE90: 0.34261 | AF90: 0.05837 | AH90: -0.00126 | AJ90: -0.001275506642
A91: 3.8 | B91: 0.5207 | C91: 0.01498 | D91: -0.0159 | E91: 100000 | G91: 1.2 | H91: 0.124 | I91: 0.00655 | J91: 0.004 | K91: 0.1481773752 | L91: 0.005504298588 | M91: -0.001867470312 | AE91: 0.33402 | AF91: 0.0585 | AH91: -0.00126 | AJ91: -0.001274834992
A92: 4 | B92: 0.5369 | C92: 0.01519 | D92: -0.0145 | E92: 100000 | G92: 1.4 | H92: 0.1446 | I92: 0.00666 | J92: 0.0046 | K92: 0.1727660108 | L92: 0.005564715702 | M92: -0.00214282363 | AE92: 0.32543 | AF92: 0.05862 | AH92: -0.00126 | AJ92: -0.001273768837
A93: 4.2 | B93: 0.5529 | C93: 0.01543 | D93: -0.0132 | E93: 100000 | G93: 1.6 | H93: 0.1656 | I93: 0.00679 | J93: 0.0052 | K93: 0.1972846217 | L93: 0.005637278258 | M93: -0.002410649094 | AE93: 0.31688 | AF93: 0.05869 | AH93: -0.00126 | AJ93: -0.001272322287
A94: 4.4 | B94: 0.5687 | C94: 0.01571 | D94: -0.0118 | E94: 100000 | G94: 1.8 | H94: 0.1869 | I94: 0.00692 | J94: 0.0057 | K94: 0.2217222544 | L94: 0.005722137134 | M94: -0.002669918479 | AE94: 0.30832 | AF94: 0.05874 | AH94: -0.00126 | AJ94: -0.001270504529
A95: 4.6 | B95: 0.5842 | C95: 0.01601 | D95: -0.0105 | E95: 100000 | G95: 2 | H95: 0.2088 | I95: 0.00707 | J95: 0.006 | K95: 0.2460680047 | L95: 0.005819424115 | M95: -0.002919586362 | AE95: 0.29977 | AF95: 0.05876 | AH95: -0.00126 | AJ95: -0.001268344975
A96: 4.8 | B96: 0.5994 | C96: 0.01635 | D96: -0.0091 | E96: 100000 | G96: 2.2 | H96: 0.2314 | I96: 0.00723 | J96: 0.0062 | K96: 0.2703110421 | L96: 0.005929250526 | M96: -0.003158586965 | AE96: 0.29127 | AF96: 0.05875 | AH96: -0.00126 | AJ96: -0.001265891915
A97: 5 | B97: 0.6143 | C97: 0.01675 | D97: -0.0077 | E97: 100000 | G97: 2.4 | H97: 0.2552 | I97: 0.0074 | J97: 0.0061 | K97: 0.2944406345 | L97: 0.006051706041 | M97: -0.003385831179 | AE97: 0.28279 | AF97: 0.05869 | AH97: -0.00126 | AJ97: -0.00126318438
A98: 5.2 | B98: 0.6289 | C98: 0.0172 | D98: -0.0063 | E98: 100000 | G98: 2.6 | H98: 0.2805 | I98: 0.00759 | J98: 0.0056 | K98: 0.3184461729 | L98: 0.006186857717 | M98: -0.003600203795 | AE98: 0.27431 | AF98: 0.0586 | AH98: -0.00126 | AJ98: -0.001260270161
A99: 5.4 | B99: 0.6434 | C99: 0.0177 | D99: -0.0049 | E99: 100000 | G99: 2.8 | H99: 0.3065 | I99: 0.00778 | J99: 0.0049 | K99: 0.3423171973 | L99: 0.006334749235 | M99: -0.003800560984 | AE99: 0.26584 | AF99: 0.05848 | AH99: -0.00126 | AJ99: -0.001257215346
A100: 5.6 | B100: 0.6576 | C100: 0.01827 | D100: -0.0035 | E100: 100000 | G100: 3 | H100: 0.3343 | I100: 0.00799 | J100: 0.0038 | K100: 0.3660434216 | L100: 0.006495400375 | M100: -0.003985728084 | AE100: 0.25741 | AF100: 0.05832 | AH100: -0.00126 | AJ100: -0.001254102308
A101: 5.8 | B101: 0.6719 | C101: 0.0189 | D101: -0.0021 | E101: 100000 | G101: 3.2 | H101: 0.3642 | I101: 0.0082 | J101: 0.0022 | K101: 0.389614759 | L101: 0.006668806747 | M101: -0.004154497711 | AE101: 0.24899 | AF101: 0.05813 | AH101: -0.00126 | AJ101: -0.001250998261
A102: 6 | B102: 0.6863 | C102: 0.01957 | D102: -0.0008 | E102: 100000 | G102: 3.4 | H102: 0.3941 | I102: 0.00843 | J102: 0.0005 | K102: 0.4130213468 | L102: 0.006854939765 | M102: -0.004305628266 | AE102: 0.24061 | AF102: 0.0579 | AH102: -0.00126 | AJ102: -0.001247997763
A103: 6.2 | B103: 0.701 | C103: 0.02028 | D103: 0.0005 | E103: 100000 | G103: 3.6 | H103: 0.4241 | I103: 0.00866 | J103: -0.0012 | K103: 0.4362535705 | L103: 0.007053746909 | M103: -0.004437842862 | AE103: 0.23227 | AF103: 0.05761 | AH103: -0.00126 | AJ103: -0.001245187485
A104: 6.4 | B104: 0.7159 | C104: 0.02102 | D104: 0.0018 | E104: 100000 | G104: 3.8 | H104: 0.454 | I104: 0.00889 | J104: -0.0029 | K104: 0.4593020877 | L104: 0.007265152259 | M104: -0.004549828731 | AE104: 0.22393 | AF104: 0.05729 | AH104: -0.00126 | AJ104: -0.00124264414
A105: 6.6 | B105: 0.7313 | C105: 0.02179 | D105: 0.003 | E105: 100000 | G105: 4 | H105: 0.4838 | I105: 0.00914 | J105: -0.0046 | K105: 0.48215785 | L105: 0.00748905734 | M105: -0.00464023715 | AE105: 0.21564 | AF105: 0.05693 | AH105: -0.00126 | AJ105: -0.001240473127
A106: 6.8 | B106: 0.7471 | C106: 0.02259 | D106: 0.0041 | E106: 100000 | G106: 4.2 | H106: 0.5138 | I106: 0.00939 | J106: -0.0064 | K106: 0.5048121248 | L106: 0.007725342269 | M106: -0.004707683939 | AE106: 0.20738 | AF106: 0.05652 | AH106: -0.00126 | AJ106: -0.00123875576
A107: 7 | B107: 0.7633 | C107: 0.02342 | D107: 0.0052 | E107: 100000 | G107: 4.4 | H107: 0.5434 | I107: 0.00966 | J107: -0.0081 | K107: 0.5272565147 | L107: 0.007973867233 | M107: -0.004750750577 | AE107: 0.19915 | AF107: 0.05606 | AH107: -0.00126 | AJ107: -0.001237575806
A108: 7.2 | B108: 0.78 | C108: 0.02428 | D108: 0.0061 | E108: 100000 | G108: 4.6 | H108: 0.5733 | I108: 0.00994 | J108: -0.0099 | K108: 0.5494829757 | L108: 0.008234474299 | M108: -0.004767985994 | AE108: 0.19096 | AF108: 0.05556 | AH108: -0.00126 | AJ108: -0.001237010865
A109: 7.4 | B109: 0.797 | C109: 0.02519 | D109: 0.007 | E109: 100000 | G109: 4.8 | H109: 0.603 | I109: 0.01022 | J109: -0.0117 | K109: 0.5714838333 | L109: 0.008506989588 | M109: -0.004757909076 | AE109: 0.18282 | AF109: 0.05501 | AH109: -0.00126 | AJ109: -0.001237125922
A110: 7.6 | B110: 0.814 | C110: 0.02614 | D110: 0.0079 | E110: 100000 | G110: 5 | H110: 0.633 | I110: 0.01051 | J110: -0.0136 | K110: 0.5932517961 | L110: 0.008791225796 | M110: -0.004719011954 | AE110: 0.17474 | AF110: 0.05441 | AH110: -0.00126 | AJ110: -0.001237969824
A111: 7.8 | B111: 0.8311 | C111: 0.02716 | D111: 0.0088 | E111: 100000 | G111: 5.2 | H111: 0.6532 | I111: 0.01077 | J111: -0.0134 | K111: 0.6147799673 | L111: 0.009086985108 | M111: -0.004649764112 | AE111: 0.16671 | AF111: 0.05376 | AH111: -0.00126 | AJ111: -0.001239576944
A112: 8 | B112: 0.8482 | C112: 0.02825 | D112: 0.0096 | E112: 100000 | G112: 5.4 | H112: 0.6703 | I112: 0.01103 | J112: -0.0125 | K112: 0.6360618527 | L112: 0.009394062499 | M112: -0.004548617382 | AE112: 0.15875 | AF112: 0.05305 | AH112: -0.00126 | AJ112: -0.001241956713
A113: 8.2 | B113: 0.8665 | C113: 0.02937 | D113: 0.0102 | E113: 100000 | G113: 5.6 | H113: 0.6872 | I113: 0.01129 | J113: -0.0116 | K113: 0.657091366 | L113: 0.009712249432 | M113: -0.004414011878 | AE113: 0.15086 | AF113: 0.05228 | AH113: -0.00126 | AJ113: -0.001245098547
A114: 8.4 | B114: 0.8823 | C114: 0.03056 | D114: 0.0113 | E114: 100000 | G114: 5.8 | H114: 0.704 | I114: 0.01156 | J114: -0.0107 | K114: 0.6778628309 | L114: 0.01004133798 | M114: -0.004244382915 | AE114: 0.14303 | AF114: 0.05146 | AH114: -0.00126 | AJ114: -0.001248973825
A115: 8.6 | B115: 0.8985 | C115: 0.0319 | D115: 0.0121 | E115: 100000 | G115: 6 | H115: 0.7207 | I115: 0.01183 | J115: -0.0097 | K115: 0.6983709784 | L115: 0.0103811254 | M115: -0.004038168996 | AE115: 0.13529 | AF115: 0.05058 | AH115: -0.00126 | AJ115: -0.001253506633
A116: 9 | B116: 0.9291 | C116: 0.03474 | D116: 0.0141 | E116: 100000 | G116: 6.2 | H116: 0.7372 | I116: 0.01212 | J116: -0.0087 | K116: 0.7186109412 | L116: 0.01073141909 | M116: -0.003793820891 | AE116: 0.12766 | AF116: 0.04964 | AH116: -0.00126 | AJ116: -0.001258590734
A117: 9.2 | B117: 0.9421 | C117: 0.03634 | D117: 0.0153 | E117: 100000 | G117: 6.4 | H117: 0.7535 | I117: 0.01242 | J117: -0.0076 | K117: 0.7385782428 | L117: 0.01109204206 | M117: -0.003509811896 | AE117: 0.12015 | AF117: 0.04864 | AH117: -0.00126 | AJ117: -0.001264094971
A118: 9.4 | B118: 0.96 | C118: 0.0378 | D118: 0.0157 | E118: 100000 | G118: 6.6 | H118: 0.7697 | I118: 0.01273 | J118: -0.0065 | K118: 0.7582687818 | L118: 0.0114628389 | M118: -0.003184649321 | AE118: 0.11276 | AF118: 0.04759 | AH118: -0.00126 | AJ118: -0.001269868387
A119: 9.6 | B119: 0.9654 | C119: 0.04001 | D119: 0.0178 | E119: 100000 | G119: 6.8 | H119: 0.7859 | I119: 0.01304 | J119: -0.0054 | K119: 0.7776788118 | L119: 0.01184368211 | M119: -0.002816887269 | AE119: 0.10553 | AF119: 0.04647 | AH119: -0.00126 | AJ119: -0.001275703104
A120: 9.8 | B120: 0.9737 | C120: 0.04206 | D120: 0.0193 | E120: 100000 | G120: 7 | H120: 0.8023 | I120: 0.01333 | J120: -0.0043 | K120: 0.7968049145 | L120: 0.01223447906 | M120: -0.002405140764 | AE120: 0.09847 | AF120: 0.04531 | AH120: -0.00126 | AJ120: -0.001281394292
A121: 10 | B121: 0.9899 | C121: 0.04359 | D121: 0.0198 | E121: 100000 | G121: 7.2 | H121: 0.8187 | I121: 0.01363 | J121: -0.0032 | K121: 0.815643968 | L121: 0.01263517941 | M121: -0.001948101307 | AE121: 0.09163 | AF121: 0.0441 | AH121: -0.00126 | AJ121: -0.001286695159
A122: 10.2 | B122: 0.9945 | C122: 0.04615 | D122: 0.0214 | E122: 100000 | G122: 7.4 | H122: 0.8347 | I122: 0.01398 | J122: -0.0021 | K122: 0.8341931082 | L122: 0.01304578301 | M122: -0.001444553903 | AE122: 0.08504 | AF122: 0.04284 | AH122: -0.00126 | AJ122: -0.00129138034
A123: 10.4 | B123: 0.9905 | C123: 0.04918 | D123: 0.0238 | E123: 100000 | G123: 7.6 | H123: 0.8504 | I123: 0.01436 | J123: -0.0009 | K123: 0.8524496833 | L123: 0.01346634842 | M123: -0.0008933956457 | AE123: 0.0787 | AF123: 0.04154 | AH123: -0.00126 | AJ123: -0.001295261982
A124: 10.6 | B124: 0.9841 | C124: 0.05235 | D124: 0.0259 | E124: 100000 | G124: 7.8 | H124: 0.867 | I124: 0.01466 | J124: 0.0001 | K124: 0.8704112018 | L124: 0.0138970019 | M124: -0.0002936559083 | AE124: 0.07264 | AF124: 0.04021 | AH124: -0.00126 | AJ124: -0.001298159129
A125: 10.8 | B125: 0.9744 | C125: 0.05566 | D125: 0.0279 | E125: 100000 | G125: 8 | H125: 0.8825 | I125: 0.01508 | J125: 0.0013 | K125: 0.888075272 | L125: 0.01433794704 | M125: 0.0003554817786 | AE125: 0.0669 | AF125: 0.03887 | AH125: -0.00126 | AJ125: -0.001299935139
A126: 11 | B126: 0.9609 | C126: 0.0591 | D126: 0.0298 | E126: 100000 | G126: 8.2 | H126: 0.8989 | I126: 0.01541 | J126: 0.0024 | K126: 0.9054395346 | L126: 0.0147894749 | M126: 0.0010546561 | AE126: 0.0615 | AF126: 0.03752 | AH126: -0.00126 | AJ126: -0.00130052271
A127: 11.2 | B127: 0.9436 | C127: 0.06254 | D127: 0.0316 | E127: 100000 | G127: 8.4 | H127: 0.9143 | I127: 0.01586 | J127: 0.0035 | K127: 0.9225015857 | L127: 0.01525197479 | M127: 0.00180430251 | AE127: 0.05645 | AF127: 0.03616 | AH127: -0.00126 | AJ127: -0.001299916309
A128: 11.4 | B128: 0.9237 | C128: 0.06595 | D128: 0.0331 | E128: 100000 | G128: 8.6 | H128: 0.9307 | I128: 0.01621 | J128: 0.0045 | K128: 0.939258892 | L128: 0.0157259456 | M128: 0.002604625894 | AE128: 0.05174 | AF128: 0.03481 | AH128: -0.00126 | AJ128: -0.001298158836
A129: 11.6 | B129: 0.9043 | C129: 0.06976 | D129: 0.0333 | E129: 100000 | G129: 8.8 | H129: 0.9461 | I129: 0.01668 | J129: 0.0057 | K129: 0.9557086956 | L129: 0.01621200781 | M129: 0.003455571268 | AE129: 0.04737 | AF129: 0.03347 | AH129: -0.00126 | AJ129: -0.001295336745
A130: 11.8 | B130: 0.8871 | C130: 0.07394 | D130: 0.0324 | E130: 100000 | G130: 9 | H130: 0.9626 | I130: 0.01707 | J130: 0.0066 | K130: 0.9718479098 | L130: 0.01671091611 | M130: 0.004356792446 | AE130: 0.04333 | AF130: 0.03216 | AH130: -0.00126 | AJ130: -0.001291567398
A131: 12 | B131: 0.874 | C131: 0.0783 | D131: 0.0309 | E131: 100000 | G131: 9.2 | H131: 0.9773 | I131: 0.01764 | J131: 0.0078 | K131: 0.9876730038 | L131: 0.0172235726 | M131: 0.005307618591 | AE131: 0.0396 | AF131: 0.03087 | AH131: -0.00126 | AJ131: -0.001286978562
A132: 13.6 | B132: 0.6734 | C132: 0.15647 | D132: -0.0225 | E132: 100000 | G132: 9.4 | H132: 0.994 | I132: 0.01804 | J132: 0.0087 | K132: 1.003179878 | L132: 0.01775104075 | M132: 0.006307018594 | AE132: 0.03617 | AF132: 0.02962 | AH132: -0.00126 | AJ132: -0.001281720038
A133: 13.8 | B133: 0.6733 | C133: 0.15962 | D133: -0.0244 | E133: 100000 | G133: 9.6 | H133: 1.0098 | I133: 0.01853 | J133: 0.0096 | K133: 1.018363725 | L133: 0.01829455997 | M133: 0.007353563184 | AE133: 0.03301 | AF133: 0.02839 | AH133: -0.00126 | AJ133: -0.001275912368
A134: 14 | B134: 0.674 | C134: 0.16213 | D134: -0.0262 | E134: 100000 | G134: 9.8 | H134: 1.0247 | I134: 0.01911 | J134: 0.0107 | K134: 1.033218884 | L134: 0.01885556085 | M134: 0.008445384707 | AE134: 0.03009 | AF134: 0.02719 | AH134: -0.00126 | AJ134: -0.001269656531
A135: 14.2 | B135: 0.6942 | C135: 0.16522 | D135: -0.0248 | E135: 100000 | G135: 10 | H135: 1.041 | I135: 0.01956 | J135: 0.0116 | K135: 1.047738676 | L135: 0.01943568115 | M135: 0.009580134492 | AE135: 0.02741 | AF135: 0.02601 | AH135: -0.00126 | AJ135: -0.001263107405
A136: 14.4 | B136: 0.6819 | C136: 0.16779 | D136: -0.029 | E136: 100000 | G136: 10.2 | H136: 1.056 | I136: 0.02011 | J136: 0.0126 | K136: 1.061915232 | L136: 0.02003678245 | M136: 0.01075493772 | AE136: 0.02493 | AF136: 0.02487 | AH136: -0.00126 | AJ136: -0.001256312712
A137: 14.6 | B137: 0.6883 | C137: 0.17027 | D137: -0.03 | E137: 100000 | G137: 10.4 | H137: 1.0706 | I137: 0.02072 | J137: 0.0136 | K137: 1.075739306 | L137: 0.02066096757 | M137: 0.01196634574 | AE137: 0.02264 | AF137: 0.02374 | AH137: -0.00126 | AJ137: -0.001249374251
A138: 14.8 | B138: 0.7071 | C138: 0.17378 | D138: -0.0288 | E138: 100000 | G138: 10.6 | H138: 1.0858 | I138: 0.02126 | J138: 0.0146 | K138: 1.089200071 | L138: 0.02131059867 | M138: 0.01321028569 | AE138: 0.02052 | AF138: 0.02264 | AH138: -0.00126 | AJ138: -0.001242351463
A139: 15 | B139: 0.6953 | C139: 0.17575 | D139: -0.0332 | E139: 100000 | G139: 10.8 | H139: 1.1002 | I139: 0.02184 | J139: 0.0156 | K139: 1.102284907 | L139: 0.02198831615 | M139: 0.01448200744 | AE139: 0.01856 | AF139: 0.02155 | AH139: -0.00126 | AJ139: -0.001235320802
A140: -15 | B140: -0.6971 | C140: 0.17391 | D140: 0.0324 | E140: 120000 | G140: 11 | H140: 1.1129 | I140: 0.02259 | J140: 0.0167 | K140: =$G$3+$H$3*(G140^1)+$I$3*(G140^2)+$J$3*(G140^3)+$K$3*(G140^4)+$L$3*(G140^5)+$M$3*(G140^6)+$N$3*(G140^7)+$O$3*(G140^8) -> 1.114979164 | L140: =$G$4+$H$4*(G140^1)+$I$4*(G140^2)+$J$4*(G140^3)+$K$4*(G140^4)+$L$4*(G140^5)+$M$4*(G140^6)+$N$4*(G140^7)+$O$4*(G140^8)+SUMPRODUCT($P$4:$U$4,$X$9:$AC$9) -> 0.02269705829 | M140: =$G$5+$H$5*(G140^1)+$I$5*(G140^2)+$J$5*(G140^3)+$K$5*(G140^4)+$L$5*(G140^5)+$M$5*(G140^6)+$N$5*(G140^7)+$O$5*(G140^8)+SUMPRODUCT($X$9:$AC$9,$P$5:$U$5) -> 0.01577602766 | AE140: 0.01674 | AF140: 0.02048 | AH140: -0.00126 | AJ140: -0.001228308882
A141: -14.8 | B141: -0.7022 | C141: 0.17119 | D141: 0.0289 | E141: 120000 | F141: =IF(E141=400000,"0","") ->  | G141: 11.2 | H141: 1.127 | I141: 0.02318 | J141: 0.0178 | K141: 1.127265922 | L141: 0.02344008168 | M141: 0.01708607107 | AE141: 0.01505 | AF141: 0.01941 | AH141: -0.00126 | AJ141: =$AC$3*(AE141^0)+$AD$3*(AE141^1)+$AE$3*(AE141^2)+$AF$3*(AE141^3)+$AG$3*(AE141^4)+$AH$3*(AE141^5)+$AI$3*(AE141^6)+$AJ$3*(AE141^7)+$AK$3*(AE141^8) -> -0.001221363944
A142: -14.6 | B142: -0.6961 | C142: 0.16802 | D142: 0.0278 | E142: 120000 | G142: 11.4 | H142: 1.1404 | I142: 0.02381 | J142: 0.0189 | K142: 1.139125724 | L142: 0.02422098243 | M142: 0.01840500856 | AE142: 0.01347 | AF142: 0.01837 | AH142: -0.00126 | AJ142: -0.001214478991
A143: -14.4 | B143: -0.684 | C143: 0.16563 | D143: 0.028 | E143: 120000 | G143: 11.6 | H143: 1.1527 | I143: 0.02449 | J143: 0.02 | K143: 1.150536295 | L143: 0.02504371818 | M143: 0.01972479244 | AE143: 0.01202 | AF143: 0.01733 | AH143: -0.00126 | AJ143: -0.001207815703
A144: -14.2 | B144: -0.6888 | C144: 0.16282 | D144: 0.0249 | E144: 120000 | G144: 11.8 | H144: 1.1633 | I144: 0.02535 | J144: 0.0214 | K144: 1.16147225 | L144: 0.02591263095 | M144: 0.02103638833 | AE144: 0.01066 | AF144: 0.01631 | AH144: -0.00126 | AJ144: -0.001201256608
A145: -14 | B145: -0.6845 | C145: 0.15959 | D145: 0.0236 | E145: 120000 | G145: 12 | H145: 1.173 | I145: 0.02607 | J145: 0.023 | K145: 1.171904773 | L145: 0.02683247078 | M145: 0.02232970395 | AE145: 0.0094 | AF145: 0.01529 | AH145: -0.00126 | AJ145: -0.001194904812
A146: -13.8 | B146: -0.6722 | C146: 0.15724 | D146: 0.0239 | E146: 120000 | G146: 12.2 | H146: 1.1818 | I146: 0.02683 | J146: 0.0246 | K146: 1.181801283 | L146: 0.02780842026 | M146: 0.0235935145 | AE146: 0.00822 | AF146: 0.01428 | AH146: -0.00126 | AJ146: -0.001188710057
A147: -13.6 | B147: -0.6846 | C147: 0.15371 | D147: 0.0194 | E147: 120000 | G147: 12.4 | H147: 1.1905 | I147: 0.02761 | J147: 0.0261 | K147: 1.191125086 | L147: 0.0288461199 | M147: 0.02481538465 | AE147: 0.00715 | AF147: 0.01326 | AH147: -0.00126 | AJ147: -0.001182881836
A148: -13.4 | B148: -0.6737 | C148: 0.15075 | D148: 0.0196 | E148: 120000 | G148: 12.6 | H148: 1.199 | I148: 0.02846 | J148: 0.0274 | K148: 1.199834995 | L148: 0.02995169433 | M148: 0.02598158699 | AE148: 0.00615 | AF148: 0.01225 | AH148: -0.00126 | AJ148: -0.001177249452
A149: -13.2 | B149: -0.6627 | C149: 0.14846 | D149: 0.0198 | E149: 120000 | G149: 12.8 | H149: 1.2064 | I149: 0.02953 | J149: 0.0288 | K149: 1.207884939 | L149: 0.03113177949 | M149: 0.02707701688 | AE149: 0.00524 | AF149: 0.01124 | AH149: -0.00126 | AJ149: -0.001171965083
A150: -13 | B150: -0.6869 | C150: 0.14356 | D150: 0.0132 | E150: 120000 | G150: 13 | H150: 1.2121 | I150: 0.03058 | J150: 0.0302 | K150: 1.215223545 | L150: 0.03239355057 | M150: 0.02808510363 | AE150: 0.0044 | AF150: 0.01023 | AH150: -0.00126 | AJ150: -0.001166950297
A151: -12.8 | B151: -0.6612 | C151: 0.14196 | D151: 0.0165 | E151: 120000 | G151: 13.2 | H151: 1.2179 | I151: 0.0317 | J151: 0.0314 | K151: 1.221793706 | L151: 0.033744751 | M151: 0.02898771783 | AE151: 0.00363 | AF151: 0.00922 | AH151: -0.00126 | AJ151: -0.001162235979
A152: -12.6 | B152: -0.6573 | C152: 0.13918 | D152: 0.0155 | E152: 120000 | G152: 13.4 | H152: 1.2237 | I152: 0.03285 | J152: 0.0324 | K152: 1.227532111 | L152: 0.03519372228 | M152: 0.02976507484 | AE152: 0.00294 | AF152: 0.0082 | AH152: -0.00126 | AJ152: -0.001157914556
A153: -12.4 | B153: -0.668 | C153: 0.13466 | D153: 0.0118 | E153: 120000 | G153: 13.6 | H153: 1.2296 | I153: 0.03404 | J153: 0.0332 | K153: 1.232368772 | L153: 0.03674943476 | M153: 0.0303956343 | AE153: 0.00233 | AF153: 0.00719 | AH153: -0.00126 | AJ153: -0.001154016829
A154: -12.2 | B154: -0.6526 | C154: 0.1328 | D154: 0.0131 | E154: 120000 | G154: 13.8 | H154: 1.2358 | I154: 0.03527 | J154: 0.0339 | K154: 1.236226505 | L154: 0.03842151942 | M154: 0.03085599549 | AE154: 0.0018 | AF154: 0.00617 | AH154: -0.00126 | AJ154: -0.001150570636
A155: -12 | B155: -0.6768 | C155: 0.12727 | D155: 0.0071 | E155: 120000 | G155: 14 | H155: 1.2421 | I155: 0.03664 | J155: 0.0347 | K155: 1.239020408 | L155: 0.04022030056 | M155: 0.03112078858 | AE155: 0.00134 | AF155: 0.00516 | AH155: -0.00126 | AJ155: -0.001147534167
A156: -11.8 | B156: -0.6583 | C156: 0.12527 | D156: 0.0091 | E156: 120000 | G156: 14.2 | H156: 1.2423 | I156: 0.03848 | J156: 0.0352 | K156: 1.240657292 | L156: 0.04215682947 | M156: 0.03116256158 | AE156: 0.00095 | AF156: 0.00414 | AH156: -0.00126 | AJ156: -0.001144926395
A157: -11.6 | B157: -0.6514 | C157: 0.12262 | D157: 0.0089 | E157: 120000 | G157: 14.4 | H157: 1.2422 | I157: 0.04049 | J157: 0.0354 | K157: 1.241035107 | L157: 0.04424291913 | M157: 0.03095166292 | AE157: 0.00063 | AF157: 0.00314 | AH157: -0.00126 | AJ157: -0.001142763635
A158: -11.4 | B158: -0.6856 | C158: 0.11541 | D158: 0.0014 | E158: 120000 | G158: 14.6 | H158: 1.2421 | I158: 0.04259 | J158: 0.0354 | K158: 1.240042321 | L158: 0.04649117991 | M158: 0.03045611952 | AE158: 0.00037 | AF158: 0.00214 | AH158: -0.00126 | AJ158: -0.001140990995
A159: -11.2 | B159: -0.6668 | C159: 0.11358 | D159: 0.0037 | E159: 120000 | G159: 14.8 | H159: 1.2423 | I159: 0.04474 | J159: 0.0352 | K159: 1.237557285 | L159: 0.04891505623 | M159: 0.02964151033 | AE159: 0.00018 | AF159: 0.00115 | AH159: -0.00126
A160: -11 | B160: -0.663 | C160: 0.11029 | D160: 0.0031 | E160: 120000 | G160: 15 | H160: 1.2424 | I160: 0.04699 | J160: 0.0348 | K160: 1.233447563 | L160: 0.05152886432 | M160: 0.02847083511 | AE160: 6e-05 | AF160: 0.00017 | AH160: -0.00126
A161: -10.8 | B161: -1.0182 | C161: 0.04794 | D161: -0.0248 | E161: 120000 | G161: -4.9 | H161: -0.842 | I161: 0.0093 | J161: 0.0575 | K161: -0.5815994587 | L161: 0.008513833369 | M161: 0.004622692056 | AE161: -0.00079 | AF161: 0 | AH161: -0.0007098611111
A162: -10.6 | B162: -1.0218 | C162: 0.04513 | D162: -0.0225 | E162: 120000 | G162: -4.8 | H162: -0.8318 | I162: 0.00919 | J162: 0.0576 | K162: -0.5706672529 | L162: 0.008396154681 | M162: 0.004639460343 | AE162: -0.00174 | AF162: 0 | AH162: 0
A163: -10.4 | B163: -1.0244 | C163: 0.04248 | D163: -0.02 | E163: 120000 | G163: -4.7 | H163: -0.8215 | I163: 0.00908 | J163: 0.0578 | K163: -0.5596806898 | L163: 0.008281023474 | M163: 0.00464876609 | AE163: 6e-05 | AF163: -0.00269
A164: -10.2 | B164: -1.0071 | C164: 0.04093 | D164: -0.0198 | E164: 120000 | G164: -4.6 | H164: -0.8112 | I164: 0.00897 | J164: 0.0579 | K164: -0.5486406852 | L164: 0.008168390237 | M164: 0.004650790616 | AE164: 0.00018 | AF164: -0.00367
A165: -10 | B165: -0.9957 | C165: 0.03928 | D165: -0.0187 | E165: 120000 | G165: -4.5 | H165: -0.8009 | I165: 0.00886 | J165: 0.058 | K165: -0.5375481577 | L165: 0.008058208464 | M165: 0.004645715906 | AE165: 0.00037 | AF165: -0.00466
A166: -9.8 | B166: -0.9878 | C166: 0.03727 | D166: -0.017 | E166: 120000 | G166: -4.4 | H166: -0.7906 | I166: 0.00875 | J166: 0.0582 | K166: -0.5264040289 | L166: 0.007950434633 | M166: 0.004633724408 | AE166: 0.00063 | AF166: -0.00566
A167: -9.6 | B167: -0.9778 | C167: 0.03537 | D167: -0.0155 | E167: 120000 | G167: -4.3 | H167: -0.7803 | I167: 0.00864 | J167: 0.0583 | K167: -0.5152092243 | L167: 0.007845028186 | M167: 0.00461499884 | AE167: 0.00095 | AF167: -0.00666
A168: -9.4 | B168: -0.9599 | C168: 0.03415 | D168: -0.0151 | E168: 120000 | G168: -4.2 | H168: -0.7699 | I168: 0.00854 | J168: 0.0585 | K168: -0.5039646732 | L168: 0.007741951495 | M168: 0.004589722009 | AE168: 0.00134 | AF168: -0.00768
A169: -9.2 | B169: -0.9473 | C169: 0.03266 | D169: -0.0137 | E169: 120000 | G169: -4.1 | H169: -0.7596 | I169: 0.00844 | J169: 0.0586 | K169: -0.4926713097 | L169: 0.007641169829 | M169: 0.004558076633 | AE169: 0.0018 | AF169: -0.00869
A170: -9 | B170: -0.9309 | C170: 0.0313 | D170: -0.013 | E170: 120000 | G170: -4 | H170: -0.7492 | I170: 0.00834 | J170: 0.0587 | K170: -0.4813300728 | L170: 0.007542651325 | M170: 0.004520245179 | AE170: 0.00233 | AF170: -0.00971
A171: -8.8 | B171: -0.9146 | C171: 0.03014 | D171: -0.0122 | E171: 120000 | G171: -3.9 | H171: -0.7388 | I171: 0.00824 | J171: 0.0589 | K171: -0.4699419073 | L171: 0.007446366946 | M171: 0.004476409705 | AE171: 0.00294 | AF171: -0.01072
A172: -8.6 | B172: -0.898 | C172: 0.02891 | D172: -0.0114 | E172: 120000 | G172: -3.8 | H172: -0.7284 | I172: 0.00815 | J172: 0.059 | K172: -0.4585077637 | L172: 0.007352290437 | M172: 0.004426751714 | AE172: 0.00363 | AF172: -0.01174
A173: -8.4 | B173: -0.8813 | C173: 0.02789 | D173: -0.0105 | E173: 120000 | G173: -3.7 | H173: -0.718 | I173: 0.00805 | J173: 0.0592 | K173: -0.4470285989 | L173: 0.007260398286 | M173: 0.004371452014 | AE173: 0.0044 | AF173: -0.01275
A174: -8.2 | B174: -0.8636 | C174: 0.02685 | D174: -0.0098 | E174: 120000 | G174: -3.6 | H174: -0.7076 | I174: 0.00796 | J174: 0.0593 | K174: -0.4355053765 | L174: 0.007170669674 | M174: 0.004310690585 | AE174: 0.00524 | AF174: -0.01376
A175: -8 | B175: -0.8468 | C175: 0.02584 | D175: -0.0089 | E175: 120000 | G175: -3.5 | H175: -0.6973 | I175: 0.00786 | J175: 0.0595 | K175: -0.4239390677 | L175: 0.007083086425 | M175: 0.004244646463 | AE175: 0.00615 | AF175: -0.01477
A176: -7.8 | B176: -0.8296 | C176: 0.02496 | D176: -0.0081 | E176: 120000 | G176: -3.4 | H176: -0.6869 | I176: 0.00777 | J176: 0.0596 | K176: -0.4123306507 | L176: 0.006997632956 | M176: 0.004173497621 | AE176: 0.00715 | AF176: -0.01578
A177: -7.6 | B177: -0.8124 | C177: 0.02407 | D177: -0.0073 | E177: 120000 | G177: -3.3 | H177: -0.6765 | I177: 0.00768 | J177: 0.0598 | K177: -0.4006811123 | L177: 0.00691429622 | M177: 0.00409742087 | AE177: 0.00822 | AF177: -0.0168
A178: -7.4 | B178: -0.7957 | C178: 0.02323 | D178: -0.0064 | E178: 120000 | G178: -3.2 | H178: -0.6662 | I178: 0.00759 | J178: 0.0599 | K178: -0.388991447 | L178: 0.006833065647 | M178: 0.004016591757 | AE178: 0.0094 | AF178: -0.01781
A179: -7.2 | B179: -0.7793 | C179: 0.02242 | D179: -0.0054 | E179: 120000 | G179: -3.1 | H179: -0.6558 | I179: 0.0075 | J179: 0.0601 | K179: -0.3772626584 | L179: 0.00675393309 | M179: 0.003931184478 | AE179: 0.01066 | AF179: -0.01883
A180: -7 | B180: -0.7632 | C180: 0.02166 | D180: -0.0044 | E180: 120000 | G180: -3 | H180: -0.6454 | I180: 0.00742 | J180: 0.0602 | K180: -0.3654957589 | L180: 0.006676892759 | M180: 0.003841371799 | AE180: 0.01202 | AF180: -0.01985
A181: -6.8 | B181: -0.7474 | C181: 0.02094 | D181: -0.0032 | E181: 120000 | G181: -2.9 | H181: -0.6349 | I181: 0.00734 | J181: 0.0604 | K181: -0.3536917702 | L181: 0.006601941156 | M181: 0.003747324983 | AE181: 0.01347 | AF181: -0.02089
A182: -6.6 | B182: -0.7322 | C182: 0.02018 | D182: -0.0021 | E182: 120000 | G182: -2.8 | H182: -0.6245 | I182: 0.00726 | J182: 0.0606 | K182: -0.3418517236 | L182: 0.006529077013 | M182: 0.003649213725 | AE182: 0.01505 | AF182: -0.02193
A183: -6.4 | B183: -0.7171 | C183: 0.0195 | D183: -0.0009 | E183: 120000 | G183: -2.7 | H183: -0.6141 | I183: 0.00718 | J183: 0.0607 | K183: -0.3299766601 | L183: 0.006458301224 | M183: 0.003547206094 | AE183: 0.01674 | AF183: -0.023
A184: -6.2 | B184: -0.7023 | C184: 0.01883 | D184: 0.0004 | E184: 120000 | G184: -2.6 | H184: -0.6037 | I184: 0.0071 | J184: 0.0609 | K184: -0.3180676309 | L184: 0.006389616769 | M184: 0.003441468486 | AE184: 0.01856 | AF184: -0.02407
A185: -6 | B185: -0.6879 | C185: 0.01817 | D185: 0.0017 | E185: 120000 | G185: -2.5 | H185: -0.5933 | I185: 0.00703 | J185: 0.0611 | K185: -0.3061256976 | L185: 0.006323028653 | M185: 0.00333216558 | AE185: 0.02052 | AF185: -0.02516
A186: -5.8 | B186: -0.6734 | C186: 0.01755 | D186: 0.003 | E186: 120000 | G186: -2.4 | H186: -0.5829 | I186: 0.00695 | J186: 0.0612 | K186: -0.294151932 | L186: 0.006258543823 | M186: 0.003219460302 | AE186: 0.02264 | AF186: -0.02626
A187: -5.6 | B187: -0.659 | C187: 0.01697 | D187: 0.0043 | E187: 120000 | G187: -2.3 | H187: -0.5725 | I187: 0.00688 | J187: 0.0614 | K187: -0.2821474167 | L187: 0.006196171103 | M187: 0.003103513803 | AE187: 0.02493 | AF187: -0.02739
A188: -5.4 | B188: -0.6446 | C188: 0.01644 | D188: 0.0056 | E188: 120000 | G188: -2.2 | H188: -0.5622 | I188: 0.00681 | J188: 0.0616 | K188: -0.2701132451 | L188: 0.006135921109 | M188: 0.002984485432 | AE188: 0.02741 | AF188: -0.02853
A189: -5.2 | B189: -0.6298 | C189: 0.01597 | D189: 0.0069 | E189: 120000 | G189: -2.1 | H189: -0.5518 | I189: 0.00674 | J189: 0.0618 | K189: -0.2580505218 | L189: 0.00607780618 | M189: 0.002862532729 | AE189: 0.03009 | AF189: -0.02971
A190: -5 | B190: -0.6149 | C190: 0.01555 | D190: 0.0082 | E190: 120000 | G190: -2 | H190: -0.5414 | I190: 0.00667 | J190: 0.0619 | K190: -0.2459603619 | L190: 0.006021840296 | M190: 0.002737811411 | AE190: 0.03301 | AF190: -0.03091
A191: -4.8 | B191: -0.5997 | C191: 0.01517 | D191: 0.0095 | E191: 120000 | G191: -1.9 | H191: -0.531 | I191: 0.00661 | J191: 0.0621 | K191: -0.2338438922 | L191: 0.005968038998 | M191: 0.002610475378 | AE191: 0.03617 | AF191: -0.03214
A192: -4.6 | B192: -0.5841 | C192: 0.01485 | D192: 0.0107 | E192: 120000 | G192: -1.8 | H192: -0.5207 | I192: 0.00655 | J192: 0.0623 | K192: -0.2217022503 | L192: 0.005916419309 | M192: 0.002480676717 | AE192: 0.0396 | AF192: -0.03339
A193: -4.4 | B193: -0.5683 | C193: 0.01455 | D193: 0.0119 | E193: 120000 | G193: -1.7 | H193: -0.5104 | I193: 0.00648 | J193: 0.0625 | K193: -0.2095365852 | L193: 0.005866999655 | M193: 0.002348565714 | AE193: 0.04333 | AF193: -0.03468
A194: -4.2 | B194: -0.5523 | C194: 0.01429 | D194: 0.0131 | E194: 120000 | G194: -1.6 | H194: -0.5002 | I194: 0.00642 | J194: 0.0627 | K194: -0.1973480571 | L194: 0.005819799779 | M194: 0.002214290874 | AE194: 0.04737 | AF194: -0.03599
A195: -4 | B195: -0.536 | C195: 0.01406 | D195: 0.0143 | E195: 120000 | G195: -1.5 | H195: -0.49 | I195: 0.00636 | J195: 0.063 | K195: -0.1851378373 | L195: 0.005774840661 | M195: 0.002077998943 | AE195: 0.05174 | AF195: -0.03733
A196: -3.8 | B196: -0.5195 | C196: 0.01385 | D196: 0.0154 | E196: 120000 | G196: -1.4 | H196: -0.4798 | I196: 0.00631 | J196: 0.0632 | K196: -0.1729071083 | L196: 0.005732144434 | M196: 0.001939834943 | AE196: 0.05645 | AF196: -0.03868
A197: -3.6 | B197: -0.5028 | C197: 0.01366 | D197: 0.0166 | E197: 120000 | G197: -1.3 | H197: -0.4697 | I197: 0.00625 | J197: 0.0634 | K197: -0.1606570639 | L197: 0.005691734302 | M197: 0.001799942204 | AE197: 0.0615 | AF197: -0.04004
A198: -3.4 | B198: -0.4859 | C198: 0.0135 | D198: 0.0177 | E198: 120000 | G198: -1.2 | H198: -0.4596 | I198: 0.0062 | J198: 0.0637 | K198: -0.1483889085 | L198: 0.005653634453 | M198: 0.001658462408 | AE198: 0.0669 | AF198: -0.04139
A199: -3.2 | B199: -0.469 | C199: 0.01336 | D199: 0.0189 | E199: 120000 | G199: -1.1 | H199: -0.4496 | I199: 0.00615 | J199: 0.0639 | K199: -0.1361038576 | L199: 0.005617869978 | M199: 0.001515535634 | AE199: 0.07264 | AF199: -0.04273
A200: -3 | B200: -0.452 | C200: 0.01325 | D200: 0.02 | E200: 120000 | G200: -1 | H200: -0.4396 | I200: 0.0061 | J200: 0.0642 | K200: -0.1238031374 | L200: 0.005584466784 | M200: 0.00137130041 | AE200: 0.0787 | AF200: -0.04406
... 6553 more rows

Sheet 垂直翼型解析(sht13)
A1: 1 | B1: 2 | C1: 3 | D1: 4 | E1: 5 | F1: 6 | G1: 7 | H1: 8 | I1: 9 | J1: 10 | K1: 11 | L1: 12 | M1: 13 | N1: 14 | O1: 15 | P1: 16 | Q1: 17 | R1: 18 | S1: 19 | T1: 20 | U1: 21 | V1: 22 | W1: 23 | X1: 24 | Y1: 25 | Z1: 26 | AA1: 27 | AB1: 28 | AC1: 29 | AD1: 30 | AE1: 31 | AF1: 32 | AG1: 33 | AH1: 34 | AI1: 35 | AJ1: 36 | AK1: 37
A2: マクロボタン | G2: 1 | H2: α | I2: α^2 | J2: α^3 | K2: α^4 | L2: α^5 | M2: α^6 | N2: α^7 | O2: α^8 | P2: Re | Q2: Re^2 | R2: Re^3 | S2: Re^4 | T2: Re^5 | U2: Re^6 | W2: 解析範囲 | X2: 最小 | Y2: 最大 | Z2: Δ | AB2: - | AC2: 1 | AD2: x^1 | AE2: x^2 | AF2: x^3 | AG2: x^4 | AH2: x^5 | AI2: x^6 | AJ2: x^7 | AK2: x^8
F3: Cl | G3: 0.0004089163327 | H3: 0.1423841992 | I3: -0.0001063618738 | J3: -0.0007807182308 | K3: 4.135054472e-06 | L3: 4.460256729e-06 | M3: -4.707507793e-08 | N3: -1.051837207e-08 | O3: 1.48579711e-10 | P3: 0 | Q3: 0 | R3: 0 | S3: 0 | T3: 0 | U3: 0 | W3: α | X3: =MIN(A12:A12578) -> -15 | Y3: =MAX(A12:A12578) -> 15 | Z3: =ABS(A12-A13) -> 0.2 | AB3: zc | AC3: -0.000945 | AD3: -1.436455462e-12 | AE3: 1.836576737e-11 | AF3: -2.900510922e-10 | AG3: 3.726527752e-10 | AH3: -1.382432947e-09 | AI3: 2.799937869e-09 | AJ3: -1.865012035e-09 | AK3: 2.880337333e-10
F4: Cd0 | G4: 0.03652172754 | H4: 6.34496901e-05 | I4: 0.0002209063578 | J4: -3.474658697e-06 | K4: 2.705782118e-07 | L4: 4.747327347e-08 | M4: -4.70403406e-09 | N4: -1.793747475e-10 | O4: 2.111222114e-11 | P4: -2.755176765e-07 | Q4: 1.28022396e-12 | R4: -3.129166595e-18 | S4: 3.998866903e-24 | T4: -2.624798912e-30 | U4: 7.140667029e-37 | W4: Re | X4: =MIN(E12:E12578) -> 100000 | Y4: =MAX(E12:E12578) -> 900000 | Z4: 20000
F5: Cm | G5: -0.009849157489 | H5: -0.00633412854 | I5: -5.949092773e-06 | J5: 0.0001612437334 | K5: 1.286447066e-07 | L5: -9.825217826e-07 | M5: -6.55230107e-10 | N5: 1.926255942e-09 | O5: 1.87630995e-12 | P5: 1.329797563e-07 | Q5: -6.448711372e-13 | R5: 1.507847564e-18 | S5: -1.796603383e-24 | T5: 1.017177144e-30 | U5: -2.047704876e-37 | W5: 翼型名 | X5: NACA0009
F6: Clα | G6: =H3 -> 0.1423841992 | H6: =2*I3 -> -0.0002127237476 | I6: =3*J3 -> -0.002342154692 | J6: =4*K3 -> 1.654021789e-05 | K6: =5*L3 -> 2.230128365e-05 | L6: =6*M3 -> -2.824504676e-07 | M6: =7*N3 -> -7.362860449e-08 | N6: =8*O3 -> 1.188637688e-09
F7: Cd0α | G7: =H4 -> 6.34496901e-05 | H7: =2*I4 -> 0.0004418127157 | I7: =3*J4 -> -1.042397609e-05 | J7: =4*K4 -> 1.082312847e-06 | K7: =5*L4 -> 2.373663673e-07 | L7: =6*M4 -> -2.822420436e-08 | M7: =7*N4 -> -1.255623232e-09 | N7: =8*O4 -> 1.688977691e-10 | P7: 多変数の最小二乗法
F8: Cmα | G8: =H5 -> -0.00633412854 | H8: =2*I5 -> -1.189818555e-05 | I8: =3*J5 -> 0.0004837312002 | J8: =4*K5 -> 5.145788263e-07 | K8: =5*L5 -> -4.912608913e-06 | L8: =6*M5 -> -3.931380642e-09 | M8: =7*N5 -> 1.348379159e-08 | N8: =8*O5 -> 1.50104796e-11 | P8: https://mathtrain.jp/leastsquarematrix | W8: 1 | X8: Re^1 | Y8: Re^2 | Z8: Re^3 | AA8: Re^4 | AB8: Re^5 | AC8: Re^6
W9: 1 | X9: 480000 | Y9: =X9*$X9 -> 230400000000 | Z9: =Y9*$X9 -> 1.10592e+17 | AA9: =Z9*$X9 -> 5.308416e+22 | AB9: =AA9*$X9 -> 2.54803968e+28 | AC9: =AB9*$X9 -> 1.223059046e+34
A10: ↓XFLR５の解析結果（csv_foil.f90によって生成） | AE10: ↓翼型データを張り付け | AH10: キャンバーライン | AJ10: 近似キャンバーライン
A11: α | B11: Cl | C11: Cd | D11: Cm | E11: Re | G11: α | H11: Cl | I11: Cd0 | J11: Cm | K11: 近似Cl | L11: 近似Cd | M11: 近似Cm | N11: Cn | O11: Ct | AE11: x | AF11: z | AH11: zc | AJ11: 近似zc | AM11: 名 | AN11: 記号 | AO11: 値 | AP11: 単位
A12: -8.6 | B12: -0.8086 | C12: 0.05442 | D12: -0.0217 | E12: 100000 | F12: =IF(E12=400000,"0","") ->  | G12: -13.4 | H12: -0.9388 | I12: 0.0705 | J12: -0.0222 | K12: =$G$3+$H$3*(G12^1)+$I$3*(G12^2)+$J$3*(G12^3)+$K$3*(G12^4)+$L$3*(G12^5)+$M$3*(G12^6)+$N$3*(G12^7)+$O$3*(G12^8) -> -1.143931352 | L12: =$G$4+$H$4*(G12^1)+$I$4*(G12^2)+$J$4*(G12^3)+$K$4*(G12^4)+$L$4*(G12^5)+$M$4*(G12^6)+$N$4*(G12^7)+$O$4*(G12^8)+SUMPRODUCT($P$4:$U$4,$X$9:$AC$9) -> 0.05132375775 | M12: =$G$5+$H$5*(G12^1)+$I$5*(G12^2)+$J$5*(G12^3)+$K$5*(G12^4)+$L$5*(G12^5)+$M$5*(G12^6)+$N$5*(G12^7)+$O$5*(G12^8)+SUMPRODUCT($X$9:$AC$9,$P$5:$U$5) -> -0.02659871 | N12: =H12*COS(RADIANS(G12))+I12*SIN(RADIANS(G12)) -> -0.9295802217 | O12: =I12*COS(RADIANS(G12))-H12*SIN(RADIANS(G12)) -> -0.1489842324 | AE12: 1 | AF12: 0 | AH12: -0.000945 | AJ12: =$AC$3*(AE12^0)+$AD$3*(AE12^1)+$AE$3*(AE12^2)+$AF$3*(AE12^3)+$AG$3*(AE12^4)+$AH$3*(AE12^5)+$AI$3*(AE12^6)+$AJ$3*(AE12^7)+$AK$3*(AE12^8) -> -0.0009450000599 | AM12: 翼型2 | AN12: 全周 | AO12: 2.024369477 | AP12: m
A13: -8.4 | B13: -0.8031 | C13: 0.05108 | D13: -0.0206 | E13: 100000 | F13: =IF(E13=400000,"0","") ->  | G13: -13.2 | H13: -0.9659 | I13: 0.06158 | J13: -0.0293 | K13: -1.141478765 | L13: 0.04924036987 | M13: -0.02667221058 | N13: =H13*COS(RADIANS(G13))+I13*SIN(RADIANS(G13)) -> -0.9544417089 | O13: =I13*COS(RADIANS(G13))-H13*SIN(RADIANS(G13)) -> -0.1606111166 | AE13: 0.99692 | AF13: 0.00074 | AH13: -0.000945 | AJ13: =$AC$3*(AE13^0)+$AD$3*(AE13^1)+$AE$3*(AE13^2)+$AF$3*(AE13^3)+$AG$3*(AE13^4)+$AH$3*(AE13^5)+$AI$3*(AE13^6)+$AJ$3*(AE13^7)+$AK$3*(AE13^8) -> -0.0009450000593 | AN13: プランク長 | AO13: 0.8286791537 | AP13: m
A14: -8.2 | B14: -0.8058 | C14: 0.04676 | D14: -0.0185 | E14: 100000 | G14: -13 | H14: -0.9932 | I14: 0.05394 | J14: -0.0351 | K14: -1.137292814 | L14: 0.04732063797 | M14: -0.02673721172 | N14: -0.9798782082 | O14: -0.1708638659 | AE14: 0.99202 | AF14: 0.00169 | AH14: -0.000945 | AJ14: -0.0009450000584 | AN14: リブ材長 | AO14: 1.195690323 | AP14: m
A15: -8 | B15: -0.8085 | C15: 0.04259 | D15: -0.0157 | E15: 100000 | G15: -12.8 | H15: -1.0116 | I15: 0.04894 | J15: -0.0381 | K15: -1.131627093 | L15: 0.04554699497 | M15: -0.02677243088 | N15: -0.9973036703 | O15: -0.1763946508 | AE15: 0.9867 | AF15: 0.00239 | AH15: -0.000945 | AJ15: -0.0009450000574 | AN15: リブ面積 | AO15: 0.0616533657 | AP15: m^2
A16: -7.8 | B16: -0.8013 | C16: 0.03975 | D16: -0.0139 | E16: 100000 | G16: -12.6 | H16: -1.025 | I16: 0.04537 | J16: -0.0391 | K16: -1.124708277 | L16: 0.04390345912 | M16: -0.02675973703 | N16: -1.01021184 | O16: -0.1793194789 | AE16: 0.98082 | AF16: 0.00295 | AH16: -0.000945 | AJ16: -0.0009450000565 | AN16: 翼厚 | AO16: 8.913 | AP16: %
A17: -7.6 | B17: -0.7938 | C17: 0.03718 | D17: -0.0117 | E17: 100000 | G17: -12.4 | H17: -1.037 | I17: 0.04245 | J17: -0.0389 | K17: -1.116737903 | L17: 0.04237552825 | M17: -0.02668393656 | N17: -1.021924667 | O17: -0.1812207961 | AE17: 0.97432 | AF17: 0.00359 | AH17: -0.000945 | AJ17: -0.0009450000555 | AM17: プランク | AN17: 上面 | AO17: 0.4 | AP17: -
A18: -7.4 | B18: -0.7846 | C18: 0.03485 | D18: -0.0096 | E18: 100000 | G18: -12.2 | H18: -1.049 | I18: 0.0399 | J18: -0.0375 | K18: -1.10789409 | L18: 0.04095007895 | M18: -0.02653256678 | N18: -1.033741132 | O18: -0.1826808173 | AE18: 0.96732 | AF18: 0.00432 | AH18: -0.000945 | AJ18: -0.0009450000546 | AN18: 下面 | AO18: 0.4 | AP18: -
A19: -7.2 | B19: -0.7695 | C19: 0.03269 | D19: -0.0085 | E19: 100000 | G19: -12 | H19: -1.0614 | I19: 0.03757 | J19: -0.035 | K19: -1.098333179 | L19: 0.03961527072 | M19: -0.02629569694 | N19: -1.046017106 | O19: -0.1839284633 | AE19: 0.95998 | AF19: 0.00505 | AH19: -0.000945 | AJ19: -0.0009450000537 | AM19: 桁位置 | AN19: - | AO19: 0.35
A20: -7 | B20: -0.7535 | C20: 0.03111 | D20: -0.0075 | E20: 100000 | G20: -11.8 | H20: -1.0739 | I20: 0.03547 | J20: -0.0313 | K20: -1.088191305 | L20: 0.03836045464 | M20: -0.02596573658 | N20: -1.058459164 | O20: -0.1848878838 | AE20: 0.95242 | AF20: 0.00581 | AH20: -0.000945 | AJ20: -0.000945000053
A21: -6.8 | B21: -0.7385 | C21: 0.02944 | D21: -0.0061 | E21: 100000 | G21: -11.6 | H21: -1.0803 | I21: 0.03337 | J21: -0.0284 | K21: -1.077585908 | L21: 0.03717608673 | M21: -0.02553725109 | N21: -1.064945112 | O21: -0.1845360521 | AE21: 0.94476 | AF21: 0.00657 | AH21: -0.000945 | AJ21: -0.0009450000523
A22: -6.6 | B22: -0.7231 | C22: 0.02784 | D22: -0.0045 | E22: 100000 | G22: -11.4 | H22: -1.0723 | I22: 0.03237 | J22: -0.0269 | K22: -1.066617164 | L22: 0.03605364562 | M22: -0.02500678451 | N22: -1.057542949 | O22: -0.1802165882 | AE22: 0.93707 | AF22: 0.00732 | AH22: -0.000945 | AJ22: -0.0009450000517
A23: -6.4 | B23: -0.7044 | C23: 0.02642 | D23: -0.0039 | E23: 100000 | G23: -11.2 | H23: -1.0621 | I23: 0.03177 | J23: -0.0256 | K23: -1.05536937 | L23: 0.03498555453 | M23: -0.02437268927 | N23: -1.048043296 | O23: -0.1751313591 | AE23: 0.92934 | AF23: 0.00807 | AH23: -0.000945 | AJ23: -0.0009450000511
A24: -6.2 | B24: -0.6868 | C24: 0.02515 | D24: -0.0027 | E24: 100000 | G24: -11 | H24: -1.0521 | I24: 0.03105 | J24: -0.0242 | K24: -1.043912247 | L24: 0.03396510736 | M24: -0.02363496285 | N24: -1.038694579 | O24: -0.17027062 | AE24: 0.92163 | AF24: 0.00881 | AH24: -0.000945 | AJ24: -0.0009450000507
A25: -6 | B25: -0.6679 | C25: 0.02388 | D25: -0.0021 | E25: 100000 | G25: -10.8 | H25: -1.0449 | I25: 0.02988 | J25: -0.0224 | K25: -1.032302196 | L25: 0.0329863987 | M25: -0.02279509129 | N25: -1.031990902 | O25: -0.1664439926 | AE25: 0.91396 | AF25: 0.00955 | AH25: -0.000945 | AJ25: -0.0009450000503
A26: -5.8 | B26: -0.6496 | C26: 0.02276 | D26: -0.0011 | E26: 100000 | G26: -10.6 | H26: -1.0391 | I26: 0.02866 | J26: -0.0202 | K26: -1.020583488 | L26: 0.03204425782 | M26: -0.02185589931 | N26: -1.026640167 | O26: -0.1629729213 | AE26: 0.90632 | AF26: 0.01026 | AH26: -0.000945 | AJ26: -0.00094500005
A27: -5.6 | B27: -0.6311 | C27: 0.02173 | D27: -0.0001 | E27: 100000 | G27: -10.4 | H27: -1.0291 | I27: 0.0273 | J27: -0.0189 | K27: -1.008789396 | L27: 0.03113418623 | M27: -0.0208214071 | N27: -1.017121573 | O27: -0.1589207512 | AE27: 0.89867 | AF27: 0.01098 | AH27: -0.000945 | AJ27: -0.0009450000497
A28: -5.4 | B28: -0.6135 | C28: 0.02071 | D28: 0.0008 | E28: 100000 | G28: -10.2 | H28: -1.0153 | I28: 0.02686 | J28: -0.0178 | K28: -0.9969432661 | L28: 0.03025229896 | M28: -0.01969669345 | N28: -1.004010297 | O28: -0.1533586428 | AE28: 0.891 | AF28: 0.01169 | AH28: -0.000945 | AJ28: -0.0009450000494
A29: -5.2 | B29: -0.5968 | C29: 0.01973 | D29: 0.0019 | E29: 100000 | G29: -10 | H29: -1.0016 | I29: 0.02633 | J29: -0.0167 | K29: -0.9850595464 | L29: 0.02939526918 | M29: -0.01848776532 | N29: -0.9909556019 | O29: -0.1479960266 | AE29: 0.8833 | AF29: 0.0124 | AH29: -0.000945 | AJ29: -0.0009450000492
A30: -5 | B30: -0.5811 | C30: 0.0188 | D30: 0.0032 | E30: 100000 | G30: -9.8 | H30: -0.9898 | I30: 0.0255 | J30: -0.0151 | K30: -0.9731447458 | L30: 0.02856027622 | M30: -0.01720143362 | N30: -0.9796970801 | O30: -0.1433454609 | AE30: 0.87565 | AF30: 0.0131 | AH30: -0.000945 | AJ30: -0.0009450000489
A31: -4.8 | B31: -0.5665 | C31: 0.01785 | D31: 0.0047 | E31: 100000 | G31: -9.6 | H31: -0.9787 | I31: 0.02426 | J31: -0.0136 | K31: -0.9611983514 | L31: 0.02774495682 | M31: -0.01584519506 | N31: -0.9690401313 | O31: -0.1392963086 | AE31: 0.86801 | AF31: 0.01379 | AH31: -0.000945 | AJ31: -0.0009450000488
A32: -4.6 | B32: -0.5537 | C32: 0.01683 | D32: 0.0065 | E32: 100000 | G32: -9.4 | H32: -0.964 | I32: 0.02359 | J32: -0.0126 | K32: -0.9492136907 | L32: 0.02694735937 | M32: -0.01442712004 | N32: -0.9549084232 | O32: -0.1341729903 | AE32: 0.86036 | AF32: 0.01448 | AH32: -0.000945 | AJ32: -0.0009450000486
A33: -4.4 | B33: -0.5427 | C33: 0.01572 | D33: 0.0084 | E33: 100000 | G33: -9.2 | H33: -0.949 | I33: 0.02304 | J33: -0.0116 | K33: -0.9371787448 | L33: 0.02616590122 | M33: -0.01295574642 | N33: -0.9404759781 | O33: -0.1289836276 | AE33: 0.85269 | AF33: 0.01516 | AH33: -0.000945 | AJ33: -0.0009450000484
A34: -4.2 | B34: -0.5326 | C34: 0.01475 | D34: 0.0106 | E34: 100000 | G34: -9 | H34: -0.9344 | I34: 0.02231 | J34: -0.0103 | K34: -0.9250769146 | L34: 0.02539932877 | M34: -0.01143997909 | N34: -0.9263860384 | O34: -0.1241370373 | AE34: 0.84499 | AF34: 0.01583 | AH34: -0.000945 | AJ34: -0.0009450000482
A35: -4 | B35: -0.5216 | C35: 0.01408 | D35: 0.0129 | E35: 100000 | G35: -8.8 | H35: -0.9195 | I35: 0.02168 | J35: -0.009 | K35: -0.9128877387 | L35: 0.02464668035 | M35: -0.009888995136 | N35: -0.9119927297 | O35: -0.1192456852 | AE35: 0.83728 | AF35: 0.0165 | AH35: -0.000945 | AJ35: -0.000945000048
A36: -3.8 | B36: -0.5095 | C36: 0.01358 | D36: 0.0151 | E36: 100000 | G36: -8.6 | H36: -0.9056 | I36: 0.02044 | J36: -0.0078 | K36: -0.9005875674 | L36: 0.02390725166 | M36: -0.008312154581 | N36: -0.8984742811 | O36: -0.1152090266 | AE36: 0.82955 | AF36: 0.01718 | AH36: -0.000945 | AJ36: -0.0009450000479
A37: -3.6 | B37: -0.4965 | C37: 0.01319 | D37: 0.0173 | E37: 100000 | G37: -8.4 | H37: -0.89 | I37: 0.0198 | J37: -0.0068 | K37: -0.8881501922 | L37: 0.02318056377 | M37: -0.006718916569 | N37: -0.8833448203 | O37: -0.1104263032 | AE37: 0.82181 | AF37: 0.01784 | AH37: -0.000945 | AJ37: -0.0009450000477
A38: -3.4 | B38: -0.4827 | C38: 0.01287 | D38: 0.0195 | E38: 100000 | G38: -8.2 | H38: -0.8739 | I38: 0.01926 | J38: -0.0057 | K38: -0.8755474327 | L38: 0.02246633352 | M38: -0.005118760831 | N38: -0.8677124815 | O38: -0.105580335 | AE38: 0.81407 | AF38: 0.0185 | AH38: -0.000945 | AJ38: -0.0009450000475
A39: -3.2 | B39: -0.4678 | C39: 0.01262 | D39: 0.0217 | E39: 100000 | G39: -8 | H39: -0.8578 | I39: 0.01866 | J39: -0.0046 | K39: -0.8627496826 | L39: 0.02176444616 | M39: -0.003521114356 | N39: -0.8520489194 | O39: -0.1009042838 | AE39: 0.80631 | AF39: 0.01915 | AH39: -0.000945 | AJ39: -0.0009450000472
A40: -3 | B40: -0.4514 | C40: 0.01245 | D40: 0.0237 | E40: 100000 | G40: -7.8 | H40: -0.8413 | I40: 0.01816 | J40: -0.0035 | K40: -0.8497264155 | L40: 0.02107493027 | M40: -0.001935283143 | N40: -0.835980753 | O40: -0.09618553031 | AE40: 0.79855 | AF40: 0.01979 | AH40: -0.000945 | AJ40: -0.000945000047
A41: -2.8 | B41: -0.4322 | C41: 0.01238 | D41: 0.0253 | E41: 100000 | G41: -7.6 | H41: -0.8268 | I41: 0.01721 | J41: -0.0022 | K41: -0.8364466526 | L41: 0.0203979347 | M41: -0.0003703889132 | N41: -0.8218131412 | O41: -0.09229076402 | AE41: 0.79078 | AF41: 0.02044 | AH41: -0.000945 | AJ41: -0.0009450000468
A42: -2.6 | B42: -0.4086 | C42: 0.01242 | D42: 0.0262 | E42: 100000 | G42: -7.4 | H42: -0.8114 | I42: 0.01656 | J42: -0.001 | K42: -0.8228793929 | L42: 0.01973370751 | M42: 0.001164689335 | N42: -0.8067748362 | O42: -0.08808267261 | AE42: 0.78301 | AF42: 0.02107 | AH42: -0.000945 | AJ42: -0.0009450000465
A43: -2.4 | B43: -0.3758 | C43: 0.01264 | D43: 0.0254 | E43: 100000 | G43: -7.2 | H43: -0.7953 | I43: 0.01606 | J43: 0.0001 | K43: -0.808994007 | L43: 0.01908257685 | M43: 0.002661369037 | N43: -0.7910416737 | O43: -0.08374415855 | AE43: 0.77523 | AF43: 0.0217 | AH43: -0.000945 | AJ43: -0.0009450000462
A44: -2.2 | B44: -0.333 | C44: 0.01298 | D44: 0.0224 | E44: 100000 | G44: -7 | H44: -0.779 | I44: 0.01561 | J44: 0.0013 | K44: -0.7947605973 | L44: 0.01844493358 | M44: 0.004111413164 | N44: -0.7750958326 | O44: -0.07944257309 | AE44: 0.76744 | AF44: 0.02232 | AH44: -0.000945 | AJ44: -0.0009450000459
A45: -2 | B45: -0.2793 | C45: 0.01337 | D45: 0.0171 | E45: 100000 | G45: -6.8 | H45: -0.7622 | I45: 0.01523 | J45: 0.0024 | K45: -0.7801503236 | L45: 0.01782121561 | M45: 0.005506974824 | N45: -0.7586416027 | O45: -0.07512463995 | AE45: 0.75968 | AF45: 0.02294 | AH45: -0.000945 | AJ45: -0.0009450000455
A46: -1.8 | B46: -0.2205 | C46: 0.01366 | D46: 0.0104 | E46: 100000 | G46: -6.6 | H46: -0.7483 | I46: 0.01449 | J46: 0.0039 | K46: -0.7651356972 | L46: 0.01721189389 | M46: 0.006840637494 | N46: -0.7450062798 | O46: -0.07161349834 | AE46: 0.75193 | AF46: 0.02355 | AH46: -0.000945 | AJ46: -0.0009450000451
A47: -1.6 | B47: -0.1607 | C47: 0.01379 | D47: 0.0032 | E47: 100000 | G47: -6.4 | H47: -0.7328 | I47: 0.01402 | J47: 0.0052 | K47: -0.7496908437 | L47: 0.01661745985 | M47: 0.008105450985 | N47: -0.7297959256 | O47: -0.06775180729 | AE47: 0.74421 | AF47: 0.02415 | AH47: -0.000945 | AJ47: -0.0009450000447
A48: -1.4 | B48: -0.1028 | C48: 0.01372 | D48: -0.0041 | E48: 100000 | G48: -6.2 | H48: -0.7165 | I48: 0.01365 | J48: 0.0064 | K48: -0.7337917365 | L48: 0.01603841436 | M48: 0.009294963262 | N48: -0.7137833569 | O48: -0.06381137771 | AE48: 0.73653 | AF48: 0.02474 | AH48: -0.000945 | AJ48: -0.0009450000443
A49: -1.2 | B49: -0.0449 | C49: 0.01352 | D49: -0.0117 | E49: 100000 | G49: -6 | H49: -0.6997 | I49: 0.01335 | J49: 0.0075 | K49: -0.7174164011 | L49: 0.01547525796 | M49: 0.01040324824 | N49: -0.6972624252 | O49: -0.05986169845 | AE49: 0.72887 | AF49: 0.02533 | AH49: -0.000945 | AJ49: -0.0009450000439
A50: -1 | B50: -0.0229 | C50: 0.01324 | D50: -0.0128 | E50: 100000 | G50: -5.8 | H50: -0.6853 | I50: 0.01279 | J50: 0.009 | K50: -0.7005450921 | L50: 0.01492848246 | M50: 0.01142492969 | N50: -0.6830842598 | O50: -0.05652935619 | AE50: 0.72119 | AF50: 0.02591 | AH50: -0.000945 | AJ50: -0.0009450000434
A51: -0.8 | B51: -0.0172 | C51: 0.013 | D51: -0.0106 | E51: 100000 | G51: -5.6 | H51: -0.6691 | I51: 0.01245 | J51: 0.0102 | K51: -0.6831604446 | L51: 0.01439856358 | M51: 0.0123552013 | N51: -0.6671215604 | O51: -0.0529021371 | AE51: 0.7135 | AF51: 0.02649 | AH51: -0.000945 | AJ51: -0.0009450000429
A52: -0.6 | B52: -0.0121 | C52: 0.01282 | D52: -0.0082 | E52: 100000 | G52: -5.4 | H52: -0.6522 | I52: 0.01219 | J52: 0.0113 | K52: -0.6652475999 | L52: 0.0138859549 | M52: 0.01318984315 | N52: -0.6504526937 | O52: -0.0492415416 | AE52: 0.70581 | AF52: 0.02706 | AH52: -0.000945 | AJ52: -0.0009450000423
A53: -0.4 | B53: -0.0075 | C53: 0.01269 | D53: -0.0056 | E53: 100000 | G53: -5.2 | H53: -0.637 | I53: 0.01176 | J53: 0.0127 | K53: -0.646794307 | L53: 0.01339108266 | M53: 0.01392523458 | N53: -0.6354442011 | O53: -0.04602135306 | AE53: 0.69814 | AF53: 0.02762 | AH53: -0.000945 | AJ53: -0.0009450000418
A54: -0.2 | B54: -0.0035 | C54: 0.01262 | D54: -0.0029 | E54: 100000 | G54: -5 | H54: -0.6201 | I54: 0.01151 | J54: 0.0138 | K54: -0.6277910021 | L54: 0.01291434161 | M54: 0.01455836359 | N54: -0.6187434949 | O54: -0.0425790751 | AE54: 0.69046 | AF54: 0.02817 | AH54: -0.000945 | AJ54: -0.0009450000412
A55: 0 | B55: 0 | C55: 0.01259 | D55: 0 | E55: 100000 | G55: -4.8 | H55: -0.6043 | I55: 0.01115 | J55: 0.0151 | K55: -0.6082308659 | L55: 0.01245609179 | M55: 0.01508683302 | N55: -0.6031136428 | O55: -0.03945562535 | AE55: 0.68275 | AF55: 0.02873 | AH55: -0.000945 | AJ55: -0.0009450000406
A56: 0.2 | B56: 0.0035 | C56: 0.01262 | D56: 0.0029 | E56: 100000 | G56: -4.6 | H56: -0.5881 | I56: 0.01083 | J56: 0.0163 | K56: -0.5881098598 | L56: 0.01201665602 | M56: 0.01550886348 | N56: -0.5870742128 | O56: -0.03636987214 | AE56: 0.67501 | AF56: 0.02928 | AH56: -0.000945 | AJ56: -0.00094500004
A57: 0.4 | B57: 0.0075 | C57: 0.01269 | D57: 0.0056 | E57: 100000 | G57: -4.4 | H57: -0.5722 | I57: 0.01049 | J57: 0.0175 | K57: -0.5674267435 | L57: 0.01159631824 | M57: 0.01582329316 | N57: -0.5713183674 | O57: -0.03343954452 | AE57: 0.66725 | AF57: 0.02982 | AH57: -0.000945 | AJ57: -0.0009450000393
A58: 0.6 | B58: 0.0121 | C58: 0.01282 | D58: 0.0082 | E58: 100000 | G58: -4.2 | H58: -0.5563 | I58: 0.01016 | J58: 0.0187 | K58: -0.5461830729 | L58: 0.0111953225 | M58: 0.01602957477 | N58: -0.5555501438 | O58: -0.03060969397 | AE58: 0.65948 | AF58: 0.03035 | AH58: -0.000945 | AJ58: -0.0009450000386
A59: 0.8 | B59: 0.0172 | C59: 0.013 | D59: 0.0106 | E59: 100000 | G59: -4 | H59: -0.5405 | I59: 0.00983 | J59: 0.0199 | K59: -0.5243831817 | L59: 0.01081387257 | M59: 0.01612776961 | N59: -0.5398690753 | O59: -0.02789731944 | AE59: 0.65171 | AF59: 0.03088 | AH59: -0.000945 | AJ59: -0.0009450000379
A60: 1 | B60: 0.0229 | C60: 0.01324 | D60: 0.0128 | E60: 100000 | G60: -3.8 | H60: -0.5247 | I60: 0.00952 | J60: 0.0211 | K60: -0.5020341456 | L60: 0.01045213216 | M60: 0.01611853887 | N60: -0.5241773579 | O60: -0.02527484556 | AE60: 0.64394 | AF60: 0.0314 | AH60: -0.000945 | AJ60: -0.0009450000372
A61: 1.2 | B61: 0.0449 | C61: 0.01352 | D61: 0.0117 | E61: 100000 | G61: -3.6 | H61: -0.5089 | I61: 0.00923 | J61: 0.0222 | K61: -0.4791457314 | L61: 0.01011022556 | M61: 0.01600313245 | N61: -0.5084753586 | O61: -0.02274230869 | AE61: 0.63617 | AF61: 0.03192 | AH61: -0.000945 | AJ61: -0.0009450000365
A62: 1.4 | B62: 0.1028 | C62: 0.01372 | D62: 0.0041 | E62: 100000 | G62: -3.4 | H62: -0.4933 | I62: 0.00894 | J62: 0.0234 | K62: -0.4557303316 | L62: 0.009788238833 | M62: 0.01578337513 | N62: -0.4929619061 | O62: -0.02033157002 | AE62: 0.6284 | AF62: 0.03243 | AH62: -0.000945 | AJ62: -0.0009450000357
A63: 1.6 | B63: 0.1607 | C63: 0.01378 | D63: -0.0031 | E63: 100000 | G63: -3.2 | H63: -0.47 | I63: 0.00864 | J63: 0.0229 | K63: -0.4318028856 | L63: 0.009486221343 | M63: 0.01546165061 | N63: -0.469749457 | O63: -0.01760957914 | AE63: 0.62064 | AF63: 0.03293 | AH63: -0.000945 | AJ63: -0.0009450000349
A64: 1.8 | B64: 0.2205 | C64: 0.01366 | D64: -0.0104 | E64: 100000 | G64: -3 | H64: -0.4409 | I64: 0.00833 | J64: 0.0211 | K64: -0.407380788 | L64: 0.009204187629 | M64: 0.01504088308 | N64: -0.4407317204 | O64: -0.01475633908 | AE64: 0.61287 | AF64: 0.03342 | AH64: -0.000945 | AJ64: -0.0009450000342
A65: 2 | B65: 0.2793 | C65: 0.01337 | D65: -0.0171 | E65: 100000 | G65: -2.8 | H65: -0.4118 | I65: 0.00804 | J65: 0.0195 | K65: -0.3824837862 | L65: 0.008942119607 | M65: 0.01452451684 | N65: -0.4117011195 | O65: -0.01208593386 | AE65: 0.60511 | AF65: 0.03391 | AH65: -0.000945 | AJ65: -0.0009450000334
A66: 2.2 | B66: 0.333 | C66: 0.01298 | D66: -0.0224 | E66: 100000 | G66: -2.6 | H66: -0.3836 | I66: 0.00774 | J66: 0.018 | K66: -0.3571338658 | L66: 0.008699968987 | M66: 0.01391649387 | N66: -0.3835562201 | O66: -0.009669210036 | AE66: 0.59735 | AF66: 0.03439 | AH66: -0.000945 | AJ66: -0.0009450000325
A67: 2.4 | B67: 0.3758 | C67: 0.01264 | D67: -0.0253 | E67: 100000 | G67: -2.4 | H67: -0.3553 | I67: 0.00744 | J67: 0.0166 | K67: -0.331355128 | L67: 0.008477659914 | M67: 0.01322122952 | N67: -0.3552998964 | O67: -0.007444945914 | AE67: 0.5896 | AF67: 0.03486 | AH67: -0.000945 | AJ67: -0.0009450000317
A68: 2.6 | B68: 0.4085 | C68: 0.01242 | D68: -0.0262 | E68: 100000 | G68: -2.2 | H68: -0.327 | I68: 0.00716 | J68: 0.0153 | K68: -0.3051736569 | L68: 0.008275091759 | M68: 0.01244358646 | N68: -0.3270338304 | O68: -0.00539809109 | AE68: 0.58187 | AF68: 0.03532 | AH68: -0.000945 | AJ68: -0.0009450000309
A69: 2.8 | B69: 0.4322 | C69: 0.01238 | D69: -0.0253 | E69: 100000 | G69: -2 | H69: -0.2997 | I69: 0.00691 | J69: 0.0142 | K69: -0.2786173794 | L69: 0.00809214203 | M69: 0.01158884699 | N69: -0.2997585864 | O69: -0.003553588547 | AE69: 0.57417 | AF69: 0.03578 | AH69: -0.000945 | AJ69: -0.0009450000301
A70: 3 | B70: 0.4514 | C70: 0.01245 | D70: -0.0237 | E70: 100000 | G70: -1.8 | H70: -0.2705 | I70: 0.00666 | J70: 0.0128 | K70: -0.2517159182 | L70: 0.007928669358 | M70: 0.01066268388 | N70: -0.2705757202 | O70: -0.001839896639 | AE70: 0.56646 | AF70: 0.03621 | AH70: -0.000945 | AJ70: -0.0009450000292
A71: 3.2 | B71: 0.4678 | C71: 0.01262 | D71: -0.0217 | E71: 100000 | G71: -1.6 | H71: -0.2447 | I71: 0.00643 | J71: 0.0122 | K71: -0.2245004376 | L71: 0.007784516539 | M71: 0.00967112976 | N71: -0.2447841313 | O71: -0.0004049319559 | AE71: 0.55875 | AF71: 0.03665 | AH71: -0.000945 | AJ71: -0.0009450000284
A72: 3.4 | B72: 0.4827 | C72: 0.01287 | D72: -0.0195 | E72: 100000 | G72: -1.4 | H72: -0.2176 | I72: 0.00621 | J72: 0.0113 | K72: -0.1970034855 | L72: 0.007659513568 | M72: 0.00862054531 | N72: -0.217686768 | O72: 0.0008917042855 | AE72: 0.55105 | AF72: 0.03708 | AH72: -0.000945 | AJ72: -0.0009450000275
A73: 3.6 | B73: 0.4965 | C73: 0.01319 | D73: -0.0173 | E73: 100000 | G73: -1.2 | H73: -0.1888 | I73: 0.006 | J73: 0.0102 | K73: -0.169258829 | L73: 0.007553480663 | M73: 0.007517586271 | N73: -0.1888842476 | O73: 0.002044755227 | AE73: 0.54336 | AF73: 0.03751 | AH73: -0.000945 | AJ73: -0.0009450000267
A74: 3.8 | B74: 0.5095 | C74: 0.01358 | D74: -0.0151 | E74: 100000 | G74: -1 | H74: -0.1614 | I74: 0.00582 | J74: 0.0093 | K74: -0.1413012881 | L74: 0.007466231223 | M74: 0.006369169453 | N74: -0.161476991 | O74: 0.003002295187 | AE74: 0.53567 | AF74: 0.03791 | AH74: -0.000945 | AJ74: -0.0009450000259
A75: 4 | B75: 0.5216 | C75: 0.01408 | D75: -0.0129 | E75: 100000 | G75: -0.8 | H75: -0.1306 | I75: 0.00568 | J75: 0.0078 | K75: -0.1131665648 | L75: 0.007397574719 | M75: 0.005182437843 | N75: -0.1306665748 | O75: 0.003855985584 | AE75: 0.52797 | AF75: 0.03832 | AH75: -0.000945 | AJ75: -0.000945000025
A76: 4.2 | B76: 0.5326 | C76: 0.01475 | D76: -0.0106 | E76: 100000 | G76: -0.6 | H76: -0.0992 | I76: 0.00557 | J76: 0.0061 | K76: =$G$3+$H$3*(G76^1)+$I$3*(G76^2)+$J$3*(G76^3)+$K$3*(G76^4)+$L$3*(G76^5)+$M$3*(G76^6)+$N$3*(G76^7)+$O$3*(G76^8) -> -0.08489107114 | L76: =$G$4+$H$4*(G76^1)+$I$4*(G76^2)+$J$4*(G76^3)+$K$4*(G76^4)+$L$4*(G76^5)+$M$4*(G76^6)+$N$4*(G76^7)+$O$4*(G76^8)+SUMPRODUCT($P$4:$U$4,$X$9:$AC$9) -> 0.007347319458 | M76: =$G$5+$H$5*(G76^1)+$I$5*(G76^2)+$J$5*(G76^3)+$K$5*(G76^4)+$L$5*(G76^5)+$M$5*(G76^6)+$N$5*(G76^7)+$O$5*(G76^8)+SUMPRODUCT($X$9:$AC$9,$P$5:$U$5) -> 0.003964724945 | N76: -0.09925288864 | O76: 0.004530893609 | AE76: 0.52025 | AF76: 0.03871 | AH76: -0.000945 | AJ76: -0.0009450000242
A77: 4.4 | B77: 0.5427 | C77: 0.01571 | D77: -0.0084 | E77: 100000 | F77: =IF(E77=400000,"0","") ->  | G77: -0.4 | H77: -0.0677 | I77: 0.0055 | J77: 0.0044 | K77: -0.05651175526 | L77: 0.007315275237 | M77: 0.002723518463 | N77: =H77*COS(RADIANS(G77))+I77*SIN(RADIANS(G77)) -> -0.06773674713 | O77: =I77*COS(RADIANS(G77))-H77*SIN(RADIANS(G77)) -> 0.005027234647 | AE77: 0.5125 | AF77: 0.0391 | AH77: -0.000945 | AJ77: =$AC$3*(AE77^0)+$AD$3*(AE77^1)+$AE$3*(AE77^2)+$AF$3*(AE77^3)+$AG$3*(AE77^4)+$AH$3*(AE77^5)+$AI$3*(AE77^6)+$AJ$3*(AE77^7)+$AK$3*(AE77^8) -> -0.0009450000233
A78: 4.6 | B78: 0.5537 | C78: 0.01683 | D78: -0.0065 | E78: 100000 | G78: -0.2 | H78: -0.0339 | I78: 0.00546 | J78: 0.0022 | K78: -0.02806592705 | L78: 0.007301255827 | M78: 0.001466423467 | N78: -0.03391885243 | O78: 0.005341633653 | AE78: 0.50474 | AF78: 0.03948 | AH78: -0.000945 | AJ78: -0.0009450000225
A79: 4.8 | B79: 0.5665 | C79: 0.01785 | D79: -0.0047 | E79: 100000 | G79: 0 | H79: 0 | I79: 0.00545 | J79: 0 | K79: 0.0004089163327 | L79: 0.007305081296 | M79: 0.000201125152 | N79: 0 | O79: 0.00545 | AE79: 0.49696 | AF79: 0.03985 | AH79: -0.000945 | AJ79: -0.0009450000217
A80: 5 | B80: 0.5811 | C80: 0.0188 | D80: -0.0032 | E80: 100000 | G80: 0.2 | H80: 0.0339 | I80: 0.00546 | J80: -0.0022 | K80: 0.02887526399 | L80: 0.007326580139 | M80: -0.001064648678 | N80: 0.03391885243 | O80: 0.005341633653 | AE80: 0.48919 | AF80: 0.04021 | AH80: -0.000945 | AJ80: -0.0009450000208
A81: 5.2 | B81: 0.5968 | C81: 0.01973 | D81: -0.0019 | E81: 100000 | G81: 0.4 | H81: 0.0677 | I81: 0.0055 | J81: -0.0044 | K81: 0.05729576346 | L81: 0.007365591204 | M81: -0.002323165287 | N81: 0.06773674713 | O81: 0.005027234647 | AE81: 0.48142 | AF81: 0.04056 | AH81: -0.000945 | AJ81: -0.00094500002
A82: 5.4 | B82: 0.6135 | C82: 0.02071 | D82: -0.0008 | E82: 100000 | G82: 0.6 | H82: 0.0992 | I82: 0.00557 | J82: -0.0061 | K82: 0.08563339067 | L82: 0.007421965407 | M82: -0.003566724704 | N82: 0.09925288864 | O82: 0.004530893609 | AE82: 0.47367 | AF82: 0.0409 | AH82: -0.000945 | AJ82: -0.0009450000192
A83: 5.6 | B83: 0.6311 | C83: 0.02172 | D83: 0.0001 | E83: 100000 | G83: 0.8 | H83: 0.1306 | I83: 0.00568 | J83: -0.0078 | K83: 0.1138516171 | L83: 0.007495567209 | M83: -0.004787697335 | N83: 0.1306665748 | O83: 0.003855985584 | AE83: 0.46592 | AF83: 0.04122 | AH83: -0.000945 | AJ83: -0.0009450000184
A84: 5.8 | B84: 0.6496 | C84: 0.02275 | D84: 0.0011 | E84: 100000 | G84: 1 | H84: 0.1614 | I84: 0.00582 | J84: -0.0093 | K84: 0.1419145733 | L84: 0.007586275874 | M84: -0.005978561351 | N84: 0.161476991 | O84: 0.003002295187 | AE84: 0.45816 | AF84: 0.04154 | AH84: -0.000945 | AJ84: -0.0009450000176
A85: 6 | B85: 0.6679 | C85: 0.02388 | D85: 0.0021 | E85: 100000 | G85: 1.2 | H85: 0.1888 | I85: 0.006 | J85: -0.0102 | K85: 0.1697872085 | L85: 0.00769398647 | M85: -0.007131939735 | N85: 0.1888842476 | O85: 0.002044755227 | AE85: 0.45043 | AF85: 0.04184 | AH85: -0.000945 | AJ85: -0.0009450000169
A86: 6.2 | B86: 0.6868 | C86: 0.02515 | D86: 0.0027 | E86: 100000 | G86: 1.4 | H86: 0.2176 | I86: 0.00621 | J86: -0.0113 | K86: 0.1974354455 | L86: 0.007818610637 | M86: -0.008240636858 | N86: 0.217686768 | O86: 0.0008917042855 | AE86: 0.4427 | AF86: 0.04213 | AH86: -0.000945 | AJ86: -0.0009450000161
A87: 6.4 | B87: 0.7044 | C87: 0.02641 | D87: 0.0039 | E87: 100000 | G87: 1.6 | H87: 0.2447 | I87: 0.00643 | J87: -0.0122 | K87: 0.2248263297 | L87: 0.0079600771 | M87: -0.009297674464 | N87: 0.2447841313 | O87: -0.0004049319559 | AE87: 0.43499 | AF87: 0.04241 | AH87: -0.000945 | AJ87: -0.0009450000154
A88: 6.6 | B88: 0.7231 | C88: 0.02784 | D88: 0.0045 | E88: 100000 | G88: 1.8 | H88: 0.2705 | I88: 0.00666 | J88: -0.0128 | K88: 0.2519281727 | L88: 0.00811833194 | M88: -0.01029632693 | N88: 0.2705757202 | O88: -0.001839896639 | AE88: 0.42733 | AF88: 0.04268 | AH88: -0.000945 | AJ88: -0.0009450000146
A89: 6.8 | B89: 0.7385 | C89: 0.02944 | D89: 0.0061 | E89: 100000 | G89: 2 | H89: 0.2997 | I89: 0.00691 | J89: -0.0142 | K89: 0.2787106893 | L89: 0.00829333862 | M89: -0.01123015571 | N89: 0.2997585864 | O89: -0.003553588547 | AE89: 0.41965 | AF89: 0.04293 | AH89: -0.000945 | AJ89: -0.0009450000139
A90: 7 | B90: 0.7535 | C90: 0.03111 | D90: 0.0075 | E90: 100000 | G90: 2.2 | H90: 0.3271 | I90: 0.00716 | J90: -0.0153 | K90: 0.3051451272 | L90: 0.008485077775 | M90: -0.01209304273 | N90: 0.3271337567 | O90: -0.005401929871 | AE90: 0.41195 | AF90: 0.04317 | AH90: -0.000945 | AJ90: -0.0009450000132
A91: 7.2 | B91: 0.7695 | C91: 0.03269 | D91: 0.0085 | E91: 100000 | G91: 2.4 | H91: 0.3553 | I91: 0.00744 | J91: -0.0166 | K91: 0.331204389 | L91: 0.00869354676 | M91: -0.01287922282 | N91: 0.3552998964 | O91: -0.007444945914 | AE91: 0.40421 | AF91: 0.0434 | AH91: -0.000945 | AJ91: -0.0009450000126
A92: 7.4 | B92: 0.7846 | C92: 0.03485 | D92: 0.0096 | E92: 100000 | G92: 2.6 | H92: 0.3837 | I92: 0.00774 | J92: -0.018 | K92: 0.3568631461 | L92: 0.008918758988 | M92: -0.01358331477 | N92: 0.3836561172 | O92: -0.009673746335 | AE92: 0.39645 | AF92: 0.04362 | AH92: -0.000945 | AJ92: -0.0009450000119
A93: 7.6 | B93: 0.7938 | C93: 0.03718 | D93: 0.0117 | E93: 100000 | G93: 2.8 | H93: 0.4118 | I93: 0.00804 | J93: -0.0195 | K93: 0.3820979445 | L93: 0.009160743048 | M93: -0.01420035118 | N93: 0.4117011195 | O93: -0.01208593386 | AE93: 0.3887 | AF93: 0.04382 | AH93: -0.000945 | AJ93: -0.0009450000113
A94: 7.8 | B94: 0.8013 | C94: 0.03976 | D94: 0.0139 | E94: 100000 | G94: 3 | H94: 0.4409 | I94: 0.00833 | J94: -0.0212 | K94: 0.4068873 | L94: 0.009419541626 | M94: -0.0147258067 | N94: 0.4407317204 | O94: -0.01475633908 | AE94: 0.38094 | AF94: 0.04401 | AH94: -0.000945 | AJ94: -0.0009450000106
A95: 8 | B95: 0.8086 | C95: 0.04259 | D95: 0.0157 | E95: 100000 | G95: 3.2 | H95: 0.47 | I95: 0.00864 | J95: -0.0229 | K95: 0.4312117852 | L95: 0.009695210247 | M95: -0.01515562481 | N95: 0.469749457 | O95: -0.01760957914 | AE95: 0.37319 | AF95: 0.04419 | AH95: -0.000945 | AJ95: -0.00094500001
A96: 8.2 | B96: 0.8168 | C96: 0.04559 | D96: 0.0172 | E96: 100000 | G96: 3.4 | H96: 0.4932 | I96: 0.00894 | J96: -0.0234 | K96: 0.4550541052 | L96: 0.009987815849 | M96: -0.01548624274 | N96: 0.4928620821 | O96: -0.02032563939 | AE96: 0.36542 | AF96: 0.04434 | AH96: -0.000945 | AJ96: -0.0009450000094
A97: 8.6 | B97: 0.807 | C97: 0.0547 | D97: 0.0218 | E97: 100000 | G97: 3.6 | H97: 0.5089 | I97: 0.00923 | J97: -0.0222 | K97: 0.4783991638 | L97: 0.01029743521 | M97: -0.01571461461 | N97: 0.5084753586 | O97: -0.02274230869 | AE97: 0.35767 | AF97: 0.04449 | AH97: -0.000945 | AJ97: -0.0009450000089
A98: -8.8 | B98: -0.8342 | C98: 0.05241 | D98: -0.0216 | E98: 120000 | G98: 3.8 | H98: 0.5246 | I98: 0.00952 | J98: -0.021 | K98: 0.5012341173 | L98: 0.01062415326 | M98: -0.01583823258 | N98: 0.5240775778 | O98: -0.02526821817 | AE98: 0.34991 | AF98: 0.04461 | AH98: -0.000945 | AJ98: -0.0009450000083
A99: -8.6 | B99: -0.8234 | C99: 0.0492 | D99: -0.0208 | E99: 120000 | G99: 4 | H99: 0.5405 | I99: 0.00983 | J99: -0.0199 | K99: 0.5235484179 | L99: 0.01096806129 | M99: -0.01585514589 | N99: 0.5398690753 | O99: -0.02789731944 | AE99: 0.34216 | AF99: 0.04473 | AH99: -0.000945 | AJ99: -0.0009450000078
A100: -8.4 | B100: -0.8189 | C100: 0.04584 | D100: -0.0193 | E100: 120000 | G100: 4.2 | H100: 0.5563 | I100: 0.01016 | J100: -0.0187 | K100: 0.5453338449 | L100: 0.01132925509 | M100: -0.01576397762 | N100: 0.5555501438 | O100: -0.03060969397 | AE100: 0.33441 | AF100: 0.04482 | AH100: -0.000945 | AJ100: -0.0009450000073
A101: -8.2 | B101: -0.8169 | C101: 0.04241 | D101: -0.0172 | E101: 120000 | G101: 4.4 | H101: 0.5722 | I101: 0.01049 | J101: -0.0175 | K101: 0.5665845232 | L101: 0.01170783304 | M101: -0.01556393912 | N101: 0.5713183674 | O101: -0.03343954452 | AE101: 0.32666 | AF101: 0.04489 | AH101: -0.000945 | AJ101: -0.0009450000068
A102: -8 | B102: -0.8126 | C102: 0.03934 | D102: -0.015 | E102: 120000 | G102: 4.6 | H102: 0.5881 | I102: 0.01083 | J102: -0.0163 | K102: 0.5872969297 | L102: 0.01210389421 | M102: -0.01525484196 | N102: 0.5870742128 | O102: -0.03636987214 | AE102: 0.31892 | AF102: 0.04496 | AH102: -0.000945 | AJ102: -0.0009450000063
A103: -7.8 | B103: -0.8058 | C103: 0.03652 | D103: -0.0129 | E103: 120000 | G103: 4.8 | H103: 0.6043 | I103: 0.01115 | J103: -0.0151 | K103: 0.6074698867 | L103: 0.01251753643 | M103: -0.01483710723 | N103: 0.6031136428 | O103: -0.03945562535 | AE103: 0.31121 | AF103: 0.04499 | AH103: -0.000945 | AJ103: -0.0009450000059
A104: -7.6 | B104: -0.7959 | C104: 0.03409 | D104: -0.011 | E104: 120000 | G104: 5 | H104: 0.6201 | I104: 0.01151 | J104: -0.0138 | K104: 0.6271045409 | L104: 0.01294885449 | M104: -0.01431177211 | N104: 0.6187434949 | O104: -0.0425790751 | AE104: 0.30347 | AF104: 0.04501 | AH104: -0.000945 | AJ104: -0.0009450000055
A105: -7.4 | B105: -0.784 | C105: 0.03211 | D105: -0.0093 | E105: 120000 | G105: 5.2 | H105: 0.637 | I105: 0.01176 | J105: -0.0127 | K105: 0.6462043302 | L105: 0.01339793839 | M105: -0.01368049353 | N105: 0.6354442011 | O105: -0.04602135306 | AE105: 0.29574 | AF105: 0.04501 | AH105: -0.000945 | AJ105: -0.0009450000051
A106: -7.2 | B106: -0.7712 | C106: 0.03023 | D106: -0.0075 | E106: 120000 | G106: 5.4 | H106: 0.6522 | I106: 0.01219 | J106: -0.0113 | K106: 0.6647749353 | L106: 0.0138648717 | M106: -0.01294554884 | N106: 0.6504526937 | O106: -0.0492415416 | AE106: 0.28801 | AF106: 0.04499 | AH106: -0.000945 | AJ106: -0.0009450000047
A107: -7 | B107: -0.7571 | C107: 0.02852 | D107: -0.0058 | E107: 120000 | G107: 5.6 | H107: 0.6691 | I107: 0.01245 | J107: -0.0102 | K107: 0.6828242175 | L107: 0.01434973015 | M107: -0.01210983337 | N107: 0.6671215604 | O107: -0.0529021371 | AE107: 0.2803 | AF107: 0.04495 | AH107: -0.000945 | AJ107: -0.0009450000043
A108: -6.8 | B108: -0.7394 | C108: 0.02697 | D108: -0.0051 | E108: 120000 | G108: 5.8 | H108: 0.6853 | I108: 0.01279 | J108: -0.009 | K108: 0.7003621415 | L108: 0.01485258041 | M108: -0.01117685467 | N108: 0.6830842598 | O108: -0.05652935619 | AE108: 0.2726 | AF108: 0.04488 | AH108: -0.000945 | AJ108: -0.000945000004
A109: -6.6 | B109: -0.7221 | C109: 0.02571 | D109: -0.0041 | E109: 120000 | G109: 6 | H109: 0.6997 | I109: 0.01335 | J109: -0.0075 | K109: 0.7174006841 | L109: 0.01537347914 | M109: -0.01015072341 | N109: 0.6972624252 | O109: -0.05986169845 | AE109: 0.2649 | AF109: 0.04479 | AH109: -0.000945 | AJ109: -0.0009450000036
A110: -6.4 | B110: -0.7048 | C110: 0.02446 | D110: -0.0028 | E110: 120000 | G110: 6.2 | H110: 0.7165 | I110: 0.01365 | J110: -0.0064 | K110: 0.7339537263 | L110: 0.01591247234 | M110: -0.009036140703 | N110: 0.7137833569 | O110: -0.06381137771 | AE110: 0.25722 | AF110: 0.04469 | AH110: -0.000945 | AJ110: -0.0009450000033
A111: -6.2 | B111: -0.6862 | C111: 0.02324 | D111: -0.0022 | E111: 120000 | G111: 6.4 | H111: 0.7328 | I111: 0.01402 | J111: -0.0052 | K111: 0.750036932 | L111: 0.01646959511 | M111: -0.007838381809 | N111: 0.7297959256 | O111: -0.06775180729 | AE111: 0.24953 | AF111: 0.04455 | AH111: -0.000945 | AJ111: -0.000945000003
A112: -6 | B112: -0.668 | C112: 0.02224 | D112: -0.0011 | E112: 120000 | G112: 6.6 | H112: 0.7483 | I112: 0.01449 | J112: -0.0039 | K112: 0.7656676091 | L112: 0.01704487177 | M112: -0.006563276041 | N112: 0.7450062798 | O112: -0.07161349834 | AE112: 0.24183 | AF112: 0.04439 | AH112: -0.000945 | AJ112: -0.0009450000028
A113: -5.8 | B113: -0.6498 | C113: 0.02117 | D113: -0.0004 | E113: 120000 | G113: 6.8 | H113: 0.7622 | I113: 0.01522 | J113: -0.0024 | K113: 0.7808645558 | L113: 0.01763831646 | M113: -0.005217182754 | N113: 0.7586404187 | O113: -0.07513456961 | AE113: 0.23414 | AF113: 0.0442 | AH113: -0.000945 | AJ113: -0.0009450000025
A114: -5.6 | B114: -0.6322 | C114: 0.02022 | D114: 0.0006 | E114: 120000 | G114: 7 | H114: 0.779 | I114: 0.01561 | J114: -0.0013 | K114: 0.7956478912 | L114: 0.01824993435 | M114: -0.003806963297 | N114: 0.7750958326 | O114: -0.07944257309 | AE114: 0.22646 | AF114: 0.044 | AH114: -0.000945 | AJ114: -0.0009450000023
A115: -5.4 | B115: -0.615 | C115: 0.01931 | D115: 0.0017 | E115: 120000 | G115: 7.2 | H115: 0.7953 | I115: 0.01606 | J115: -0.0001 | K115: 0.8100388686 | L115: 0.01887972331 | M115: -0.002339948777 | N115: 0.7910416737 | O115: -0.08374415855 | AE115: 0.2188 | AF115: 0.04375 | AH115: -0.000945 | AJ115: -0.000945000002
A116: -5.2 | B116: -0.5989 | C116: 0.01847 | D116: 0.0029 | E116: 120000 | G116: 7.4 | H116: 0.8114 | I116: 0.01656 | J116: 0.001 | K116: 0.8240596734 | L116: 0.01952767633 | M116: -0.000823903529 | N116: 0.8067748362 | O116: -0.08808267261 | AE116: 0.21114 | AF116: 0.04348 | AH116: -0.000945 | AJ116: -0.0009450000018
A117: -5 | B117: -0.5833 | C117: 0.01766 | D117: 0.0043 | E117: 120000 | G117: 7.6 | H117: 0.8268 | I117: 0.0172 | J117: 0.0022 | K117: 0.8377332041 | L117: 0.02019378461 | M117: 0.0007330158639 | N117: 0.8218118186 | O117: -0.09230067617 | AE117: 0.2035 | AF117: 0.04318 | AH117: -0.000945 | AJ117: -0.0009450000016
A118: -4.8 | B118: -0.5693 | C118: 0.01679 | D118: 0.0058 | E118: 120000 | G118: 7.8 | H118: 0.8413 | I118: 0.01816 | J118: 0.0035 | K118: 0.8510828363 | L118: 0.02087804144 | M118: 0.00232230611 | N118: 0.835980753 | O118: -0.09618553031 | AE118: 0.19586 | AF118: 0.04285 | AH118: -0.000945 | AJ118: -0.0009450000015
A119: -4.6 | B119: -0.5561 | C119: 0.01589 | D119: 0.0075 | E119: 120000 | G119: 8 | H119: 0.8578 | I119: 0.01866 | J119: 0.0046 | K119: 0.864132171 | L119: 0.02158044692 | M119: 0.003935167454 | N119: 0.8520489194 | O119: -0.1009042838 | AE119: 0.18824 | AF119: 0.04248 | AH119: -0.000945 | AJ119: -0.0009450000013
A120: -4.4 | B120: -0.5445 | C120: 0.01489 | D120: 0.0093 | E120: 120000 | G120: 8.2 | H120: 0.8739 | I120: 0.01926 | J120: 0.0057 | K120: 0.8769047644 | L120: 0.02230101363 | M120: 0.005562558751 | N120: 0.8677124815 | O120: -0.105580335 | AE120: 0.18061 | AF120: 0.04208 | AH120: -0.000945 | AJ120: -0.0009450000011
A121: -4.2 | B121: -0.5336 | C121: 0.01397 | D121: 0.0113 | E121: 120000 | G121: 8.4 | H121: 0.89 | I121: 0.0198 | J121: 0.0068 | K121: 0.8894238424 | L121: 0.0230397732 | M121: 0.007195257508 | N121: 0.8833448203 | O121: -0.1104263032 | AE121: 0.17302 | AF121: 0.04165 | AH121: -0.000945 | AJ121: -0.000945000001
A122: -4 | B122: -0.5221 | C122: 0.01329 | D122: 0.0133 | E122: 120000 | G122: 8.6 | H122: 0.9056 | I122: 0.02044 | J122: 0.0078 | K122: 0.9017119969 | L122: 0.02379678409 | M122: 0.008823925017 | N122: 0.8984742811 | O122: -0.1152090266 | AE122: 0.16542 | AF122: 0.04117 | AH122: -0.000945 | AJ122: -0.0009450000009
A123: -3.8 | B123: -0.5098 | C123: 0.01278 | D123: 0.0153 | E123: 120000 | G123: 8.8 | H123: 0.9195 | I123: 0.02168 | J123: 0.009 | K123: 0.9137908656 | L123: 0.02457214035 | M123: 0.01043917671 | N123: 0.9119927297 | O123: -0.1192456852 | AE123: 0.15784 | AF123: 0.04067 | AH123: -0.000945 | AJ123: -0.0009450000008
A124: -3.6 | B124: -0.4968 | C124: 0.01237 | D124: 0.0173 | E124: 120000 | G124: 9 | H124: 0.9344 | I124: 0.02231 | J124: 0.0103 | K124: 0.9256807943 | L124: 0.02536598175 | M124: 0.0120316579 | N124: 0.9263860384 | O124: -0.1241370373 | AE124: 0.1503 | AF124: 0.04012 | AH124: -0.000945 | AJ124: -0.0009450000007
A125: -3.4 | B125: -0.4833 | C125: 0.01203 | D125: 0.0194 | E125: 120000 | G125: 9.2 | H125: 0.949 | I125: 0.02304 | J125: 0.0116 | K125: 0.9374004823 | L125: 0.02617850506 | M125: 0.01359212497 | N125: 0.9404759781 | O125: -0.1289836276 | AE125: 0.14278 | AF125: 0.03952 | AH125: -0.000945 | AJ125: -0.0009450000006
A126: -3.2 | B126: -0.4692 | C126: 0.01174 | D126: 0.0214 | E126: 120000 | G126: 9.4 | H126: 0.9641 | I126: 0.02359 | J126: 0.0126 | K126: 0.9489666105 | L126: 0.02700997688 | M126: 0.01511153223 | N126: 0.9550070805 | O126: -0.1341893229 | AE126: 0.13526 | AF126: 0.03887 | AH126: -0.000945 | AJ126: -0.0009450000005
A127: -3 | B127: -0.4543 | C127: 0.0115 | D127: 0.0234 | E127: 120000 | G127: 9.6 | H127: 0.9787 | I127: 0.02426 | J127: 0.0136 | K127: 0.9603934525 | L127: 0.02786074777 | M127: 0.01658112451 | N127: 0.9690401313 | O127: -0.1392963086 | AE127: 0.12778 | AF127: 0.03819 | AH127: -0.000945 | AJ127: -0.0009450000004
A128: -2.8 | B128: -0.4381 | C128: 0.01132 | D128: 0.0253 | E128: 120000 | G128: 9.8 | H128: 0.9898 | I128: 0.0255 | J128: 0.0151 | K128: 0.971692468 | L128: 0.02873126808 | M128: 0.01799253564 | N128: 0.9796970801 | O128: -0.1433454609 | AE128: 0.12034 | AF128: 0.03745 | AH128: -0.000945 | AJ128: -0.0009450000003
A129: -2.6 | B129: -0.4195 | C129: 0.01122 | D129: 0.0268 | E129: 120000 | G129: 10 | H129: 1.0017 | I129: 0.02633 | J129: 0.0167 | K129: 0.9828718801 | L129: 0.02962210533 | M129: 0.01933789298 | N129: 0.9910540827 | O129: -0.1480133914 | AE129: 0.11291 | AF129: 0.03665 | AH129: -0.000945 | AJ129: -0.0009450000003
A130: -2.4 | B130: -0.3965 | C130: 0.01123 | D130: 0.0275 | E130: 120000 | G130: 10.2 | H130: 1.0153 | I130: 0.02686 | J130: 0.0178 | K130: 0.9939362341 | L130: 0.03053396337 | M130: 0.02060992806 | N130: 1.004010297 | O130: -0.1533586428 | AE130: 0.10553 | AF130: 0.0358 | AH130: -0.000945 | AJ130: -0.0009450000002
A131: -2.2 | B131: -0.3651 | C131: 0.01137 | D131: 0.0267 | E131: 120000 | G131: 10.4 | H131: 1.0291 | I131: 0.0273 | J131: 0.0189 | K131: 1.004885941 | L131: 0.0314677034 | M131: 0.02180209359 | N131: 1.017121573 | O131: -0.1589207512 | AE131: 0.09821 | AF131: 0.03489 | AH131: -0.000945 | AJ131: -0.0009450000002
A132: -2 | B132: -0.3246 | C132: 0.01163 | D132: 0.0239 | E132: 120000 | G132: 10.6 | H132: 1.0392 | I132: 0.02866 | J132: 0.0202 | K132: 1.015716803 | L132: 0.03242436684 | M132: 0.02290868679 | N132: 1.026738461 | O132: -0.1629913165 | AE132: 0.09093 | AF132: 0.03392 | AH132: -0.000945 | AJ132: -0.0009450000002
A133: -1.8 | B133: -0.2759 | C133: 0.01194 | D133: 0.0193 | E133: 120000 | G133: 10.8 | H133: 1.0449 | I133: 0.02988 | J133: 0.0224 | K133: 1.02641952 | L133: 0.0334052003 | M133: 0.02392497938 | N133: 1.031990902 | O133: -0.1664439926 | AE133: 0.08372 | AF133: 0.03288 | AH133: -0.000945 | AJ133: -0.0009450000001
A134: -1.6 | B134: -0.2233 | C134: 0.01221 | D134: 0.0137 | E134: 120000 | G134: 11 | H134: 1.0522 | I134: 0.03105 | J134: 0.0242 | K134: 1.036979188 | L134: 0.03441168266 | M134: 0.0248473542 | N134: 1.038792742 | O134: -0.1702897009 | AE134: 0.07662 | AF134: 0.03177 | AH134: -0.000945 | AJ134: -0.0009450000001
A135: -1.4 | B135: -0.1678 | C135: 0.01239 | D135: 0.0073 | E135: 120000 | G135: 11.2 | H135: 1.0622 | I135: 0.03177 | J135: 0.0256 | K135: 1.047374766 | L135: 0.03544555435 | M135: 0.02567344868 | N135: 1.048141391 | O135: -0.1751507826 | AE135: 0.06961 | AF135: 0.03058 | AH135: -0.000945 | AJ135: -0.0009450000001
A136: -1.2 | B136: -0.1142 | C136: 0.01243 | D136: 0.0011 | E136: 120000 | G136: 11.4 | H136: 1.0725 | I136: 0.03237 | J136: 0.0269 | K136: 1.057578542 | L136: 0.03650884901 | M136: 0.02640230527 | N136: 1.057739003 | O136: -0.1802561196 | AE136: 0.06274 | AF136: 0.02932 | AH136: -0.000945 | AJ136: -0.0009450000001
A137: -1 | B137: -0.0612 | C137: 0.01237 | D137: -0.0054 | E137: 120000 | G137: 11.6 | H137: 1.0804 | I137: 0.03337 | J137: 0.0283 | K137: 1.067555574 | L137: 0.03760392756 | M137: 0.02703452898 | N137: 1.06504307 | O137: -0.1845561599 | AE137: 0.05606 | AF137: 0.02798 | AH137: -0.000945 | AJ137: -0.0009450000001
A138: -0.8 | B138: -0.0114 | C138: 0.01221 | D138: -0.0115 | E138: 120000 | G138: 11.8 | H138: 1.074 | I138: 0.03548 | J138: 0.0313 | K138: 1.077263115 | L138: 0.03873351486 | M138: 0.02757245212 | N138: 1.058559095 | O138: -0.1848985447 | AE138: 0.04962 | AF138: 0.02657 | AH138: -0.000945 | AJ138: -0.000945
A139: -0.6 | B139: -0.007 | C139: 0.012 | D139: -0.009 | E139: 120000 | G139: 12 | H139: 1.0615 | I139: 0.03759 | J139: 0.0349 | K139: 1.086650024 | L139: 0.03990073896 | M139: 0.02802030644 | N139: 1.046119079 | O139: -0.1839296915 | AE139: 0.04351 | AF139: 0.02512 | AH139: -0.000945 | AJ139: -0.000945
A140: -0.4 | B140: -0.0036 | C140: 0.01186 | D140: -0.0062 | E140: 120000 | G140: 12.2 | H140: 1.0492 | I140: 0.03991 | J140: 0.0375 | K140: =$G$3+$H$3*(G140^1)+$I$3*(G140^2)+$J$3*(G140^3)+$K$3*(G140^4)+$L$3*(G140^5)+$M$3*(G140^6)+$N$3*(G140^7)+$O$3*(G140^8) -> 1.095656164 | L140: =$G$4+$H$4*(G140^1)+$I$4*(G140^2)+$J$4*(G140^3)+$K$4*(G140^4)+$L$4*(G140^5)+$M$4*(G140^6)+$N$4*(G140^7)+$O$4*(G140^8)+SUMPRODUCT($P$4:$U$4,$X$9:$AC$9) -> 0.04110917326 | M140: =$G$5+$H$5*(G140^1)+$I$5*(G140^2)+$J$5*(G140^3)+$K$5*(G140^4)+$L$5*(G140^5)+$M$5*(G140^6)+$N$5*(G140^7)+$O$5*(G140^8)+SUMPRODUCT($X$9:$AC$9,$P$5:$U$5) -> 0.02838440276 | N140: 1.033938729 | O140: -0.1827133081 | AE140: 0.03782 | AF140: 0.02362 | AH140: -0.000945 | AJ140: -0.000945
A141: -0.2 | B141: -0.0014 | C141: 0.01177 | D141: -0.0032 | E141: 120000 | F141: =IF(E141=400000,"0","") ->  | G141: 12.4 | H141: 1.0373 | I141: 0.04247 | J141: 0.0389 | K141: 1.104211778 | L141: 0.04236288138 | M141: 0.02867331824 | N141: =H141*COS(RADIANS(G141))+I141*SIN(RADIANS(G141)) -> 1.022221964 | O141: =I141*COS(RADIANS(G141))-H141*SIN(RADIANS(G141)) -> -0.1812656832 | AE141: 0.03262 | AF141: 0.02212 | AH141: -0.000945 | AJ141: =$AC$3*(AE141^0)+$AD$3*(AE141^1)+$AE$3*(AE141^2)+$AF$3*(AE141^3)+$AG$3*(AE141^4)+$AH$3*(AE141^5)+$AI$3*(AE141^6)+$AJ$3*(AE141^7)+$AK$3*(AE141^8) -> -0.000945
A142: 0 | B142: 0 | C142: 0.01174 | D142: 0 | E142: 120000 | G142: 12.6 | H142: 1.0253 | I142: 0.04538 | J142: 0.0391 | K142: 1.112236855 | L142: 0.04366646525 | M142: 0.02889809143 | N142: 1.010506796 | O142: -0.1793751627 | AE142: 0.02797 | AF142: 0.02064 | AH142: -0.000945 | AJ142: -0.000945
A143: 0.2 | B143: 0.0014 | C143: 0.01177 | D143: 0.0032 | E143: 120000 | G143: 12.8 | H143: 1.0121 | I143: 0.04895 | J143: 0.038 | K143: 1.119640479 | L143: 0.04502511613 | M143: 0.0290724252 | N143: 0.9977934605 | O143: -0.1764956735 | AE143: 0.02388 | AF143: 0.0192 | AH143: -0.000945 | AJ143: -0.000945
A144: 0.4 | B144: 0.0036 | C144: 0.01186 | D144: 0.0062 | E144: 120000 | G144: 13 | H144: 0.9937 | I144: 0.05395 | J144: 0.035 | K144: 1.126320165 | L144: 0.04644466906 | M144: 0.02921289778 | N144: 0.9803676428 | O144: -0.1709665977 | AE144: 0.02032 | AF144: 0.01783 | AH144: -0.000945 | AJ144: -0.000945
A145: 0.6 | B145: 0.007 | C145: 0.012 | D145: 0.009 | E145: 120000 | G145: 13.2 | H145: 0.9662 | I145: 0.06166 | J145: 0.0291 | K145: 1.132161174 | L145: 0.04793166057 | M145: 0.0293391819 | N145: 0.9547520506 | O145: -0.1606017355 | AE145: 0.01725 | AF145: 0.01655 | AH145: -0.000945 | AJ145: -0.000945
A146: 0.8 | B146: 0.0114 | C146: 0.01221 | D146: 0.0115 | E146: 120000 | G146: 13.4 | H146: 0.9389 | I146: 0.07064 | J146: 0.0219 | K146: 1.137035826 | L146: 0.04949338993 | M146: 0.02947427235 | N146: 0.929709944 | O146: -0.1488712186 | AE146: 0.01461 | AF146: 0.01532 | AH146: -0.000945 | AJ146: -0.000945
A147: 1 | B147: 0.0612 | C147: 0.01237 | D147: 0.0054 | E147: 120000 | G147: 13.6 | H147: 0.9164 | I147: 0.07926 | J147: 0.0155 | K147: 1.140802785 | L147: 0.05113798407 | M147: 0.02964472187 | N147: 0.9093424248 | O147: -0.1384466035 | AE147: 0.01234 | AF147: 0.01415 | AH147: -0.000945 | AJ147: -0.000945
A148: 1.2 | B148: 0.1142 | C148: 0.01243 | D148: -0.001 | E148: 120000 | G148: 13.8 | H148: 0.8967 | I148: 0.08736 | J148: 0.0102 | K148: 1.143306343 | L148: 0.05287446623 | M148: 0.02988088576 | N148: 0.8916543916 | O148: -0.1290546607 | AE148: 0.01037 | AF148: 0.01302 | AH148: -0.000945 | AJ148: -0.000945
A149: 1.4 | B149: 0.1678 | C149: 0.01239 | D149: -0.0073 | E149: 120000 | G149: 14 | H149: 0.8778 | I149: 0.09516 | J149: 0.0055 | K149: 1.144375681 | L149: 0.05471282849 | M149: 0.03021717516 | N149: 0.8747468761 | O149: -0.1200256986 | AE149: 0.00867 | AF149: 0.01191 | AH149: -0.000945 | AJ149: -0.000945
A150: 1.6 | B150: 0.2233 | C150: 0.0122 | D150: -0.0137 | E150: 120000 | G150: -5.9 | H150: -0.6578 | I150: 0.01245 | J150: 0.0005 | K150: -0.709043886 | L150: 0.01519979241 | M150: 0.01092522837 | N150: -0.6555952802 | O150: -0.05523288063 | AE150: 0.00718 | AF150: 0.01083 | AH150: -0.000945 | AJ150: -0.000945
A151: 1.8 | B151: 0.2759 | C151: 0.01194 | D151: -0.0193 | E151: 120000 | G151: -5.8 | H151: -0.6484 | I151: 0.01229 | J151: 0.0008 | K151: -0.7005450921 | L151: 0.01492848246 | M151: 0.01142492969 | N151: -0.6463226335 | O151: -0.05329781918 | AE151: 0.00589 | AF151: 0.00978 | AH151: -0.000945 | AJ151: -0.000945
A152: 2 | B152: 0.3246 | C152: 0.01163 | D152: -0.0239 | E152: 120000 | G152: -5.7 | H152: -0.6387 | I152: 0.01216 | J152: 0.0011 | K152: -0.6919179244 | L152: 0.01466138701 | M152: 0.01190176938 | N152: -0.6367497207 | O152: -0.05133564843 | AE152: 0.00477 | AF152: 0.00875 | AH152: -0.000945 | AJ152: -0.000945
A153: 2.2 | B153: 0.3651 | C153: 0.01137 | D153: -0.0267 | E153: 120000 | G153: -5.6 | H153: -0.6299 | I153: 0.01189 | J153: 0.0015 | K153: -0.6831604446 | L153: 0.01439856358 | M153: 0.0123552013 | N153: -0.6280539999 | O153: -0.04963421477 | AE153: 0.0038 | AF153: 0.00773 | AH153: -0.000945 | AJ153: -0.000945
A154: 2.4 | B154: 0.3965 | C154: 0.01123 | D154: -0.0275 | E154: 120000 | G154: -5.5 | H154: -0.6204 | I154: 0.01174 | J154: 0.0018 | K154: -0.6742708748 | L154: 0.01414006813 | M154: 0.01278471641 | N154: -0.6186690306 | O154: -0.04777675349 | AE154: 0.00296 | AF154: 0.00674 | AH154: -0.000945 | AJ154: -0.000945
A155: 2.6 | B155: 0.4195 | C155: 0.01122 | D155: -0.0268 | E155: 120000 | G155: -5.4 | H155: -0.6111 | I155: 0.01156 | J155: 0.0022 | K155: -0.6652475999 | L155: 0.0138859549 | M155: 0.01318984315 | N155: -0.6094758087 | O155: -0.04600089396 | AE155: 0.00223 | AF155: 0.00577 | AH155: -0.000945 | AJ155: -0.000945
A156: 2.8 | B156: 0.4381 | C156: 0.01132 | D156: -0.0253 | E156: 120000 | G156: -5.3 | H156: -0.6018 | I156: 0.01139 | J156: 0.0025 | K156: -0.6560891709 | L156: 0.01363627627 | M156: 0.01357014777 | N156: -0.6002792244 | O156: -0.04424731521 | AE156: 0.00162 | AF156: 0.00482 | AH156: -0.000945 | AJ156: -0.000945
A157: 3 | B157: 0.4543 | C157: 0.0115 | D157: -0.0234 | E157: 120000 | G157: -5.2 | H157: -0.5923 | I157: 0.01123 | J157: 0.0028 | K157: -0.646794307 | L157: 0.01339108266 | M157: 0.01392523458 | N157: -0.5908801332 | O157: -0.04249789545 | AE157: 0.0011 | AF157: 0.0039 | AH157: -0.000945 | AJ157: -0.000945
A158: 3.2 | B158: 0.4692 | C158: 0.01174 | D158: -0.0214 | E158: 120000 | G158: -5.1 | H158: -0.583 | I158: 0.01105 | J158: 0.0032 | K158: -0.6373618971 | L158: 0.01315042239 | M158: 0.01425474617 | N158: -0.5816742231 | O158: -0.0408191213 | AE158: 0.00067 | AF158: 0.003 | AH158: -0.000945 | AJ158: -0.000945
A159: 3.4 | B159: 0.4833 | C159: 0.01202 | D159: -0.0194 | E159: 120000 | G159: -5 | H159: -0.5737 | I159: 0.01088 | J159: 0.0035 | K159: -0.6277910021 | L159: 0.01291434161 | M159: 0.01455836359 | N159: -0.5724651528 | O159: -0.0391626513 | AE159: 0.00034 | AF159: 0.00212 | AH159: -0.000945 | AJ159: -0.000945
A160: 3.6 | B160: 0.4968 | C160: 0.01237 | D160: -0.0173 | E160: 120000 | G160: -4.9 | H160: -0.5643 | I160: 0.01073 | J160: 0.0038 | K160: -0.6180808558 | L160: 0.01268288423 | M160: 0.01483580646 | N160: -0.5631541742 | O160: -0.0375099847 | AE160: 0.00012 | AF160: 0.00125 | AH160: -0.000945 | AJ160: -0.000945
A161: 3.8 | B161: 0.5097 | C161: 0.01278 | D161: -0.0153 | E161: 120000 | G161: -4.8 | H161: -0.555 | I161: 0.01056 | J161: 0.0042 | K161: -0.6082308659 | L161: 0.01245609179 | M161: 0.01508683302 | N161: -0.5539371749 | O161: -0.03591823846 | AE161: 0 | AF161: 0.00041 | AH161: -0.000945
A162: 4 | B162: 0.5221 | C162: 0.01329 | D162: -0.0133 | E162: 120000 | G162: -4.7 | H162: -0.5457 | I162: 0.01038 | J162: 0.0045 | K162: -0.5982406148 | L162: 0.01223400348 | M162: 0.01531124019 | N162: -0.5447155437 | O162: -0.03436874808 | AE162: 0 | AF162: -0.00041
A163: 4.2 | B163: 0.5336 | C163: 0.01397 | D163: -0.0113 | E163: 120000 | G163: -4.6 | H163: -0.5364 | I163: 0.0102 | J163: 0.0048 | K163: -0.5881098598 | L163: 0.01201665602 | M163: 0.01550886348 | N163: -0.5354902194 | O163: -0.03285155845 | AE163: 0.00012 | AF163: -0.00125
A164: 4.4 | B164: 0.5445 | C164: 0.01489 | D164: -0.0093 | E164: 120000 | G164: -4.5 | H164: -0.5272 | I164: 0.01002 | J164: 0.0052 | K164: -0.5778385336 | L164: 0.01180408368 | M164: 0.01567957697 | N164: -0.5263609785 | O164: -0.03137452358 | AE164: 0.00034 | AF164: -0.00212
A165: 4.8 | B165: 0.5693 | C165: 0.01679 | D165: -0.0058 | E165: 120000 | G165: -4.4 | H165: -0.518 | I165: 0.00984 | J165: 0.0055 | K165: -0.5674267435 | L165: 0.01159631824 | M165: 0.01582329316 | N165: -0.5172282409 | O165: -0.02992945749 | AE165: 0.00067 | AF165: -0.003
A166: 5 | B166: 0.5833 | C166: 0.01766 | D166: -0.0043 | E166: 120000 | G166: -4.3 | H166: -0.5088 | I166: 0.00966 | J166: 0.0058 | K166: -0.5568747714 | L166: 0.01139338893 | M166: 0.01593996282 | N166: -0.5080920904 | O166: -0.02851636782 | AE166: 0.0011 | AF166: -0.0039
A167: 5.2 | B167: 0.5989 | C167: 0.01847 | D167: -0.0029 | E167: 120000 | G167: -4.2 | H167: -0.4995 | I167: 0.00948 | J167: 0.0061 | K167: -0.5461830729 | L167: 0.0111953225 | M167: 0.01602957477 | N167: -0.4988528795 | O167: -0.02712793822 | AE167: 0.00162 | AF167: -0.00482
A168: 5.4 | B168: 0.615 | C168: 0.01931 | D168: -0.0017 | E168: 120000 | G168: -4.1 | H168: -0.4903 | I168: 0.0093 | J168: 0.0064 | K168: -0.5353522764 | L168: 0.01100214314 | M168: 0.01609215565 | N168: -0.4897101421 | O168: -0.02577899768 | AE168: 0.00223 | AF168: -0.00577
A169: 5.6 | B169: 0.6322 | C169: 0.02022 | D169: -0.0006 | E169: 120000 | G169: -4 | H169: -0.481 | I169: 0.00912 | J169: 0.0067 | K169: -0.5243831817 | L169: 0.01081387257 | M169: 0.01612776961 | N169: -0.4804644872 | O169: -0.02445507973 | AE169: 0.00296 | AF169: -0.00674
A170: 5.8 | B170: 0.6498 | C170: 0.02116 | D170: 0.0004 | E170: 120000 | G170: -3.9 | H170: -0.4718 | I170: 0.00894 | J170: 0.0069 | K170: -0.5132767588 | L170: 0.01063052999 | M170: 0.01613651797 | N170: -0.4713154995 | O170: -0.02317031668 | AE170: 0.0038 | AF170: -0.00773
A171: 6 | B171: 0.668 | C171: 0.02224 | D171: 0.0011 | E171: 120000 | G171: -3.8 | H171: -0.4625 | I171: 0.00877 | J171: 0.0072 | K171: -0.5020341456 | L171: 0.01045213216 | M171: 0.01611853887 | N171: -0.4620644012 | O171: -0.02190096006 | AE171: 0.00477 | AF171: -0.00875
A172: 6.2 | B172: 0.6862 | C172: 0.02324 | D172: 0.0022 | E172: 120000 | G172: -3.7 | H172: -0.4531 | I172: 0.00861 | J172: 0.0075 | K172: -0.4906566469 | L172: 0.01027869337 | M172: 0.01607400687 | N172: -0.4527111898 | O172: -0.0206475354 | AE172: 0.00589 | AF172: -0.00978
A173: 6.4 | B173: 0.7048 | C173: 0.02446 | D173: 0.0028 | E173: 120000 | G173: -3.6 | H173: -0.4437 | I173: 0.00845 | J173: 0.0077 | K173: -0.4791457314 | L173: 0.01011022556 | M173: 0.01600313245 | N173: -0.4433550393 | O173: -0.01942682766 | AE173: 0.00718 | AF173: -0.01083
A174: 6.6 | B174: 0.7221 | C174: 0.02571 | D174: 0.0041 | E174: 120000 | G174: -3.5 | H174: -0.4342 | I174: 0.00829 | J174: 0.008 | K174: -0.4675030297 | L174: 0.009946738286 | M174: 0.01590616156 | N174: -0.4338962219 | O174: -0.01823273839 | AE174: 0.00867 | AF174: -0.01191
A175: 6.8 | B175: 0.7394 | C175: 0.02697 | D175: 0.0051 | E175: 120000 | G175: -3.4 | H175: -0.4247 | I175: 0.00814 | J175: 0.0082 | K175: -0.4557303316 | L175: 0.009788238833 | M175: 0.01578337513 | N175: -0.4244352088 | O175: -0.01706174466 | AE175: 0.01037 | AF175: -0.01302
A176: 7 | B176: 0.7571 | C176: 0.02852 | D176: 0.0058 | E176: 120000 | G176: -3.3 | H176: -0.4152 | I176: 0.008 | J176: 0.0084 | K176: -0.4438295836 | L176: 0.009634732233 | M176: 0.01563508845 | N176: -0.4149720345 | O176: -0.01591384946 | AE176: 0.01234 | AF176: -0.01415
A177: 7.2 | B177: 0.7712 | C177: 0.03022 | D177: 0.0075 | E177: 120000 | G177: -3.2 | H177: -0.4055 | I177: 0.00787 | J177: 0.0087 | K177: -0.4318028856 | L177: 0.009486221343 | M177: 0.01546165061 | N177: -0.4053070451 | O177: -0.01477789146 | AE177: 0.01461 | AF177: -0.01532
A178: 7.4 | B178: 0.784 | C178: 0.03211 | D178: 0.0093 | E178: 120000 | G178: -3.1 | H178: -0.3959 | I178: 0.00774 | J178: 0.0089 | K178: -0.4196524879 | L178: 0.009342706907 | M178: 0.01526344389 | N178: -0.3957392378 | O178: -0.01368112823 | AE178: 0.01725 | AF178: -0.01655
A179: 7.6 | B179: 0.7959 | C179: 0.03409 | D179: 0.011 | E179: 120000 | G179: -3 | H179: -0.3862 | I179: 0.00761 | J179: 0.0091 | K179: -0.407380788 | L179: 0.009204187629 | M179: 0.01504088308 | N179: -0.3860690029 | O179: -0.01261257554 | AE179: 0.02032 | AF179: -0.01783
A180: 7.8 | B180: 0.8058 | C180: 0.03652 | D180: 0.0129 | E180: 120000 | G180: -2.9 | H180: -0.3764 | I180: 0.0075 | J180: 0.0093 | K180: -0.3949903271 | L180: 0.009070660247 | M180: 0.01479441481 | N180: -0.3762974131 | O180: -0.01155278747 | AE180: 0.02388 | AF180: -0.0192
A181: 8 | B181: 0.8126 | C181: 0.03934 | D181: 0.015 | E181: 120000 | G181: -2.8 | H181: -0.3666 | I181: 0.00739 | J181: 0.0095 | K181: -0.3824837862 | L181: 0.008942119607 | M181: 0.01452451684 | N181: -0.3665233297 | O181: -0.01052714825 | AE181: 0.02797 | AF181: -0.02064
A182: 8.2 | B182: 0.8169 | C182: 0.04242 | D182: 0.0172 | E182: 120000 | G182: -2.7 | H182: -0.3568 | I182: 0.00728 | J182: 0.0097 | K182: -0.3698639826 | L182: 0.008818558748 | M182: 0.01423169728 | N182: -0.3567468423 | O182: -0.009535663323 | AE182: 0.03262 | AF182: -0.02212
A183: 8.4 | B183: 0.8189 | C183: 0.04584 | D183: 0.0193 | E183: 120000 | G183: -2.6 | H183: -0.3469 | I183: 0.00717 | J183: 0.0099 | K183: -0.3571338658 | L183: 0.008699968987 | M183: 0.01391649387 | N183: -0.3468681433 | O183: -0.008573801597 | AE183: 0.03782 | AF183: -0.02362
A184: 8.6 | B184: 0.8234 | C184: 0.04921 | D184: 0.0208 | E184: 120000 | G184: -2.5 | H184: -0.3369 | I184: 0.00708 | J184: 0.01 | K184: -0.3442965137 | L184: 0.008586339999 | M184: 0.01357947312 | N184: -0.3368881711 | O184: -0.007622110195 | AE184: 0.04351 | AF184: -0.02512
A185: 8.8 | B185: 0.8342 | C185: 0.05241 | D185: 0.0216 | E185: 120000 | G185: -2.4 | H185: -0.3268 | I185: 0.00699 | J185: 0.0102 | K185: -0.331355128 | L185: 0.008477659914 | M185: 0.01322122952 | N185: -0.3268060517 | O185: -0.006701095056 | AE185: 0.04962 | AF185: -0.02657
A186: 12.8 | B186: 0.6525 | C186: 0.14523 | D186: -0.016 | E186: 120000 | G186: -2.3 | H186: -0.3124 | I186: 0.00687 | J186: 0.0094 | K186: -0.3183130302 | L186: 0.0083739154 | M186: 0.01284238468 | N186: -0.3124240344 | O186: -0.005672706493 | AE186: 0.05606 | AF186: -0.02798
A187: 13 | B187: 0.6601 | C187: 0.14785 | D187: -0.0162 | E187: 120000 | G187: -2.2 | H187: -0.2969 | I187: 0.00676 | J187: 0.0084 | K187: -0.3051736569 | L187: 0.008275091759 | M187: 0.01244358646 | N187: -0.2969406615 | O187: -0.004642323203 | AE187: 0.06274 | AF187: -0.02932
A188: 13.2 | B188: 0.6707 | C188: 0.15112 | D188: -0.0157 | E188: 120000 | G188: -2.1 | H188: -0.2817 | I188: 0.00665 | J188: 0.0075 | K188: -0.2919405555 | L188: 0.00818117302 | M188: 0.01202550803 | N188: -0.2817544892 | O188: -0.003676998924 | AE188: 0.06961 | AF188: -0.03058
A189: 13.4 | B189: 0.6618 | C189: 0.15403 | D189: -0.0197 | E189: 120000 | G189: -2 | H189: -0.2664 | I189: 0.00654 | J189: 0.0066 | K189: -0.2786173794 | L189: 0.00809214203 | M189: 0.01158884699 | N189: -0.266465959 | O189: -0.002761209913 | AE189: 0.07662 | AF189: -0.03177
A190: 13.6 | B190: 0.6679 | C190: 0.15664 | D190: -0.0204 | E190: 120000 | G190: -1.9 | H190: -0.2509 | I190: 0.00644 | J190: 0.0056 | K190: -0.2652078833 | L190: 0.008007980551 | M190: 0.01113432442 | N190: -0.2509755785 | O190: -0.001882174867 | AE190: 0.08372 | AF190: -0.03288
A191: 13.8 | B191: 0.6822 | C191: 0.16003 | D191: -0.0192 | E191: 120000 | G191: -1.8 | H191: -0.236 | I191: 0.00634 | J191: 0.0048 | K191: -0.2517159182 | L191: 0.007928669358 | M191: 0.01066268388 | N191: -0.2360826925 | O191: -0.00107606755 | AE191: 0.09093 | AF191: -0.03392
A192: 14 | B192: 0.6732 | C192: 0.16252 | D192: -0.0234 | E192: 120000 | G192: -1.7 | H192: -0.2211 | I192: 0.00625 | J192: 0.004 | K192: -0.2381454266 | L192: 0.007854188328 | M192: 0.01017469046 | N192: -0.2211880991 | O192: -0.0003119574415 | AE192: 0.09821 | AF192: -0.03489
A193: 14.2 | B193: 0.677 | C193: 0.16517 | D193: -0.0248 | E193: 120000 | G193: -1.6 | H193: -0.2056 | I193: 0.00616 | J193: 0.0031 | K193: -0.2245004376 | L193: 0.007784516539 | M193: 0.00967112976 | N193: -0.2056918369 | O193: 0.0004169093871 | AE193: 0.10553 | AF193: -0.0358
A194: -11.2 | B194: -0.6235 | C194: 0.11924 | D194: -0.0026 | E194: 140000 | G194: -1.5 | H194: -0.191 | I194: 0.00607 | J194: 0.0024 | K194: -0.2107850617 | L194: 0.007719632365 | M194: 0.009152806864 | N194: -0.1910934431 | O194: 0.001068122836 | AE194: 0.11291 | AF194: -0.03665
A195: -11 | B195: -0.6027 | C195: 0.11772 | D195: 0.0006 | E195: 140000 | G195: -1.4 | H195: -0.1763 | I195: 0.00599 | J195: 0.0017 | K195: -0.1970034855 | L195: 0.007659513568 | M195: 0.00862054531 | N195: -0.1763937214 | O195: 0.001680818915 | AE195: 0.12034 | AF195: -0.03745
A196: -10.8 | B196: -0.6065 | C196: 0.11412 | D196: -0.0011 | E196: 140000 | G196: -1.3 | H196: -0.1608 | I196: 0.00591 | J196: 0.0009 | K196: -0.1831599667 | L196: 0.007604137394 | M196: 0.008075186027 | N196: -0.1608926937 | O196: 0.002260355583 | AE196: 0.12778 | AF196: -0.03819
A197: -8 | B197: -0.8283 | C197: 0.03507 | D197: -0.0121 | E197: 140000 | G197: -1.2 | H197: -0.1461 | I197: 0.00584 | J197: 0.0002 | K197: -0.169258829 | L197: 0.007553480663 | M197: 0.007517586271 | N197: -0.1461902616 | O197: 0.002779031647 | AE197: 0.13526 | AF197: -0.03887
A198: -7.8 | B198: -0.8124 | C198: 0.03345 | D198: -0.0114 | E198: 140000 | G198: -1.1 | H198: -0.1322 | I198: 0.00577 | J198: -0.0003 | K198: -0.1553044564 | L198: 0.007507519859 | M198: 0.006948618534 | N198: -0.1322864064 | O198: 0.003231034774 | AE198: 0.14278 | AF198: -0.03952
A199: -7.6 | B199: -0.8001 | C199: 0.0315 | D199: -0.0098 | E199: 140000 | G199: -1 | H199: -0.1175 | I199: 0.00571 | J199: -0.0009 | K199: -0.1413012881 | L199: 0.007466231223 | M199: 0.006369169453 | N199: -0.1175817574 | O199: 0.003658472583 | AE199: 0.1503 | AF199: -0.04012
A200: -7.4 | B200: -0.7867 | C200: 0.02968 | D200: -0.0082 | E200: 140000 | G200: -0.9 | H200: -0.1049 | I200: 0.00565 | J200: -0.001 | K200: -0.1272538131 | L200: 0.007429590839 | M200: 0.005780138695 | N200: -0.1049758051 | O200: 0.004001605388 | AE200: 0.15784 | AF200: -0.04067
... 4300 more rows

Sheet 胴体構造計算(sht17)
A1: 1 | B1: 2 | C1: 3 | D1: 4 | E1: 5 | F1: 6 | G1: 7 | H1: 8 | I1: 9 | J1: 10 | K1: 11 | L1: 12 | M1: 13 | N1: 14 | O1: 15 | P1: 16 | Q1: 17 | R1: 18 | S1: 19 | T1: 20 | U1: 21 | V1: 22 | W1: 23 | X1: 24 | Y1: 25 | Z1: 26 | AA1: 27 | AB1: 28 | AC1: 29 | AD1: 30 | AE1: 31 | AF1: 32 | AG1: 33 | AH1: 34 | AI1: 35 | AJ1: 36 | AK1: 37 | AL1: 38 | AM1: 39 | AN1: 40 | AO1: 41 | AP1: 42 | AQ1: 43 | AR1: 44 | AS1: 45 | AT1: 46 | AU1: 47 | AV1: 48 | AW1: 49 | AX1: 50 | AY1: 51 | AZ1: 52 | BA1: 53 | BB1: 54 | BC1: 55 | BD1: 56 | BE1: 57 | BF1: 58 | BG1: 59 | BH1: 60 | BI1: 61 | BJ1: 62 | BK1: 63 | BL1: 64 | BM1: 65 | BN1: 66 | BO1: 67 | BP1: 68 | BQ1: 69 | BR1: 70 | BS1: 71 | BT1: 72 | BU1: 73 | BV1: 74 | BW1: 75 | BX1: 76 | BY1: 77 | BZ1: 78 | CA1: 79 | CB1: 80 | CC1: 81 | CD1: 82 | CE1: 83 | CF1: 84 | CG1: 85 | CH1: 86 | CI1: 87 | CJ1: 88 | CK1: 89 | CL1: 90 | CM1: 91 | CN1: 92 | CO1: 93 | CP1: 94 | CQ1: 95 | CR1: 96 | CS1: 97 | CT1: 98 | CU1: 99 | CV1: 100
B2: スパー諸元 | L2: スパー寸法 | P2: パイプ | T2: T字 | X2: 胴接 | AB2: 胴体 | AF2: パイプ長軸内径 | AH2: T字長軸内径 | AJ2: 胴接長軸内径 | AL2: 胴体長軸内径 | AP2: 材料密度
B3: スパー番号 | C3: 積層数 | D3: 全周 | E3: オビ | F3: テーパー比 | G3: ヤング率 | H3: 横弾性係数 | I3: 長さ | M3: 位置 | N3: 位置 | O3: 位置 | P3: 長軸外径 | Q3: 短軸外径 | R3: 長軸内径 | S3: 短軸内径 | T3: 長軸外径 | U3: 短軸外径 | V3: 長軸内径 | W3: 短軸内径 | X3: 長軸外径 | Y3: 短軸外径 | Z3: 長軸内径 | AA3: 短軸内径 | AB3: 長軸外径 | AC3: 短軸外径 | AD3: 長軸内径 | AE3: 短軸内径 | AF3: 傾き | AG3: 切片 | AH3: 傾き | AI3: 切片 | AJ3: 傾き | AK3: 切片 | AL3: 傾き | AM3: 切片 | AP3: 名 | AQ3: 記号 | AR3: 値 | AS3: 単位
B4: - | C4: n | D4: - | E4: - | F4: λ | G4: E | H4: G | I4: L | M4: x | N4: y | O4: z | P4: 2*bo | Q4: 2*ao | R4: 2*bi | S4: 2*bo | T4: 2*ao | U4: 2*bi | V4: 2*ai | W4: ai | X4: bo | Y4: ao | Z4: bi | AA4: ai | AB4: bo | AC4: ao | AD4: bi | AE4: ai | AF4: - | AG4: - | AH4: - | AI4: - | AJ4: - | AK4: - | AL4: - | AM4: - | AP4: CFRP | AQ4: - | AR4: 1500 | AS4: kg/m^3
B5: - | C5: ply | D5: ply | E5: ply | F5: 長軸mm/スパー位置m | G5: GPa | H5: GPa | I5: m | M5: m | N5: m | O5: m | P5: mm | Q5: mm | R5: mm | S5: mm | T5: mm | U5: mm | V5: mm | W5: mm | X5: mm | Y5: mm | Z5: mm | AA5: mm | AB5: mm | AC5: mm | AD5: mm | AE5: mm | AF5: - | AG5: mm | AH5: - | AI5: mm | AJ5: - | AK5: mm | AL5: - | AM5: mm
B6: パイプ | C6: ='胴接積層構成(sht27)'!I29 -> 0 | D6: ='胴接積層構成(sht27)'!I30 -> 0 | E6: ='胴接積層構成(sht27)'!I31 -> 0 | F6: 0 | G6: ='胴接積層構成(sht27)'!I26 -> 0 | H6: ='胴接積層構成(sht27)'!I27 -> 0 | I6: =SQRT((M7-M6)*(M7-M6)+(N7-N6)*(N7-N6)+(O7-O6)*(O7-O6)) -> 0 | L6: 0番flat | M6: 0 | N6: 0 | O6: 0 | P6: =R6+2*$D$27*$C$6 -> 100 | Q6: =S6+2*$D$27*$D$6 -> 90 | R6: 100 | S6: =R6*$D$20 -> 90 | AF6: =LINEST(R6:R7,M6:M7,TRUE,FALSE) -> 0 | AG6: 100
B7: T字 | C7: =C6 -> 0 | D7: =D6 -> 0 | E7: 0 | F7: 0 | G7: =G6 -> 0 | H7: =H6 -> 0 | I7: =N7*2 -> 0 | L7: パイプ | M7: 0 | N7: 0 | O7: 0 | P7: =R7+2*$D$27*$C$6 -> 100 | Q7: =S7+2*$D$27*$D$6 -> 90 | R7: =R6-$F$6*(M7-M6) -> 100 | S7: =R7*$D$20 -> 90 | T7: =V7+2*$D$27*$C$7 -> 100 | U7: =W7+2*$D$27*$D$7 -> 90 | V7: 100 | W7: =V7*$D$20 -> 90 | X7: =Z7+2*$D$27*$C$8 -> 100 | Y7: =AA7+2*$D$27*$D$8 -> 90 | Z7: 100 | AA7: =Z7*$D$20 -> 90 | AH7: =LINEST(V7,M7,TRUE,FALSE) -> 0 | AI7: 100
B8: 胴接 | C8: =C7 -> 0 | D8: =D7 -> 0 | E8: =E7 -> 0 | F8: 10 | G8: =G7 -> 0 | H8: =H7 -> 0 | I8: =SQRT((M9-M7)*(M9-M7)+(N9-N8)*(N9-N8)+(O9-O7)*(O9-O7)) -> 0.8 | L8: 胴体太端 | M8: 0.5 | N8: 0 | O8: 0 | X8: =Z8+2*$D$27*$C$8 -> 95 | Y8: =AA8+2*$D$27*$D$8 -> 85.5 | Z8: =Z7-$F$8*(M8-M7) -> 95 | AA8: =Z8*$D$20 -> 85.5 | AB8: =AD8+2*$D$27*$C$9 -> 97 | AC8: =AE8+2*$D$27*$D$9 -> 87.3 | AD8: =X8+$D$15*2 -> 97 | AE8: =AD8*$D$20 -> 87.3 | AJ8: =LINEST(Z7:Z9,M7:M9,TRUE,FALSE) -> -10 | AK8: 100
B9: 胴体 | C9: ='胴体積層構成(sht26)'!I29 -> 0 | D9: ='胴体積層構成(sht26)'!I30 -> 0 | E9: ='胴体積層構成(sht26)'!I31 -> 0 | F9: 10 | G9: ='胴体積層構成(sht26)'!I26 -> 0 | H9: ='胴体積層構成(sht26)'!I27 -> 0 | I9: =SQRT((M10-M8)*(M10-M8)+(N10-N8)*(N10-N8)+(O10-O8)*(O10-O8)) -> 3.5 | L9: 胴接細端 | M9: 0.8 | N9: 0 | O9: 0 | X9: =Z9+2*$D$27*$C$8 -> 92 | Y9: =AA9+2*$D$27*$D$8 -> 82.8 | Z9: =Z8-$F$8*(M9-M8) -> 92 | AA9: =Z9*$D$20 -> 82.8 | AB9: =AD9+2*$D$27*$C$9 -> 94 | AC9: =AE9+2*$D$27*$D$9 -> 84.6 | AD9: =AD8-$F$9*(M9-M8) -> 94 | AE9: =AD9*$D$20 -> 84.6 | AL9: =LINEST(AD8:AD10,M8:M10,TRUE,FALSE) -> -10 | AM9: 102
L10: 胴体細端 | M10: 4 | N10: 0 | O10: 0 | AB10: =AD10+2*$D$27*$C$9 -> 62 | AC10: =AE10+2*$D$27*$D$9 -> 55.8 | AD10: =AD9-$F$9*(M10-M9) -> 62 | AE10: =AD10*$D$20 -> 55.8
B12: 接合部 | M12: y | O12: z | R12: x0 | S12: y0 | T12: z0 | AA12: 重量推算 | AF12: 胴接・胴体スパーの重心位置・慣性モーメント
B13: スパー番号 | C13: 挿ししろ | D13: 厚さマージン | M13: 傾き | N13: 切片 | O13: 傾き | P13: 切片 | R13: 0 | S13: 0.5 | T13: 0 | AA13: 名 | AB13: 記号 | AC13: 値 | AD13: 単位 | AF13: 名 | AG13: 記号 | AH13: 値 | AI13: 単位
B14: - | C14: m | D14: mm | M14: - | N14: - | O14: - | P14: - | R14: 0 | S14: -0.5 | T14: 0 | AA14: パイプ | AB14: 推算値 | AC14: =SUM(BB45:BB125)*2*AC26 -> 0 | AD14: kg | AF14: 重量 | AG14: M | AH14: =AC31 -> 0.2 | AI14: kg
B15: 0胴 | C15: 0.4 | D15: 1 | M15: - | N15: mm | O15: - | P15: mm | AB15: 誤差 | AC15: 0 | AD15: kg | AF15: 重心位置 | AG15: Xcg | AH15: =SUMPRODUCT(BF45:BF125,E45:E125)/SUM(BF45:BF125) ->  | AI15: m
L16: 0番flat | M16: =LINEST(N6:N7,M6:M7,TRUE,FALSE) -> 0 | N16: 0 | O16: =LINEST(O6:O7,M6:M7,TRUE,FALSE) -> 0 | P16: 0 | AB16: 実測値 | AC16: =AC14+AC15 -> 0 | AD16: kg | AG16: Ycg | AH16: 0 | AI16: m
L17: パイプ | M17: =LINEST(N7,M7,TRUE,FALSE) -> 0 | N17: 0 | O17: =LINEST(O7:O8,M7:M8,TRUE,FALSE) -> 0 | P17: 0 | AA17: T字 | AB17: 推算値 | AC17: =SUM(BC45:BC125)*AC26 -> 0 | AD17: kg | AG17: Zcg | AH17: =SUMPRODUCT(BF45:BF125,G45:G125)/SUM(BF45:BF125) ->  | AI17: m
L18: 胴体太端 | M18: =LINEST(N8:N9,M8:M9,TRUE,FALSE) -> 0 | N18: 0 | O18: =LINEST(O8:O9,M8:M9,TRUE,FALSE) -> 0 | P18: 0 | AB18: 誤差 | AC18: 0 | AD18: kg | AF18: 慣性モーメント | AG18: Ixx | AH18: =SUMPRODUCT(BF45:BF125,BH45:BH125) -> 0 | AI18: kg*m^2
B19: 名 | C19: 記号 | D19: 値 | E19: 単位 | L19: 胴接細端 | M19: =LINEST(N9:N10,M9:M10,TRUE,FALSE) -> 0 | N19: 0 | O19: =LINEST(O9:O10,M9:M10,TRUE,FALSE) -> 0 | P19: 0 | AB19: 実測値 | AC19: =AC17+AC18 -> 0 | AD19: kg | AG19: Iyy | AH19: =SUMPRODUCT(BF45:BF125,BI45:BI125) -> 0 | AI19: kg*m^2
B20: 短軸/長軸比 | C20: - | D20: 0.9 | E20: - | L20: 胴体細端 | AA20: 胴接 | AB20: 推算値 | AC20: =SUM(BD45:BD125)*AC26 -> 0 | AD20: kg | AG20: Izz | AH20: =SUMPRODUCT(BF45:BF125,BJ45:BJ125) -> 0 | AI20: kg*m^2
D21: 1 | E21: - | AB21: 誤差 | AC21: 0 | AD21: kg | AG21: Ixy | AH21: 0 | AI21: kg・m^2
AB22: 実測値 | AC22: =AC20+AC21 -> 0 | AD22: kg | AG22: Iyz | AH22: 0 | AI22: kg・m^2
B23: 名 | C23: 記号 | D23: 値 | E23: 単位 | AA23: 胴体 | AB23: 推算値 | AC23: =SUM(BE45:BE125)*AC26 -> 0 | AD23: kg | AG23: Ixz | AH23: =SUMPRODUCT(BF45:BF125,BK45:BK125) -> 0 | AI23: kg・m^2
B24: 分割数 | C24: n | D24: 89 | E24: - | F24: スパン方向分割数 | AB24: 誤差 | AC24: 0 | AD24: kg
B25: 周方向分割数 | C25: m | D25: 1440 | E25: - | F25: 周方向分割数 | AB25: 実測値 | AC25: =AC23+AC24 -> 0 | AD25: kg
AA26: 重なりしろ係数 | AB26: - | AC26: 1.05 | AD26: -
B27: 厚さ | C27: t | D27: ='各種パラメータ(sht0)'!D31 -> 0 | E27: mm/ply | AA27: 接合点数 | AB27: - | AC27: 1 | AD27: node
AA28: 強化積層 | AB28: - | AC28: 0.2 | AD28: kg/node
AA29: 合計 | AB29: 胴体接合 | AC29: =AC16+AC19+AC22+AC27*AC28 -> 0.2 | AD29: kg
B30: 要素間隔 | C30: Δy | D30: 0.05 | E30: m | AB30: 胴体 | AC30: =AC23 -> 0 | AD30: kg
AB31: 合計 | AC31: =AC29+AC30 -> 0.2 | AD31: kg
AD41: パイプ | AH41: T字 | AL41: 胴接 | AP41: 胴体 | AT41: 断面積 | AX41: 体積 | BB41: 重量 | BF41: 合計 | BH41: 慣性モーメント | BK41: 慣性乗積 | BM41: グラフ描画用
B42: 名 | C42: 要素番号 | D42: スパー | E42: 位置 | H42: 外径長半軸 | I42: 外径短半軸 | J42: 内径長半軸 | K42: 内径短半軸 | L42: 断面二次モーメント | N42: ねじれ定数 | O42: 断面積 | P42: 囲まれる面積 | Q42: 周長 | R42: ヤング率 | S42: 曲げ剛性 | T42: 横弾性係数 | U42: ねじれ剛性 | V42: 長軸外径 | X42: 短軸外径 | Z42: 長軸内径 | AB42: 短軸内径 | AD42: 長軸外径 | AE42: 短軸外径 | AF42: 長軸内径 | AG42: 短軸内径 | AH42: 長軸外径 | AI42: 短軸外径 | AJ42: 長軸内径 | AK42: 短軸内径 | AL42: 長軸外径 | AM42: 短軸外径 | AN42: 長軸内径 | AO42: 短軸内径 | AP42: 長軸外径 | AQ42: 短軸外径 | AR42: 長軸内径 | AS42: 短軸内径 | AT42: パイプ | AU42: T字 | AV42: 胴接 | AW42: 胴体 | AX42: パイプ | AY42: T字 | AZ42: 胴接 | BA42: 胴体 | BB42: パイプ | BC42: T字 | BD42: 胴接 | BE42: 胴体 | BF42: 重量 | BH42: 主翼重心からの距離の2乗 | BK42: 距離×距離 | BM42: 位置
B43: 記号 | C43: n | D43: - | E43: x | F43: y | G43: z | H43: bo | I43: ao | J43: bi | K43: ai | L43: Ix | M43: Iy | N43: J | O43: A | P43: Am | Q43: L | R43: E | S43: EIx | T43: G | U43: GJ | V43: + | W43: - | X43: + | Y43: - | Z43: + | AA43: - | AB43: + | AC43: - | AD43: bo | AE43: ao | AF43: bi | AG43: ai | AH43: bo | AI43: ao | AJ43: bi | AK43: ai | AL43: bo | AM43: ao | AN43: bi | AO43: ai | AP43: bo | AQ43: ao | AR43: bi | AS43: ai | AT43: - | AU43: - | AV43: - | AX43: - | AY43: - | AZ43: - | BB43: - | BC43: - | BD43: - | BF43: - | BH43: y^2+z^2 | BI43: z^2+x^2 | BJ43: x^2+y^2 | BK43: xz | BM43: ="-y" -> -y
B44: 単位 | C44: - | D44: - | E44: m | F44: m | G44: m | H44: mm | I44: mm | J44: mm | K44: mm | L44: mm^4 | M44: mm^4 | N44: mm^4 | O44: mm^2 | P44: mm^2 | Q44: mm | R44: GPa | S44: N*m^2 | T44: GPa | U44: N*m^2 | V44: mm | W44: mm | X44: mm | Y44: mm | Z44: mm | AA44: mm | AB44: mm | AC44: mm | AD44: mm | AE44: mm | AF44: mm | AG44: mm | AH44: mm | AI44: mm | AJ44: mm | AK44: mm | AL44: mm | AM44: mm | AN44: mm | AO44: mm | AP44: mm | AQ44: mm | AR44: mm | AS44: mm | AT44: mm^2 | AU44: mm^3 | AV44: mm^4 | AX44: m^3 | AY44: m^4 | AZ44: m^5 | BB44: kg | BC44: kg | BD44: kg | BF44: kg | BH44: m^2 | BI44: m^2 | BJ44: m^2 | BK44: m^2 | BM44: m
B45: 値 | C45: 0 | D45: =IF(E45<$M$7,"パイプ",IF(E45=$M$7,"T字",IF(E45<=$M$8,"胴接",IF(E45<=$M$9,"0胴接合","胴体")))) -> T字 | E45: =C45*$D$30 -> 0 | F45: =IF(E45<=$M$7,$M$16*E45+$N$16,IF(E45<$M$8,$M$18*E45+$N$18,IF(E45<$M$9,$M$18*E45+$N$18,$M$19*E45+$N$19))) -> 0 | G45: =IF(E45<=$M$7,$O$16*E45+$P$16,IF(E45<$M$8,$O$18*E45+$P$18,IF(E45<$M$9,$O$17*E45+$P$17,$O$19*E45+$P$19))) -> 0 | H45: =MAX(AD45,AH45,AL45,AP45)/2 -> 50 | I45: =MAX(AE45,AI45,AM45,AQ45)/2 -> 45 | J45: 50 | K45: 45 | R45: =IF(E45<$M$7,$G$7,IF(E45=$M$7,$G$8,IF(E45<$M$8,$G$8,IF(E45<$M$9,($G$8+$G$9)/2,$G$9)))) -> 0 | S45: =R45*(10^9)*L45*(10^-12) -> 0 | T45: =IF(E45<$M$7,$H$7,IF(E45=$M$7,$H$8,IF(E45<$M$8,$H$8,IF(E45<$M$9,($H$8+$H$9)/2,$H$9)))) -> 0 | U45: =T45*(10^9)*N45*(10^-12) -> 0 | V45: =H45 -> 50 | W45: =-H45 -> -50 | X45: =I45 -> 45 | Y45: =-I45 -> -45 | Z45: =J45 -> 50 | AA45: =-J45 -> -50 | AB45: =K45 -> 45 | AC45: =-K45 -> -45 | AD45: =IF(AF45="","",AF45+2*$D$27*$C$6) -> 100 | AE45: =IF(AG45="","",AG45+2*$D$27*$D$6) -> 90 | AF45: =IF(E45<=$M$7,$AF$6*E45+$AG$6,"") -> 100 | AG45: =IF(AF45="","",AF45*$D$20) -> 90 | AH45: =IF(AJ45="","",AJ45+2*$D$27*$C$7) -> 100 | AI45: =IF(AK45="","",AK45+2*$D$27*$D$7) -> 90 | AJ45: =IF(E45=$M$7,$AH$7*E45+$AI$7,"") -> 100 | AK45: =IF(AJ45="","",AJ45*$D$20) -> 90 | AL45: =IF(AN45="","",AN45+2*$D$27*$C$8) -> 100 | AM45: =IF(AO45="","",AO45+2*$D$27*$D$8) -> 90 | AN45: =IF(E45<$M$7,"",IF(E45<$M$9,$AJ$8*E45+$AK$8,"")) -> 100 | AO45: =IF(AN45="","",AN45*$D$20) -> 90 | AP45: =IF(AR45="","",AR45+2*$D$27*$C$9) ->  | AQ45: =IF(AS45="","",AS45+2*$D$27*$D$9) ->  | AR45: =IF(E45<=$M$8,"",IF(E45<=$M$10,$AL$9*E45+$AM$9,"")) ->  | AS45: =IF(AR45="","",AR45*$D$20) ->  | AT45: =IF(AD45="","",PI()*(AD45*AE45-AF45*AG45)/4) -> 0 | AU45: =IF(AH45="","",PI()*(AH45*AI45-AJ45*AK45)/4) -> 0 | AV45: =IF(AL45="","",PI()*(AL45*AM45-AN45*AO45)/4) -> 0 | AW45: =IF(AP45="","",PI()*(AP45*AQ45-AR45*AS45)/4) ->  | AX45: =IF($E45<=$M$7,AVERAGE(AT45:AT46)*(10^-6)*($E46-$E45),"") -> 0 | AY45: =IF($E45=$M$7,AU45*(10^-6)*($F45-$F46)*2,"") -> 0 | AZ45: =IF($E45<$M$7,"",IF($E45<=$M$9,AVERAGE(AV45:AV46)*(10^-6)*($E46-$E45),"")) -> 0 | BA45: =IF($E45<=$M$8,"",IF($E45<=$M$10,AVERAGE(AW45:AW46)*(10^-6)*($E46-$E45),"")) ->  | BB45: =IF(AX45="","",AX45*$AR$4) -> 0 | BC45: =IF(AY45="","",AY45*$AR$4) -> 0 | BD45: 0 | BF45: =SUM(BB45:BE45) -> 0 | BH45: =G45*G45 -> 0 | BI45: =G45*G45+E45*E45 -> 0 | BJ45: =E45*E45 -> 0 | BK45: =E45*G45 -> 0 | BM45: =-F45 -> 0
C46: =C45+1 -> 1 | D46: =IF(E46<$M$7,"パイプ",IF(E46=$M$7,"T字",IF(E46<=$M$8,"胴接",IF(E46<=$M$9,"0胴接合","胴体")))) -> 胴接 | E46: =C46*$D$30 -> 0.05 | F46: 0 | G46: =IF(E46<=$M$7,$O$16*E46+$P$16,IF(E46<$M$8,$O$18*E46+$P$18,IF(E46<$M$9,$O$17*E46+$P$17,$O$19*E46+$P$19))) -> 0 | H46: =MAX(AD46,AH46,AL46,AP46)/2 -> 49.75 | I46: =MAX(AE46,AI46,AM46,AQ46)/2 -> 44.775 | J46: =MAX(AF46,AJ46,AN46,AR46)/2 -> 49.75 | K46: =MAX(AG46,AK46,AO46,AS46)/2 -> 44.775 | R46: =IF(E46<$M$7,$G$7,IF(E46=$M$7,$G$8,IF(E46<$M$8,$G$8,IF(E46<$M$9,($G$8+$G$9)/2,$G$9)))) -> 0 | S46: =R46*(10^9)*L46*(10^-12) -> 0 | T46: =IF(E46<$M$7,$H$7,IF(E46=$M$7,$H$8,IF(E46<$M$8,$H$8,IF(E46<$M$9,($H$8+$H$9)/2,$H$9)))) -> 0 | U46: =T46*(10^9)*N46*(10^-12) -> 0 | V46: =H46 -> 49.75 | W46: =-H46 -> -49.75 | X46: =I46 -> 44.775 | Y46: =-I46 -> -44.775 | Z46: =J46 -> 49.75 | AA46: =-J46 -> -49.75 | AB46: =K46 -> 44.775 | AC46: =-K46 -> -44.775 | AD46: =IF(AF46="","",AF46+2*$D$27*$C$6) ->  | AE46: =IF(AG46="","",AG46+2*$D$27*$D$6) ->  | AF46: =IF(E46<=$M$7,$AF$6*E46+$AG$6,"") ->  | AG46: =IF(AF46="","",AF46*$D$20) ->  | AL46: =IF(AN46="","",AN46+2*$D$27*$C$8) -> 99.5 | AM46: =IF(AO46="","",AO46+2*$D$27*$D$8) -> 89.55 | AN46: =IF(E46<$M$7,"",IF(E46<$M$9,$AJ$8*E46+$AK$8,"")) -> 99.5 | AO46: =IF(AN46="","",AN46*$D$20) -> 89.55 | AT46: =IF(AD46="","",PI()*(AD46*AE46-AF46*AG46)/4) ->  | AU46: =IF(AH46="","",PI()*(AH46*AI46-AJ46*AK46)/4) ->  | AV46: =IF(AL46="","",PI()*(AL46*AM46-AN46*AO46)/4) -> 0 | AW46: =IF(AP46="","",PI()*(AP46*AQ46-AR46*AS46)/4) ->  | AX46: =IF($E46<=$M$7,AVERAGE(AT46:AT47)*(10^-6)*($E47-$E46),"") ->  | AZ46: 0 | BA46: =IF($E46<=$M$8,"",IF($E46<=$M$10,AVERAGE(AW46:AW47)*(10^-6)*($E47-$E46),"")) ->  | BB46: =IF(AX46="","",AX46*$AR$4) ->  | BC46: =IF(AY46="","",AY46*$AR$4) ->  | BD46: =IF(AZ46="","",AZ46*$AR$4) -> 0 | BE46: =IF(BA46="","",BA46*$AR$4) ->  | BF46: =SUM(BB46:BE46) -> 0 | BH46: =G46*G46 -> 0 | BI46: =G46*G46+E46*E46 -> 0.0025 | BJ46: =E46*E46 -> 0.0025 | BK46: =E46*G46 -> 0 | BM46: =-F46 -> 0
C47: =C46+1 -> 2 | D47: 胴接 | E47: =C47*$D$30 -> 0.1 | F47: 0 | G47: 0 | H47: 49.5 | I47: 44.55 | J47: 49.5 | K47: 44.55 | R47: 0 | S47: 0 | T47: 0 | U47: 0 | V47: 49.5 | W47: -49.5 | X47: 44.55 | Y47: -44.55 | Z47: 49.5 | AA47: -49.5 | AB47: 44.55 | AC47: -44.55 | AL47: 99 | AM47: 89.1 | AN47: 99 | AO47: 89.1 | AV47: 0 | AZ47: 0 | BD47: 0 | BF47: 0 | BH47: 0 | BI47: 0.01 | BJ47: 0.01 | BK47: 0 | BM47: 0
C48: 3 | D48: 胴接 | E48: 0.15 | F48: 0 | G48: 0 | H48: 49.25 | I48: 44.325 | J48: 49.25 | K48: 44.325 | R48: 0 | S48: 0 | T48: 0 | U48: 0 | V48: 49.25 | W48: -49.25 | X48: 44.325 | Y48: -44.325 | Z48: 49.25 | AA48: -49.25 | AB48: 44.325 | AC48: -44.325 | AL48: 98.5 | AM48: 88.65 | AN48: 98.5 | AO48: 88.65 | AV48: 0 | AZ48: 0 | BD48: 0 | BF48: 0 | BH48: 0 | BI48: 0.0225 | BJ48: 0.0225 | BK48: 0 | BM48: 0
C49: 4 | D49: 胴接 | E49: 0.2 | F49: 0 | G49: 0 | H49: 49 | I49: 44.1 | J49: 49 | K49: 44.1 | R49: 0 | S49: 0 | T49: 0 | U49: 0 | V49: 49 | W49: -49 | X49: 44.1 | Y49: -44.1 | Z49: 49 | AA49: -49 | AB49: 44.1 | AC49: -44.1 | AL49: 98 | AM49: 88.2 | AN49: 98 | AO49: 88.2 | AV49: 0 | AZ49: 0 | BD49: 0 | BF49: 0 | BH49: 0 | BI49: 0.04 | BJ49: 0.04 | BK49: 0 | BM49: 0
C50: 5 | D50: 胴接 | E50: 0.25 | F50: 0 | G50: 0 | H50: 48.75 | I50: 43.875 | J50: 48.75 | K50: 43.875 | R50: 0 | S50: 0 | T50: 0 | U50: 0 | V50: 48.75 | W50: -48.75 | X50: 43.875 | Y50: -43.875 | Z50: 48.75 | AA50: -48.75 | AB50: 43.875 | AC50: -43.875 | AL50: 97.5 | AM50: 87.75 | AN50: 97.5 | AO50: 87.75 | AV50: 0 | AZ50: 0 | BD50: 0 | BF50: 0 | BH50: 0 | BI50: 0.0625 | BJ50: 0.0625 | BK50: 0 | BM50: 0
C51: 6 | D51: 胴接 | E51: 0.3 | F51: 0 | G51: 0 | H51: 48.5 | I51: 43.65 | J51: 48.5 | K51: 43.65 | R51: 0 | S51: 0 | T51: 0 | U51: 0 | V51: 48.5 | W51: -48.5 | X51: 43.65 | Y51: -43.65 | Z51: 48.5 | AA51: -48.5 | AB51: 43.65 | AC51: -43.65 | AL51: 97 | AM51: 87.3 | AN51: 97 | AO51: 87.3 | AV51: 0 | AZ51: 0 | BD51: 0 | BF51: 0 | BH51: 0 | BI51: 0.09 | BJ51: 0.09 | BK51: 0 | BM51: 0
C52: 7 | D52: 胴接 | E52: 0.35 | F52: 0 | G52: 0 | H52: 48.25 | I52: 43.425 | J52: 48.25 | K52: 43.425 | R52: 0 | S52: 0 | T52: 0 | U52: 0 | V52: 48.25 | W52: -48.25 | X52: 43.425 | Y52: -43.425 | Z52: 48.25 | AA52: -48.25 | AB52: 43.425 | AC52: -43.425 | AL52: 96.5 | AM52: 86.85 | AN52: 96.5 | AO52: 86.85 | AV52: 0 | AZ52: 0 | BD52: 0 | BF52: 0 | BH52: 0 | BI52: 0.1225 | BJ52: 0.1225 | BK52: 0 | BM52: 0
C53: 8 | D53: 胴接 | E53: 0.4 | F53: 0 | G53: 0 | H53: 48 | I53: 43.2 | J53: 48 | K53: 43.2 | R53: 0 | S53: 0 | T53: 0 | U53: 0 | V53: 48 | W53: -48 | X53: 43.2 | Y53: -43.2 | Z53: 48 | AA53: -48 | AB53: 43.2 | AC53: -43.2 | AH53: =IF(AJ53="","",AJ53+2*$D$27*$C$7) ->  | AI53: =IF(AK53="","",AK53+2*$D$27*$D$7) ->  | AJ53: =IF(E53=$M$7,$AH$7*E53+$AI$7,"") ->  | AK53: =IF(AJ53="","",AJ53*$D$20) ->  | AL53: 96 | AM53: 86.4 | AN53: 96 | AO53: 86.4 | AV53: 0 | AY53: =IF($E53=$M$7,AU53*(10^-6)*($F53-$F54)*2,"") ->  | AZ53: 0 | BD53: 0 | BF53: 0 | BH53: 0 | BI53: 0.16 | BJ53: 0.16 | BK53: 0 | BM53: 0
C54: 9 | D54: 胴接 | E54: 0.45 | F54: =IF(E54<=$M$7,$M$16*E54+$N$16,IF(E54<$M$8,$M$18*E54+$N$18,IF(E54<$M$9,$M$18*E54+$N$18,$M$19*E54+$N$19))) -> 0 | G54: 0 | H54: 47.75 | I54: 42.975 | J54: 47.75 | K54: 42.975 | R54: 0 | S54: 0 | T54: 0 | U54: 0 | V54: 47.75 | W54: -47.75 | X54: 42.975 | Y54: -42.975 | Z54: 47.75 | AA54: -47.75 | AB54: 42.975 | AC54: -42.975 | AH54: =IF(AJ54="","",AJ54+2*$D$27*$C$7) ->  | AI54: =IF(AK54="","",AK54+2*$D$27*$D$7) ->  | AJ54: =IF(E54=$M$7,$AH$7*E54+$AI$7,"") ->  | AK54: =IF(AJ54="","",AJ54*$D$20) ->  | AL54: 95.5 | AM54: 85.95 | AN54: 95.5 | AO54: 85.95 | AV54: 0 | AY54: =IF($E54=$M$7,AU54*(10^-6)*($F54-$F55)*2,"") ->  | AZ54: 0 | BD54: 0 | BF54: 0 | BH54: 0 | BI54: 0.2025 | BJ54: 0.2025 | BK54: 0 | BM54: 0
C55: 10 | D55: 胴接 | E55: 0.5 | F55: =IF(E55<=$M$7,$M$16*E55+$N$16,IF(E55<$M$8,$M$18*E55+$N$18,IF(E55<$M$9,$M$18*E55+$N$18,$M$19*E55+$N$19))) -> 0 | G55: 0 | H55: 47.5 | I55: 42.75 | J55: 47.5 | K55: 42.75 | R55: 0 | S55: 0 | T55: 0 | U55: 0 | V55: 47.5 | W55: -47.5 | X55: 42.75 | Y55: -42.75 | Z55: 47.5 | AA55: -47.5 | AB55: 42.75 | AC55: -42.75 | AL55: 95 | AM55: 85.5 | AN55: 95 | AO55: 85.5 | AP55: =IF(AR55="","",AR55+2*$D$27*$C$9) ->  | AQ55: =IF(AS55="","",AS55+2*$D$27*$D$9) ->  | AR55: =IF(E55<=$M$8,"",IF(E55<=$M$10,$AL$9*E55+$AM$9,"")) ->  | AV55: 0 | AZ55: 0 | BD55: 0 | BF55: 0 | BH55: 0 | BI55: 0.25 | BJ55: 0.25 | BK55: 0 | BM55: 0
C56: 11 | D56: 0胴接合 | E56: 0.55 | F56: 0 | G56: 0 | H56: 48.25 | I56: 43.425 | J56: 48.25 | K56: 43.425 | R56: 0 | S56: 0 | T56: 0 | U56: 0 | V56: 48.25 | W56: -48.25 | X56: 43.425 | Y56: -43.425 | Z56: 48.25 | AA56: -48.25 | AB56: 43.425 | AC56: -43.425 | AL56: 94.5 | AM56: 85.05 | AN56: 94.5 | AO56: 85.05 | AP56: =IF(AR56="","",AR56+2*$D$27*$C$9) -> 96.5 | AQ56: =IF(AS56="","",AS56+2*$D$27*$D$9) -> 86.85 | AR56: =IF(E56<=$M$8,"",IF(E56<=$M$10,$AL$9*E56+$AM$9,"")) -> 96.5 | AS56: 86.85 | AV56: 0 | AW56: 0 | AZ56: 0 | BA56: 0 | BD56: 0 | BE56: 0 | BF56: 0 | BH56: 0 | BI56: 0.3025 | BJ56: 0.3025 | BK56: 0 | BM56: 0
C57: 12 | D57: 0胴接合 | E57: 0.6 | F57: 0 | G57: 0 | H57: 48 | I57: 43.2 | J57: 48 | K57: 43.2 | R57: 0 | S57: 0 | T57: 0 | U57: 0 | V57: 48 | W57: -48 | X57: 43.2 | Y57: -43.2 | Z57: 48 | AA57: -48 | AB57: 43.2 | AC57: -43.2 | AL57: 94 | AM57: 84.6 | AN57: 94 | AO57: 84.6 | AP57: 96 | AQ57: 86.4 | AR57: 96 | AS57: 86.4 | AV57: 0 | AW57: 0 | AZ57: 0 | BA57: 0 | BD57: 0 | BE57: 0 | BF57: 0 | BH57: 0 | BI57: 0.36 | BJ57: 0.36 | BK57: 0 | BM57: 0
C58: 13 | D58: 0胴接合 | E58: 0.65 | F58: 0 | G58: 0 | H58: 47.75 | I58: 42.975 | J58: 47.75 | K58: 42.975 | R58: 0 | S58: 0 | T58: 0 | U58: 0 | V58: 47.75 | W58: -47.75 | X58: 42.975 | Y58: -42.975 | Z58: 47.75 | AA58: -47.75 | AB58: 42.975 | AC58: -42.975 | AL58: 93.5 | AM58: 84.15 | AN58: 93.5 | AO58: 84.15 | AP58: 95.5 | AQ58: 85.95 | AR58: 95.5 | AS58: 85.95 | AV58: 0 | AW58: 0 | AZ58: 0 | BA58: 0 | BD58: 0 | BE58: 0 | BF58: 0 | BH58: 0 | BI58: 0.4225 | BJ58: 0.4225 | BK58: 0 | BM58: 0
C59: 14 | D59: 0胴接合 | E59: 0.7 | F59: 0 | G59: 0 | H59: 47.5 | I59: 42.75 | J59: 47.5 | K59: 42.75 | R59: 0 | S59: 0 | T59: 0 | U59: 0 | V59: 47.5 | W59: -47.5 | X59: 42.75 | Y59: -42.75 | Z59: 47.5 | AA59: -47.5 | AB59: 42.75 | AC59: -42.75 | AL59: 93 | AM59: 83.7 | AN59: 93 | AO59: 83.7 | AP59: 95 | AQ59: 85.5 | AR59: 95 | AS59: 85.5 | AV59: 0 | AW59: 0 | AZ59: 0 | BA59: 0 | BD59: 0 | BE59: 0 | BF59: 0 | BH59: 0 | BI59: 0.49 | BJ59: 0.49 | BK59: 0 | BM59: 0
C60: 15 | D60: 0胴接合 | E60: 0.75 | F60: 0 | G60: 0 | H60: 47.25 | I60: 42.525 | J60: 47.25 | K60: 42.525 | R60: 0 | S60: 0 | T60: 0 | U60: 0 | V60: 47.25 | W60: -47.25 | X60: 42.525 | Y60: -42.525 | Z60: 47.25 | AA60: -47.25 | AB60: 42.525 | AC60: -42.525 | AL60: 92.5 | AM60: 83.25 | AN60: =IF(E60<$M$7,"",IF(E60<=$M$9,$AJ$8*E60+$AK$8,"")) -> 92.5 | AO60: 83.25 | AP60: 94.5 | AQ60: 85.05 | AR60: 94.5 | AS60: 85.05 | AV60: 0 | AW60: 0 | AZ60: 0 | BA60: 0 | BD60: 0 | BE60: 0 | BF60: 0 | BH60: 0 | BI60: 0.5625 | BJ60: 0.5625 | BK60: 0 | BM60: 0
C61: 16 | D61: 0胴接合 | E61: 0.8 | F61: 0 | G61: 0 | H61: 47 | I61: 42.3 | J61: 47 | K61: 42.3 | R61: 0 | S61: 0 | T61: 0 | U61: 0 | V61: 47 | W61: -47 | X61: 42.3 | Y61: -42.3 | Z61: 47 | AA61: -47 | AB61: 42.3 | AC61: -42.3 | AL61: =IF(AN61="","",AN61+2*$D$27*$C$8) -> 92 | AM61: =IF(AO61="","",AO61+2*$D$27*$D$8) -> 82.8 | AN61: =IF(E61<$M$7,"",IF(E61<=$M$9,$AJ$8*E61+$AK$8,"")) -> 92 | AO61: 82.8 | AP61: 94 | AQ61: 84.6 | AR61: 94 | AS61: 84.6 | AV61: 0 | AW61: 0 | AZ61: =IF($E61<$M$7,"",IF($E61<=$M$9,AVERAGE(AV61:AV62)*(10^-6)*($E62-$E61),"")) -> 0 | BA61: 0 | BD61: 0 | BE61: 0 | BF61: 0 | BH61: 0 | BI61: 0.64 | BJ61: 0.64 | BK61: 0 | BM61: 0
C62: 17 | D62: 胴体 | E62: 0.85 | F62: 0 | G62: 0 | H62: 46.75 | I62: 42.075 | J62: 46.75 | K62: 42.075 | R62: 0 | S62: 0 | T62: 0 | U62: 0 | V62: 46.75 | W62: -46.75 | X62: 42.075 | Y62: -42.075 | Z62: 46.75 | AA62: -46.75 | AB62: 42.075 | AC62: -42.075 | AP62: 93.5 | AQ62: 84.15 | AR62: 93.5 | AS62: 84.15 | AW62: 0 | AZ62: =IF($E62<$M$7,"",IF($E62<=$M$9,AVERAGE(AV62:AV63)*(10^-6)*($E63-$E62),"")) ->  | BA62: 0 | BE62: 0 | BF62: 0 | BH62: 0 | BI62: 0.7225 | BJ62: 0.7225 | BK62: 0 | BM62: 0
C63: 18 | D63: 胴体 | E63: 0.9 | F63: 0 | G63: 0 | H63: 46.5 | I63: 41.85 | J63: 46.5 | K63: 41.85 | R63: 0 | S63: 0 | T63: 0 | U63: 0 | V63: 46.5 | W63: -46.5 | X63: 41.85 | Y63: -41.85 | Z63: 46.5 | AA63: -46.5 | AB63: 41.85 | AC63: -41.85 | AP63: 93 | AQ63: 83.7 | AR63: 93 | AS63: 83.7 | AW63: 0 | BA63: 0 | BE63: 0 | BF63: 0 | BH63: 0 | BI63: 0.81 | BJ63: 0.81 | BK63: 0 | BM63: 0
C64: 19 | D64: 胴体 | E64: 0.95 | F64: 0 | G64: 0 | H64: 46.25 | I64: 41.625 | J64: 46.25 | K64: 41.625 | R64: 0 | S64: 0 | T64: 0 | U64: 0 | V64: 46.25 | W64: -46.25 | X64: 41.625 | Y64: -41.625 | Z64: 46.25 | AA64: -46.25 | AB64: 41.625 | AC64: -41.625 | AP64: 92.5 | AQ64: 83.25 | AR64: 92.5 | AS64: 83.25 | AW64: 0 | BA64: 0 | BE64: 0 | BF64: 0 | BH64: 0 | BI64: 0.9025 | BJ64: 0.9025 | BK64: 0 | BM64: 0
C65: 20 | D65: 胴体 | E65: 1 | F65: 0 | G65: 0 | H65: 46 | I65: 41.4 | J65: 46 | K65: 41.4 | R65: 0 | S65: 0 | T65: 0 | U65: 0 | V65: 46 | W65: -46 | X65: 41.4 | Y65: -41.4 | Z65: 46 | AA65: -46 | AB65: 41.4 | AC65: -41.4 | AP65: 92 | AQ65: 82.8 | AR65: 92 | AS65: 82.8 | AW65: 0 | BA65: 0 | BE65: 0 | BF65: 0 | BH65: 0 | BI65: 1 | BJ65: 1 | BK65: 0 | BM65: 0
C66: 21 | D66: 胴体 | E66: 1.05 | F66: 0 | G66: 0 | H66: 45.75 | I66: 41.175 | J66: 45.75 | K66: 41.175 | R66: 0 | S66: 0 | T66: 0 | U66: 0 | V66: 45.75 | W66: -45.75 | X66: 41.175 | Y66: -41.175 | Z66: 45.75 | AA66: -45.75 | AB66: 41.175 | AC66: -41.175 | AP66: 91.5 | AQ66: 82.35 | AR66: 91.5 | AS66: 82.35 | AW66: 0 | BA66: 0 | BE66: 0 | BF66: 0 | BH66: 0 | BI66: 1.1025 | BJ66: 1.1025 | BK66: 0 | BM66: 0
C67: 22 | D67: 胴体 | E67: 1.1 | F67: 0 | G67: 0 | H67: 45.5 | I67: 40.95 | J67: 45.5 | K67: 40.95 | R67: 0 | S67: 0 | T67: 0 | U67: 0 | V67: 45.5 | W67: -45.5 | X67: 40.95 | Y67: -40.95 | Z67: 45.5 | AA67: -45.5 | AB67: 40.95 | AC67: -40.95 | AP67: 91 | AQ67: 81.9 | AR67: 91 | AS67: 81.9 | AW67: 0 | BA67: 0 | BE67: 0 | BF67: 0 | BH67: 0 | BI67: 1.21 | BJ67: 1.21 | BK67: 0 | BM67: 0
C68: 23 | D68: 胴体 | E68: 1.15 | F68: 0 | G68: 0 | H68: 45.25 | I68: 40.725 | J68: 45.25 | K68: 40.725 | R68: 0 | S68: 0 | T68: 0 | U68: 0 | V68: 45.25 | W68: -45.25 | X68: 40.725 | Y68: -40.725 | Z68: 45.25 | AA68: -45.25 | AB68: 40.725 | AC68: -40.725 | AP68: 90.5 | AQ68: 81.45 | AR68: 90.5 | AS68: 81.45 | AW68: 0 | BA68: 0 | BE68: 0 | BF68: 0 | BH68: 0 | BI68: 1.3225 | BJ68: 1.3225 | BK68: 0 | BM68: 0
C69: 24 | D69: 胴体 | E69: 1.2 | F69: 0 | G69: 0 | H69: 45 | I69: 40.5 | J69: 45 | K69: 40.5 | R69: 0 | S69: 0 | T69: 0 | U69: 0 | V69: 45 | W69: -45 | X69: 40.5 | Y69: -40.5 | Z69: 45 | AA69: -45 | AB69: 40.5 | AC69: -40.5 | AP69: 90 | AQ69: 81 | AR69: 90 | AS69: 81 | AW69: 0 | BA69: 0 | BE69: 0 | BF69: 0 | BH69: 0 | BI69: 1.44 | BJ69: 1.44 | BK69: 0 | BM69: 0
C70: 25 | D70: 胴体 | E70: 1.25 | F70: 0 | G70: 0 | H70: 44.75 | I70: 40.275 | J70: 44.75 | K70: 40.275 | R70: 0 | S70: 0 | T70: 0 | U70: 0 | V70: 44.75 | W70: -44.75 | X70: 40.275 | Y70: -40.275 | Z70: 44.75 | AA70: -44.75 | AB70: 40.275 | AC70: -40.275 | AP70: 89.5 | AQ70: 80.55 | AR70: 89.5 | AS70: 80.55 | AW70: 0 | BA70: 0 | BE70: 0 | BF70: 0 | BH70: 0 | BI70: 1.5625 | BJ70: 1.5625 | BK70: 0 | BM70: 0
C71: 26 | D71: 胴体 | E71: 1.3 | F71: 0 | G71: 0 | H71: 44.5 | I71: 40.05 | J71: 44.5 | K71: 40.05 | R71: 0 | S71: 0 | T71: 0 | U71: 0 | V71: 44.5 | W71: -44.5 | X71: 40.05 | Y71: -40.05 | Z71: 44.5 | AA71: -44.5 | AB71: 40.05 | AC71: -40.05 | AP71: 89 | AQ71: 80.1 | AR71: 89 | AS71: 80.1 | AW71: 0 | BA71: 0 | BE71: 0 | BF71: 0 | BH71: 0 | BI71: 1.69 | BJ71: 1.69 | BK71: 0 | BM71: 0
C72: 27 | D72: 胴体 | E72: 1.35 | F72: 0 | G72: 0 | H72: 44.25 | I72: 39.825 | J72: 44.25 | K72: 39.825 | R72: 0 | S72: 0 | T72: 0 | U72: 0 | V72: 44.25 | W72: -44.25 | X72: 39.825 | Y72: -39.825 | Z72: 44.25 | AA72: -44.25 | AB72: 39.825 | AC72: -39.825 | AP72: 88.5 | AQ72: 79.65 | AR72: 88.5 | AS72: 79.65 | AW72: 0 | BA72: 0 | BE72: 0 | BF72: 0 | BH72: 0 | BI72: 1.8225 | BJ72: 1.8225 | BK72: 0 | BM72: 0
C73: 28 | D73: 胴体 | E73: 1.4 | F73: 0 | G73: 0 | H73: 44 | I73: 39.6 | J73: 44 | K73: 39.6 | R73: 0 | S73: 0 | T73: 0 | U73: 0 | V73: 44 | W73: -44 | X73: 39.6 | Y73: -39.6 | Z73: 44 | AA73: -44 | AB73: 39.6 | AC73: -39.6 | AP73: 88 | AQ73: 79.2 | AR73: 88 | AS73: 79.2 | AW73: 0 | BA73: 0 | BE73: 0 | BF73: 0 | BH73: 0 | BI73: 1.96 | BJ73: 1.96 | BK73: 0 | BM73: 0
C74: 29 | D74: 胴体 | E74: 1.45 | F74: 0 | G74: 0 | H74: 43.75 | I74: 39.375 | J74: 43.75 | K74: 39.375 | R74: 0 | S74: 0 | T74: 0 | U74: 0 | V74: 43.75 | W74: -43.75 | X74: 39.375 | Y74: -39.375 | Z74: 43.75 | AA74: -43.75 | AB74: 39.375 | AC74: -39.375 | AP74: 87.5 | AQ74: 78.75 | AR74: 87.5 | AS74: 78.75 | AW74: 0 | BA74: 0 | BE74: 0 | BF74: 0 | BH74: 0 | BI74: 2.1025 | BJ74: 2.1025 | BK74: 0 | BM74: 0
C75: 30 | D75: 胴体 | E75: 1.5 | F75: 0 | G75: 0 | H75: 43.5 | I75: 39.15 | J75: 43.5 | K75: 39.15 | R75: 0 | S75: 0 | T75: 0 | U75: 0 | V75: 43.5 | W75: -43.5 | X75: 39.15 | Y75: -39.15 | Z75: 43.5 | AA75: -43.5 | AB75: 39.15 | AC75: -39.15 | AP75: 87 | AQ75: 78.3 | AR75: 87 | AS75: 78.3 | AW75: 0 | BA75: 0 | BE75: 0 | BF75: 0 | BH75: 0 | BI75: 2.25 | BJ75: 2.25 | BK75: 0 | BM75: 0
C76: 31 | D76: 胴体 | E76: 1.55 | F76: 0 | G76: 0 | H76: 43.25 | I76: 38.925 | J76: 43.25 | K76: 38.925 | R76: 0 | S76: 0 | T76: 0 | U76: 0 | V76: 43.25 | W76: -43.25 | X76: 38.925 | Y76: -38.925 | Z76: 43.25 | AA76: -43.25 | AB76: 38.925 | AC76: -38.925 | AP76: 86.5 | AQ76: 77.85 | AR76: 86.5 | AS76: 77.85 | AW76: 0 | BA76: 0 | BE76: 0 | BF76: 0 | BH76: 0 | BI76: 2.4025 | BJ76: 2.4025 | BK76: 0 | BM76: 0
C77: 32 | D77: 胴体 | E77: 1.6 | F77: 0 | G77: 0 | H77: 43 | I77: 38.7 | J77: 43 | K77: 38.7 | R77: 0 | S77: 0 | T77: 0 | U77: 0 | V77: 43 | W77: -43 | X77: 38.7 | Y77: -38.7 | Z77: 43 | AA77: -43 | AB77: 38.7 | AC77: -38.7 | AP77: 86 | AQ77: 77.4 | AR77: 86 | AS77: 77.4 | AW77: 0 | BA77: 0 | BE77: 0 | BF77: 0 | BH77: 0 | BI77: 2.56 | BJ77: 2.56 | BK77: 0 | BM77: 0
C78: 33 | D78: 胴体 | E78: 1.65 | F78: 0 | G78: 0 | H78: 42.75 | I78: 38.475 | J78: 42.75 | K78: 38.475 | R78: 0 | S78: 0 | T78: 0 | U78: 0 | V78: 42.75 | W78: -42.75 | X78: 38.475 | Y78: -38.475 | Z78: 42.75 | AA78: -42.75 | AB78: 38.475 | AC78: -38.475 | AP78: 85.5 | AQ78: 76.95 | AR78: 85.5 | AS78: 76.95 | AW78: 0 | BA78: 0 | BE78: 0 | BF78: 0 | BH78: 0 | BI78: 2.7225 | BJ78: 2.7225 | BK78: 0 | BM78: 0
C79: 34 | D79: 胴体 | E79: 1.7 | F79: 0 | G79: 0 | H79: 42.5 | I79: 38.25 | J79: 42.5 | K79: 38.25 | R79: 0 | S79: 0 | T79: 0 | U79: 0 | V79: 42.5 | W79: -42.5 | X79: 38.25 | Y79: -38.25 | Z79: 42.5 | AA79: -42.5 | AB79: 38.25 | AC79: -38.25 | AP79: 85 | AQ79: 76.5 | AR79: 85 | AS79: 76.5 | AW79: 0 | BA79: 0 | BE79: 0 | BF79: 0 | BH79: 0 | BI79: 2.89 | BJ79: 2.89 | BK79: 0 | BM79: 0
C80: 35 | D80: 胴体 | E80: 1.75 | F80: 0 | G80: 0 | H80: 42.25 | I80: 38.025 | J80: 42.25 | K80: 38.025 | R80: 0 | S80: 0 | T80: 0 | U80: 0 | V80: 42.25 | W80: -42.25 | X80: 38.025 | Y80: -38.025 | Z80: 42.25 | AA80: -42.25 | AB80: 38.025 | AC80: -38.025 | AP80: 84.5 | AQ80: 76.05 | AR80: 84.5 | AS80: 76.05 | AW80: 0 | BA80: 0 | BE80: 0 | BF80: 0 | BH80: 0 | BI80: 3.0625 | BJ80: 3.0625 | BK80: 0 | BM80: 0
C81: 36 | D81: 胴体 | E81: 1.8 | F81: 0 | G81: 0 | H81: 42 | I81: 37.8 | J81: 42 | K81: 37.8 | R81: 0 | S81: 0 | T81: 0 | U81: 0 | V81: 42 | W81: -42 | X81: 37.8 | Y81: -37.8 | Z81: 42 | AA81: -42 | AB81: 37.8 | AC81: -37.8 | AP81: 84 | AQ81: 75.6 | AR81: 84 | AS81: 75.6 | AW81: 0 | BA81: 0 | BE81: 0 | BF81: 0 | BH81: 0 | BI81: 3.24 | BJ81: 3.24 | BK81: 0 | BM81: 0
C82: 37 | D82: 胴体 | E82: 1.85 | F82: 0 | G82: 0 | H82: 41.75 | I82: 37.575 | J82: 41.75 | K82: 37.575 | R82: 0 | S82: 0 | T82: 0 | U82: 0 | V82: 41.75 | W82: -41.75 | X82: 37.575 | Y82: -37.575 | Z82: 41.75 | AA82: -41.75 | AB82: 37.575 | AC82: -37.575 | AP82: 83.5 | AQ82: 75.15 | AR82: 83.5 | AS82: 75.15 | AW82: 0 | BA82: 0 | BE82: 0 | BF82: 0 | BH82: 0 | BI82: 3.4225 | BJ82: 3.4225 | BK82: 0 | BM82: 0
C83: 38 | D83: 胴体 | E83: 1.9 | F83: 0 | G83: 0 | H83: 41.5 | I83: 37.35 | J83: 41.5 | K83: 37.35 | R83: 0 | S83: 0 | T83: 0 | U83: 0 | V83: 41.5 | W83: -41.5 | X83: 37.35 | Y83: -37.35 | Z83: 41.5 | AA83: -41.5 | AB83: 37.35 | AC83: -37.35 | AP83: 83 | AQ83: 74.7 | AR83: 83 | AS83: 74.7 | AW83: 0 | BA83: 0 | BE83: 0 | BF83: 0 | BH83: 0 | BI83: 3.61 | BJ83: 3.61 | BK83: 0 | BM83: 0
C84: 39 | D84: 胴体 | E84: 1.95 | F84: 0 | G84: 0 | H84: 41.25 | I84: 37.125 | J84: 41.25 | K84: 37.125 | R84: 0 | S84: 0 | T84: 0 | U84: 0 | V84: 41.25 | W84: -41.25 | X84: 37.125 | Y84: -37.125 | Z84: 41.25 | AA84: -41.25 | AB84: 37.125 | AC84: -37.125 | AP84: 82.5 | AQ84: 74.25 | AR84: 82.5 | AS84: 74.25 | AW84: 0 | BA84: 0 | BE84: 0 | BF84: 0 | BH84: 0 | BI84: 3.8025 | BJ84: 3.8025 | BK84: 0 | BM84: 0
C85: 40 | D85: 胴体 | E85: 2 | F85: 0 | G85: 0 | H85: 41 | I85: 36.9 | J85: 41 | K85: 36.9 | R85: 0 | S85: 0 | T85: 0 | U85: 0 | V85: 41 | W85: -41 | X85: 36.9 | Y85: -36.9 | Z85: 41 | AA85: -41 | AB85: 36.9 | AC85: -36.9 | AP85: 82 | AQ85: 73.8 | AR85: 82 | AS85: 73.8 | AW85: 0 | BA85: 0 | BE85: 0 | BF85: 0 | BH85: 0 | BI85: 4 | BJ85: 4 | BK85: 0 | BM85: 0
C86: =C85+1 -> 41 | D86: 胴体 | E86: =C86*$D$30 -> 2.05 | F86: 0 | G86: 0 | H86: 40.75 | I86: 36.675 | J86: 40.75 | K86: 36.675 | R86: 0 | S86: 0 | T86: 0 | U86: 0 | V86: 40.75 | W86: -40.75 | X86: 36.675 | Y86: -36.675 | Z86: 40.75 | AA86: -40.75 | AB86: 36.675 | AC86: -36.675 | AP86: 81.5 | AQ86: 73.35 | AR86: 81.5 | AS86: 73.35 | AW86: 0 | BA86: 0 | BE86: 0 | BF86: 0 | BH86: 0 | BI86: 4.2025 | BJ86: 4.2025 | BK86: 0 | BM86: 0
C87: 42 | D87: 胴体 | E87: 2.1 | F87: 0 | G87: 0 | H87: 40.5 | I87: 36.45 | J87: 40.5 | K87: 36.45 | R87: 0 | S87: 0 | T87: 0 | U87: 0 | V87: 40.5 | W87: -40.5 | X87: 36.45 | Y87: -36.45 | Z87: 40.5 | AA87: -40.5 | AB87: 36.45 | AC87: -36.45 | AP87: 81 | AQ87: 72.9 | AR87: 81 | AS87: 72.9 | AW87: 0 | BA87: 0 | BE87: 0 | BF87: 0 | BH87: 0 | BI87: 4.41 | BJ87: 4.41 | BK87: 0 | BM87: 0
